Workbook

Sheet деканаты
A1: Факультет | D1: подпись декана | F1: Должность | G1: Декан факультета | L1: Специалист по УМР
A2: 2 | B2: Экономический | C2: Экфак | D2: Н.А. Середа | E2: экономического | F2: И.о. декана | G2: Середа | H2: Надежда | I2: Александровна | K2: доцент | L2: О.В. Сосова | M2: Сосова | N2: Ольга | O2: Васильевна
A3: 3 | B3: Архитектурно-строительный | C3: АСФ | D3: С.В. Цыбакин | E3: архитектурно-строительного | F3: Декан | G3: Цыбакин | H3: Сергей | I3: Валерьевич | J3: к.т.н. | K3: доцент | L3: ..
A4: 4 | B4: Агробизнеса | C4: Агробизнес | D4: Ю.В. Панкратов | E4: агробизнеса | F4: Декан | G4: Панкратов | H4: Юрий | I4: Владимирович | J4: к.сх.н. | K4: доцент | L4: ..
A5: 5 | B5: Ветеринарной медицины и зоотехнии | C5: ВМиЗ | D5: Н.Ю. Парамонова | E5: ветеринарной медицины и зоотехнии | F5: Декан | G5: Парамонова | H5: Наталья | I5: Юрьевна | J5: к.в.н. | K5: доцент | L5: ..
A6: 6 | B6: Инженерно-технологический | C6: ИТФ | D6: С.А. Полозов | E6: инженерно-технологического | F6: Декан | G6: Полозов | H6: Сергей | I6: Александрович | J6: к.т.н. | K6: доцент | L6: А.А. Шашкова | M6: Шашкова | N6: Анна | O6: Андреевна
A7: 7 | B7: Электроэнергетический | C7: ЭЭФ | D7: А.В. Рожнов | E7: электроэнергетического | F7: Декан | G7: Рожнов | H7: Александр | I7: Валентинович | J7: к.т.н. | K7: доцент | L7: ..

Sheet Предметы
A1: 1 | B1: 2 | C1: 3 | D1: 4 | E1: 5 | F1: 6 | G1: 7 | H1: 8 | I1: 9 | J1: 10 | K1: 11 | L1: 12 | M1: 13 | N1: 14 | O1: 15 | P1: 16 | Q1: 17 | R1: 18 | S1: 19 | T1: 20 | U1: 21 | V1: 22 | W1: 23 | X1: 24 | Y1: 25 | Z1: 26 | AA1: 27 | AB1: 28 | AC1: 29 | AD1: 30 | AE1: 31 | AF1: 32 | AG1: 33 | AH1: 34 | AI1: 35 | AJ1: 36 | AK1: 37 | AL1: 38 | AM1: 39 | AN1: 40 | AO1: 41 | AP1: 42 | AQ1: 43 | AR1: 44 | AS1: 45 | AT1: 46 | AU1: 47 | AV1: 48 | AW1: 49 | AX1: 50 | AY1: 51 | AZ1: 52 | BA1: 53 | BB1: 54 | BC1: 55 | BD1: 56 | BE1: 57 | BF1: 58 | BG1: 59 | BH1: 60 | BI1: 61 | BJ1: 62 | BK1: 63 | BL1: 64 | BM1: 65 | BN1: 66 | BO1: 67 | BP1: 68 | BQ1: 69 | BR1: 70 | BS1: 71 | BT1: 72 | BU1: 73 | BV1: 74 | BW1: 75 | BX1: 76 | BY1: 77 | BZ1: 78 | CA1: 79 | CB1: 80 | CC1: 81 | CD1: 82 | CE1: 83 | CF1: 84 | CG1: 85 | CH1: 86 | CI1: 87 | CJ1: 88 | CK1: 89 | CL1: 90 | CM1: 91 | CN1: 92 | CO1: 93 | CP1: 94 | CQ1: 95 | CR1: 96 | CS1: 97 | CT1: 98 | CU1: 99 | CV1: 100 | CW1: 101 | CX1: 102 | CY1: 103 | CZ1: 104 | DA1: 105 | DB1: 106 | DC1: 107 | DD1: 108 | DE1: 109 | DF1: 110 | DG1: 111 | DH1: 112 | DI1: 113 | DJ1: 114 | DK1: 115 | DL1: 116 | DM1: 117 | DN1: 118 | DO1: 119 | DP1: 120 | DQ1: 121 | DR1: 122 | DS1: 123 | DT1: 124 | DU1: 125 | DV1: 126 | DW1: 127 | DX1: 128 | DY1: 129 | DZ1: 130 | EA1: 131 | EB1: 132 | EC1: 133 | ED1: 134 | EE1: 135 | EF1: 136 | EG1: 137 | EH1: 138 | EI1: 139 | EJ1: 140 | EK1: 141 | EL1: 142 | EM1: 143 | EN1: 144 | EO1: 145 | EP1: 146 | EQ1: 147 | ER1: 148 | ES1: 149 | ET1: 150 | EU1: 151 | EV1: 152 | EW1: 153 | EX1: 154 | EY1: 155 | EZ1: 156 | FA1: 157 | FB1: 158 | FC1: 159 | FD1: 160 | FE1: 161 | FF1: 162 | FG1: 163 | FH1: 164 | FI1: 165 | FJ1: 166 | FK1: 167 | FL1: 168 | FM1: 169 | FN1: 170 | FO1: 171 | FP1: 172 | FQ1: 173 | FR1: 174 | FS1: 175 | FT1: 176 | FU1: 177 | FV1: 178 | FW1: 179 | FX1: 180 | FY1: 181 | FZ1: 182 | GA1: 183 | GB1: 184 | GC1: 185 | GD1: 186 | GE1: 187 | GF1: 188 | GG1: 189 | GH1: 190 | GI1: 191 | GJ1: 192 | GK1: 193 | GL1: 194 | GM1: 195 | GN1: 196 | GO1: 197 | GP1: 198 | GQ1: 199 | GR1: 200 | GS1: 201 | GT1: 202 | GU1: 203 | GV1: 204 | GW1: 205 | GX1: 206 | GY1: 207 | GZ1: 208 | HA1: 209 | HB1: 210 | HC1: 211 | HD1: 212 | HE1: 213 | HF1: 214 | HG1: 215 | HH1: 216 | HI1: 217 | HJ1: 218 | HK1: 219 | HL1: 220 | HM1: 221 | HN1: 222 | HO1: 223 | HP1: 224 | HQ1: 225 | HR1: 226 | HS1: 227 | HT1: 228 | HU1: 229 | HV1: 230 | HW1: 231 | HX1: 232 | HY1: 233 | HZ1: 234 | IA1: 235 | IB1: 236 | IC1: 237 | ID1: 238 | IE1: 239 | IF1: 240 | IG1: 241 | IH1: 242 | II1: 243 | IJ1: 244 | IK1: 245 | IL1: 246 | IM1: 247 | IN1: 248 | IO1: 249 | IP1: 250 | IQ1: 251 | IR1: 252 | IS1: 253 | IT1: 254 | IU1: 255 | IV1: 256 | IW1: 257 | IX1: 258 | IY1: 259 | IZ1: 260 | JA1: 261 | JB1: 262 | JC1: 263 | JD1: 264 | JE1: 265 | JF1: 266 | JG1: 267
CC2: 2 | CF2: 2 | CI2: 2 | CL2: 2 | CO2: 2 | CR2: 2 | CU2: 2 | CX2: 2 | DA2: 3 | DD2: 3 | DG2: 3 | DJ2: 3 | DM2: 3 | DP2: 4 | DS2: 4 | DV2: 4 | DY2: 4 | EB2: 4 | EE2: 4 | EH2: 4 | EK2: 4 | EN2: 4 | EQ2: 5 | ET2: 5 | EW2: 5 | EZ2: 5 | FC2: 5 | FF2: 6 | FI2: 6 | FL2: 6 | FO2: 6 | FR2: 6 | FU2: 6 | FX2: 6 | GA2: 6 | GD2: 7 | GG2: 7 | GJ2: 7 | GM2: 7 | GP2: 7 | GS2: 7 | GV2: 7 | GY2: 8 | HB2: 8 | HE2: 8 | HH2: 8 | HK2: 8 | HN2: 8 | HQ2: 8 | HT2: 9 | HW2: 9 | HZ2: 9 | IC2: 9 | IF2: 9 | II2: 9 | IL2: 9 | IO2: 9 | IR2: 9 | IU2: 9 | IX2: 9 | JA2: 9 | JD2: 10 | JG2: 10
CC3: 216 | CF3: 108 | CI3: 108 | CL3: 72 | CO3: 216 | CR3: 252 | CU3: 360 | CX3: 216 | DA3: 97 | DD3: 72 | DG3: 180 | DJ3: 144 | DM3: 136 | DP3: 108 | DS3: 119 | DV3: 188 | DY3: 180 | EB3: 360 | EE3: 72 | EH3: 328час. | EK3: 72 | EQ3: 144 | ET3: 144 | EW3: 216 | EZ3: 216 | FC3: 144 | FF3: 144 | FI3: 72 | FL3: 144 | FR3: 108 | FU3: 180 | GD3: 144 | GJ3: 144 | GM3: 180 | GP3: 180 | GV3: 144 | GY3: 144 | HB3: 108 | HE3: 216 | HH3: 180 | HK3: 180 | HT3: 144 | HW3: 72 | HZ3: 108 | IC3: 108 | IF3: 144 | IL3: 180 | IO3: 180 | IR3: 180 | IU3: 144 | IX3: 108 | JA3: 72
A4: 0 | B4: Фамилия | C4: Имя | D4: Отчество | E4: ФИО | F4: ФИО | G4: Фамилия | H4: Имя | I4: Отчество | J4: Дата | K4: Место | L4: Гражданство | M4: Пол | N4: Что окончил(а) | O4: Год | P4: Семейное | R4: Трудовая книжка | U4: Паспорт | Y4: № | AC4: Профиль/специализация | AD4: Срок обучения | AE4: Квалификация | AF4: Приказ | AG4: Дата | AH4: вид зачисления | AI4: контракта/договора | AK4: Переведен на бюджет | AM4: Отчислен | AP4: Восстановлен | AS4: Академический отпуск | AX4: Переводной приказ 1 курс | AZ4: Переводной приказ 2 курс | BB4: Переводной приказ 3 курс | BD4: Переводной приказ 4 курс | BF4: Переводной приказ 5 курс | BH4: Переводной приказ 6 курс | BJ4: допуск к защите дипломного проекта | BL4: гос. экзамен | BR4: Диплом | CC4: 1курс | DA4: 2курс | EQ4: 3 курс | GD4: 4 курс | HT4: 5 курс | JL4: Оценки по предметам
A5: 0 | F5: Дател.Падеж | G5: Дател.Падеж | H5: Дател.Падеж | I5: Дател.Падеж | J5: рождения | K5: рождения | O5: окончания | P5: положение | Q5: Адрес места жительства | R5: Номер | S5: Дата выдачи | T5: кем выдана | U5: серия | V5: Номер | W5: Дата выдачи | X5: кем выдан | Y5: зачетной книжки | Z5: Факультет | AA5: Направление/специальность | AI5: договора | AJ5: Дата | AK5: договора | AL5: Дата | AM5: Приказ | AN5: Дата | AO5: Причина отчисления | AP5: Приказ | AQ5: Дата | AR5: Причина востановления | AS5: Приказ | AT5: Дата | AU5: Причина | AV5: сдаты | AW5: подату | AX5: Приказ | AY5: Дата | AZ5: Приказ | BA5: Дата | BB5: Приказ | BC5: Дата | BD5: Приказ | BE5: Дата | BF5: Приказ | BG5: Дата | BH5: Приказ | BI5: Дата | BJ5: Приказ | BK5: Дата | BL5: Название экзамена | BM5: Дата | BN5: оценка | BO5: Название экзамена | BP5: Дата | BQ5: оценка | BR5: Тема | BS5: оценка | BT5: протокола | BU5: Дата защиты | BV5: Отличие | BW5: Регистр. № | BX5: Серия | BY5: Номер | BZ5: Дата выдачи | CA5: Курс | CB5: Группа | CC5: Делопроизводство и документооборот в финансовой сфере | CF5: Введение в профессию и основы научных исследований | CI5: История | CL5: Психология | CO5: Математический анализ | CR5: Линейная алгебра | CU5: Информатика и информационное обеспечение финансовой деятельности | CX5: Микроэкономика | DA5: Иностранный язык (З) | DD5: Социология | DG5: Политология | DJ5: Теория вероятностей и математическая статистика | DM5: Макроэкономика (З) | DP5: Философия | DS5: Иностранный язык | DV5: Макроэкономика | DY5: Эконометрика | EB5: Статистика | EE5: Физическая культура и спорт | EH5: Общая физическая подготовка | EK5: Деловые коммуникации | EN5: Практика по ПППУ и Н | EQ5: Методы оптимальных решений | ET5: Информационные технологии и базы данных в сфере финансов и кредита | EW5: Программирование финансовых операций | EZ5: Бухгалтерский учет и анализ | FC5: Мировая экономика и международные экономические отношения | FF5: Регионалистика | FI5: Методы принятия управленческих решений в сфере финансов и кредита | FL5: Финансы | FO5: Финансы (КР) | FR5: Деньги, кредит, банки | FU5: Моделирование социально-экономических систем | FX5: Моделирование социально-экономических систем (КП) | GA5: Практика по ППУ и ОПД | GD5: Корпоративные финансы | GG5: Корпоративные финансы (КР) | GJ5: Страхование | GM5: Финансовые рынки | GP5: Экономика организаций (предприятий) | GS5: Экономика организаций (предприятий) (КР) | GV5: Планирование на предприятии | GY5: Менеджмент | HB5: Государственные и муниципальные финансы | HE5: Налоги и налоговая система | HH5: Международные валютно-кредитные и финансовые отношения | HK5: Анализ финансовой отчетности | HN5: Анализ финансовой отчетности (КР) | HQ5: Производственная практика (технологическая) | HT5: Право | HW5: Безопасность жизнедеятельности | HZ5: Маркетинг | IC5: Макроэкономическое планирование и прогнозирование | IF5: Инвестиции | II5: Инвестиции (КР) | IL5: Финансовый менеджмент | IO5: Оценка стоимости бизнеса | IR5: Финансовая политика | IU5: Банковское дело | IX5: Организация, нормирование и оплата труда на предприятии | JA5: Практикум 1С: Бухгалтерия | JD5: НИР | JG5: Преддипломная практика | JJ5: Средний балл | JL5: из них с оценками 3 | JM5: из них с оценками 4 | JN5: из них с оценками 5 | JO5: из них с зачетомом | JP5: итого предметов | JQ5: Часы всего | JR5: из них аудиторных | JS5: из них с оценками 3 | JT5: из них с оценками 4 | JU5: из них с оценками 5 | JW5: Количество долгов
A6: =A5+1 -> 1 | B6: Коногоров | C6: Андрей | D6: Евгеньевич | E6: =CONCATENATE(B6," ",LEFT(C6,1),". ",LEFT(D6,1),".") -> Коногоров А. Е. | F6: =DativeCase(CONCATENATE(B6,"",C6,"",D6)) ->  | G6: Коногорову | H6: Андрею | I6: Евгеньевичу | J6: 1989-09-12 | K6: г.Кострома | L6: РФ | M6: м | N6: МОУ лицей №41 города Костромы | O6: 2007 | P6: холост | Q6: г.Кострома, проезд Окружной-5й, д. 4, кв. 46 | Y6: 07130 | Z6: Экономический | AA6: 38.03.00 | AB6: Экономика | AC6: Финансы и кредит | AD6: 5 лет | AE6: БАКАЛАВР | AF6: 2-367 | AG6: 2007-08-09 | AH6: по договору с полным возмещением затрат | AI6: 186 | AJ6: 2007-08-02 | AS6: 2-402 2-448 | AT6: 18.05.2017 18.05.2018 | AU6: по семейным обстоятельствам по семейным обстоятельствам | AV6: 10.05.2017 18.05.2018 | AW6: 10.05.2018 17.05.2019 | BB6: 2-656 | BC6: 2015-10-06 | BD6: 2-402 | BE6: 2017-05-18 | BR6: Анализ оборотных активов и пути ускорения их оборачиваемости в ООО «Бизнес Отель» г.Кострома | CA6: 5 | CB6: АО | CF6: 6 | CG6: 2018-05-18 | CH6: 925 | CI6: 4 | CJ6: п/зач | CL6: 6 | CM6: п/зач | CO6: 3 | CP6: п/зач | CR6: 3 | CS6: п/зач | CU6: 3 | CV6: п/зач | CX6: 3 | CY6: п/зач | DA6: 6 | DB6: п/зач | DD6: 6 | DE6: п/зач | DG6: 3 | DH6: 2016-04-12 | DJ6: 3 | DK6: п/зач | DM6: 6 | DN6: 2016-06-09 | DP6: 6 | DQ6: п/зач | DS6: 3 | DT6: п/зач | DV6: 4 | DW6: 2015-12-11 | DY6: 3 | DZ6: 2018-05-14 | EB6: 3 | EC6: 2018-04-19 | ED6: 698 | EE6: 6 | EF6: п/зач | EQ6: 3 | ER6: 2016-12-22 | ET6: 3 | EU6: 2018-04-10 | EV6: 624 | EW6: 3 | EX6: 2016-02-24 | EZ6: 3 | FA6: п/зач | FC6: 3 | FD6: п/зач | FF6: 5 | FG6: 2015-11-13 | FI6: 6 | FJ6: 2016-02-24 | FL6: 3 | FM6: п/зач | FO6: 4 | FP6: п/зач | FR6: 4 | FS6: п/зач | FU6: 3 | FV6: 2018-05-18 | FW6: 875 | FX6: 3 | FY6: 2018-05-18 | GD6: 3 | GE6: 2018-04-25 | GF6: 765 | GG6: 3 | GH6: 2018-04-16 | GI6: Денежные средства и организация расчетов корпораций на примере ПАО "Лукойл" | GJ6: 3 | GK6: 2016-12-26 | GM6: 4 | GN6: 2018-02-02 | GP6: 3 | GQ6: п/зач | GS6: 3 | GT6: п/зач | GU6: Пути повышения финансовых результатов на примере ООО "Мечта" | GV6: 4 | GW6: 2018-03-13 | GX6: 520 | GY6: 4 | GZ6: п/зач | HB6: 3 | HC6: 2016-06-02 | HE6: 3 | HF6: 2016-04-08 | HH6: 3 | HI6: 2016-04-05 | HK6: 3 | HL6: 2016-04-14 | HN6: 3 | HO6: 2018-04-04 | HP6: Анализ дебиторской и кредиторской задолженности СПК "Красное" Ярославского района Ярославской области | HQ6: 3 | HR6: 2018-05-18 | HT6: 3 | HU6: п/зач | HW6: 6 | HX6: п/зач | HZ6: 3 | IA6: п/зач | IC6: 3 | ID6: 31.11.16 | IF6: 3 | IG6: 2018-03-14 | IH6: 529 | II6: 3 | IJ6: 2018-04-04 | IK6: АнализинвестиционнодеятельностиООО"КлючЗдороья"г.Кострома | IL6: 4 | IM6: 2016-11-02 | IO6: 4 | IP6: 2016-11-02 | IR6: 4 | IS6: 2015-04-04 | IU6: 4 | IV6: 2016-11-02 | IX6: 6 | IY6: п/зач | JA6: 6 | JB6: 2016-11-02 | JD6: 4 | JE6: 2018-05-04 | JF6: ФГБОУ ВО Костромская ГСХА, кафедра "Финансы и кредит" | JI6: ООО "БизнесОтель" г.Кострома | JJ6: =(JL6*3+JM6*4+JN6*5)/50 -> 3.04 | JL6: =COUNTIF(CC6:JG6,3) -> 33 | JM6: =COUNTIF(CC6:JG6,4) -> 12 | JN6: =COUNTIF(CC6:JG6,5) -> 1 | JO6: =COUNTIF(CC6:JG6,6) -> 11 | JP6: =SUM(JL6:JN6) -> 46 | JQ6: =SUMIF(CC6:JG6,">0",$CC$3:$JG$3) -> 7560 | JR6: =INT(JQ6/8+0.5) -> 945
A7: =A6+1 -> 2 | B7: Ушков | C7: Дмитрий | D7: Алексеевич | E7: =CONCATENATE(B7," ",LEFT(C7,1),". ",LEFT(D7,1),".") -> Ушков Д. А. | F7: =DativeCase(CONCATENATE(B7,"",C7,"",D7)) ->  | G7: Ушкову | H7: Дмитрию | I7: Алексеевичу | J7: 1994-09-01 | K7: г.Галич Костромскойобл. | L7: РФ | M7: м | N7: МОУ лицей3 г.Галич | O7: 2012 | P7: холост | Q7: Костромская обл., г.Галич, ул. Свердлова, д. 25 | Y7: 160022 | Z7: Экономический | AA7: 38.03.08 | AB7: Экономика | AC7: Финансы и кредит | AD7: 5 лет | AE7: БАКАЛАВР | AF7: 2-553 | AG7: 2012-08-05 | AH7: по договору с полным возмещением затрат | AI7: 556-2012 | AJ7: 2012-07-24 | AS7: 2-289 2-448 | AT7: 17.05.2016 18.05.2018 | AU7: в связи с призывом в ряды РФ по семейным обстоятельствам | AV7: 13.05.2016 18.05.2018 | AW7: 12.05.2017 17.05.2019 | AX7: 2-728 | AY7: 2013-11-25 | AZ7: 2-533 | BA7: 2014-09-01 | BB7: 2-571 | BC7: 2015-09-01 | BD7: 2-339 | BE7: 2018-05-03 | BR7: Анализ в системе управления заемным капиталом ООО «Ладыгино» Галичского района Костромской области | CA7: 5 | CB7: АО | CC7: 3 | CD7: 2017-11-01 | CF7: 6 | CG7: 2017-11-01 | CI7: 4 | CJ7: п/зач | CL7: 6 | CM7: п/зач | CO7: 3 | CP7: п/зач | CR7: 3 | CS7: п/зач | CU7: 3 | CV7: п/зач | CX7: 3 | CY7: п/зач | DA7: 6 | DB7: п/зач | DD7: 6 | DE7: п/зач | DG7: 3 | DH7: п/зач | DJ7: 3 | DK7: п/зач | DM7: 6 | DN7: п/зач | DP7: 6 | DQ7: п/зач | DS7: 3 | DT7: п/зач | DV7: 3 | DW7: п/зач | DY7: 3 | DZ7: 2018-04-19 | EA7: 696 | EB7: 3 | EC7: п/зач | EE7: 6 | EF7: п/зач | EN7: 4 | EO7: п/зач | EQ7: 3 | ER7: 2018-05-17 | ES7: 888 | ET7: 3 | EU7: п/зач | EW7: 3 | EX7: п/зач | EZ7: 3 | FA7: п/зач | FC7: 3 | FD7: п/зач | FF7: 4 | FG7: п/зач | FL7: 3 | FM7: п/зач | FO7: 3 | FP7: 2018-05-11 | FR7: 4 | FS7: п/зач | FU7: 3 | FV7: п/зач | FX7: 3 | FY7: п/зач | GA7: 3 | GB7: п/зач | GD7: 3 | GE7: 2017-12-06 | GG7: 4 | GH7: 23.01.2018 | GJ7: 3 | GK7: 2018-04-26 | GL7: 775 | GM7: 3 | GN7: 2018-02-06 | GP7: 3 | GQ7: п/зач | GS7: 3 | GT7: 2018-04-16 | GV7: 3 | GW7: 2018-02-27 | GX7: 512 | GY7: 3 | GZ7: п/зач | HB7: 4 | HC7: 2016-04-07 | HE7: 3 | HF7: 2016-04-08 | HH7: 3 | HI7: 2016-04-05 | HK7: 3 | HL7: 2016-04-14 | HN7: 4 | HO7: 2018-05-16 | HP7: Оценка риска вероятности банкротства предприятия ОАО "Ладыгино" Галичского района Костромской области | HQ7: 3 | HR7: п/зач | HT7: 3 | HU7: п/зач | HW7: 6 | HX7: п/зач | HZ7: 4 | IA7: 2017-11-01 | IC7: 4 | ID7: 2017-11-01 | IF7: 4 | IG7: 2017-11-01 | II7: 3 | IJ7: 2018-05-14 | IL7: 3 | IM7: 2017-11-01 | IO7: 4 | IP7: 2017-11-01 | IR7: 5 | IS7: 2017-11-01 | IU7: 4 | IV7: 2017-11-01 | IX7: 6 | IY7: 2017-11-01 | JA7: 6 | JB7: 2017-11-01 | JD7: 4 | JE7: 2018-03-20 | JF7: ФГБОУ ВО Костромская ГСХА, кафедра "Финансы и кредит" | JI7: ООО "Ладыгино" Галичского р-на Костромской обл. | JJ7: 3.24 | JL7: =COUNTIF(CC7:JG7,3) -> 35 | JM7: =COUNTIF(CC7:JG7,4) -> 13 | JN7: =COUNTIF(CC7:JG7,5) -> 1 | JO7: =COUNTIF(CC7:JG7,6) -> 10 | JP7: =SUM(JL7:JN7) -> 49 | JQ7: =SUMIF(CC7:JG7,">0",$CC$3:$JG$3) -> 7704 | JR7: =INT(JQ7/8+0.5) -> 963
A8: =A7+1 -> 3 | B8: Беляев | C8: Алексей | D8: Александрович | E8: =CONCATENATE(B8," ",LEFT(C8,1),". ",LEFT(D8,1),".") -> Беляев А. А. | F8: =DativeCase(CONCATENATE(B8,"",C8,"",D8)) ->  | G8: Беляеву | H8: Алексею | I8: Александровичу | J8: 1986-03-27 | K8: с.Михайловица Пыщугского р-на Костромской обл. | L8: РФ | M8: м | N8: ФГОУ СПО "Костромской автотранспортный техникум" | O8: 2005 | P8: холост | Q8: Костромская обл., Костромской р-н, дер.Деньгино, д. 7 | Y8: 139105 | Z8: Экономический | AA8: 38.03.08 | AB8: Экономика | AC8: Финансы и кредит | AD8: 5 лет | AE8: БАКАЛАВР | AF8: 2-784 | AG8: 2013-12-16 | AH8: в связи с переводом из ФГБОУ ВО "Ярославский государственный технический университет" | AI8: 000001783 | AJ8: 2013-10-08 | AS8: 2-491 2-448 | AT8: 06.06.2017 31.05.2018 | AU8: по семейным обстоятельствам по семейным обстоятельствам | AV8: 24.05.2017 23.05.2018 | AW8: 23.05.2018 22.05.2018 | AZ8: 2-532 | BA8: 2014-09-01 | BB8: 2-571 | BC8: 2015-09-01 | BD8: 2-561 | BE8: 2016-09-01 | CA8: 5 | CB8: АО | CI8: 5 | CJ8: п/зач | CL8: 6 | CM8: 2013-12-11 | CO8: 3 | CP8: п/зач | CR8: 3 | CS8: п/зач | CU8: 4 | CV8: п/зач | CX8: 3 | CY8: 2014-04-18 | DA8: 6 | DB8: п/зач | DD8: 6 | DE8: 2013-12-11 | DG8: 5 | DH8: 2013-12-13 | DJ8: 4 | DK8: 2013-12-19 | DM8: 6 | DN8: 2013-12-14 | DP8: 6 | DQ8: п/зач | DS8: 3 | DT8: п/зач | DV8: 4 | DW8: 2014-04-18 | DY8: 3 | DZ8: 2014-04-22 | EB8: 4 | EC8: 2014-04-23 | EE8: 6 | EF8: п/зач | EN8: 4 | EO8: п/зач | EQ8: 4 | ER8: 2014-11-28 | ET8: 3 | EU8: 2014-12-05 | EW8: 3 | EX8: 2014-12-04 | EZ8: 3 | FA8: 2014-11-20 | FC8: 4 | FD8: 2014-11-25 | FF8: 5 | FG8: 2015-05-18 | FI8: 6 | FJ8: 2015-05-23 | FL8: 3 | FM8: 2015-05-29 | FR8: 4 | FS8: 2015-05-25 | FU8: 3 | FV8: 2015-05-28 | FX8: 3 | FY8: 29.05.2015 | GA8: 3 | GB8: п/зач | GD8: 3 | GE8: 2015-12-04 | GJ8: 3 | GK8: 2015-12-15 | GM8: 4 | GN8: 2015-12-11 | GP8: 4 | GQ8: 2015-12-16 | GS8: 4 | GT8: 14.12.2015 | GV8: 3 | GW8: 2015-11-26 | GY8: 4 | GZ8: 2016-04-14 | HB8: 3 | HC8: 2016-04-07 | HE8: 3 | HF8: 2016-04-08 | HH8: 3 | HI8: 2016-04-05 | HK8: 4 | HL8: 2016-04-14 | HN8: 3 | HO8: 26.10.2016 | HQ8: 4 | HR8: 2017-03-31 | HT8: 3 | HU8: 2016-11-02 | HW8: 6 | HX8: 2017-05-23 | IC8: 3 | ID8: 2017-04-27 | IF8: 3 | IG8: 2017-02-15 | II8: 3 | IJ8: 15.02.2017 | IO8: 3 | IP8: 2016-11-02 | IU8: 4 | IV8: 2016-11-02 | JJ8: 2.94 | JL8: =COUNTIF(CC8:JG8,3) -> 24 | JM8: =COUNTIF(CC8:JG8,4) -> 15 | JN8: =COUNTIF(CC8:JG8,5) -> 3 | JO8: =COUNTIF(CC8:JG8,6) -> 8 | JP8: =SUM(JL8:JN8) -> 42 | JQ8: =SUMIF(CC8:JG8,">0",$CC$3:$JG$3) -> 6804 | JR8: =INT(JQ8/8+0.5) -> 851
A9: =A8+1 -> 4 | B9: Беззапонная | C9: Светлана | D9: Сергеевна | E9: =CONCATENATE(B9," ",LEFT(C9,1),". ",LEFT(D9,1),".") -> Беззапонная С. С. | G9: Беззапонной | H9: Светлане | I9: Сергеевне | J9: 1996-05-10 | K9: с.м. Качкары, Новоазовского р-на Донецкойобл. | L9: РФ | M9: ж | N9: МБОУ г.Костромы "Гимназия №25" | O9: 2014 | P9: незамужем | Q9: г.Кострома, ул. 2-я Дорожная, д. 1/13, кв. 2 | Y9: 14528 | Z9: Экономический | AA9: 38.03.12 | AB9: Экономика | AC9: Финансы и кредит | AD9: 5 лет | AE9: БАКАЛАВР | AF9: 2-524 | AG9: 2014-08-21 | AH9: по договору с полным возмещением затрат | AI9: 000002739 | AJ9: 2014-08-04 | AX9: 2-569 | AY9: 2015-08-31 | AZ9: 2-554 | BA9: 2017-06-16 | BB9: 2-703 | BC9: 2017-09-01 | CA9: 4 | CB9: 241z | CF9: 6 | CG9: 2018-04-13 | CH9: 76810137 | CI9: 3 | CJ9: п/зач | CL9: 6 | CM9: п/зач | CO9: 3 | CP9: п/зач | CR9: 3 | CS9: 2016-12-26 | CT9: 129 | CU9: 5 | CV9: 2017-05-29 | CW9: 729 | CX9: 0 | DA9: 6 | DB9: п/зач | DD9: 6 | DE9: 2015-12-22 | DG9: 4 | DH9: 2016-12-26 | DI9: 131 | DJ9: 3 | DK9: 2015-12-25 | DM9: 6 | DN9: 2015-12-24 | DP9: 6 | DQ9: 2016-04-27 | DS9: 4 | DT9: 2016-04-16 | DV9: 4 | DW9: 2016-04-19 | DY9: 4 | DZ9: 2016-04-27 | EB9: 5 | EC9: 2016-04-23 | EH9: 6 | EI9: п/зач | EN9: 4 | EQ9: 3 | ER9: 2016-12-05 | ES9: Z-6278434 | ET9: 4 | EU9: 2016-12-05 | EV9: Z-6278431 | EW9: 3 | EX9: 2016-12-05 | EY9: Z-6278889 | EZ9: 4 | FA9: 2016-12-05 | FB9: Z-6278442 | FC9: 4 | FD9: 2016-11-24 | FE9: Z-6278577 | FF9: 5 | FG9: 2017-05-30 | FH9: Z-6278581 | FI9: 6 | FJ9: 2017-05-30 | FK9: Z-6278435 | FL9: 3 | FM9: 2017-05-30 | FN9: Z-6278436 | FO9: 4 | FP9: 30.05.2017 | FQ9: Экономическая характеристика расходов федерального бюджета | FR9: 4 | FS9: 2017-05-30 | FT9: Z-6278452 | FU9: 5 | FV9: 2017-05-30 | FW9: Z-6278448 | FX9: 5 | FY9: 30.05.2017 | FZ9: Оптимизация структуры кормопроизводства предприятия агропромышленного комплекса | GD9: 4 | GE9: 2017-12-06 | GJ9: 5 | GK9: 2017-12-06 | GL9: Z-7689579 | GM9: 4 | GN9: 2017-12-06 | GO9: Z-7689592 | GP9: 3 | GQ9: 2017-12-06 | GR9: Z-7689508 | GS9: 3 | GT9: 06.12.2017 | GU9: Формирование и использование прибыли организации (предприятия) | GV9: 4 | GW9: 2017-12-06 | GX9: Z-7689717 | GY9: 5 | GZ9: 2018-04-13 | HA9: 7689488 | HB9: 4 | HC9: 2018-04-13 | HD9: 7689580 | HE9: 5 | HF9: 2018-04-13 | HG9: 7689577 | HH9: 4 | HI9: 2018-04-13 | HJ9: 7689583 | HK9: 5 | HL9: 2018-04-13 | HM9: 7689559 | HN9: 4 | HO9: 2018-04-13 | HP9: Анализ финансовых результатов деятельности предприятия | HS9: ООО "Макдоналдс" г.Кострома | HT9: 5 | HU9: п/зач | JJ9: 2.82 | JL9: =COUNTIF(CC9:JG9,3) -> 9 | JM9: =COUNTIF(CC9:JG9,4) -> 16 | JN9: =COUNTIF(CC9:JG9,5) -> 10 | JO9: =COUNTIF(CC9:JG9,6) -> 8 | JP9: =SUM(JL9:JN9) -> 35 | JQ9: =SUMIF(CC9:JG9,">0",$CC$3:$JG$3) -> 5976 | JR9: =INT(JQ9/8+0.5) -> 747
A10: =A9+1 -> 5 | B10: Беляева(Городкова) | C10: Алёна | D10: Ивановна | E10: =CONCATENATE(B10," ",LEFT(C10,1),". ",LEFT(D10,1),".") -> Беляева(Городкова) А. И. | G10: Беляевой | H10: Алёне | I10: Ивановне | J10: 1995-09-17 | K10: д. Афанасово Красносельского р-на | L10: РФ | M10: ж | N10: Красносельская СОШ №134 | O10: 2013 | P10: замужем | Q10: Костромская обл., Красносельский р-н, пгт Красное-на-Волге ул. П.А. Вяземского, д.24 | Y10: 13524 | Z10: Экономический | AA10: 38.03.13 | AB10: Экономика | AC10: Финансы и кредит | AD10: 5 лет | AE10: БАКАЛАВР | AF10: 2-509 | AG10: 2013-08-05 | AH10: по договору с полным возмещением затрат | AI10: 000000582 | AJ10: 2013-07-09 | AM10: 2-608 | AN10: 42262 | AO10: за академическую неуспеваемость | AP10: 2-656 | AQ10: 42283 | AX10: 2-533 | AY10: 2014-09-01 | AZ10: 2-561 | BA10: 2016-09-01 | BB10: 2-703 | BC10: 2017-09-01 | CA10: 4 | CB10: 241z | CF10: 6 | CG10: 2018-04-13 | CH10: 76810137 | CI10: 3 | CJ10: 2016-09-21 | CK10: 1590 | CL10: 6 | CM10: п/зач | CO10: 3 | CP10: п/зач | CR10: 3 | CS10: п/зач | CU10: 3 | CV10: 2017-05-26 | CW10: 946 | CX10: 3 | CY10: п/зач | DA10: 6 | DB10: п/зач | DD10: 6 | DE10: 2015-12-22 | DG10: 3 | DH10: 2015-12-26 | DJ10: 3 | DK10: п/зач | DM10: 6 | DN10: 2015-12-24 | DP10: 6 | DQ10: 2016-04-27 | DS10: 3 | DT10: 2016-06-11 | DV10: 3 | DY10: 3 | DZ10: 2016-04-27 | EB10: 4 | EC10: 2016-04-23 | EH10: 6 | EI10: п/зач | EN10: 3 | EO10: п/зач | EQ10: 3 | ER10: 2016-12-05 | ES10: Z-6278434 | ET10: 3 | EU10: 2016-12-05 | EV10: Z-6278431 | EW10: 3 | EX10: 2016-12-05 | EY10: Z-6278889 | EZ10: 3 | FA10: 2017-05-29 | FB10: 958 | FC10: 3 | FD10: 2016-11-24 | FE10: Z-6278577 | FF10: 5 | FG10: 2017-05-30 | FH10: Z-6278581 | FI10: 6 | FJ10: 2017-05-30 | FK10: Z-6278435 | FL10: 4 | FM10: 2017-05-30 | FN10: Z-6278436 | FO10: 4 | FP10: 30.05.2017 | FQ10: Управление финансами России | FR10: 4 | FS10: 2017-05-30 | FT10: Z-6278452 | FU10: 3 | FV10: 2017-05-30 | FW10: Z-6278448 | FX10: 3 | FY10: 30.05.2017 | FZ10: Оптимизация структуры кормопроизводства предприятия агропромышленного комплекса | GD10: 4 | GE10: 2017-12-06 | GF10: Z-7689567 | GG10: 3 | GH10: 06.12.2017 | GI10: Раходы ООО "Агрофирма Планета" Буйского района Костромской области и пути их снижения | GJ10: 4 | GK10: 2017-12-06 | GL10: Z-7689579 | GM10: 4 | GN10: 2017-12-06 | GO10: Z-7689592 | GP10: 3 | GQ10: 2017-12-06 | GR10: Z-7689508 | GS10: 4 | GT10: 06.12.2017 | GU10: Эффективность использования основных средств организации (предприятия) | GV10: 4 | GW10: 2017-12-06 | GX10: Z-7689717 | GY10: 5 | GZ10: 2018-04-13 | HA10: 7689488 | HB10: 4 | HC10: 2018-04-13 | HD10: 7689580 | HE10: 4 | HF10: 2018-04-13 | HG10: 7689577 | HH10: 5 | HI10: 2018-04-13 | HJ10: 7689583 | HK10: 4 | HL10: 2018-04-13 | HM10: 7689559 | HN10: 3 | HO10: 2018-04-13 | HP10: Анализ дебиторской и кредиторской задолженности предприятия | HS10: ООО "Нерехта-хлебопродукт" г.Нерехта Костромской обл. | HW10: 6 | HX10: п/зач | JJ10: 2.52 | JL10: =COUNTIF(CC10:JG10,3) -> 21 | JM10: =COUNTIF(CC10:JG10,4) -> 12 | JN10: =COUNTIF(CC10:JG10,5) -> 3 | JO10: =COUNTIF(CC10:JG10,6) -> 9 | JP10: =SUM(JL10:JN10) -> 36 | JQ10: =SUMIF(CC10:JG10,">0",$CC$3:$JG$3) -> 6120 | JR10: =INT(JQ10/8+0.5) -> 765
A11: =A10+1 -> 6 | B11: Вихарева | C11: Анна | D11: Витальевна | E11: =CONCATENATE(B11," ",LEFT(C11,1),". ",LEFT(D11,1),".") -> Вихарева А. В. | G11: Вихаревой | H11: Анне | I11: Витальевне | J11: 1993-08-08 | K11: с.Павино Павинского р-на Костромскойобл. | L11: РФ | M11: ж | N11: Павинская СОШ Костромской обл. | O11: 2011 | P11: незамужем | Q11: Костромская обл., Павинский р-н, с.Павино, ул. Юбилейная 13-1 | Y11: 14903 | Z11: Экономический | AA11: 38.03.15 | AB11: Экономика | AC11: Финансы и кредит | AD11: 5 лет | AE11: БАКАЛАВР | AF11: 2-525 | AG11: 2014-08-21 | AH11: по договору с полным возмещением затрат | AI11: 000002855 | AJ11: 2014-08-12 | AX11: 2-571 | AY11: 2015-09-01 | AZ11: 2-561 | BA11: 2016-09-01 | BB11: 2-703 | BC11: 2017-09-01 | CA11: 4 | CB11: 241z | CF11: 6 | CG11: 2018-04-13 | CH11: 76810137 | CI11: 3 | CJ11: 2015-06-01 | CL11: 6 | CM11: 2015-06-02 | CO11: 3 | CP11: 2015-06-02 | CR11: 3 | CS11: 2015-06-06 | CU11: 4 | CV11: 2015-05-30 | CX11: 3 | CY11: 2016-07-01 | DA11: 6 | DB11: 2015-12-22 | DD11: 6 | DE11: 2015-12-22 | DG11: 4 | DH11: 2015-12-26 | DJ11: 3 | DK11: 2015-12-25 | DM11: 6 | DN11: 2015-12-24 | DP11: 6 | DQ11: 2016-04-27 | DS11: 4 | DT11: 2016-06-11 | DV11: 4 | DW11: 2016-04-19 | DY11: 3 | DZ11: 2016-04-27 | EB11: 4 | EC11: 2016-04-23 | EH11: 6 | EI11: 2015-05-22 | EN11: 4 | EO11: 2017-05-22 | EP11: 840 | EQ11: 3 | ER11: 2016-12-05 | ES11: Z-6278434 | ET11: 4 | EU11: 2016-12-05 | EV11: Z-6278431 | EW11: 4 | EX11: 2016-12-05 | EY11: Z-6278889 | EZ11: 4 | FA11: 2016-12-05 | FB11: Z-6278442 | FC11: 5 | FD11: 2016-11-24 | FE11: Z-6278577 | FF11: 5 | FG11: 2017-05-30 | FH11: Z-6278581 | FI11: 6 | FJ11: 30.05.2017й | FK11: Z-6278435 | FL11: 4 | FM11: 2017-05-30 | FN11: Z-6278436 | FO11: 4 | FP11: 30.05.2017 | FQ11: Экономическая характеристика доходов бюджетной системы | FR11: 4 | FS11: 2017-05-30 | FT11: Z-6278452 | FU11: 5 | FV11: 2017-05-30 | FW11: Z-6278448 | FX11: 4 | FY11: 30.05.2017 | FZ11: Оптимизация сочетания отраслей и специализации предприятия агропромышленногокомплекса | GD11: 5 | GE11: 2017-12-06 | GF11: Z-7689567 | GG11: 4 | GH11: 06.12.2017 | GI11: Формирование, распределение и использование доходов корпораций, пути их увеличения (на примере ООО "Воскресенье-Агро" Буйского района Костромской области) | GJ11: 5 | GK11: 2017-12-06 | GL11: Z-7689579 | GM11: 4 | GN11: 2017-12-06 | GO11: Z-7689592 | GP11: 4 | GQ11: 2017-12-06 | GR11: Z-7689508 | GS11: 4 | GT11: 06.12.2017 | GU11: Эффективность использования основных средств организации (предприятия) | GV11: 4 | GW11: 2017-12-06 | GX11: Z-7689717 | GY11: 5 | GZ11: 2018-04-13 | HA11: 7689488 | HB11: 4 | HC11: 2018-04-13 | HD11: 7689580 | HE11: 5 | HF11: 2018-04-13 | HG11: 7689577 | HH11: 4 | HI11: 2018-04-13 | HJ11: 7689583 | HK11: 5 | HL11: 2018-04-13 | HM11: 7689559 | HN11: 5 | HO11: 2018-04-13 | HP11: Анализ собственного капитала предприятия | HS11: ООО "Русфинансбанк" г.Кострома | JJ11: 2.92 | JL11: =COUNTIF(CC11:JG11,3) -> 7 | JM11: =COUNTIF(CC11:JG11,4) -> 20 | JN11: =COUNTIF(CC11:JG11,5) -> 9 | JO11: =COUNTIF(CC11:JG11,6) -> 8 | JP11: =SUM(JL11:JN11) -> 36 | JQ11: =SUMIF(CC11:JG11,">0",$CC$3:$JG$3) -> 6048 | JR11: =INT(JQ11/8+0.5) -> 756
A12: =A11+1 -> 7 | B12: Двинских | C12: Виктория | D12: Максимовна | E12: =CONCATENATE(B12," ",LEFT(C12,1),". ",LEFT(D12,1),".") -> Двинских В. М. | G12: Двинских | H12: Виктории | I12: Максимовне | J12: 1995-01-24 | K12: г.Кострома | L12: РФ | M12: ж | N12: МАОУ г.Кострома Лицей №20 | O12: 2013 | P12: незамужем | Q12: г.Кострома, мкр Юбилейный, д.5, кв. 66 | Y12: 14755 | Z12: Экономический | AA12: 38.03.18 | AB12: Экономика | AC12: Финансы и кредит | AD12: 5 лет | AE12: БАКАЛАВР | AF12: 2-700 | AG12: 2014-10-07 | AH12: перевод из ФГБОУ ВПО "Костромской государственный университет" | AI12: 000003155 | AJ12: 2014-10-02 | AZ12: 2-554 | BA12: 2016-06-16 | CA12: 4 | CB12: 241z | CF12: 6 | CG12: 2018-04-13 | CH12: 76810137 | CI12: 3 | CJ12: п/зач | CL12: 6 | CM12: п/зач | CO12: 3 | CP12: п/зач | CR12: 3 | CS12: 2017-12-07 | CT12: 290 | CU12: 3 | CV12: 2017-05-22 | CW12: 817 | CX12: 3 | CY12: 2017-12-06 | CZ12: 183 | DA12: 6 | DB12: 2015-06-05 | DD12: 6 | DE12: п/зач | DG12: 4 | DH12: 2015-12-26 | DJ12: 3 | DK12: 2015-12-25 | DM12: 6 | DN12: 2015-12-24 | DP12: 6 | DQ12: 2015-04-27 | DS12: 4 | DT12: 2015-06-05 | DV12: 3 | DW12: 2016-04-19 | DY12: 3 | DZ12: 2016-04-27 | EB12: 3 | EC12: 2016-04-23 | EH12: 6 | EI12: п/зач | EN12: 3 | EO12: 2018-09-04 | EP12: 1004 | EQ12: 3 | ER12: 2018-09-04 | ES12: 1002 | ET12: 3 | EU12: 2016-12-05 | EV12: Z-6278431 | EW12: 3 | EX12: 2018-09-04 | EY12: 1005 | EZ12: 3 | FA12: 2018-09-05 | FB12: 05 | FC12: 4 | FD12: 2017-05-16 | FE12: 427 | FF12: 4 | FG12: 2017-05-30 | FH12: Z-6278581 | FI12: 6 | FJ12: 2017-05-30 | FK12: Z-6278435 | FL12: 4 | FM12: 2017-05-30 | FN12: Z-6278436 | FO12: 4 | FP12: 30.05.2017 | FQ12: Управление государственным долгом России | FR12: 4 | FS12: 2017-05-30 | FT12: Z-6278452 | FU12: 4 | FV12: 2017-05-30 | FW12: Z-6278448 | FX12: 3 | FY12: 30.05.2017 | FZ12: Оптимизация структуры кормопроизводства предприятия агропромышленного комплекса | GA12: 3 | GB12: 2018-09-05 | GD12: 3 | GE12: 2017-12-06 | GF12: Z-7689567 | GJ12: 4 | GK12: 2017-12-06 | GL12: Z-7689579 | GM12: 5 | GN12: 2017-12-06 | GO12: Z-7689592 | GP12: 3 | GQ12: 2017-12-06 | GR12: Z-7689508 | GS12: 3 | GT12: 2018-09-05 | GV12: 4 | GW12: 2017-12-06 | GX12: Z-7689717 | GY12: 4 | GZ12: 2018-04-13 | HA12: 7689488 | HB12: 3 | HC12: 2018-04-13 | HD12: 7689580 | HE12: 4 | HF12: 2018-04-13 | HG12: 7689577 | HH12: 3 | HI12: 2018-04-13 | HJ12: 7689583 | HK12: 5 | HL12: 2018-04-13 | HM12: 7689559 | HS12: ООО "Губерния-Строй" г.Кострома | HT12: 3 | HU12: п/зач | JJ12: 2.58 | JL12: =COUNTIF(CC12:JG12,3) -> 22 | JM12: =COUNTIF(CC12:JG12,4) -> 12 | JN12: =COUNTIF(CC12:JG12,5) -> 3 | JO12: =COUNTIF(CC12:JG12,6) -> 8 | JP12: =SUM(JL12:JN12) -> 37 | JQ12: =SUMIF(CC12:JG12,">0",$CC$3:$JG$3) -> 6192 | JR12: =INT(JQ12/8+0.5) -> 774
A13: =A12+1 -> 8 | B13: Иванова | C13: Надежда | D13: Евгеньевна | E13: =CONCATENATE(B13," ",LEFT(C13,1),". ",LEFT(D13,1),".") -> Иванова Н. Е. | G13: Ивановой | H13: Надежде | I13: Евгеньевне | J13: 1989-02-03 | K13: п.Красное-на-Волге Красносельского р-на Костромскойобл. | L13: РФ | M13: ж | N13: МОУ Красносельская СОШ | O13: 2006 | P13: замужем | Q13: Костромская обл., Костромской р-н, пгт Красное-на-Волге, мкр Восточный, д.5, кв. 55 | Y13: 14907 | Z13: Экономический | AA13: 38.03.20 | AB13: Экономика | AC13: Финансы и кредит | AD13: 5 лет | AE13: БАКАЛАВР | AF13: 2-525 | AG13: 2014-08-21 | AH13: по договору с полным возмещением затрат | AI13: 000002852 | AJ13: 2014-08-12 | AX13: 2-571 | AY13: 2015-09-01 | AZ13: 2-561 | BA13: 2016-09-01 | BB13: 2-703 | BC13: 2017-09-01 | CA13: 4 | CB13: 241z | CF13: 6 | CG13: 2018-04-13 | CH13: 76810137 | CI13: 3 | CJ13: 2015-06-01 | CL13: 6 | CM13: 2015-06-02 | CO13: 3 | CP13: 2015-06-02 | CR13: 4 | CS13: 2015-06-06 | CU13: 4 | CV13: 2015-05-30 | CX13: 3 | CY13: 2015-06-05 | DA13: 6 | DB13: 2015-12-22 | DD13: 6 | DE13: 2015-12-22 | DG13: 4 | DH13: 2015-12-26 | DJ13: 4 | DK13: 2015-12-25 | DM13: 6 | DN13: 2015-12-24 | DP13: 6 | DQ13: 2016-04-27 | DS13: 4 | DT13: 2016-06-11 | DV13: 4 | DW13: 2016-04-19 | DY13: 4 | DZ13: 2016-04-27 | EB13: 5 | EC13: 2016-04-23 | EH13: 6 | EI13: 2015-05-22 | EN13: 4 | EO13: 2016-07-02 | EP13: Z-6278411 | EQ13: 3 | ER13: 2016-12-05 | ES13: Z-6278434 | ET13: 4 | EU13: 2016-12-05 | EV13: Z-6278431 | EW13: 4 | EX13: 2016-12-05 | EY13: Z-6278889 | EZ13: 4 | FA13: 2016-12-05 | FB13: Z-6278442 | FC13: 4 | FD13: 2016-11-24 | FE13: Z-6278577 | FF13: 5 | FG13: 2017-05-30 | FH13: Z-6278581 | FI13: 6 | FJ13: 2017-05-30 | FK13: Z-6278435 | FL13: 5 | FM13: 2017-05-30 | FN13: Z-6278436 | FO13: 5 | FP13: 30.05.2017 | FQ13: Финансовая политика государства и ее особенности в России | FR13: 5 | FS13: 2017-05-30 | FT13: Z-6278452 | FU13: 5 | FV13: 2017-05-30 | FW13: Z-6278448 | FX13: 4 | FY13: 30.05.2017 | FZ13: Оптимизация структуры кормопроизводства предприятия агропромышленного комплекса | GD13: 5 | GE13: 2017-12-06 | GF13: Z-7689567 | GG13: 4 | GH13: 06.12.2017 | GI13: Раходы ООО "Минское" Костромского района Костромской области и пути их снижения | GJ13: 5 | GK13: 2017-12-06 | GL13: Z-7689579 | GM13: 5 | GN13: 2017-12-06 | GO13: Z-7689592 | GP13: 5 | GQ13: 2017-12-06 | GR13: Z-7689508 | GS13: 4 | GT13: 06.12.2017 | GU13: Финансовые ресурсы организации (предприятия) и эффективность их использования | GV13: 4 | GW13: 2017-12-06 | GX13: Z-7689717 | GY13: 4 | GZ13: 2018-04-13 | HA13: 7689488 | HB13: 4 | HC13: 2018-04-13 | HD13: 7689580 | HE13: 4 | HF13: 2018-04-13 | HG13: 7689577 | HH13: 4 | HI13: 2018-04-13 | HJ13: 7689583 | HK13: 5 | HL13: 2018-04-13 | HM13: 7689559 | HN13: 4 | HO13: 2018-04-13 | HP13: Анализ финансовых результатов деятельности предприятия | HQ13: 4 | HR13: 2018-08-31 | HS13: ООО "Рубин" Красносельского р-на Костромской обл. | JJ13: 3.1 | JL13: =COUNTIF(CC13:JG13,3) -> 4 | JM13: =COUNTIF(CC13:JG13,4) -> 22 | JN13: =COUNTIF(CC13:JG13,5) -> 11 | JO13: =COUNTIF(CC13:JG13,6) -> 8 | JP13: =SUM(JL13:JN13) -> 37 | JQ13: =SUMIF(CC13:JG13,">0",$CC$3:$JG$3) -> 6048 | JR13: =INT(JQ13/8+0.5) -> 756
A14: =A13+1 -> 9 | B14: Иванова | C14: Александра | D14: Алексеевна | E14: =CONCATENATE(B14," ",LEFT(C14,1),". ",LEFT(D14,1),".") -> Иванова А. А. | G14: Ивановой | H14: Александре | I14: Алексеевне | J14: 1995-04-16 | K14: д.Жвалово Судиславского р-на Костромскойобл. | L14: РФ | M14: ж | N14: МБОУ Судиславская СОШ Костромской обл. | O14: 2012 | P14: незамужем | Q14: Костромская обл., Сусанинский р-н, дер.Жвалово, ул. Центральная, д.5А, кв. 2 | Y14: 14906 | Z14: Экономический | AA14: 38.03.19 | AB14: Экономика | AC14: Финансы и кредит | AD14: 5 лет | AE14: БАКАЛАВР | AF14: 2-525 | AG14: 2014-08-21 | AH14: по договору с полным возмещением затрат | AI14: 000002981 | AJ14: 2014-08-18 | AX14: 2-571 | AY14: 2015-09-01 | AZ14: 2-672 | BA14: 2017-08-01 | CA14: 4 | CB14: 241z | CF14: 6 | CG14: 2018-04-13 | CH14: 76810137 | CI14: 3 | CJ14: 2015-06-01 | CL14: 6 | CM14: 2015-06-02 | CO14: 3 | CP14: 2015-06-02 | CU14: 4 | CV14: 2015-05-30 | CX14: 0 | DA14: 0 | DD14: 6 | DE14: 2015-12-22 | DG14: 4 | DH14: 2015-12-26 | DJ14: 3 | DK14: 2015-12-25 | DM14: 6 | DN14: 2015-12-24 | DP14: 6 | DQ14: 2016-04-27 | DV14: 3 | DW14: 2016-04-19 | EE14: 6 | EF14: 2018-03-14 | EW14: 4 | EX14: 2018-03-28 | EY14: 570 | EZ14: 3 | FA14: 2018-03-14 | FF14: 4 | FG14: 2017-05-30 | FH14: Z-6278581 | FL14: 4 | FM14: 2017-11-29 | FN14: 272 | FO14: 4 | FP14: 30.05.2017 | FQ14: Финансовое планирование и прогнозирование в условиях рыночной экономики | FR14: 3 | FS14: 2017-05-30 | FT14: Z-6278452 | FU14: 3 | FV14: 2017-05-30 | FW14: Z-6278448 | FX14: 3 | FY14: 30.05.2017 | FZ14: Оптимизация сочетания отраслей и специализации предприятия агропромышленногокомплекса | GD14: 3 | GE14: 2017-12-06 | GF14: Z-7689567 | GJ14: 3 | GK14: 2017-12-06 | GL14: Z-7689579 | GM14: 4 | GN14: 2017-12-06 | GO14: Z-7689592 | GP14: 3 | GQ14: 2017-12-06 | GR14: Z-7689508 | GU14: Эффективность использования земельных ресурсов организации (предприятия) | GV14: 4 | GW14: 2017-12-06 | GX14: Z-7689717 | HB14: 3 | HC14: 2018-04-13 | HD14: 7689580 | HE14: 4 | HF14: 2018-04-13 | HG14: 7689577 | HH14: 4 | HI14: 2018-04-13 | HJ14: 7689583 | HK14: 4 | HL14: 2018-04-13 | HM14: 7689559 | HN14: 3 | HO14: 2018-04-13 | HP14: Анализ собственного капитал апредприятия | HS14: ФГБОУ ВО Костромская ГСХАКостромского р-на Костромской обл. | JJ14: 1.66 | JL14: =COUNTIF(CC14:JG14,3) -> 13 | JM14: =COUNTIF(CC14:JG14,4) -> 11 | JN14: =COUNTIF(CC14:JG14,5) -> 0 | JO14: =COUNTIF(CC14:JG14,6) -> 6 | JP14: =SUM(JL14:JN14) -> 24 | JQ14: =SUMIF(CC14:JG14,">0",$CC$3:$JG$3) -> 4248 | JR14: =INT(JQ14/8+0.5) -> 531
A15: =A14+1 -> 10 | B15: Каменева | C15: Ксения | D15: Владимировна | E15: =CONCATENATE(B15," ",LEFT(C15,1),". ",LEFT(D15,1),".") -> Каменева К. В. | G15: Каменевой | H15: Ксении | I15: Владимировне | J15: 1996-06-25 | K15: с.Некрасово Костромского р-на Костромской обл. | L15: РФ | M15: ж | N15: МБОУ СОШ №14 г.Костромы | O15: 2014 | P15: незамужем | Q15: г.Кострома, ул. Водяная д.107, кв. 1 | Y15: 14908 | Z15: Экономический | AA15: 38.03.21 | AB15: Экономика | AC15: Финансы и кредит | AD15: 5 лет | AE15: БАКАЛАВР | AF15: 2-525 | AG15: 2014-08-21 | AH15: по договору с полным возмещением затрат | AI15: 000002670 | AJ15: 2014-07-17 | AX15: 2-571 | AY15: 2015-09-01 | AZ15: 2-561 | BA15: 2016-09-01 | BB15: 2-703 | BC15: 2017-09-01 | CA15: 4 | CB15: 241z | CF15: 6 | CG15: 2018-04-13 | CH15: 76810137 | CI15: 4 | CJ15: 2015-06-01 | CL15: 6 | CM15: 2015-06-02 | CO15: 3 | CP15: 2015-06-02 | CR15: 3 | CS15: 2015-06-06 | CU15: 4 | CV15: 2015-05-30 | CX15: 3 | CY15: 2015-06-05 | DA15: 6 | DB15: 2015-12-22 | DD15: 6 | DE15: 2015-12-22 | DG15: 5 | DH15: 2015-12-26 | DJ15: 3 | DK15: 2015-12-25 | DM15: 6 | DN15: 2015-12-24 | DP15: 6 | DQ15: 2016-04-27 | DS15: 5 | DT15: 2016-06-11 | DV15: 4 | DW15: 2016-04-19 | DY15: 3 | DZ15: 2016-04-27 | EB15: 5 | EC15: 2016-04-23 | EH15: 6 | EI15: 2015-05-22 | EQ15: 3 | ER15: 2016-12-05 | ES15: Z-6278434 | ET15: 3 | EU15: 2016-12-05 | EV15: Z-6278431 | EW15: 4 | EX15: 2016-12-05 | EY15: Z-6278889 | EZ15: 3 | FA15: 2016-12-05 | FB15: Z-6278442 | FC15: 4 | FD15: 2016-11-24 | FE15: Z-6278577 | FF15: 4 | FG15: 2017-05-30 | FH15: Z-6278581 | FI15: 6 | FJ15: 2017-05-30 | FK15: Z-6278435 | FL15: 4 | FM15: 2017-05-30 | FN15: Z-6278436 | FO15: 4 | FP15: 30.05.2017 | FQ15: Пенсионный фонд России и его роль в пенсионном обеспечении | FR15: 3 | FS15: 2017-05-30 | FT15: Z-6278452 | FU15: 4 | FV15: 2017-05-30 | FW15: Z-6278448 | FX15: 3 | FY15: 30.05.2017 | FZ15: Оптимизация сочетания отраслей и специализации предприятия агропромышленногокомплекса | GD15: 4 | GE15: 2017-12-06 | GF15: Z-7689567 | GG15: 3 | GH15: 06.12.2017 | GI15: Формирование, распределение и использование доходов корпораций, пути их увеличения (на примере ООО "Зарница" Буйского района Костромской области) | GJ15: 5 | GK15: 2017-12-06 | GL15: Z-7689579 | GM15: 4 | GN15: 2017-12-06 | GO15: Z-7689592 | GP15: 4 | GQ15: 2017-12-06 | GR15: Z-7689508 | GS15: 3 | GT15: 06.12.2017 | GU15: Ценовая политика организации (предприятия) | GV15: 4 | GW15: 2017-12-06 | GX15: Z-7689717 | GY15: 5 | GZ15: 2018-04-13 | HA15: 7689488 | HB15: 5 | HC15: 2018-04-13 | HD15: 7689580 | HE15: 5 | HF15: 2018-04-13 | HG15: 7689577 | HH15: 4 | HI15: 2018-04-13 | HJ15: 7689583 | HK15: 4 | HL15: 2018-04-13 | HM15: 7689559 | HN15: 4 | HO15: 2018-04-13 | HP15: Анализ ликвидности и платежеспособности предприятия | HQ15: 5 | HR15: 2018-08-31 | HS15: ООО "КМПУ №7" г.Кострома | JJ15: 2.8 | JL15: =COUNTIF(CC15:JG15,3) -> 12 | JM15: =COUNTIF(CC15:JG15,4) -> 16 | JN15: =COUNTIF(CC15:JG15,5) -> 8 | JO15: =COUNTIF(CC15:JG15,6) -> 8 | JP15: =SUM(JL15:JN15) -> 36 | JQ15: =SUMIF(CC15:JG15,">0",$CC$3:$JG$3) -> 6048 | JR15: =INT(JQ15/8+0.5) -> 756
A16: =A15+1 -> 11 | B16: Кашицына | C16: Вероника | D16: Николаевна | E16: =CONCATENATE(B16," ",LEFT(C16,1),". ",LEFT(D16,1),".") -> Кашицына В. Н. | G16: Кашицыной | H16: Веронике | I16: Николаевне | J16: 1996-01-28 | K16: г.Кострома | L16: РФ | M16: ж | N16: МБОУ СОШ №14 г.Костромы | O16: 2014 | P16: незамужем | Q16: г.Кострома, ул. Водяная, д.113, кв. 8 | Y16: 14909 | Z16: Экономический | AA16: 38.03.23 | AB16: Экономика | AC16: Финансы и кредит | AD16: 5 лет | AE16: БАКАЛАВР | AF16: 2-525 | AG16: 2014-08-21 | AH16: по договору с полным возмещением затрат | AI16: 000002704 | AJ16: 2014-07-28 | AX16: 2-571 | AY16: 2015-09-01 | AZ16: 2-561 | BA16: 2016-09-01 | BB16: 2-703 | BC16: 2017-09-01 | CA16: 4 | CB16: 241z | CF16: 6 | CG16: 2018-04-13 | CH16: 76810137 | CI16: 3 | CJ16: 2015-06-01 | CL16: 6 | CM16: 2015-06-02 | CO16: 3 | CP16: 2015-06-02 | CR16: 3 | CS16: 2015-06-06 | CU16: 3 | CV16: 2015-05-30 | CX16: 3 | CY16: 2015-06-05 | DA16: 6 | DB16: 2015-12-22 | DD16: 6 | DE16: 2015-12-22 | DG16: 4 | DH16: 2015-12-26 | DJ16: 3 | DK16: 2015-12-25 | DM16: 6 | DN16: 2015-12-24 | DP16: 6 | DQ16: 2016-04-27 | DS16: 4 | DT16: 2016-06-11 | DV16: 4 | DW16: 2016-04-19 | DY16: 3 | DZ16: 2016-04-27 | EB16: 4 | EC16: 2016-04-23 | EH16: 6 | EI16: 2015-05-22 | EQ16: 3 | ER16: 2016-12-05 | ES16: Z-6278434 | ET16: 4 | EU16: 2016-12-05 | EV16: Z-6278431 | EW16: 4 | EX16: 2016-12-05 | EY16: Z-6278889 | EZ16: 4 | FA16: 2016-12-05 | FB16: Z-6278442 | FC16: 4 | FD16: 2016-11-24 | FE16: Z-6278577 | FF16: 4 | FG16: 2017-05-30 | FH16: Z-6278581 | FI16: 6 | FJ16: 2017-05-30 | FK16: Z-6278435 | FL16: 4 | FM16: 2017-05-30 | FN16: Z-6278436 | FO16: 4 | FP16: 30.05.2017 | FQ16: Федеральный бюджет, его роль в развитии экономики и социальной сферы страны | FR16: 4 | FS16: 2017-05-30 | FT16: Z-6278452 | FU16: 4 | FV16: 2017-05-30 | FW16: Z-6278448 | FX16: 6 | FY16: 30.05.2017 | FZ16: Оптимизация структуры кормопроизводства предприятия агропромышленного комплекса | GD16: 5 | GE16: 2017-12-06 | GF16: Z-7689567 | GG16: 3 | GH16: 06.12.2017 | GI16: Механизм кредитования корпораций (на примере ОАО "Племзавод" Караваево" Костромского района Костромской области) | GJ16: 4 | GK16: 2017-12-06 | GL16: Z-7689579 | GM16: 4 | GN16: 2017-12-06 | GO16: Z-7689592 | GP16: 3 | GQ16: 2017-12-06 | GR16: Z-7689508 | GS16: 3 | GT16: 06.12.2017 | GU16: Формирование и использование прибыли организации (предприятия) | GV16: 4 | GW16: 2017-12-06 | GX16: Z-7689717 | GY16: 5 | GZ16: 2018-04-13 | HA16: 7689488 | HB16: 5 | HC16: 2018-04-13 | HD16: 7689580 | HE16: 5 | HF16: 2018-04-13 | HG16: 7689577 | HH16: 4 | HI16: 2018-04-13 | HJ16: 7689583 | HK16: 5 | HL16: 2018-04-13 | HM16: 7689559 | HN16: 4 | HO16: 2018-04-13 | HP16: Анализ финансовой устойчивости предприятия | HQ16: 5 | HR16: 2018-08-31 | HS16: АО "Завод имени Красина" г.Кострома | JJ16: 2.7 | JL16: =COUNTIF(CC16:JG16,3) -> 11 | JM16: =COUNTIF(CC16:JG16,4) -> 18 | JN16: =COUNTIF(CC16:JG16,5) -> 6 | JO16: =COUNTIF(CC16:JG16,6) -> 9 | JP16: =SUM(JL16:JN16) -> 35 | JQ16: =SUMIF(CC16:JG16,">0",$CC$3:$JG$3) -> 6048 | JR16: =INT(JQ16/8+0.5) -> 756
A17: =A16+1 -> 12 | B17: Кручак | C17: Александр | D17: Александрович | E17: =CONCATENATE(B17," ",LEFT(C17,1),". ",LEFT(D17,1),".") -> Кручак А. А. | G17: Кручак | H17: Александру | I17: Александровичу | J17: 1988-03-20 | K17: г.Горловка Донецкой обл. | L17: РФ | M17: м | N17: МСОШ №1 г.Неи, Костромская область | O17: 2005 | P17: холост | Q17: г.Нея ул. Школьная, д.315 | U17: 3408 | V17: 894063 | W17: 2008-04-17 | X17: ОтделениемУФМСРоссиипоКостромскойобластивКостромскомрайоне | Y17: 180009 | Z17: Экономический | AA17: 38.03.84 | AB17: Экономика | AC17: Финансы и кредит | AD17: 5 лет | AE17: БАКАЛАВР | AF17: 2-313 | AG17: 2005-08-08 | AM17: 2-444 | AN17: 2015-06-29 | AO17: за невыполнение учебного плана | AP17: 2-125 | AQ17: 43152 | CA17: 4 | CB17: 241z | CI17: 5 | CJ17: п/атт 02.02.2018 | CK17: 434 | CL17: 6 | CM17: 2018-03-16 | CN17: 544 | CO17: 3 | CP17: п/атт13.02.18 | CQ17: 500 | CR17: 3 | CS17: 2018-02-22 | CT17: 501 | CU17: 3 | CV17: п/атт0202.18 | CW17: 426 | CX17: 3 | CY17: п/атт14.02.18 | CZ17: 462 | DA17: 6 | DB17: 2018-02-07 | DC17: 443 | DD17: 6 | DE17: п/атт02.02.2018 | DF17: 429 | DJ17: 3 | DK17: 2018-02-22 | DL17: 502 | DM17: 6 | DN17: 2018-02-07 | DO17: 443 | DP17: 6 | DQ17: 2018-02-02 | DR17: 432 | DS17: 3 | DT17: 2018-02-12 | DU17: 455 | DY17: 3 | DZ17: п/атт.02.02.2018 | EA17: 425 | EB17: 3 | EC17: п/атт.02.02.2018 | ED17: 418 | EE17: 6 | EF17: 2018-02-12 | EG17: 456 | EH17: 6 | EI17: 2018-02-12 | EJ17: 457 | EP17: ФГБОУ ВО Костромская ГСХА, кафедра экономической кибернетики | ET17: 3 | EU17: п/атт02.02.2018 | EV17: 422 | EW17: 3 | EX17: п/атт02.02.2018 | EY17: 423 | FC17: 3 | FD17: п/атт20.02.2018 | FE17: 417 | FL17: 3 | FM17: 2018-02-28 | FN17: 513 | FR17: 4 | FS17: 2018-02-28 | FT17: 415 | FU17: 3 | FV17: п/атт02.02.2018 | FW17: 435 | GC17: ФГБОУ ВО Костромская ГСХА Костромского р-на Костромской обл. | GY17: 3 | GZ17: п/атт20.02.2018 | HA17: 420 | HE17: 3 | HF17: 2018-02-28 | HG17: 414 | HS17: ООО "Вега" Нейского р-на Костромской обл. | HT17: 3 | HU17: п/атт.20.02.2018 | HV17: 428 | HW17: 6 | HX17: п/атт.15.03.2018 | HY17: 424 | HZ17: 3 | IA17: п/зач.20.02.2018 | IB17: 419 | JJ17: 1.2 | JL17: =COUNTIF(CC17:JG17,3) -> 17 | JM17: =COUNTIF(CC17:JG17,4) -> 1 | JN17: =COUNTIF(CC17:JG17,5) -> 1 | JO17: =COUNTIF(CC17:JG17,6) -> 8 | JP17: =SUM(JL17:JN17) -> 19 | JQ17: =SUMIF(CC17:JG17,">0",$CC$3:$JG$3) -> 4132 | JR17: =INT(JQ17/8+0.5) -> 517
A18: =A17+1 -> 13 | B18: Магер | C18: Юлия | D18: Максимовна | E18: =CONCATENATE(B18," ",LEFT(C18,1),". ",LEFT(D18,1),".") -> Магер Ю. М. | G18: Магер | H18: Юлии | I18: Максимовне | J18: 1997-03-13 | K18: г.Кострома | L18: РФ | M18: ж | N18: МБОУ г.Костромы "Гимназия №25" | O18: 2014 | P18: незамужем | Q18: г.Кострома, ул. Сутырина, д.23, кв. 54 | Y18: 14465 | Z18: Экономический | AA18: 38.03.26 | AB18: Экономика | AC18: Финансы и кредит | AD18: 5 лет | AE18: БАКАЛАВР | AF18: 2-524 | AG18: 2014-08-21 | AH18: по договору с полным возмещением затрат | AI18: 000002763 | AJ18: 2014-08-06 | AX18: 2-571 | AY18: 2015-09-01 | AZ18: 2-561 | BA18: 2016-09-01 | CA18: 4 | CB18: 241z | CI18: 3 | CJ18: п/зач | CL18: 6 | CM18: п/зач | CO18: 3 | CP18: п/зач | CR18: 3 | CS18: п/зач | CX18: 4 | CY18: п/зач | DA18: 6 | DB18: п/зач | DD18: 6 | DE18: п/зач | DG18: 3 | DH18: п/зач | DJ18: 3 | DK18: п/зач | DM18: 6 | DN18: п/зач | DS18: 3 | DT18: п/зач | DV18: 3 | DW18: п/зач | DY18: 3 | DZ18: п/зач | EB18: 3 | EC18: п/зач | EE18: 6 | EF18: п/зач | EH18: 0 | EN18: 3 | EO18: п/зач | EQ18: 3 | ER18: п/зач | ET18: 3 | EU18: п/зач | EW18: 3 | EX18: п/зач | EZ18: 4 | FA18: п/зач | FC18: 3 | FD18: п/зач | FF18: 5 | FG18: п/зач | FI18: 6 | FJ18: п/зач | FL18: 3 | FM18: п/зач | FO18: 3 | FP18: п/зач | FU18: 3 | FV18: п/зач | FX18: 3 | FY18: п/зач | GA18: 3 | GB18: п/зач | GD18: 4 | GE18: п/зач | GJ18: 3 | GK18: п/зач | GP18: 3 | GQ18: п/зач | GV18: 3 | GW18: п/зач | GY18: 3 | GZ18: п/зач | HB18: 3 | HC18: п/зач | HH18: 3 | HI18: п/зач | HS18: ЗАО "Лига Гранд" г.Кострома | JJ18: =(JL18*3+JM18*4+JN18*5)/50 -> 1.84 | JL18: =COUNTIF(CC18:JG18,3) -> 25 | JM18: =COUNTIF(CC18:JG18,4) -> 3 | JN18: =COUNTIF(CC18:JG18,5) -> 1 | JO18: =COUNTIF(CC18:JG18,6) -> 6 | JP18: =SUM(JL18:JN18) -> 29 | JQ18: =SUMIF(CC18:JG18,">0",$CC$3:$JG$3) -> 4860 | JR18: =INT(JQ18/8+0.5) -> 608
A19: =A18+1 -> 14 | B19: Рудин | C19: Сергей | D19: Николаевич | E19: =CONCATENATE(B19," ",LEFT(C19,1),". ",LEFT(D19,1),".") -> Рудин С. Н. | G19: Рудину | H19: Сергею | I19: Николаевичу | J19: 1982-07-25 | K19: г.Сургут Тюменской обл. | L19: РФ | M19: м | N19: Шаховская муниципальная СОШ с.Шахово Судиславского р-на Костромской обл. | O19: 1999 | P19: женат | Q19: Московскаяобл., г.Наро-Форминск, ул. Куркоткина, д.9, в/ч1 | Y19: 160870 | Z19: Экономический | AA19: 38.03.29 | AB19: Экономика | AC19: Финансы и кредит | AD19: 5 лет | AE19: БАКАЛАВР | AF19: 2-226 | AG19: 1999-08-04 | AM19: 2-212 | AN19: 2015-04-14 | AO19: за невыполнение условий договора | AP19: 2-65 | AQ19: 42654 | CA19: 4 | CB19: 241z | CF19: 6 | CG19: 2018-04-13 | CH19: 76810137 | CI19: 4 | CJ19: п/зач | CL19: 6 | CM19: п/зач | CO19: 4 | CP19: п/зач | CR19: 4 | CS19: п/зач | CU19: 3 | CV19: п/зач | CX19: 3 | CY19: п/зач | DA19: 6 | DB19: п/зач | DD19: 6 | DE19: п/зач | DG19: 3 | DH19: 2017-05-18 | DI19: 714 | DJ19: 3 | DK19: 2018-04-09 | DL19: 617 | DM19: 6 | DN19: 2017-12-06 | DO19: 286 | DP19: 6 | DQ19: п/зач | DS19: 3 | DT19: п/зач | DV19: 3 | DW19: 2017-12-07 | DX19: 287 | DY19: 3 | DZ19: 2016-11-18 | EB19: 3 | EC19: 2018-04-13 | ED19: 643 | EH19: 6 | EI19: п/зач | EQ19: 4 | ER19: 2016-12-05 | ES19: Z-6278434 | ET19: 3 | EU19: п/зач | EW19: 3 | EX19: 2016-12-05 | EY19: Z-6278889 | EZ19: 4 | FA19: п/зач | FC19: 4 | FD19: п/зач | FF19: 5 | FG19: 2017-05-30 | FH19: Z-6278581 | FI19: 6 | FJ19: 2017-05-30 | FK19: Z-6278435 | FL19: 4 | FM19: п/зач | FO19: 4 | FP19: 30.05.2017 | FQ19: Сущность и функции налогов, их роль в современных условиях | FR19: 4 | FS19: 2017-05-30 | FT19: Z-6278452 | FU19: 4 | FV19: п/зач | FX19: 3 | FY19: п/зач | GD19: 4 | GE19: 2017-12-06 | GF19: Z-7689567 | GJ19: 5 | GK19: 2017-12-06 | GL19: Z-7689579 | GM19: 4 | GN19: 2017-12-06 | GO19: Z-7689592 | GP19: 3 | GQ19: п/зач | GS19: 4 | GT19: п/зач | GV19: 3 | GW19: п/зач | GY19: 3 | GZ19: п/зач | HB19: 5 | HC19: 2018-04-13 | HD19: 7689580 | HE19: 4 | HF19: 2018-04-13 | HG19: 7689577 | HH19: 3 | HI19: 2018-04-13 | HJ19: 7689583 | HK19: 4 | HL19: 2018-04-13 | HM19: 7689559 | HN19: 4 | HO19: 2018-08-27 | HS19: МКУ Отдел культуры, молодежи, спорта и туризма Cудиславского муниципального района Костромской области | HT19: 3 | HU19: п/зач | HW19: 6 | HX19: п/зач | HZ19: 3 | IA19: п/зач | JJ19: =(JL19*3+JM19*4+JN19*5)/50 -> 2.6 | JL19: =COUNTIF(CC19:JG19,3) -> 17 | JM19: =COUNTIF(CC19:JG19,4) -> 16 | JN19: =COUNTIF(CC19:JG19,5) -> 3 | JO19: =COUNTIF(CC19:JG19,6) -> 9 | JP19: =SUM(JL19:JN19) -> 36 | JQ19: =SUMIF(CC19:JG19,">0",$CC$3:$JG$3) -> 6372 | JR19: =INT(JQ19/8+0.5) -> 797
A20: =A19+1 -> 15 | B20: Сироткина(Овечкина) | C20: Мария | D20: Александровна | E20: =CONCATENATE(B20," ",LEFT(C20,1),". ",LEFT(D20,1),".") -> Сироткина(Овечкина) М. А. | G20: Сироткиной | H20: Марии | I20: Александровне | J20: 1990-11-08 | K20: п.Вохма Вохомского р-на Костромской обл. | L20: РФ | M20: ж | N20: МОУ Вохомская СОШ Костромской обл. п.Вохма | O20: 2007 | P20: замужем | Q20: Костромская обл., Вохомский р-н, п.Вохма, ул. Елькина, д.29 | Y20: 160026 | Z20: Экономический | AA20: 38.03.31 | AB20: Экономика | AC20: Финансы и кредит | AD20: 5 лет | AE20: БАКАЛАВР | AF20: 2-360 | AG20: 2007-08-03 | AH20: врамках контрольных цифр на основное место | AM20: 2-423 | AN20: 2009-09-15 | AO20: за академическую неуспеваемость | AP20: 2-238 | AQ20: 42485 | AZ20: 2-561 | BA20: 2016-09-01 | BB20: 2-703 | BC20: 2017-09-01 | CA20: 4 | CB20: 241z | CF20: 6 | CG20: 2018-04-13 | CH20: 76810137 | CI20: 3 | CJ20: п/зач | CL20: 6 | CM20: п/зач | CO20: 3 | CP20: п/зач | CR20: 3 | CS20: 2016-04-22 | CU20: 3 | CV20: п/зач | CX20: 5 | CY20: п/зач | DA20: 6 | DB20: п/зач | DD20: 6 | DE20: п/зач | DG20: 3 | DH20: 2016-04-19 | DJ20: 3 | DK20: 2016-04-22 | DM20: 6 | DN20: 2016-04-17 | DP20: 6 | DQ20: 2016-04-27 | DS20: 5 | DT20: 2016-06-11 | DV20: 4 | DW20: 2016-04-19 | DY20: 3 | EB20: 4 | EC20: п/зач | EE20: 6 | EF20: п/зач | EH20: 6 | EI20: п/зач | EN20: 3 | EO20: 2016-07-02 | EP20: ФГБОУ ВО Костромская ГСХА, кафедра экономической кибернетики | EQ20: 3 | ER20: 2016-12-05 | ES20: Z-6278434 | ET20: 4 | EU20: 2016-12-05 | EV20: Z-6278431 | EW20: 4 | EX20: 2016-12-05 | EY20: Z-6278889 | EZ20: 3 | FA20: 2016-12-05 | FB20: Z-6278442 | FC20: 3 | FD20: п/зач | FF20: 5 | FG20: 2017-05-30 | FH20: Z-6278581 | FI20: 6 | FJ20: 2017-05-30 | FK20: Z-6278435 | FL20: 5 | FM20: 2017-05-30 | FN20: Z-6278436 | FO20: 5 | FP20: 30.05.2017 | FQ20: Рынокценных бумаг в России и перспективы его развития | FR20: 4 | FS20: 2017-05-30 | FT20: Z-6278452 | FU20: 5 | FV20: 2017-05-30 | FW20: Z-6278448 | FX20: 5 | FY20: 30.05.2017 | FZ20: Оптимизация структуры кормопроизводства предприятия агропромышленного комплекса | GD20: 4 | GE20: 2017-12-06 | GF20: Z-7689567 | GG20: 4 | GH20: 2018-04-13 | GI20: Амортизационная политика и ее влияние на развитие корпораций на предприятии ЗАО "Судиславль" Судиславского района Костромской области | GJ20: 5 | GK20: 2017-12-06 | GL20: Z-7689579 | GM20: 4 | GN20: 2017-12-06 | GO20: Z-7689592 | GP20: 4 | GQ20: 2017-12-06 | GR20: Z-7689708 | GS20: 3 | GT20: 2018-06-29 | GU20: Земельные ресурсы организации (предприятия) и эффективность их использования в ОАО Племзавод "Чернопенский" Костромского района Костромской области | GV20: 4 | GW20: 2017-12-06 | GX20: Z-7689707 | GY20: 5 | GZ20: 2018-04-13 | HA20: 7689488 | HB20: 5 | HC20: 2018-04-13 | HD20: 7689580 | HE20: 5 | HF20: 2018-04-13 | HG20: 7689577 | HH20: 4 | HI20: 2018-04-13 | HJ20: 7689583 | HK20: 5 | HL20: 2018-04-13 | HM20: 7689559 | HN20: 5 | HO20: 2018-04-13 | HP20: Анализ финансовой устойчивости предприятия | HQ20: 5 | HR20: 2018-08-31 | HS20: ООО "Мастер Бриллиант" г. Кострома | JJ20: =(JL20*3+JM20*4+JN20*5)/50 -> 3 | JL20: =COUNTIF(CC20:JG20,3) -> 12 | JM20: =COUNTIF(CC20:JG20,4) -> 11 | JN20: =COUNTIF(CC20:JG20,5) -> 14 | JO20: =COUNTIF(CC20:JG20,6) -> 9 | JP20: =SUM(JL20:JN20) -> 37 | JQ20: =SUMIF(CC20:JG20,">0",$CC$3:$JG$3) -> 6120 | JR20: =INT(JQ20/8+0.5) -> 765
A21: =A20+1 -> 16 | B21: Столяренко | C21: Дмитрий | D21: Сергеевич | E21: =CONCATENATE(B21," ",LEFT(C21,1),". ",LEFT(D21,1),".") -> Столяренко Д. С. | G21: Столяренко | H21: Дмитрию | I21: Сергеевичу | J21: 1995-05-07 | K21: г.Кострома | L21: РФ | M21: м | N21: МБОУ г.Костромы СОШ №36 | O21: 2012 | P21: холост | Q21: г.Кострома, ул. Полевая, д.76, кв. 1 | Y21: 12441 | Z21: Экономический | AA21: 38.03.32 | AB21: Экономика | AC21: Финансы и кредит | AD21: 5 лет | AE21: БАКАЛАВР | AF21: 2-553 | AG21: 2012-08-05 | AH21: по договору с полным возмещением затрат | AI21: 515-2012 | AJ21: 2012-07-13 | AS21: 2-760 2-458 | AT21: 05.12.2013 23.06.2016 | AU21: по семейным обстоятельствам в связи с призывом в ряды ВС РФ | AV21: 02.12.2013 27.06.2016 | AW21: 01.12.2014 26.06.2017 | AX21: 2-592 | AY21: 2013-09-16 | AZ21: 2-703 | BA21: 2017-09-01 | CA21: 4 | CB21: 241z | CF21: 6 | CG21: 2018-04-13 | CH21: 76810137 | CI21: 3 | CJ21: п/зач | CL21: 6 | CM21: п/зач | CO21: 3 | CP21: п/зач | CR21: 3 | CS21: п/зач | CU21: 3 | CV21: п/зач | CX21: 3 | CY21: п/зач | DA21: 6 | DB21: 2018-05-17 | DC21: 892 | DD21: 6 | DE21: п/зач | DG21: 3 | DH21: п/зач | DJ21: 3 | DK21: п/зач | DM21: 6 | DN21: п/зач | DP21: 6 | DQ21: п/зач | DS21: 4 | DT21: 2018-05-17 | DU21: 893 | DV21: 3 | DW21: п/зач | DY21: 3 | DZ21: п/зач | EB21: 3 | EC21: п/зач | EE21: 6 | EF21: п/зач | EH21: 6 | EI21: п/зач | EK21: 6 | EL21: 2017-10-30 | EM21: 177 | EN21: 3 | EO21: п/зач | EW21: 3 | EX21: п/зач | EZ21: 3 | FA21: п/зач | FC21: 3 | FD21: п/зач | FF21: 4 | FG21: п/зач | FI21: 6 | FJ21: п/зач | FL21: 3 | FM21: п/зач | FO21: 3 | FP21: 28.11.2017 | FR21: 3 | FS21: 2018-04-13 | FT21: 638 | FU21: 3 | FV21: п/зач | FX21: 3 | FY21: п/зач | GA21: 3 | GB21: п/зач | GD21: 4 | GE21: 2017-12-06 | GF21: Z-7689567 | GG21: 4 | GH21: 06.12.2017 | GI21: Формирование, распределение и использование доходов корпораций, пути их увеличения (на примере ЗАО "Агромол" Сусанинского района Костромской области) | GJ21: 3 | GK21: 2017-12-06 | GL21: Z-7689579 | GM21: 4 | GN21: 2017-12-06 | GO21: Z-7689592 | GP21: 3 | GQ21: п/зач | GS21: 3 | GT21: п/зач | GV21: 3 | GW21: п/зач | GY21: 3 | GZ21: п/зач | HB21: 3 | HC21: п/зач | HE21: 5 | HF21: 2018-04-13 | HG21: 7689577 | HH21: 3 | HI21: 2018-04-13 | HJ21: 7689583 | HK21: 5 | HL21: 2018-04-13 | HM21: 7689559 | HN21: 4 | HO21: 2018-04-13 | HP21: Анализ финансовой устойчивости предприятия | HQ21: 5 | HR21: 2018-08-31 | HS21: ООО "Центральныйдвор" г.Кострома | HW21: 6 | HX21: п/зач | IX21: 6 | IY21: п/зач | JJ21: =(JL21*3+JM21*4+JN21*5)/50 -> 2.4 | JL21: =COUNTIF(CC21:JG21,3) -> 27 | JM21: =COUNTIF(CC21:JG21,4) -> 6 | JN21: =COUNTIF(CC21:JG21,5) -> 3 | JO21: =COUNTIF(CC21:JG21,6) -> 12 | JP21: =SUM(JL21:JN21) -> 36 | JQ21: =SUMIF(CC21:JG21,">0",$CC$3:$JG$3) -> 6084 | JR21: =INT(JQ21/8+0.5) -> 761
A22: =A21+1 -> 17 | B22: Чулкова | C22: Дарья | D22: Евгеньевна | E22: =CONCATENATE(B22," ",LEFT(C22,1),". ",LEFT(D22,1),".") -> Чулкова Д. Е. | G22: Чулковой | H22: Дарье | I22: Евгеньевне | J22: 1996-05-19 | K22: д.Парфеньево Островского р-на Костромской обл. | L22: РФ | M22: ж | N22: МКОУ Островская СОШ Островского р-на Костромской обл. | O22: 2014 | P22: незамужем | Q22: Костромская обл., Островский р-н, дер.Парфеньево д.25, кв. 1 | Y22: 14475 | Z22: Экономический | AA22: 38.03.34 | AB22: Экономика | AC22: Финансы и кредит | AD22: 5 лет | AE22: БАКАЛАВР | AF22: 2-524 | AG22: 2014-08-21 | AH22: по договору с полным возмещением затрат | AI22: 000002881 | AJ22: 2014-08-13 | AX22: 2-571 | AY22: 2015-09-01 | AZ22: 2-561 | BA22: 2016-09-01 | BB22: 2-703 | BC22: 2017-09-01 | CA22: 4 | CB22: 241z | CF22: 6 | CG22: 2018-04-13 | CH22: 76810137 | CI22: 3 | CJ22: п/зач | CL22: 6 | CM22: п/зач | CO22: 4 | CP22: п/зач | CR22: 5 | CS22: п/зач | CU22: 4 | CV22: п/зач | CX22: 4 | CY22: п/зач | DA22: 6 | DB22: п/зач | DD22: 6 | DE22: 2015-12-22 | DG22: 4 | DH22: 2015-12-26 | DJ22: 4 | DK22: 2015-12-25 | DM22: 6 | DN22: п/зач | DP22: 6 | DQ22: 2016-04-27 | DS22: 4 | DT22: 2016-04-16 | DV22: 4 | DW22: 2016-04-19 | DY22: 4 | DZ22: 2016-04-27 | EB22: 3 | EC22: 2016-04-23 | EH22: 6 | EI22: п/зач | EN22: 3 | EO22: п/зач | EQ22: 3 | ER22: 2016-12-05 | ES22: Z-6278434 | ET22: 3 | EU22: 2016-12-05 | EV22: Z-6278431 | EZ22: 3 | FA22: 2016-12-05 | FB22: Z-6278442 | FC22: 4 | FD22: 2016-11-24 | FE22: Z-6278577 | FF22: 5 | FG22: 2017-05-30 | FH22: Z-6278581 | FI22: 6 | FJ22: 2017-05-30 | FK22: Z-6278435 | FL22: 4 | FM22: 2017-05-30 | FN22: Z-6278436 | FO22: 4 | FP22: 30.05.2017 | FQ22: Финансы домашних хозяйств и их роль в финансовой системе государства | FR22: 4 | FS22: 2017-05-30 | FT22: Z-6278452 | FU22: 3 | FV22: 2017-05-30 | FW22: Z-6278448 | FX22: 3 | FY22: 30.05.2017 | FZ22: Оптимизация структуры кормопроизводства предприятия агропромышленного комплекса | GA22: 4 | GB22: 2018-09-05 | GD22: 3 | GE22: 2017-12-06 | GF22: Z-7689567 | GI22: Внеоборотные активы корпораций, источники их воспроизводства | GJ22: 4 | GK22: 2017-12-06 | GL22: Z-7689579 | GM22: 4 | GN22: 2017-12-06 | GO22: Z-7689592 | GP22: 4 | GQ22: 2017-12-06 | GR22: Z-7709708 | GS22: 3 | GT22: 06.12.2017 | GU22: Эффективность использования основных средств организации (предприятия) | GV22: 3 | GW22: 2017-12-06 | GX22: Z-7689707 | GY22: 4 | GZ22: 2018-04-13 | HA22: 7689488 | HE22: 5 | HF22: 2018-04-13 | HG22: 7689577 | HH22: 3 | HI22: 2018-04-13 | HJ22: 7689583 | HK22: 5 | HL22: 2018-04-13 | HM22: 7689559 | HS22: Компания "Тензор" г.Кострома | JJ22: =(JL22*3+JM22*4+JN22*5)/50 -> 2.48 | JL22: =COUNTIF(CC22:JG22,3) -> 12 | JM22: =COUNTIF(CC22:JG22,4) -> 17 | JN22: =COUNTIF(CC22:JG22,5) -> 4 | JO22: =COUNTIF(CC22:JG22,6) -> 8 | JP22: =SUM(JL22:JN22) -> 33 | JQ22: =SUMIF(CC22:JG22,">0",$CC$3:$JG$3) -> 5724 | JR22: =INT(JQ22/8+0.5) -> 716
A23: =A22+1 -> 18 | B23: Батракова | C23: Анастасия | D23: Павловна | E23: =CONCATENATE(B23," ",LEFT(C23,1),". ",LEFT(D23,1),".") -> Батракова А. П. | G23: Батраковой | H23: Анастасии | I23: Павловне | J23: 1996-04-07 | K23: г.Кострома | L23: РФ | M23: ж | N23: МАОУ г.Кострома Лицей №20 | O23: 2014 | P23: незамужем | Q23: г.Кострома, ул. Кинешемское шоссе, д.8, кв. 77 | Y23: 160867 | Z23: Экономический | AA23: 38.03.11 | AB23: Экономика | AC23: Финансы и кредит | AD23: 5 лет | AE23: БАКАЛАВР | AF23: 2-524 | AG23: 2014-08-21 | AH23: по договору с полным возмещением затрат | AI23: 000002675 | AJ23: 2014-07-21 | AX23: 2-571 | AY23: 2015-09-01 | AZ23: 2-561 | BA23: 2016-09-01 | CA23: 4 | CB23: 243z | CI23: 4 | CJ23: п/зач | CL23: 6 | CM23: п/зач | CO23: 4 | CP23: п/зач | CR23: 4 | CS23: 2016-10-13 | CT23: 1730 | CU23: 4 | CV23: 2017-11-08 | CW23: 190 | CX23: 3 | CY23: 2017-10-11 | CZ23: 76 | DA23: 6 | DB23: п/зач | DD23: 6 | DE23: 2017-12-11 | DG23: 4 | DH23: 2016-10-13 | DI23: 1729 | DJ23: 4 | DK23: 2017-12-11 | DL23: 334 | DM23: 6 | DN23: 2017-12-11 | DO23: 333 | DP23: 6 | DQ23: п/зач | DS23: 4 | DT23: п/зач | DV23: 4 | DW23: 2017-12-11 | DX23: 332 | DY23: 5 | DZ23: 2017-12-13 | EA23: 339 | EB23: 4 | EC23: п/зач | EH23: 6 | EI23: п/зач | EK23: 6 | EL23: п/зач | EN23: 0 | EQ23: 3 | ER23: 2017-11-02 | ES23: 182 | ET23: 3 | EU23: 2016-12-05 | EV23: Z-6298941 | EW23: 3 | EX23: п/зач | EZ23: 5 | FA23: 2016-12-05 | FB23: Z-6298943 | FC23: 5 | FD23: 2017-10-13 | FE23: 118 | FF23: 0 | FI23: 6 | FJ23: п/зач | FL23: 5 | FM23: 2017-05-30 | FN23: Z-62998436 | FO23: 0 | FQ23: Пенсионный фонд России и его роль в пенсионном обеспечении | FR23: 4 | FS23: 2017-05-30 | FT23: Z-62998453 | FU23: 4 | FV23: 2017-05-30 | FW23: Z-62998448 | FX23: 5 | FY23: 22.12.2017 | GA23: 3 | GB23: 2018-08-31 | HB23: 5 | HC23: 2018-04-13 | HD23: 7709580 | HH23: 3 | HI23: 2018-04-13 | HJ23: 7709583 | HS23: ООО "Артик-Айс" г.Кострома | HT23: 4 | HU23: п/зач | HW23: 6 | HX23: п/зач | HZ23: 3 | IA23: п/зач | JJ23: =(JL23*3+JM23*4+JN23*5)/50 -> 1.98 | JL23: =COUNTIF(CC23:JG23,3) -> 7 | JM23: =COUNTIF(CC23:JG23,4) -> 12 | JN23: =COUNTIF(CC23:JG23,5) -> 6 | JO23: =COUNTIF(CC23:JG23,6) -> 9 | JP23: =SUM(JL23:JN23) -> 25 | JQ23: =SUMIF(CC23:JG23,">0",$CC$3:$JG$3) -> 4860 | JR23: =INT(JQ23/8+0.5) -> 608
A24: =A23+1 -> 19 | B24: Виноградов | C24: Николай | D24: Михайлович | E24: =CONCATENATE(B24," ",LEFT(C24,1),". ",LEFT(D24,1),".") -> Виноградов Н. М. | G24: Виноградову | H24: Николаю | I24: Михайловичу | J24: 1991-03-01 | K24: г.Кострома | L24: РФ | M24: м | N24: ГОУ НПО Профессиональный лицей №9 г.Кострома | O24: 2010 | P24: холост | Q24: г.Кострома, ул. Кустово, д.12, кв. .3 | Y24: 14940 | Z24: Экономический | AA24: 38.03.14 | AB24: Экономика | AC24: Финансы и кредит | AD24: 5 лет | AE24: БАКАЛАВР | AF24: 2-525 | AG24: 2014-08-21 | AH24: по договору с полным возмещением затрат | AI24: 000002790 | AJ24: 2014-08-07 | AX24: 2-571 | AY24: 2015-09-01 | AZ24: 2-561 | BA24: 2016-09-01 | CA24: 4 | CB24: 243z | CI24: 5 | CJ24: 2015-06-01 | CL24: 6 | CM24: 2015-06-02 | CO24: 4 | CP24: 2015-06-02 | CR24: 4 | CS24: 2015-06-06 | CU24: 5 | CV24: 2015-05-30 | CW24: 1242 | CX24: 4 | CY24: 2016-07-01 | DA24: 6 | DB24: 2016-07-01 | DC24: 1264 | DD24: 6 | DE24: 2015-12-22 | DG24: 4 | DH24: 2015-12-26 | DJ24: 5 | DK24: 2016-09-08 | DM24: 6 | DN24: 2016-07-01 | DO24: 1264 | DP24: 6 | DQ24: 2016-04-25 | DS24: 4 | DT24: 2016-04-27 | DU24: Z-6297516 | DV24: 4 | DW24: 2016-04-27 | DX24: Z-6297524 | DY24: 3 | DZ24: 2016-04-27 | EA24: Z-6297525 | EB24: 3 | EC24: 2016-09-09 | ED24: 42622 | EE24: 6 | EF24: 2015-05-22 | EH24: 6 | EI24: 2015-05-22 | EN24: 3 | EO24: 2016-07-02 | EQ24: 3 | ER24: 2017-05-30 | ES24: 978 | ET24: 4 | EU24: 2017-06-19 | EV24: 1124 | EW24: 4 | EX24: 2017-12-11 | EY24: 338 | EZ24: 5 | FA24: 2017-04-11 | FB24: 406 | FC24: 5 | FD24: 2017-10-13 | FE24: 117 | FF24: 4 | FG24: 2017-10-13 | FH24: 129 | FI24: 6 | FJ24: 2017-05-30 | FK24: Z-6298435 | FL24: 5 | FM24: 2017-05-30 | FN24: Z-6298436 | FO24: 4 | FP24: 2018-05-07 | FQ24: Фонды обязательного медицинского страхования, их роль в финансировании расходов на здравоохранение в Российской Федерации | FR24: 5 | FS24: 2017-05-30 | FT24: Z-6298453 | FU24: 5 | FV24: 2017-05-30 | FW24: Z-6298448 | FX24: 3 | FY24: 2018-05-08 | FZ24: Оптимицация структуры посевных площадей | GJ24: 4 | GK24: 2017-12-06 | GL24: Z-7709579 | GP24: 5 | GQ24: 2018-09-04 | GS24: 3 | GT24: 2018-09-04 | GY24: 5 | GZ24: 2018-09-03 | HA24: 7709488-2 | HB24: 5 | HC24: 2018-04-13 | HD24: 7709580 | HE24: 3 | HF24: 2018-04-13 | HG24: 7709577 | HH24: 4 | HI24: 2018-04-13 | HJ24: 7709583 | HK24: 4 | HL24: 2018-04-13 | HM24: 7709559 | HN24: 4 | HO24: 2018-09-09 | HP24: Анализ финансовых результатов деятельности предприятия ООО "Агрофирма Прокунинская Горка" Солигалического района Костромской области | HS24: ООО "Сервис Трейд" г.Кострома | JJ24: =(JL24*3+JM24*4+JN24*5)/50 -> 2.64 | JL24: =COUNTIF(CC24:JG24,3) -> 7 | JM24: =COUNTIF(CC24:JG24,4) -> 14 | JN24: =COUNTIF(CC24:JG24,5) -> 11 | JO24: =COUNTIF(CC24:JG24,6) -> 8 | JP24: =SUM(JL24:JN24) -> 32 | JQ24: =SUMIF(CC24:JG24,">0",$CC$3:$JG$3) -> 5544 | JR24: =INT(JQ24/8+0.5) -> 693
A25: =A24+1 -> 20 | B25: Киселева | C25: Алеся | D25: Викторовна | E25: =CONCATENATE(B25," ",LEFT(C25,1),". ",LEFT(D25,1),".") -> Киселева А. В. | G25: Киселевой | H25: Алесе | I25: Викторовне | J25: 1985-07-13 | K25: с.Павино Павинского р-на Костромской обл. | L25: РФ | M25: ж | N25: ГОУ НПО Профессиональное училище №28 с.Пыщуг Костромской обл. | O25: 2006 | P25: замужем | Q25: Костромская обл., с.Павино, ул. Центральная, д.14 | Y25: 14941 | Z25: Экономический | AA25: 38.03.24 | AB25: Экономика | AC25: Финансы и кредит | AD25: 5 лет | AE25: БАКАЛАВР | AF25: 2-525 | AG25: 2014-08-21 | AH25: по договору с полным возмещением затрат | AI25: 000002869 | AJ25: 2014-08-13 | AX25: 2-571 | AY25: 2015-09-01 | AZ25: 2-561 | BA25: 2016-09-01 | CA25: 4 | CB25: 243z | CI25: 4 | CJ25: 2015-06-01 | CL25: 6 | CM25: 2015-06-02 | CO25: 3 | CP25: 2015-06-02 | CR25: 4 | CS25: 2015-06-06 | CU25: 5 | CV25: 2015-05-30 | CX25: 3 | CY25: 2015-06-05 | DA25: 6 | DB25: 2015-12-22 | DD25: 6 | DE25: 2015-12-22 | DG25: 3 | DH25: 2016-09-07 | DJ25: 4 | DK25: 2016-09-08 | DM25: 6 | DN25: 2016-10-03 | DP25: 6 | DQ25: 2016-04-25 | DS25: 3 | DT25: 2016-05-27 | DV25: 4 | DW25: 2016-05-27 | DY25: 4 | DZ25: 2016-05-27 | EB25: 3 | EC25: 2016-05-27 | EE25: 6 | EF25: 2015-05-22 | EH25: 6 | EI25: 2015-05-22 | EN25: 5 | EO25: 2016-07-02 | EP25: ФГБОУ ВО Костромская ГСХА, кафедра экономической кибернетики | EQ25: 3 | ER25: 2016-12-05 | ES25: Z-6278434 | ET25: 3 | EU25: 2017-02-09 | EV25: 241 | EW25: 5 | EX25: 2017-12-11 | EY25: 335 | EZ25: 4 | FA25: 2016-12-05 | FB25: Z-6298443 | FC25: 5 | FD25: 2017-10-13 | FE25: 115 | FF25: 5 | FG25: 2017-05-30 | FH25: Z-6278581 | FI25: 6 | FJ25: 2018-09-12 | FK25: 22 | FL25: 5 | FM25: 2017-05-30 | FN25: Z-6278436 | FO25: 4 | FP25: 2018-09-12 | FQ25: Федеральный бюджет, его роль в развитии экономики и социальной сферы страны | FR25: 4 | FS25: 2017-05-30 | FT25: Z-6298453 | FU25: 4 | FV25: 2017-05-30 | FW25: Z-6278448 | FX25: 4 | FY25: 2018-05-08 | GA25: 3 | GB25: 2018-09-12 | GD25: 3 | GE25: 2018-09-12 | GF25: 19 | GG25: 4 | GH25: 2018-09-12 | GI25: Механизм кредитования ООО "Торговый дом Русское золото - Арт" | GJ25: 4 | GK25: 2017-12-06 | GL25: Z-7709579 | GM25: 4 | GN25: 2017-12-06 | GO25: Z-7709592 | HB25: 4 | HC25: 2018-04-13 | HD25: 7709580 | HH25: 5 | HI25: 2018-04-13 | HJ25: 7709583 | HK25: 4 | HL25: 2018-04-13 | HM25: 7709559 | HN25: 3 | HO25: 2018-09-04 | HP25: Анализ эффективности и деловой активности ЗАО "Племзавода Ярославка" Ярославского района Ярославской области | HS25: Районный отдел Администрации Павинского муниципального района Костромской обл. | JJ25: =(JL25*3+JM25*4+JN25*5)/50 -> 2.5 | JL25: =COUNTIF(CC25:JG25,3) -> 10 | JM25: =COUNTIF(CC25:JG25,4) -> 15 | JN25: =COUNTIF(CC25:JG25,5) -> 7 | JO25: =COUNTIF(CC25:JG25,6) -> 8 | JP25: =SUM(JL25:JN25) -> 32 | JQ25: =SUMIF(CC25:JG25,">0",$CC$3:$JG$3) -> 5328 | JR25: =INT(JQ25/8+0.5) -> 666
A26: =A25+1 -> 21 | B26: Николаева | C26: Надежда | D26: Сергеевна | E26: =CONCATENATE(B26," ",LEFT(C26,1),". ",LEFT(D26,1),".") -> Николаева Н. С. | G26: Николаевой | H26: Надежде | I26: Сергеевне | J26: 1981-09-07 | K26: г.Кострома | L26: РФ | M26: ж | N26: Заводская МСОШ Троицкого р-на Алтайского края | O26: 1998 | P26: замужем | Q26: г.Кострома, ул. Калиновская, д.55,кв64 | Y26: 14942 | Z26: Экономический | AA26: 38.03.27 | AB26: Экономика | AC26: Финансы и кредит | AD26: 5 лет | AE26: БАКАЛАВР | AF26: 2-525 | AG26: 2014-08-21 | AH26: по договору с полным возмещением затрат | AI26: 000003024 | AJ26: 2014-08-21 | AX26: 2-571 | AY26: 2015-09-01 | AZ26: 2-561 | BA26: 2016-09-01 | CA26: 4 | CB26: 243z | CI26: 5 | CJ26: 2015-06-01 | CL26: 6 | CM26: 2015-06-02 | CO26: 5 | CP26: 2015-06-02 | CR26: 5 | CS26: 2015-06-06 | CU26: 5 | CV26: 2015-05-30 | CX26: 4 | CY26: 2017-04-04 | DA26: 6 | DB26: 2015-12-22 | DD26: 6 | DE26: 2015-12-22 | DG26: 4 | DH26: 2015-12-26 | DJ26: 4 | DK26: 2016-09-08 | DM26: 6 | DN26: 2015-12-24 | DP26: 6 | DQ26: 2016-04-25 | DS26: 4 | DT26: 2016-05-27 | DV26: 5 | DW26: 2016-05-27 | DY26: 3 | DZ26: 2016-05-27 | EB26: 3 | EC26: 2016-12-30 | EE26: 6 | EF26: 2015-05-22 | EH26: 6 | EI26: 2015-05-22 | EN26: 4 | EO26: 2018-09-24 | EP26: ФГБОУ ВО Костромская ГСХА, кафедра экономической кибернетики | EQ26: 3 | ER26: 2018-09-24 | ES26: 55 | ET26: 3 | EU26: 2017-11-01 | EV26: 180 | EW26: 4 | EX26: 2017-12-11 | EY26: 356 | EZ26: 5 | FA26: 2017-04-11 | FB26: 407 | FC26: 5 | FD26: 2017-10-13 | FE26: 114 | FF26: 4 | FG26: 2017-10-13 | FH26: 128 | FI26: 6 | FJ26: 2017-05-30 | FK26: Z-6298435 | FL26: 5 | FM26: 2017-05-30 | FN26: Z-6278436 | FO26: 4 | FP26: 2018-05-07 | FQ26: Финансовые ресурсы коммерческих организаций в рыночных условиях | FR26: 5 | FS26: 2017-05-30 | FT26: Z-6298453 | FU26: 4 | FV26: 2017-05-30 | FW26: Z-6278448 | GJ26: 3 | GK26: 2017-12-06 | GL26: Z-7709579 | HB26: 5 | HC26: 2018-04-13 | HD26: 7709580 | HH26: 4 | HI26: 2018-04-13 | HJ26: 7709583 | HK26: 4 | HL26: 2018-04-13 | HM26: 7709559 | HQ26: 4 | HR26: 2018-08-31 | HS26: ООО"ЮФМириада"г.Кострома | JJ26: =(JL26*3+JM26*4+JN26*5)/50 -> 2.26 | JL26: =COUNTIF(CC26:JG26,3) -> 5 | JM26: =COUNTIF(CC26:JG26,4) -> 12 | JN26: =COUNTIF(CC26:JG26,5) -> 10 | JO26: =COUNTIF(CC26:JG26,6) -> 8 | JP26: =SUM(JL26:JN26) -> 27 | JQ26: =SUMIF(CC26:JG26,">0",$CC$3:$JG$3) -> 5004 | JR26: =INT(JQ26/8+0.5) -> 626
A27: =A26+1 -> 22 | B27: Филимонова | C27: Светлана | D27: Юрьевна | E27: =CONCATENATE(B27," ",LEFT(C27,1),". ",LEFT(D27,1),".") -> Филимонова С. Ю. | G27: Филимоновой | H27: Светлане | I27: Юрьевне | J27: 1994-05-28 | K27: п.Талица Буйского р-на Костромской обл. | L27: РФ | M27: ж | N27: МОУ СОШ №2 городского округа г.Буй | O27: 2011 | P27: незамужем | Q27: Костромская обл., г.Буй,ул. Октябрьской революции, д.83А, кв. 6 | Y27: 160890 | Z27: Экономический | AA27: 38.03.33 | AB27: Экономика | AC27: Финансы и кредит | AD27: 5 лет | AE27: БАКАЛАВР | AF27: 2-803 | AG27: 2016-12-26 | AH27: всвязиспереводомизФГБОУВО"Ярославскийгосударственныйтехническийуниверситет | AI27: 000004323 | AJ27: 2016-12-09 | CA27: 4 | CB27: 243z | CI27: 3 | CJ27: п/зач | CL27: 6 | CM27: п/зач | CO27: 3 | CP27: п/зач | CR27: 5 | CS27: 2017-09-20 | CT27: 24 | CU27: 3 | CV27: п/зач | CX27: 4 | CY27: 2017-09-20 | CZ27: 23 | DA27: 6 | DB27: п/зач | DD27: 6 | DE27: п/зач | DG27: 4 | DH27: 2017-09-20 | DI27: 22 | DJ27: 3 | DK27: п/зач | DM27: 6 | DN27: 2017-09-20 | DO27: 21 | DP27: 6 | DQ27: п/зач | DS27: 3 | DT27: п/зач | DV27: 4 | DW27: 2017-09-20 | DX27: 20 | DY27: 4 | DZ27: 2017-09-20 | EA27: 19 | EB27: 3 | EC27: 2017-11-24 | ED27: 212 | EE27: 6 | EF27: п/зач | EH27: 6 | EI27: п/зач | EN27: 5 | EO27: 2017-11-22 | EP27: ФГБОУ ВО Костромская ГСХА, кафедра экономической кибернетики | EQ27: 3 | ER27: 2017-12-11 | ES27: 355 | ET27: 3 | EU27: 2017-09-18 | EV27: 15 | EW27: 4 | EX27: п/зач | EZ27: 5 | FA27: 2016-12-05 | FB27: Z-6298443 | FC27: 5 | FD27: 2017-10-13 | FE27: 113 | FF27: 4 | FG27: 2017-05-20 | FH27: 18 | FI27: 6 | FJ27: 2017-12-11 | FK27: 354 | FL27: 5 | FM27: 2017-05-30 | FN27: Z-6278436 | FO27: 3 | FP27: 2018-09-04 | FQ27: Современные тенденции развития бюджетной системы РФ | FR27: 5 | FS27: 2017-05-30 | FT27: Z-6258453 | FU27: 4 | FV27: 2017-05-30 | FW27: Z-6278448 | FX27: 3 | FY27: 30.05.2017 | FZ27: Оптимизация структуры кормопризводства | GA27: 4 | GB27: 2017-08-31 | GD27: 3 | GE27: 2017-12-06 | GF27: Z-7709567 | GG27: 3 | GH27: 06.12.2017 | GI27: Расходы корпораций и пути их снижения. (На примере ООО «Воскресенье-Агро» Костромской области Буйского района) | GJ27: 5 | GK27: 2017-12-06 | GL27: Z-7709579 | GM27: 5 | GN27: 2017-12-06 | GO27: Z-7709592 | GP27: 4 | GQ27: 2017-12-06 | GR27: Z-7709708 | GS27: 3 | GT27: 06.12.2017 | GU27: Себестоимость и рентабельность производства продукции животноводства в ООО "Воскресенье-Агро" | GV27: 5 | GW27: 2017-12-06 | GX27: Z-7709717 | GY27: 5 | GZ27: 2018-04-13 | HA27: 7709488 | HB27: 5 | HC27: 2018-04-13 | HD27: 7709580 | HE27: 3 | HF27: 2018-04-13 | HG27: 7709577 | HH27: 4 | HI27: 2018-04-13 | HJ27: 7709583 | HK27: 4 | HL27: 2018-04-13 | HM27: 7709559 | HN27: 3 | HO27: 2018-09-04 | HP27: Анализ ликвидности и платежеспособности предприятия | HQ27: 4 | HR27: 2018-09-04 | HS27: ООО "Агрофирма" Планета" Буйского р-на Костромской обл. | JJ27: =(JL27*3+JM27*4+JN27*5)/50 -> 2.96 | JL27: =COUNTIF(CC27:JG27,3) -> 15 | JM27: =COUNTIF(CC27:JG27,4) -> 12 | JN27: =COUNTIF(CC27:JG27,5) -> 11 | JO27: =COUNTIF(CC27:JG27,6) -> 8 | JP27: =SUM(JL27:JN27) -> 38 | JQ27: =SUMIF(CC27:JG27,">0",$CC$3:$JG$3) -> 6012 | JR27: =INT(JQ27/8+0.5) -> 752
A28: =A27+1 -> 23 | B28: Ганибал | C28: Владимир | D28: Александрович | E28: =CONCATENATE(B28," ",LEFT(C28,1),". ",LEFT(D28,1),".") -> Ганибал В. А. | G28: Ганибалу | H28: Владимиру | I28: Александровичу | J28: 1996-10-31 | K28: п.Красное-на-Волге Красносельского р-на Костромской обл. | L28: РФ | M28: м | N28: МБОУ Шолоховская СОШ | O28: 2014 | P28: холост | Q28: Костромская обл., Красносельский р-н, пгт Красное-на-Волге, ул. Заготскот, д.14, кв. 1 | Y28: 14533 | Z28: Экономический | AA28: 38.03.37 | AB28: Экономика | AC28: Финансы и кредит | AD28: 5 лет | AE28: БАКАЛАВР | AF28: 2-524 | AG28: 2014-08-21 | AH28: по договору с полным возмещением затрат | AI28: 000002643 | AJ28: 2014-07-14 | AS28: 2-504 | AT28: 42557 | AU28: в связи с призывом в ряды РФ | AV28: 2016-07-06 | AW28: 2017-07-06 | AX28: 2-571 | AY28: 2015-09-01 | AZ28: 2-703 | BA28: 2017-09-01 | CA28: 4 | CB28: 241z | CI28: 3 | CJ28: п/зач | CL28: 6 | CM28: п/зач | CO28: 3 | CP28: п/зач | CR28: 3 | CS28: 2016-04-05 | CU28: 3 | CV28: 2016-04-28 | CX28: 3 | CY28: 2016-07-01 | DA28: 6 | DB28: 2017-11-16 | DD28: 6 | DE28: 2015-12-22 | DG28: 3 | DH28: 2016-04-14 | DJ28: 3 | DK28: 2017-11-27 | DM28: 6 | DN28: 2016-04-11 | DP28: 6 | DQ28: 2016-04-27 | DS28: 3 | DT28: 2017-11-24 | DV28: 4 | DW28: 2016-04-19 | DY28: 3 | DZ28: 2016-04-27 | EB28: 3 | EC28: 2016-04-23 | EH28: 6 | EI28: 2017-11-15 | EK28: 6 | EL28: 2017-11-15 | EQ28: 3 | ER28: 2017-12-02 | EW28: 3 | EX28: 2017-12-02 | EZ28: 4 | FA28: 2017-12-02 | FC28: 5 | FD28: 2017-12-02 | FF28: 4 | FG28: 2018-06-05 | FH28: 7769492 | FI28: 6 | FJ28: 2018-06-05 | FK28: 7769541 | FL28: 5 | FM28: 2018-06-05 | FN28: 7769554 | FO28: 5 | FP28: 2018-06-05 | FQ28: Государственное финансовое регулирование экономики России | FR28: 4 | FS28: 2018-06-05 | FT28: 7769557 | FU28: 3 | FV28: 2018-06-05 | FW28: 7769545 | FX28: 3 | FY28: 2018-06-05 | FZ28: Определение оптимальной структуры кормопроизводства сельскохозяйственных предприятий. | GC28: ИП Ганибал А.В. Красносельского р-на Костромской обл. | JJ28: =(JL28*3+JM28*4+JN28*5)/50 -> 1.46 | JL28: =COUNTIF(CC28:JG28,3) -> 14 | JM28: =COUNTIF(CC28:JG28,4) -> 4 | JN28: =COUNTIF(CC28:JG28,5) -> 3 | JO28: =COUNTIF(CC28:JG28,6) -> 8 | JP28: =SUM(JL28:JN28) -> 21 | JQ28: =SUMIF(CC28:JG28,">0",$CC$3:$JG$3) -> 4248 | JR28: =INT(JQ28/8+0.5) -> 531
A29: =A28+1 -> 24 | B29: Гольцов | C29: Александр | D29: Александрович | E29: =CONCATENATE(B29," ",LEFT(C29,1),". ",LEFT(D29,1),".") -> Гольцов А. А. | G29: Гольцову | H29: Александру | I29: Александровичу | J29: 1992-01-24 | K29: г.Кологрив Костромской обл. | L29: РФ | M29: м | N29: МОУ Кологривская СОШ Кологривского муниципального района Костромской области | O29: 2010 | P29: холост | Q29: Костромская обл., г.Кологрив, ул. Октябрьская, д.54 | Y29: 160910 | Z29: Экономический | AA29: 38.03.38 | AB29: Экономика | AC29: Финансы и кредит | AD29: 5 лет | AE29: БАКАЛАВР | AF29: 2-402 | AG29: 2010-09-01 | AH29: по договору с полным возмещением затрат | AI29: 861 | AJ29: 2010-09-16 | AM29: 2-228 2-563 | AN29: 02.06.2011 26.08.15 | AO29: пособственному желанию за невыполнение учебного плана | AP29: 2-478 2-606 | AQ29: 03.11.2011 22.09.2016 | AX29: 2-374 | AY29: 2010-08-10 | AZ29: 2-703 | BA29: 2017-09-01 | CA29: 4 | CB29: 241z | CI29: 3 | CJ29: п/зач | CL29: 6 | CM29: 2017-04-10 | CO29: 3 | CP29: п/зач | CR29: 3 | CS29: п/зач | CU29: 3 | CV29: 2017-04-03 | CX29: 3 | CY29: 2017-04-10 | DA29: 6 | DB29: п/зач | DD29: 6 | DE29: 2017-04-10 | DG29: 3 | DH29: 2017-04-10 | DJ29: 3 | DK29: 2017-07-10 | DM29: 6 | DN29: 2017-04-10 | DP29: 6 | DQ29: 2017-04-03 | DS29: 3 | DT29: п/зач | DV29: 4 | DW29: 2017-05-16 | DY29: 3 | DZ29: 2017-05-22 | EB29: 3 | EC29: 2017-06-29 | EE29: 6 | EF29: п/зач | EH29: 6 | EI29: 2018-02-01 | EK29: 6 | EL29: 2018-02-01 | EW29: 4 | EX29: 2017-12-02 | EZ29: 3 | FA29: 2017-12-02 | FC29: 4 | FD29: 2018-02-01 | GC29: ООО "Диапазон+" г.Ярославль Ярославской обл. | JJ29: =(JL29*3+JM29*4+JN29*5)/50 -> 0.9 | JL29: =COUNTIF(CC29:JG29,3) -> 11 | JM29: =COUNTIF(CC29:JG29,4) -> 3 | JN29: =COUNTIF(CC29:JG29,5) -> 0 | JO29: =COUNTIF(CC29:JG29,6) -> 8 | JP29: =SUM(JL29:JN29) -> 14 | JQ29: =SUMIF(CC29:JG29,">0",$CC$3:$JG$3) -> 3528 | JR29: =INT(JQ29/8+0.5) -> 441
A30: =A29+1 -> 25 | B30: Голякевич | C30: Кристина | D30: Александровна | E30: =CONCATENATE(B30," ",LEFT(C30,1),". ",LEFT(D30,1),".") -> Голякевич К. А. | G30: Голякевич | H30: Кристине | I30: Александровне | J30: 1994-06-09 | K30: д.Шемятино Макарьевского р-на Костромской обл. | L30: РФ | M30: ж | N30: Муниципальное казенное учреждение СОШ №2 г.Макарьева Костромской обл. | O30: 2012 | P30: незамужем | Q30: г.Кострома, мкр Венеция, д.58, кв. 53 | Y30: 15735з | Z30: Экономический | AA30: 38.03.39 | AB30: Экономика | AC30: Финансы и кредит | AD30: 5 лет | AE30: БАКАЛАВР | AF30: 2-557 | AG30: 2015-08-21 | AH30: по договору с полным возмещением затрат | AI30: 000003738 | AJ30: 2015-08-18 | AX30: 2-561 | AY30: 2016-09-01 | AZ30: 2-703 | BA30: 2017-09-01 | CA30: 4 | CB30: 241z | CC30: 4 | CD30: 2018-06-05 | CE30: 77610134 | CF30: 6 | CG30: 2018-06-05 | CH30: 77610110 | CI30: 3 | CJ30: 2016-06-11 | CL30: 6 | CM30: 2016-06-11 | CR30: 3 | CS30: 2016-06-11 | CU30: 4 | CV30: 2016-06-11 | CX30: 3 | CY30: 2016-06-11 | DA30: 6 | DB30: 2016-12-23 | DD30: 6 | DE30: 2016-12-23 | DG30: 3 | DH30: 2016-12-23 | DJ30: 3 | DK30: 2016-12-23 | DM30: 6 | DN30: 2016-12-23 | DP30: 6 | DQ30: 2017-04-21 | DS30: 3 | DT30: 2017-04-20 | DY30: 4 | DZ30: 2017-04-22 | EB30: 3 | EC30: 2017-04-22 | EE30: 6 | EF30: 2017-04-22 | EH30: 6 | EI30: 2017-04-22 | EK30: 6 | EL30: 2017-04-22 | EQ30: 3 | ER30: 2017-12-02 | ET30: 3 | EU30: 2017-12-02 | EW30: 4 | EX30: 2017-12-02 | EZ30: 4 | FA30: 2017-12-02 | FC30: 4 | FD30: 2017-12-02 | FF30: 4 | FG30: 2018-06-05 | FH30: 7769492 | FI30: 6 | FJ30: 2018-06-05 | FK30: 7769541 | FL30: 5 | FM30: 2018-06-05 | FN30: 7769554 | FO30: 4 | FP30: 2018-06-05 | FQ30: Бюджетный дефицит, его экономические и социальные последствия | FR30: 4 | FS30: 2018-06-05 | FT30: 7769557 | FU30: 4 | FV30: 2018-06-05 | FW30: 7769545 | FX30: 3 | FY30: 2018-06-05 | FZ30: Определение оптимальной специализациии сочетания отраслей сельскохозяйственных предприятий. | GC30: ООО "КАКО.РУ" г.Кострома | JJ30: =(JL30*3+JM30*4+JN30*5)/50 -> 1.5 | JL30: =COUNTIF(CC30:JG30,3) -> 10 | JM30: =COUNTIF(CC30:JG30,4) -> 10 | JN30: =COUNTIF(CC30:JG30,5) -> 1 | JO30: =COUNTIF(CC30:JG30,6) -> 10 | JP30: =SUM(JL30:JN30) -> 21 | JQ30: =SUMIF(CC30:JG30,">0",$CC$3:$JG$3) -> 4384 | JR30: =INT(JQ30/8+0.5) -> 548
A31: =A30+1 -> 26 | B31: Дмитриева | C31: Дарья | D31: Аркадьевна | E31: =CONCATENATE(B31," ",LEFT(C31,1),". ",LEFT(D31,1),".") -> Дмитриева Д. А. | G31: Дмитриевой | H31: Дарье | I31: Аркадьевне | J31: 1992-12-19 | K31: п.Волгореченск Костромской обл. | L31: РФ | M31: ж | N31: ОГБ ПОУ "Костромской лесомеханический колледж" | O31: 2015 | P31: незамужем | Q31: Костромская обл., г.Волгореченск, ул. им50-летия Ленинского Комсомола, д.36, кв. 27 | Y31: 15738з | Z31: Экономический | AA31: 38.03.40 | AB31: Экономика | AC31: Финансы и кредит | AD31: 5 лет | AE31: БАКАЛАВР | AF31: 2-557 | AG31: 2015-08-21 | AH31: по договору с полным возмещением затрат | AI31: 000003633 | AJ31: 2015-08-12 | AX31: 2-561 | AY31: 2016-09-01 | AZ31: 2-703 | BA31: 2017-09-01 | CA31: 4 | CB31: 241z | CC31: 4 | CD31: 2018-06-05 | CE31: 77610134 | CF31: 6 | CG31: 2018-06-05 | CH31: 77610110 | CI31: 4 | CJ31: 2016-06-11 | CL31: 6 | CM31: 2016-06-11 | CO31: 4 | CP31: 2016-06-11 | CR31: 3 | CS31: 2016-06-11 | CU31: 4 | CV31: 2016-06-11 | CX31: 3 | CY31: 2016-06-11 | DA31: 6 | DB31: 2016-12-23 | DD31: 6 | DE31: 2016-12-23 | DG31: 4 | DH31: 2016-12-23 | DJ31: 5 | DK31: 2016-12-23 | DM31: 6 | DN31: 2016-12-23 | DP31: 6 | DQ31: 2017-04-21 | DS31: 4 | DT31: 2017-04-20 | DY31: 3 | DZ31: 2017-04-22 | EB31: 3 | EC31: 2017-04-22 | EE31: 6 | EF31: 2017-04-22 | EH31: 6 | EI31: 2017-04-22 | EK31: 6 | EL31: 2017-04-22 | EQ31: 3 | ER31: 2017-12-02 | ET31: 4 | EU31: 2017-12-02 | EW31: 4 | EX31: 2017-12-02 | EZ31: 4 | FA31: 2017-12-02 | FC31: 4 | FD31: 2017-12-02 | FF31: 4 | FG31: 2018-06-05 | FH31: 7769492 | FI31: 6 | FJ31: 2018-06-05 | FK31: 7769541 | FL31: 5 | FM31: 2018-06-05 | FN31: 7769554 | FO31: 4 | FP31: 2018-06-05 | FQ31: Налоги с населения и их роль в современных условиях | FR31: 4 | FS31: 2018-06-05 | FT31: 7769557 | FU31: 4 | FV31: 2018-06-05 | FW31: 7769545 | FX31: 3 | FY31: 2018-06-05 | FZ31: Оптимизация сочетания отраслей и специализации предприятия агропромышленногокомплекса | GA31: 4 | GB31: 2018-08-31 | GC31: МБДОУ ОВГО г.Волгореченск Костромской области "Детский сад №2" Солнышко" | JJ31: =(JL31*3+JM31*4+JN31*5)/50 -> 1.76 | JL31: =COUNTIF(CC31:JG31,3) -> 6 | JM31: =COUNTIF(CC31:JG31,4) -> 15 | JN31: =COUNTIF(CC31:JG31,5) -> 2 | JO31: =COUNTIF(CC31:JG31,6) -> 10 | JP31: =SUM(JL31:JN31) -> 23 | JQ31: =SUMIF(CC31:JG31,">0",$CC$3:$JG$3) -> 4600 | JR31: =INT(JQ31/8+0.5) -> 575
A32: =A31+1 -> 27 | B32: Жакилов | C32: Александр | D32: Сергеевич | E32: =CONCATENATE(B32," ",LEFT(C32,1),". ",LEFT(D32,1),".") -> Жакилов А. С. | G32: Жакилову | H32: Александру | I32: Сергеевичу | J32: 1991-09-16 | K32: г.Кострома | L32: РФ | M32: м | N32: ОГБОУ СПО "Костромской автотранспортный колледж" | O32: 2013 | P32: холост | Q32: г.Кострома, ул. Советская, д.124, кв. 14 | Y32: 15739з | Z32: Экономический | AA32: 38.03.41 | AB32: Экономика | AC32: Финансы и кредит | AD32: 5 лет | AE32: БАКАЛАВР | AF32: 2-557 | AG32: 2015-08-21 | AH32: по договору с полным возмещением затрат | AI32: 000003473 | AJ32: 2015-08-03 | AX32: 2-561 | AY32: 2016-09-01 | AZ32: 2-703 | BA32: 2017-09-01 | CA32: 4 | CB32: 241z | CC32: 3 | CD32: 2018-06-05 | CE32: 77610134 | CF32: 6 | CG32: 2018-06-05 | CH32: 77610110 | CI32: 3 | CJ32: 2016-06-11 | CL32: 6 | CM32: 2016-06-11 | CO32: 3 | CP32: 2016-06-11 | CR32: 3 | CS32: 2016-06-11 | CU32: 5 | CV32: 2016-06-11 | CX32: 3 | CY32: 2016-06-11 | DA32: 6 | DB32: 2016-12-23 | DD32: 6 | DE32: 2016-12-23 | DG32: 3 | DH32: 2016-12-23 | DJ32: 3 | DK32: 2016-12-23 | DM32: 6 | DN32: 2016-12-23 | DP32: 6 | DQ32: 2017-04-21 | DS32: 4 | DT32: 2017-04-20 | DY32: 3 | DZ32: 2017-04-22 | EB32: 3 | EC32: 2017-04-22 | EE32: 6 | EF32: 2017-04-22 | EH32: 6 | EI32: 2017-04-22 | EK32: 6 | EL32: 2017-04-22 | EN32: 3 | EO32: 2018-06-05 | EP32: ФГБОУ ВО Костромская ГСХА, кафедра экономической кибернетики | EQ32: 3 | ER32: 2017-12-02 | ET32: 3 | EU32: 2017-12-02 | EW32: 4 | EX32: 2017-12-02 | EZ32: 3 | FA32: 2017-12-02 | FC32: 3 | FD32: 2017-12-02 | FF32: 4 | FG32: 2018-06-05 | FH32: 7769492 | FI32: 6 | FJ32: 2018-06-05 | FK32: 7769541 | FL32: 4 | FM32: 2018-06-05 | FN32: 7769554 | FO32: 3 | FP32: 2018-06-05 | FQ32: Сущность и функции налогов, их роль в современных условиях | FR32: 4 | FS32: 2018-06-05 | FT32: 7769557 | FU32: 3 | FV32: 2018-06-05 | FW32: 7769545 | FZ32: Определение оптимальной структуры кормопроизводства сельскохозяйственных предприятий. | GC32: ИП Ревин Павел Алексеевич Костромского р-на Костромской обл. | JJ32: =(JL32*3+JM32*4+JN32*5)/50 -> 1.46 | JL32: =COUNTIF(CC32:JG32,3) -> 16 | JM32: =COUNTIF(CC32:JG32,4) -> 5 | JN32: =COUNTIF(CC32:JG32,5) -> 1 | JO32: =COUNTIF(CC32:JG32,6) -> 10 | JP32: =SUM(JL32:JN32) -> 22 | JQ32: =SUMIF(CC32:JG32,">0",$CC$3:$JG$3) -> 4600 | JR32: =INT(JQ32/8+0.5) -> 575
A33: =A32+1 -> 28 | B33: Зайцева | C33: Анна | D33: Антоновна | E33: =CONCATENATE(B33," ",LEFT(C33,1),". ",LEFT(D33,1),".") -> Зайцева А. А. | G33: Зайцевой | H33: Анне | I33: Антоновне | J33: 1997-03-07 | K33: с.Светочевагора Красносельского р-на Костромской обл. | L33: РФ | M33: ж | N33: МБОУ г.Костромы СОШ №8 | O33: 2014 | P33: незамужем | Q33: Костромаг.,ул. Индустриальная, д.51, кв. 48 | Y33: 14436 | Z33: Экономический | AA33: 38.03.42 | AB33: Экономика | AC33: Финансы и кредит | AD33: 5 лет | AE33: БАКАЛАВР | AF33: 2-524 | AG33: 2014-08-21 | AH33: по договору с полным возмещением затрат | AI33: 000002596 | AJ33: 2014-07-08 | AM33: 2-705 | AN33: 42677 | AO33: в связи с переводом в Костромской государственный университет | AP33: 2-731 | AQ33: 2017-09-14 | AX33: 2-571 | AY33: 2015-09-01 | AZ33: 2-561 | BA33: 2016-09-01 | CA33: 4 | CB33: 241z | CC33: 3 | CD33: 2018-06-05 | CE33: 77610134 | CF33: 6 | CG33: 2018-06-05 | CH33: 77610110 | CI33: 3 | CJ33: п/зач | CL33: 6 | CM33: п/зач | CO33: 3 | CP33: п/зач | CR33: 3 | CS33: п/зач | CU33: 3 | CV33: п/зач | CX33: 4 | CY33: п/зач | DA33: 6 | DB33: п/зач | DD33: 6 | DE33: п/зач | DG33: 0 | DJ33: 3 | DK33: п/зач | DM33: 6 | DN33: п/зач | DS33: 4 | DT33: п/зач | DV33: 4 | DW33: п/зач | EB33: 3 | EC33: п/зач | EE33: 6 | EF33: п/зач | EN33: 3 | EO33: п/зач | EZ33: 3 | FA33: 2017-12-02 | FC33: 3 | FD33: п/зач | FF33: 4 | FG33: 2018-06-05 | FH33: 7769492 | FI33: 6 | FJ33: 2018-06-05 | FK33: 7769541 | FL33: 4 | FM33: 2018-06-05 | FN33: 7769554 | FR33: 4 | FS33: 2018-06-05 | FT33: 7769557 | FU33: 4 | FV33: 2018-06-05 | FW33: 7769545 | GC33: ФГБОУ ВО Костромская ГСХА Костромского р-на Костромской обл. | GY33: 3 | GZ33: п/зач | HT33: 4 | HU33: п/зач | JJ33: =(JL33*3+JM33*4+JN33*5)/50 -> 1.3 | JL33: =COUNTIF(CC33:JG33,3) -> 11 | JM33: =COUNTIF(CC33:JG33,4) -> 8 | JN33: =COUNTIF(CC33:JG33,5) -> 0 | JO33: =COUNTIF(CC33:JG33,6) -> 7 | JP33: =SUM(JL33:JN33) -> 19 | JQ33: =SUMIF(CC33:JG33,">0",$CC$3:$JG$3) -> 4032 | JR33: =INT(JQ33/8+0.5) -> 504
A34: =A33+1 -> 29 | B34: Зайцева | C34: Полина | D34: Романовна | E34: =CONCATENATE(B34," ",LEFT(C34,1),". ",LEFT(D34,1),".") -> Зайцева П. Р. | G34: Зайцевой | H34: Полине | I34: Романовне | J34: 1996-05-02 | K34: п.Волгореченск Костромской обл. | L34: РФ | M34: ж | N34: ОГБ ПОУ "Костромской лесомеханический колледж" | O34: 2015 | P34: незамужем | Q34: Костромская обл., г.Волгореченск, ул. Набережная, д.34, кв. 1 | Y34: 15740з | Z34: Экономический | AA34: 38.03.43 | AB34: Экономика | AC34: Финансы и кредит | AD34: 5 лет | AE34: БАКАЛАВР | AF34: 2-557 | AG34: 2015-08-21 | AH34: по договору с полным возмещением затрат | AI34: 000003634 | AJ34: 2015-08-12 | AX34: 2-561 | AY34: 2016-09-01 | AZ34: 2-703 | BA34: 2017-09-01 | CA34: 4 | CB34: 241z | CC34: 4 | CD34: 2018-06-05 | CE34: 77610134 | CF34: 6 | CG34: 2018-06-05 | CH34: 77610110 | CI34: 5 | CJ34: 2016-06-11 | CL34: 6 | CM34: 2016-06-11 | CO34: 3 | CP34: 2016-06-11 | CR34: 4 | CS34: 2016-06-11 | CU34: 5 | CV34: 2016-06-11 | CX34: 4 | CY34: 2016-06-11 | DA34: 6 | DB34: 2016-12-23 | DD34: 6 | DE34: 2016-12-23 | DG34: 5 | DH34: 2016-12-23 | DJ34: 4 | DK34: 2016-12-23 | DM34: 6 | DN34: 2016-12-23 | DP34: 6 | DQ34: 2017-04-21 | DS34: 5 | DT34: 2017-04-20 | DV34: 3 | DW34: 2017-04-22 | DY34: 3 | DZ34: 2017-04-22 | EB34: 4 | EC34: 2017-04-22 | EE34: 6 | EF34: 2017-04-22 | EH34: 6 | EI34: 2017-04-22 | EK34: 6 | EL34: 2017-04-22 | EN34: 3 | EO34: 2018-06-05 | EP34: ФГБОУ ВО Костромская ГСХА, кафедра экономической кибернетики | EQ34: 3 | ER34: 2017-12-02 | ET34: 4 | EU34: 2017-12-02 | EW34: 4 | EX34: 2017-12-02 | EZ34: 4 | FA34: 2017-12-02 | FC34: 4 | FD34: 2017-12-02 | FF34: 5 | FG34: 2018-06-05 | FH34: 7769492 | FI34: 6 | FJ34: 2018-06-05 | FK34: 7769541 | FL34: 5 | FM34: 2018-06-05 | FN34: 7769554 | FO34: 5 | FP34: 2018-06-05 | FQ34: Особенности функционирования финансовой системы развитых стран (на примере США, Германии и др.) | FR34: 4 | FS34: 2018-06-05 | FT34: 7769557 | FU34: 5 | FV34: 2018-06-05 | FW34: 7769545 | FX34: 5 | FY34: 2018-06-05 | FZ34: Оптимизация сочетания отраслей и специализации предприятия агропромышленногокомплекса | GA34: 4 | GB34: 2018-08-31 | GC34: МБДОУ ОВГО г.Волгореченск Костромской области "Детский сад №2" Солнышко" | JJ34: =(JL34*3+JM34*4+JN34*5)/50 -> 2.08 | JL34: =COUNTIF(CC34:JG34,3) -> 5 | JM34: =COUNTIF(CC34:JG34,4) -> 11 | JN34: =COUNTIF(CC34:JG34,5) -> 9 | JO34: =COUNTIF(CC34:JG34,6) -> 10 | JP34: =SUM(JL34:JN34) -> 25 | JQ34: =SUMIF(CC34:JG34,">0",$CC$3:$JG$3) -> 4788 | JR34: =INT(JQ34/8+0.5) -> 599
A35: =A34+1 -> 30 | B35: Ибрагимов | C35: Ислам | D35: Ибрагимович | E35: =CONCATENATE(B35," ",LEFT(C35,1),". ",LEFT(D35,1),".") -> Ибрагимов И. И. | G35: Ибрагимову | H35: Исламу | I35: Ибрагимовичу | J35: 1989-10-13 | K35: д.Чертово Чухломского р-на Костромскойобл. | L35: РФ | M35: м | N35: МОУ Чухломская СОШ имени А.А. Яковлева | O35: 2008 | P35: холост | Q35: Костромская обл., Галичский р-н, д.Чертово, ул. Молодежная, д.1, кв. 1 | Y35: 160924 | Z35: Экономический | AA35: 38.03.44 | AB35: Экономика | AC35: Финансы и кредит | AD35: 5 лет | AE35: БАКАЛАВР | AF35: 2-389 | AG35: 2008-08-22 | AH35: по договору с полным возмещением затрат | AI35: 206 | AJ35: 2008-08-27 | AM35: 2-520 | AN35: 41106 | AO35: как невышедшего из академического отпуска | AP35: 2-98 | AQ35: 2017-02-15 | AS35: 2-206 | AT35: 2011-05-18 | AU35: по состоянию здоровья | AV35: 2011-05-11 | AW35: 2012-05-10 | AX35: 2-392 | AY35: 2009-08-28 | AZ35: 2-565 | BA35: 2018-06-25 | CA35: 4 | CB35: 241z | CC35: 3 | CD35: 2018-06-05 | CE35: 77610134 | CF35: 6 | CG35: 2018-06-05 | CH35: 77610110 | CI35: 3 | CJ35: п/зач | CL35: 6 | CM35: п/зач | CO35: 3 | CP35: 2017-12-08 | CR35: 3 | CS35: 2017-12-04 | CU35: 4 | CV35: 2017-11-29 | CX35: 3 | CY35: п/зач | DA35: 6 | DB35: п/зач | DD35: 6 | DE35: п/зач | DG35: 4 | DH35: 2017-04-24 | DJ35: 3 | DK35: 2017-12-08 | DM35: 6 | DN35: 2017-04-24 | DP35: 6 | DQ35: п/зач | DS35: 3 | DT35: п/зач | DV35: 4 | DW35: 2017-04-24 | DY35: 3 | DZ35: 2017-04-22 | EB35: 4 | EC35: 2017-04-22 | EE35: 6 | EF35: 2017-04-22 | EH35: 6 | EI35: 2017-04-22 | EK35: 6 | EL35: 2017-04-22 | EN35: 3 | EO35: п/зач | EQ35: 3 | ER35: 2017-12-02 | ET35: 3 | EU35: 2017-12-02 | EW35: 4 | EX35: 2017-12-02 | EZ35: 4 | FA35: 2017-12-02 | FC35: 3 | FD35: п/зач | FF35: 3 | FG35: п/зач | FI35: 6 | FJ35: 2018-06-05 | FK35: 7769541 | FR35: 4 | FS35: 2018-06-05 | FT35: 7769557 | FU35: 3 | FV35: 2018-06-05 | FW35: 7769545 | FX35: 3 | FY35: 2018-06-05 | FZ35: Определение оптимальной специализациии сочетания отраслей сельскохозяйственных предприятий. | GC35: ООО "Авангард" Чухломского р-на Костромской обл. | HT35: 3 | HU35: п/зач | HW35: 6 | HX35: п/зач | JJ35: =(JL35*3+JM35*4+JN35*5)/50 -> 1.52 | JL35: =COUNTIF(CC35:JG35,3) -> 16 | JM35: =COUNTIF(CC35:JG35,4) -> 7 | JN35: =COUNTIF(CC35:JG35,5) -> 0 | JO35: =COUNTIF(CC35:JG35,6) -> 11 | JP35: =SUM(JL35:JN35) -> 23 | JQ35: =SUMIF(CC35:JG35,">0",$CC$3:$JG$3) -> 4860 | JR35: =INT(JQ35/8+0.5) -> 608
A36: =A35+1 -> 31 | B36: Корёгина | C36: Анастасия | D36: Александровна | E36: =CONCATENATE(B36," ",LEFT(C36,1),". ",LEFT(D36,1),".") -> Корёгина А. А. | G36: Корёгиной | H36: Анастасии | I36: Александровне | J36: 1997-05-09 | K36: п.Талица Буйского р-на Костромской обл. | L36: РФ | M36: ж | N36: МОУ Талицкая СОШ Буйского муниципального района Костромской обл. | O36: 2015 | P36: незамужем | Q36: Костромская обл., Буйский р-н, пос.Талица, ул. Некрасова, 16-2 | Y36: 160868 | Z36: Экономический | AA36: 38.03.46 | AB36: Экономика | AC36: Финансы и кредит | AD36: 5 лет | AE36: БАКАЛАВР | AF36: 2-555 | AG36: 2015-08-21 | AH36: по договору с полным возмещением затрат | AI36: 000003362 | AJ36: 2015-07-03 | AX36: 2-561 | AY36: 2016-09-01 | AZ36: 2-703 | BA36: 2017-09-01 | CA36: 4 | CB36: 241z | CC36: 4 | CD36: 2018-06-05 | CE36: 77610134 | CF36: 6 | CG36: 2018-06-05 | CH36: 77610110 | CI36: 4 | CJ36: п/зач | CL36: 6 | CM36: п/зач | CO36: 4 | CP36: п/зач | CR36: 3 | CS36: 2016-12-16 | CU36: 4 | CV36: 2016-12-07 | CX36: 3 | CY36: 2016-12-21 | DA36: 6 | DB36: 2016-12-23 | DD36: 6 | DE36: 2016-12-23 | DG36: 4 | DH36: 2016-12-23 | DJ36: 4 | DK36: 2016-12-23 | DM36: 6 | DN36: 2016-12-23 | DP36: 6 | DQ36: 2017-04-21 | DS36: 4 | DT36: 2017-04-20 | DV36: 5 | DW36: п/зач | DY36: 5 | DZ36: 2017-04-22 | EB36: 4 | EC36: 2017-04-22 | EE36: 6 | EF36: 2017-04-22 | EH36: 6 | EI36: 2017-04-22 | EK36: 6 | EL36: 2017-04-22 | EN36: 5 | EO36: п/зач | EQ36: 4 | ER36: 2017-12-02 | ET36: 5 | EU36: 2017-12-02 | EW36: 4 | EX36: 2017-12-02 | EZ36: 4 | FA36: 2017-12-02 | FC36: 5 | FD36: 2017-12-02 | FF36: 4 | FG36: 2018-06-05 | FH36: 7769492 | FI36: 6 | FJ36: 2018-06-05 | FK36: 7769541 | FL36: 5 | FM36: 2018-06-05 | FN36: 7769554 | FO36: 4 | FP36: 2018-06-05 | FQ36: Пенсионный фонд России и его роль в пенсионном обеспечении | FR36: 4 | FS36: 2018-06-05 | FT36: 7769557 | FU36: 5 | FV36: 2018-06-05 | FW36: 7769545 | FX36: 3 | FY36: 2018-06-05 | FZ36: Определение оптимальной структуры кормопроизводства сельскохозяйственных предприятий. | GA36: 4 | GB36: 2018-08-31 | GC36: ИП КФХ Сертухов Е.С. Буйского р-на Костромской обл. | JJ36: =(JL36*3+JM36*4+JN36*5)/50 -> 2.08 | JL36: =COUNTIF(CC36:JG36,3) -> 3 | JM36: =COUNTIF(CC36:JG36,4) -> 15 | JN36: =COUNTIF(CC36:JG36,5) -> 7 | JO36: =COUNTIF(CC36:JG36,6) -> 10 | JP36: =SUM(JL36:JN36) -> 25 | JQ36: =SUMIF(CC36:JG36,">0",$CC$3:$JG$3) -> 4788 | JR36: =INT(JQ36/8+0.5) -> 599
A37: =A36+1 -> 32 | B37: Поляшов | C37: Артём | D37: Сергеевич | E37: =CONCATENATE(B37," ",LEFT(C37,1),". ",LEFT(D37,1),".") -> Поляшов А. С. | G37: Поляшову | H37: Артёму | I37: Сергеевичу | J37: 1992-10-16 | K37: г.Кострома | L37: РФ | M37: м | N37: ОГБОУ СПО "Костромской строительный техникум" | O37: 2011 | P37: холост | Q37: г.Кострома, ул. Советская, д.124, кв. 14 | Y37: 15746з | Z37: Экономический | AA37: 38.03.47 | AB37: Экономика | AC37: Финансы и кредит | AD37: 5 лет | AE37: БАКАЛАВР | AF37: 2-557 | AG37: 2015-08-21 | AH37: по договору с полным возмещением затрат | AI37: 000003472 | AJ37: 2015-08-03 | AX37: 2-561 | AY37: 2016-09-01 | AZ37: 2-703 | BA37: 2017-09-01 | CA37: 4 | CB37: 241z | CC37: 4 | CD37: 2018-06-05 | CE37: 77610134 | CF37: 6 | CG37: 2018-06-05 | CH37: 77610110 | CI37: 3 | CJ37: 2016-06-11 | CL37: 6 | CM37: 2016-06-11 | CO37: 3 | CP37: 2016-06-11 | CR37: 3 | CS37: 2016-06-11 | CU37: 3 | CV37: 2016-06-11 | CX37: 3 | CY37: 2016-06-11 | DA37: 6 | DB37: 2016-12-23 | DD37: 6 | DE37: 2016-12-23 | DG37: 4 | DH37: 2016-12-23 | DJ37: 3 | DK37: 2016-12-23 | DM37: 6 | DN37: 2016-12-23 | DP37: 6 | DQ37: 2017-04-21 | DS37: 4 | DT37: 2017-04-20 | DV37: 5 | DW37: 2017-04-22 | DY37: 4 | DZ37: 2017-04-22 | EB37: 3 | EC37: 2017-04-22 | EE37: 6 | EF37: 2017-04-22 | EH37: 6 | EI37: 2017-04-22 | EK37: 6 | EL37: 2017-04-22 | EN37: 3 | EO37: 2017-11-28 | EP37: ФГБОУ ВО Костромская ГСХА, кафедра экономической кибернетики | EQ37: 4 | ER37: 2017-12-02 | ET37: 3 | EU37: 2017-12-02 | EW37: 3 | EX37: 2017-12-02 | EZ37: 4 | FA37: 2017-12-02 | FC37: 5 | FD37: 2017-12-02 | FF37: 4 | FG37: 2018-06-05 | FH37: 7769492 | FI37: 6 | FJ37: 2018-06-05 | FK37: 7769541 | FL37: 5 | FM37: 2018-06-05 | FN37: 7769554 | FO37: 4 | FP37: 2018-06-05 | FQ37: Управление государственным долгом России | FR37: 4 | FS37: 2018-06-05 | FT37: 7769557 | FU37: 3 | FV37: 2018-06-05 | FW37: 7769545 | FX37: 3 | FY37: 2018-06-05 | FZ37: Определение оптимальной структуры кормопроизводства сельскохозяйственных предприятий. | GC37: ФГБОУ ВО Костромская ГСХА Костромского р-на Костромской обл. | JJ37: =(JL37*3+JM37*4+JN37*5)/50 -> 1.74 | JL37: =COUNTIF(CC37:JG37,3) -> 12 | JM37: =COUNTIF(CC37:JG37,4) -> 9 | JN37: =COUNTIF(CC37:JG37,5) -> 3 | JO37: =COUNTIF(CC37:JG37,6) -> 10 | JP37: =SUM(JL37:JN37) -> 24 | JQ37: =SUMIF(CC37:JG37,">0",$CC$3:$JG$3) -> 4788 | JR37: =INT(JQ37/8+0.5) -> 599
A38: =A37+1 -> 33 | B38: Рустицкая | C38: Юлия | D38: Александровна | E38: =CONCATENATE(B38," ",LEFT(C38,1),". ",LEFT(D38,1),".") -> Рустицкая Ю. А. | G38: Рустицкой | H38: Юлии | I38: Александровне | J38: 1995-12-19 | K38: п.Сусанино Костромской обл. | L38: РФ | M38: ж | N38: МОУ "Сусанинская СОШ" Сусанинского муниципального р-на Костромской обл. | O38: 2013 | P38: замужем | Q38: г.Кострома, ул. Никитская, д.120, кв. 25 | Y38: 14424 | Z38: Экономический | AA38: 38.03.49 | AB38: Экономика | AC38: Финансы и кредит | AD38: 5 лет | AE38: БАКАЛАВР | AF38: 2-524 | AG38: 2014-08-21 | AH38: по договору с полным возмещением затрат | AI38: 000002683 | AJ38: 2014-07-23 | AS38: 2-464 | AT38: 42187 | AU38: по состоянию здоровья | AV38: 2015-09-01 | AW38: 2016-08-31 | AX38: 2-561 | AY38: 2016-09-01 | AZ38: 2-703 | BA38: 2017-09-01 | CA38: 4 | CB38: 241z | CC38: 4 | CD38: 2018-06-05 | CE38: 77610134 | CF38: 6 | CG38: 2018-06-05 | CH38: 77610110 | CI38: 4 | CJ38: п/зач | CL38: 6 | CM38: п/зач | CO38: 3 | CP38: п/зач | CR38: 4 | CS38: п/зач | CU38: 4 | CV38: п/зач | CX38: 4 | CY38: п/зач | DA38: 6 | DB38: 2016-12-23 | DD38: 6 | DE38: 2016-12-23 | DG38: 5 | DH38: 2016-12-23 | DJ38: 4 | DK38: 2016-12-23 | DM38: 6 | DN38: 2016-12-23 | DP38: 6 | DQ38: 2017-04-21 | DS38: 5 | DT38: 2017-04-20 | DV38: 4 | DW38: 2017-04-22 | DY38: 4 | DZ38: 2017-04-22 | EB38: 3 | EC38: 2017-04-22 | EE38: 6 | EF38: 2017-04-22 | EH38: 6 | EI38: 2017-04-22 | EK38: 6 | EL38: 2017-04-22 | EN38: 3 | EO38: п/зач | EQ38: 4 | ER38: 2017-12-02 | ET38: 5 | EU38: 2017-12-02 | EW38: 4 | EX38: 2017-12-02 | EZ38: 4 | FA38: 2017-12-02 | FC38: 4 | FD38: 2017-12-02 | FF38: 5 | FG38: 2018-06-05 | FH38: 7769492 | FI38: 6 | FJ38: 2018-06-05 | FK38: 7769541 | FL38: 5 | FM38: 2018-06-05 | FN38: 7769554 | FO38: 5 | FP38: 2018-06-05 | FQ38: Современные тенденции развития бюджетной системы РФ | FR38: 4 | FS38: 2018-06-05 | FT38: 7769557 | FU38: 4 | FV38: 2018-06-05 | FW38: 7769545 | FX38: 3 | FY38: 2018-06-05 | FZ38: Определение оптимальной структуры кормопроизводства сельскохозяйственных предприятий. | GC38: ООО "РусфинансБанк" г.Кострома | JJ38: =(JL38*3+JM38*4+JN38*5)/50 -> 1.96 | JL38: =COUNTIF(CC38:JG38,3) -> 4 | JM38: =COUNTIF(CC38:JG38,4) -> 14 | JN38: =COUNTIF(CC38:JG38,5) -> 6 | JO38: =COUNTIF(CC38:JG38,6) -> 10 | JP38: =SUM(JL38:JN38) -> 24 | JQ38: =SUMIF(CC38:JG38,">0",$CC$3:$JG$3) -> 4788 | JR38: =INT(JQ38/8+0.5) -> 599
A39: =A38+1 -> 34 | B39: Сарыев | C39: Канан | D39: Джамшидоглы | E39: =CONCATENATE(B39," ",LEFT(C39,1),". ",LEFT(D39,1),".") -> Сарыев К. Д. | G39: Сарыеву | H39: Канану | I39: Джамшидоглы | J39: 1996-07-09 | K39: п.Чистые Боры Буйского р-на Костромской обл. | L39: РФ | M39: м | N39: СОШ №13 им. Наумова городского округа г.Буй | O39: 2014 | P39: холост | Q39: Костромская обл., г.Буй ул. Островского, д.11, кв. 52 | Y39: 14452 | Z39: Экономический | AA39: 38.03.50 | AB39: Экономика | AC39: Финансы и кредит | AD39: 5 лет | AE39: БАКАЛАВР | AF39: 2-524 | AG39: 2014-08-21 | AH39: по договору с полным возмещением затрат | AI39: 000002579 | AJ39: 2014-07-04 | AS39: 2-803 | AT39: 42730 | AU39: в связи с призывом в ряды РФ | AV39: 2016-12-14 | AW39: 2017-12-13 | AX39: 2-571 | AY39: 2015-09-01 | AZ39: 2-561 | BA39: 2016-09-01 | CA39: 4 | CB39: 241z | CI39: 3 | CJ39: п/зач | CL39: 6 | CM39: п/зач | CO39: 3 | CP39: п/зач | CR39: 3 | CS39: п/зач | CU39: 3 | CV39: 2016-07-01 | CX39: 3 | CY39: п/зач | DA39: 6 | DB39: п/зач | DD39: 6 | DE39: п/зач | DG39: 3 | DH39: 2016-04-22 | DJ39: 3 | DK39: п/зач | DM39: 6 | DN39: п/зач | DP39: 6 | DQ39: 2016-04-27 | DS39: 3 | DT39: п/зач | DV39: 3 | DW39: п/зач | EE39: 6 | EF39: п/зач | EH39: 6 | EI39: 2017-12-18 | EK39: 6 | EL39: 2018-04-17 | EM39: 679 | EN39: 3 | EO39: п/зач | EW39: 3 | EX39: 2016-12-02 | FC39: 3 | FD39: 2018-04-17 | FE39: 678 | FF39: 4 | FG39: 2018-06-05 | FH39: 7769492 | FI39: 6 | FJ39: 2018-06-05 | FK39: 7769541 | FL39: 3 | FM39: 2018-06-05 | FN39: 7769554 | FR39: 4 | FS39: 2018-06-05 | FT39: 7769557 | FU39: 3 | FV39: 2018-06-05 | FW39: 7769545 | FZ39: Определение оптимальной структуры кормопроизводства сельскохозяйственных предприятий. | GC39: ООО "ТИСС" Буйского р-на Костромской обл. | JJ39: =(JL39*3+JM39*4+JN39*5)/50 -> 1 | JL39: =COUNTIF(CC39:JG39,3) -> 14 | JM39: =COUNTIF(CC39:JG39,4) -> 2 | JN39: =COUNTIF(CC39:JG39,5) -> 0 | JO39: =COUNTIF(CC39:JG39,6) -> 9 | JP39: =SUM(JL39:JN39) -> 16 | JQ39: =SUMIF(CC39:JG39,">0",$CC$3:$JG$3) -> 3420 | JR39: =INT(JQ39/8+0.5) -> 428
A40: =A39+1 -> 35 | B40: Смирнова | C40: Ольга | D40: Александровна | E40: =CONCATENATE(B40," ",LEFT(C40,1),". ",LEFT(D40,1),".") -> Смирнова О. А. | G40: Смирновой | H40: Ольге | I40: Александровне | J40: 1996-11-13 | K40: г.Кострома | L40: РФ | M40: ж | N40: МБОУ "Средняя общеобразовательная школа №8" города Костромы | O40: 2014 | P40: незамужем | Q40: г.Кострома, ул. Индустриальная, д.55, кв. 48 | Y40: 160894 | Z40: Экономический | AA40: 38.03.52 | AB40: Экономика | AC40: Финансы и кредит | AD40: 5 лет | AE40: БАКАЛАВР | AF40: 2-524 | AG40: 2014-08-21 | AH40: по договору с полным возмещением затрат | AI40: 000002536 | AJ40: 2014-06-30 | AX40: 2-571 | AY40: 2015-09-01 | AZ40: 2-339 | BA40: 2018-05-03 | CA40: 4 | CB40: 241z | CC40: 4 | CD40: 2018-06-05 | CE40: 77610134 | CF40: 6 | CG40: 2018-06-05 | CH40: 77610110 | CI40: 3 | CJ40: 2018-04-23 | CK40: 727 | CL40: 6 | CM40: п/зач | CO40: 3 | CP40: п/зач | CR40: 3 | CS40: п/зач | CU40: 3 | CV40: п/зач | CX40: 4 | CY40: п/зач | DA40: 6 | DB40: п/зач | DD40: 6 | DE40: п/зач | DG40: 3 | DH40: п/зач | DJ40: 3 | DK40: 2018-04-23 | DL40: 716 | DM40: 6 | DN40: п/зач | DP40: 6 | DQ40: 2018-05-07 | DR40: 793 | DS40: 4 | DT40: п/зач | DV40: 4 | DW40: п/зач | DY40: 3 | DZ40: п/зач | EB40: 3 | EC40: 2018-05-08 | ED40: 802 | EE40: 6 | EF40: п/зач | EH40: 6 | EI40: п/зач | EK40: 6 | EL40: п/зач | EN40: 3 | EO40: п/зач | EQ40: 3 | ER40: 2018-04-26 | ES40: 771 | ET40: 3 | EU40: п/зач | EW40: 3 | EX40: п/зач | EZ40: 4 | FA40: 2017-12-02 | FC40: 3 | FD40: п/зач | FF40: 4 | FG40: 2018-06-05 | FH40: 7769492 | FI40: 6 | FJ40: 2018-06-05 | FK40: 7769541 | FL40: 5 | FM40: 2018-06-05 | FN40: 7769554 | FQ40: Фонд социального страхования Российской Федерации и его роль в системе государственного социального страхования | FR40: 4 | FS40: 2018-06-05 | FT40: 7769557 | FU40: 3 | FV40: 2018-06-05 | FW40: 7769545 | FX40: 3 | FY40: 2018-06-05 | FZ40: Определение оптимальной структуры кормопроизводства сельскохозяйственных предприятий. | GC40: ОАО Нерехтская межрайонная льносеменоводческая станция" г.Нерехта Костромской обл. | HW40: 6 | HX40: п/зач | JJ40: =(JL40*3+JM40*4+JN40*5)/50 -> 1.56 | JL40: =COUNTIF(CC40:JG40,3) -> 15 | JM40: =COUNTIF(CC40:JG40,4) -> 7 | JN40: =COUNTIF(CC40:JG40,5) -> 1 | JO40: =COUNTIF(CC40:JG40,6) -> 11 | JP40: =SUM(JL40:JN40) -> 23 | JQ40: =SUMIF(CC40:JG40,">0",$CC$3:$JG$3) -> 4860 | JR40: =INT(JQ40/8+0.5) -> 608
A41: =A40+1 -> 36 | B41: Софийская(Савинова) | C41: Ольга | D41: Александровна | E41: =CONCATENATE(B41," ",LEFT(C41,1),". ",LEFT(D41,1),".") -> Софийская(Савинова) О. А. | G41: Софийской | H41: Олге | I41: Александровне | J41: 1996-08-28 | K41: г.Кострома | L41: РФ | M41: ж | N41: МБОУ г.Костромы СОШ №11 | O41: 2014 | P41: замужем | Q41: г.Кострома, ул. Самоковская, д.7, кв. 171 | Y41: 160869 | Z41: Экономический | AA41: 38.03.54 | AB41: Экономика | AC41: Финансы и кредит | AD41: 5 лет | AE41: БАКАЛАВР | AF41: 2-524 | AG41: 2014-08-21 | AH41: по договору с полным возмещением затрат | AI41: 000002676 | AJ41: 2014-07-21 | AM41: 2-62 | AN41: 42409 | AO41: за академическую неуспеваемость и систематические пропуски учебных занятий | AP41: 2-671 | AQ41: 2016-10-18 | AX41: 2-571 | AY41: 2015-09-01 | AZ41: 2-339 | BA41: 2018-05-03 | CA41: 4 | CB41: 241z | CC41: 5 | CD41: 2018-06-05 | CE41: 77610134 | CF41: 6 | CG41: 2018-06-05 | CH41: 77610110 | CI41: 3 | CJ41: 2017-04-07 | CL41: 6 | CM41: п/зач | CO41: 3 | CP41: п/зач | CR41: 3 | CS41: п/зач | CU41: 4 | CV41: 2017-11-29 | CX41: 3 | CY41: п/зач | DA41: 6 | DB41: п/зач | DD41: 6 | DE41: 2016-12-23 | DG41: 4 | DH41: 2016-12-23 | DJ41: 3 | DK41: 2017-04-18 | DM41: 6 | DN41: п/зач | DP41: 6 | DQ41: 2017-04-21 | DS41: 3 | DT41: 2017-04-20 | DV41: 3 | DW41: 2017-11-29 | DY41: 4 | DZ41: 2017-04-22 | EB41: 4 | EC41: 2017-04-22 | EE41: 6 | EF41: 2017-04-22 | EH41: 6 | EI41: 2017-04-22 | EK41: 6 | EL41: 2017-04-22 | EN41: 5 | EO41: п/зач | EQ41: 0 | ET41: 3 | EU41: 2017-12-02 | EW41: 4 | EX41: 2017-12-02 | EZ41: 4 | FA41: 2017-12-02 | FC41: 4 | FD41: 2017-12-02 | FF41: 5 | FG41: 2018-06-05 | FH41: 7769492 | FI41: 6 | FJ41: 2018-06-05 | FK41: 7769541 | FL41: 5 | FM41: 2018-06-05 | FN41: 7769554 | FO41: 5 | FP41: 2018-06-05 | FQ41: Рынок ценных бумаг в России и перспективы его развития | FR41: 4 | FS41: 2018-06-05 | FT41: 7769557 | FU41: 5 | FV41: 2018-06-05 | FW41: 7769545 | FX41: 4 | FY41: 2018-06-05 | FZ41: Определение оптимальной структуры кормопроизводства сельскохозяйственных предприятий. | GA41: 4 | GB41: 2018-08-31 | GC41: ИП Смирнова Ю.В. г.Кострома | HW41: 6 | HX41: п/зач | JJ41: =(JL41*3+JM41*4+JN41*5)/50 -> 1.88 | JL41: =COUNTIF(CC41:JG41,3) -> 8 | JM41: =COUNTIF(CC41:JG41,4) -> 10 | JN41: =COUNTIF(CC41:JG41,5) -> 6 | JO41: =COUNTIF(CC41:JG41,6) -> 11 | JP41: =SUM(JL41:JN41) -> 24 | JQ41: =SUMIF(CC41:JG41,">0",$CC$3:$JG$3) -> 4716 | JR41: =INT(JQ41/8+0.5) -> 590
A42: =A41+1 -> 37 | B42: Чесноков | C42: Роман | D42: Сергеевич | E42: =CONCATENATE(B42," ",LEFT(C42,1),". ",LEFT(D42,1),".") -> Чесноков Р. С. | G42: Чеснокову | H42: Роману | I42: Сергеевичу | J42: 1996-12-26 | K42: г.Кострома | L42: РФ | M42: м | N42: МБОУ г.Костромы СОШ №8 | O42: 2014 | P42: холост | Q42: г.Кострома, ул. Центральная, д.25, кв. 23 | Y42: 15592 | Z42: Экономический | AA42: 38.03.56 | AB42: Экономика | AC42: Финансы и кредит | AD42: 5 лет | AE42: БАКАЛАВР | AF42: 2-555 | AG42: 2015-08-21 | AH42: по договору с полным возмещением затрат | AI42: 000003392 | AJ42: 2015-07-10 | AX42: 2-561 | AY42: 2016-09-01 | AZ42: 2-339 | BA42: 2018-05-03 | CA42: 4 | CB42: 241z | CC42: 3 | CD42: 2018-06-05 | CE42: 77610134 | CF42: 6 | CG42: 2018-06-05 | CH42: 77610110 | CI42: 3 | CJ42: п/зач | CL42: 6 | CM42: п/зач | CO42: 3 | CP42: п/зач | CR42: 3 | CS42: п/зач | CU42: 3 | CV42: 2018-04-16 | CW42: 668 | CX42: 3 | CY42: п/зач | DA42: 6 | DB42: 2017-12-26 | DD42: 6 | DE42: 2016-12-23 | DG42: 3 | DH42: 2016-12-23 | DJ42: 3 | DK42: 2016-12-23 | DM42: 6 | DN42: 2018-05-03 | DO42: 747 | DP42: 6 | DQ42: 2017-04-21 | DS42: 3 | DT42: 2017-12-26 | DV42: 3 | DW42: 2017-12-26 | DY42: 3 | DZ42: 2017-04-22 | EB42: 3 | EC42: 2017-04-22 | EE42: 6 | EF42: 2017-04-22 | EH42: 6 | EI42: 2017-04-22 | EK42: 6 | EL42: 2017-04-22 | EN42: 3 | EO42: п/зач | EQ42: 3 | ER42: 2017-12-02 | ET42: 4 | EU42: 2017-12-02 | EW42: 3 | EX42: 2017-12-02 | EZ42: 3 | FA42: 2017-12-02 | FC42: 3 | FD42: 2017-12-02 | FF42: 4 | FG42: 2018-06-05 | FH42: 7769492 | FI42: 6 | FJ42: 2018-06-05 | FK42: 7769541 | FL42: 4 | FM42: 2018-06-05 | FN42: 7769554 | FO42: 4 | FP42: 2018-06-05 | FQ42: Структура финансовой системы России и перспективы ее развития | FR42: 4 | FS42: 2018-06-05 | FT42: 7769557 | FU42: 4 | FV42: 2018-06-05 | FW42: 7769545 | FX42: 3 | FY42: 2018-06-05 | FZ42: Определение оптимальной структуры кормопроизводства сельскохозяйственных предприятий. | GC42: АО "Газпромгазораспределение Кострома" г.Кострома | JJ42: =(JL42*3+JM42*4+JN42*5)/50 -> 1.56 | JL42: =COUNTIF(CC42:JG42,3) -> 18 | JM42: =COUNTIF(CC42:JG42,4) -> 6 | JN42: =COUNTIF(CC42:JG42,5) -> 0 | JO42: =COUNTIF(CC42:JG42,6) -> 10 | JP42: =SUM(JL42:JN42) -> 24 | JQ42: =SUMIF(CC42:JG42,">0",$CC$3:$JG$3) -> 4788 | JR42: =INT(JQ42/8+0.5) -> 599
A43: =A42+1 -> 38 | B43: Шахорин | C43: Владислав | D43: Дмитриевич | E43: =CONCATENATE(B43," ",LEFT(C43,1),". ",LEFT(D43,1),".") -> Шахорин В. Д. | G43: Шахорину | H43: Владиславу | I43: Дмитриевичу | J43: 1994-10-20 | K43: г.Кострома | L43: РФ | M43: м | N43: МБОУ г.Кострома" Лицей №32" | O43: 2012 | P43: холост | Q43: г.Кострома, ул. Ново-Полянская, д.6/41, кв. 36 | Y43: 15752з | Z43: Экономический | AA43: 38.03.57 | AB43: Экономика | AC43: Финансы и кредит | AD43: 5 лет | AE43: БАКАЛАВР | AF43: 2-557 | AG43: 2015-08-21 | AH43: по договору с полным возмещением затрат | AI43: 000003615 | AJ43: 2015-08-12 | AX43: 2-561 | AY43: 2016-09-01 | AZ43: 2-703 | BA43: 2017-09-01 | CA43: 4 | CB43: 241z | CC43: 4 | CD43: 2018-06-05 | CE43: 77610134 | CF43: 6 | CG43: 2018-06-05 | CH43: 77610110 | CI43: 3 | CJ43: 2016-06-11 | CL43: 6 | CM43: 2016-06-11 | CO43: 3 | CP43: 2016-06-11 | CR43: 3 | CS43: 2016-06-11 | CU43: 4 | CV43: 2016-06-11 | CX43: 4 | CY43: 2016-06-11 | DA43: 6 | DB43: 2016-12-23 | DD43: 6 | DE43: 2016-12-23 | DG43: 3 | DH43: 2016-12-23 | DJ43: 3 | DK43: 2016-12-23 | DM43: 6 | DN43: 2016-12-23 | DP43: 6 | DQ43: 2017-04-21 | DS43: 4 | DT43: 2017-04-20 | DV43: 3 | DY43: 3 | DZ43: 2017-04-22 | EB43: 3 | EC43: 2017-04-22 | EE43: 6 | EF43: 2017-04-22 | EH43: 6 | EI43: 2017-04-22 | EK43: 6 | EL43: 2017-04-22 | EN43: 0 | EQ43: 3 | ER43: 2017-12-02 | ET43: 3 | EU43: 2017-12-02 | EW43: 3 | EX43: 2017-12-02 | EZ43: 3 | FA43: 2017-12-02 | FC43: 3 | FD43: 2017-12-02 | FF43: 4 | FG43: 2018-06-05 | FH43: 7769492 | FI43: 6 | FJ43: 2018-06-05 | FK43: 7769541 | FL43: 5 | FM43: 2018-06-05 | FN43: 7769554 | FO43: 3 | FP43: 2018-06-05 | FQ43: Фонды обязательного медицинского страхования, их роль в финансировании расходов на здравоохранение в Российской Федерации | FR43: 4 | FS43: 2018-06-05 | FT43: 7769557 | FU43: 3 | FV43: 2018-06-05 | FW43: 7769545 | FX43: 3 | FY43: 2018-06-05 | FZ43: Оптимизация сочетания отраслей и специализации предприятия агропромышленногокомплекса | GC43: ООО "Косметика" г.Кострома | JJ43: =(JL43*3+JM43*4+JN43*5)/50 -> 1.54 | JL43: =COUNTIF(CC43:JG43,3) -> 16 | JM43: =COUNTIF(CC43:JG43,4) -> 6 | JN43: =COUNTIF(CC43:JG43,5) -> 1 | JO43: =COUNTIF(CC43:JG43,6) -> 10 | JP43: =SUM(JL43:JN43) -> 23 | JQ43: =SUMIF(CC43:JG43,">0",$CC$3:$JG$3) -> 4788 | JR43: =INT(JQ43/8+0.5) -> 599
A44: =A43+1 -> 39 | B44: Климова | C44: Анастасия | D44: Сергеевна | E44: =CONCATENATE(B44," ",LEFT(C44,1),". ",LEFT(D44,1),".") -> Климова А. С. | G44: Климовой | H44: Анастасии | I44: Сергеевне | J44: 1997-04-06 | K44: г.Кострома | L44: РФ | M44: ж | N44: МБОУ г.Костромы СОШ №6 | O44: 2015 | P44: незамужем | Q44: г.Кострома, 3-й Пантусовский проезд, д.14, кв. 1 | Y44: 170829 | Z44: Экономический | AA44: 38.03.45 | AB44: Экономика | AC44: Финансы и кредит | AD44: 5 лет | AE44: БАКАЛАВР | AF44: 2-555 | AG44: 2015-08-21 | AH44: по договору с полным возмещением затрат | AI44: 000003391 | AJ44: 2015-07-10 | AX44: 2-561 | AY44: 2016-09-01 | AZ44: 2-703 | BA44: 2017-09-01 | CA44: 4 | CB44: 243z | CC44: 4 | CD44: 2018-06-05 | CE44: 77810134 | CF44: 6 | CG44: 2018-06-05 | CH44: 7781010 | CI44: 4 | CJ44: п/зач 14.10.17 | CL44: 6 | CM44: п/зач 17.11.17 | CO44: 3 | CP44: п/зач01.11.17 | CR44: 3 | CS44: п/зач01.10.17 | CU44: 3 | CV44: п/атт 03.11.17 | CX44: 3 | CY44: п/зач 02.10.17 | DA44: 6 | DB44: п/зач10.11.17 | DD44: 6 | DE44: п/зач 08.10.17 | DG44: 4 | DH44: п/зач 05.11.17 | DJ44: 3 | DK44: п/зач 01.11.17 | DM44: 6 | DN44: п/зач 02.11.17 | DP44: 6 | DQ44: п/зач 31.10.17 | DS44: 5 | DT44: п/зач 10.11.17 | DV44: 3 | DW44: п/зач 02.11.17 | DY44: 4 | DZ44: п/зач 10.11.17 | EB44: 3 | EC44: п/зач 09.11.17 | EE44: 6 | EF44: п/атт 20.11.17 | EK44: 6 | EL44: п/зач 17.11.17 | EN44: 4 | EO44: п/зач 01.11.2017 | ET44: 4 | EU44: п/зач 14.11.17 | EW44: 3 | EX44: п/атт 18.11.17 | EZ44: 4 | FA44: п/атт 17.11.17 | FC44: 4 | FD44: п/зач 16.11.17 | FF44: 4 | FG44: 2018-06-05 | FH44: 7789492 | FI44: 6 | FJ44: 2018-06-05 | FK44: 7789541 | FL44: 4 | FM44: 2018-06-05 | FN44: 7789554 | FQ44: Управление государственным долгом России | FR44: 5 | FS44: 2018-06-05 | FT44: 7789557 | FU44: 4 | FV44: п/атт 18.11.17 | GY44: 3 | GZ44: п/зач 18.11.17 | HX44: п/зач 17.11.17 | JJ44: =(JL44*3+JM44*4+JN44*5)/50 -> 1.62 | JL44: =COUNTIF(CC44:JG44,3) -> 9 | JM44: =COUNTIF(CC44:JG44,4) -> 11 | JN44: =COUNTIF(CC44:JG44,5) -> 2 | JO44: =COUNTIF(CC44:JG44,6) -> 9 | JP44: =SUM(JL44:JN44) -> 22 | JQ44: =SUMIF(CC44:JG44,">0",$CC$3:$JG$3) -> 4788 | JR44: =INT(JQ44/8+0.5) -> 599
A45: =A44+1 -> 40 | B45: Пучкова(Мальцева) | C45: Ксения | D45: Михайловна | E45: =CONCATENATE(B45," ",LEFT(C45,1),". ",LEFT(D45,1),".") -> Пучкова(Мальцева) К. М. | G45: Пучковой | H45: Ксении | I45: Михайловне | J45: 1996-11-07 | K45: г.Кострома | L45: РФ | M45: ж | N45: МБОУ г.Костромы СОШ №8 | O45: 2014 | P45: замужем | Q45: г.Кострома, ул. Индустриальная, д.57А, кв. 75 | Y45: 14443 | Z45: Экономический | AA45: 38.03.48 | AB45: Экономика | AC45: Финансы и кредит | AD45: 5 лет | AE45: БАКАЛАВР | AF45: 2-524 | AG45: 2014-08-21 | AH45: по договору с полным возмещением затрат | AI45: 000002525 | AJ45: 2014-06-27 | AX45: 2-571 | AY45: 2015-09-01 | AZ45: 2-339 | BA45: 2018-05-03 | CA45: 4 | CB45: 243z | CC45: 4 | CD45: 2018-06-05 | CE45: 77810134 | CF45: 6 | CG45: 2018-06-05 | CH45: 7781010 | CI45: 3 | CJ45: 2017-11-10 | CL45: 6 | CM45: п/зач | CO45: 3 | CP45: п/зач | CR45: 3 | CS45: 2017-12-05 | CU45: 4 | CV45: 2017-11-29 | CX45: 3 | CY45: п/зач | DA45: 6 | DB45: 2016-12-23 | DD45: 6 | DE45: 2016-12-23 | DG45: 3 | DH45: п/зач | DJ45: 3 | DK45: 2016-12-23 | DM45: 6 | DN45: п/зач | DP45: 6 | DQ45: 2017-11-14 | DS45: 3 | DT45: п/зач | DV45: 3 | DW45: п/зач | DY45: 3 | DZ45: п/зач | EB45: 3 | EC45: 2017-04-22 | EE45: 6 | EF45: 2017-04-22 | EH45: 6 | EI45: 2017-04-22 | EK45: 6 | EL45: 2017-04-22 | EN45: 5 | EO45: 2018-05-04 | EQ45: 3 | ER45: 2017-12-02 | ET45: 3 | EU45: 2017-12-02 | EW45: 3 | EX45: 2017-12-02 | EZ45: 4 | FA45: 2017-12-02 | FC45: 4 | FD45: 2017-12-02 | FF45: 4 | FG45: 2018-06-05 | FH45: 7789492 | FI45: 6 | FJ45: 2018-06-05 | FK45: 7789541 | FL45: 5 | FM45: 2018-06-05 | FN45: 7789554 | FQ45: Пенсионный фонд России и его роль в пенсионном обеспечении | FR45: 5 | FS45: 2018-06-05 | FT45: 7789557 | FU45: 4 | FV45: 2018-06-05 | FW45: 7789545 | FX45: 4 | FY45: 2018-06-05 | FZ45: Определение оптимальной структуры кормопроизводства сельскохозяйственных предприятий. | GC45: ООО "Диапазон+" г.Ярославль Ярославской обл. | JJ45: =(JL45*3+JM45*4+JN45*5)/50 -> 1.64 | JL45: =COUNTIF(CC45:JG45,3) -> 13 | JM45: =COUNTIF(CC45:JG45,4) -> 7 | JN45: =COUNTIF(CC45:JG45,5) -> 3 | JO45: =COUNTIF(CC45:JG45,6) -> 10 | JP45: =SUM(JL45:JN45) -> 23 | JQ45: =SUMIF(CC45:JG45,">0",$CC$3:$JG$3) -> 4788 | JR45: =INT(JQ45/8+0.5) -> 599
A46: =A45+1 -> 41 | B46: Сорокин | C46: Владислав | D46: Андреевич | E46: =CONCATENATE(B46," ",LEFT(C46,1),". ",LEFT(D46,1),".") -> Сорокин В. А. | G46: Сорокину | H46: Владиславу | I46: Андреевичу | J46: 1997-01-03 | K46: г.Кострома | L46: РФ | M46: м | N46: МБОУ г.Костромы СОШ №4 | O46: 2014 | P46: холост | Q46: г.Кострома, пр.Рабочий, д.6, кв. 31 | Y46: 14455 | Z46: Экономический | AA46: 38.03.53 | AB46: Экономика | AC46: Финансы и кредит | AD46: 5 лет | AE46: БАКАЛАВР | AF46: 2-524 | AG46: 2014-08-21 | AH46: по договору с полным возмещением затрат | AI46: 000002711 | AJ46: 2014-07-29 | AS46: 2-458 | AT46: 42544 | AU46: в связи с призывом в ряды РФ | AV46: 2016-06-29 | AW46: 2017-06-28 | AX46: 2-571 | AY46: 2015-09-01 | AZ46: 2-458 | BA46: 2016-06-23 | CA46: 4 | CB46: 243z | CC46: 4 | CD46: 2018-06-05 | CE46: 77810134 | CF46: 6 | CG46: 2018-06-05 | CH46: 7781010 | CI46: 4 | CJ46: п/зач | CL46: 6 | CM46: п/зач | CO46: 3 | CP46: п/зач | CR46: 3 | CS46: п/зач | CU46: 4 | CV46: п/зач | CX46: 4 | CY46: п/зач | DA46: 6 | DB46: п/зач | DD46: 6 | DE46: п/зач | DG46: 3 | DH46: п/зач | DJ46: 3 | DK46: п/зач | DM46: 6 | DN46: п/зач | DP46: 6 | DQ46: п/зач | DS46: 5 | DT46: п/зач | DV46: 4 | DW46: п/зач | DY46: 4 | DZ46: п/зач | EB46: 3 | EC46: п/зач | EE46: 6 | EF46: п/зач | EH46: 6 | EI46: п/зач | EK46: 6 | EL46: 2017-11-14 | EN46: 3 | EO46: п/зач | EQ46: 3 | ER46: 02.12.20177789538 | ET46: 3 | EU46: п/зач | EW46: 4 | EX46: п/зач | EZ46: 4 | FA46: 02.12.20177789510 | FC46: 4 | FD46: п/зач | FF46: 4 | FG46: 2018-06-05 | FH46: 7789492 | FI46: 6 | FJ46: 2018-06-05 | FK46: 7789541 | FL46: 5 | FM46: 2018-06-05 | FN46: 7789554 | FQ46: Сущность и функции налогов, их роль в современных условиях | FR46: 5 | FS46: 2018-06-05 | FT46: 7789557 | FU46: 4 | FV46: 2018-06-05 | FW46: 7789545 | FX46: 4 | FY46: 2018-06-05 | FZ46: Определение оптимальной специализациии сочетания отраслей сельскохозяйственного предприятия. | GC46: ООО "Альфа-Рязань" г.Кострома | HT46: 4 | HU46: п/зач | HW46: 6 | HX46: п/зач | IX46: 6 | IY46: п/зач | JJ46: =(JL46*3+JM46*4+JN46*5)/50 -> 1.82 | JL46: =COUNTIF(CC46:JG46,3) -> 8 | JM46: =COUNTIF(CC46:JG46,4) -> 13 | JN46: =COUNTIF(CC46:JG46,5) -> 3 | JO46: =COUNTIF(CC46:JG46,6) -> 12 | JP46: =SUM(JL46:JN46) -> 24 | JQ46: =SUMIF(CC46:JG46,">0",$CC$3:$JG$3) -> 5112 | JR46: =INT(JQ46/8+0.5) -> 639
A47: =A46+1 -> 42 | B47: Хохлова | C47: Наталья | D47: Владимировна | E47: =CONCATENATE(B47," ",LEFT(C47,1),". ",LEFT(D47,1),".") -> Хохлова Н. В. | G47: Хохловой | H47: Наталье | I47: Владимировне | J47: 1987-12-25 | K47: г.ГаличКостромскойобл. | L47: РФ | M47: ж | N47: НОУ СПО Костромской технологический техникум ОАО "Костромакоопцентр" | O47: 2008 | P47: замужем | Q47: Костромская обл., Галичский р-н, д.Лобачи, д.6 | Y47: 15750з | Z47: Экономический | AA47: 38.03.55 | AB47: Экономика | AC47: Финансы и кредит | AD47: 5 лет | AE47: БАКАЛАВР | AF47: 2-557 | AG47: 2015-08-21 | AH47: по договору с полным возмещением затрат | AI47: 000003271 | AJ47: 2015-06-18 | AX47: 2-561 | AY47: 2016-09-01 | AZ47: 2-284 | BA47: 2018-04-17 | CA47: 4 | CB47: 243z | CF47: 6 | CG47: 2018-06-05 | CH47: 7781010 | CI47: 4 | CJ47: 2016-09-12 | CL47: 6 | CM47: 2016-06-11 | CO47: 5 | CP47: 2016-06-30 | CR47: 4 | CS47: 2016-06-30 | CU47: 5 | CV47: 2016-06-11 | CX47: 3 | CY47: 2016-10-03 | DA47: 6 | DB47: 2016-12-23 | DD47: 6 | DE47: 2016-12-23 | DG47: 3 | DH47: 2016-12-23 | DJ47: 3 | DK47: 2017-12-08 | DL47: 328 | DM47: 6 | DN47: 2017-12-08 | DO47: 329 | DP47: 6 | DQ47: 2017-04-22 | DS47: 4 | DT47: 2017-05-30 | DU47: 989 | DV47: 4 | DW47: 2017-12-22 | DX47: 488 | DY47: 5 | DZ47: 2017-04-22 | EB47: 3 | EC47: 2017-12-07 | ED47: 288 | EE47: 6 | EF47: 2017-04-22 | EH47: 6 | EI47: 2017-04-22 | EK47: 6 | EL47: 2017-04-22 | EN47: 3 | EO47: 2017-12-20 | FQ47: Рынок ценных бумаг в России и перспективы его развития | GC47: ФГБОУ ВО Костромская ГСХА Костромского р-на Костромской обл. | JJ47: =(JL47*3+JM47*4+JN47*5)/50 -> 0.92 | JL47: =COUNTIF(CC47:JG47,3) -> 5 | JM47: =COUNTIF(CC47:JG47,4) -> 4 | JN47: =COUNTIF(CC47:JG47,5) -> 3 | JO47: =COUNTIF(CC47:JG47,6) -> 9 | JP47: =SUM(JL47:JN47) -> 12 | JQ47: =SUMIF(CC47:JG47,">0",$CC$3:$JG$3) -> 3060 | JR47: =INT(JQ47/8+0.5) -> 383
A48: =A47+1 -> 43 | B48: Шульженко | C48: Антон | D48: Николаевич | E48: =CONCATENATE(B48," ",LEFT(C48,1),". ",LEFT(D48,1),".") -> Шульженко А. Н. | G48: Шульженко | H48: Антону | I48: Николаевичу | J48: 1983-07-20 | K48: г.Северодвинск Архангельской обл. | L48: РФ | M48: м | N48: Профессиональное училище №21 с.Зебляки Шарьинского района | O48: 2001 | P48: холост | Q48: Костромская обл., г.Шарья,ул. Черняховского, д.38, кв. 8 | Y48: 15753з | Z48: Экономический | AA48: 38.03.58 | AB48: Экономика | AC48: Финансы и кредит | AD48: 5 лет | AE48: БАКАЛАВР | AF48: 2-585 | AG48: 2015-09-05 | AH48: по договору с полным возмещением затрат | AI48: 000003858 | AJ48: 2015-09-01 | AX48: 2-561 | AY48: 2016-09-01 | AZ48: 2-339 | BA48: 2018-05-03 | CA48: 4 | CB48: 243z | CF48: 6 | CG48: 2018-06-05 | CH48: 7781010 | CI48: 5 | CJ48: 2016-09-12 | CL48: 6 | CM48: 2016-06-11 | CO48: 4 | CP48: 2016-09-08 | CR48: 5 | CS48: 2016-06-30 | CU48: 5 | CV48: 2017-10-10 | CX48: 5 | CY48: 2016-10-03 | DA48: 6 | DB48: 2016-12-23 | DD48: 6 | DE48: 2016-12-23 | DG48: 4 | DH48: 2016-12-23 | DJ48: 3 | DK48: 2018-05-08 | DM48: 6 | DN48: 2016-12-23 | DP48: 6 | DQ48: 2018-02-20 | DR48: 499 | DS48: 3 | DT48: 2017-05-30 | DV48: 3 | DW48: 2017-10-12 | DY48: 5 | DZ48: 2017-12-22 | EB48: 3 | EC48: 2017-12-26 | EE48: 6 | EF48: 2017-04-22 | EH48: 6 | EI48: 2017-04-22 | EK48: 6 | EL48: 2018-05-08 | EM48: 797 | EN48: 5 | EO48: 2017-07-01 | ET48: 3 | EU48: 2018-07-06 | EV48: 992 | EZ48: 5 | FA48: 2017-12-02 | FQ48: Налоги с населения и их роль в современных условиях | FR48: 5 | FS48: 2018-06-05 | FT48: 7789557 | GC48: ФГБОУ ВО Костромская ГСХА Костромского р-на Костромской обл. | JJ48: =(JL48*3+JM48*4+JN48*5)/50 -> 1.26 | JL48: =COUNTIF(CC48:JG48,3) -> 5 | JM48: =COUNTIF(CC48:JG48,4) -> 2 | JN48: =COUNTIF(CC48:JG48,5) -> 8 | JO48: =COUNTIF(CC48:JG48,6) -> 9 | JP48: =SUM(JL48:JN48) -> 15 | JQ48: =SUMIF(CC48:JG48,">0",$CC$3:$JG$3) -> 3528 | JR48: =INT(JQ48/8+0.5) -> 441
A49: =A48+1 -> 44 | B49: Соколова (Катранюк) | C49: Дарина | D49: Вячеславовна | E49: =CONCATENATE(B49," ",LEFT(C49,1),". ",LEFT(D49,1),".") -> Соколова (Катранюк) Д. В. | G49: Катранюк | H49: Дарине | I49: Вячеславовне | J49: 1996-03-02 | K49: г.Кишенев | L49: РФ | M49: ж | N49: МБОУ г.Костромы СОШ №21 | O49: 2014 | P49: незамужем | Q49: г.Кострома, ул. Титова, д.13, кв. 47 | Y49: 170936 | Z49: Экономический | AA49: 38.03.70 | AB49: Экономика | AC49: Финансы и кредит | AD49: 5 лет | AE49: БАКАЛАВР | AF49: 2-524 | AG49: 2014-08-21 | AH49: по договору с полным возмещением затрат | AI49: 000002770 | AJ49: 2014-08-06 | AS49: 2-766 | AT49: 2015-11-17 | AU49: по семейным обстоятельствам | AV49: 2015-11-06 | AW49: 2016-11-06 | AX49: 2-561 | AY49: 2016-09-01 | CA49: 3 | CB49: 231z | CF49: 6 | CG49: 2018-04-13 | CI49: 3 | CJ49: п/зач | CL49: 6 | CM49: п/зач | CO49: 3 | CP49: 2018-04-26 | CQ49: 772 | CR49: 3 | CS49: 2018-04-25 | CT49: 766 | CU49: 4 | CV49: 2018-04-11 | CW49: 630 | CX49: 3 | CY49: 2018-04-28 | CZ49: 773 | DA49: 6 | DB49: 2017-12-23 | DD49: 6 | DE49: 2017-12-23 | DG49: 4 | DH49: 2017-12-23 | DI49: 7909529 | DJ49: 3 | DK49: 2017-12-23 | DM49: 6 | DN49: 2017-12-23 | DP49: 6 | DQ49: 2018-04-28 | DR49: 7909531 | DS49: 4 | DT49: 2018-04-28 | DU49: 7909498 | DV49: 3 | DW49: 2018-04-28 | DX49: 7909723 | DY49: 4 | DZ49: 2018-04-28 | EA49: 7909533 | EB49: 3 | EC49: 2018-04-28 | ED49: 7909552 | EE49: 6 | EF49: п/зач | EH49: 6 | EI49: 2018-04-28 | EJ49: 7909873 | EK49: 6 | EL49: 2018-04-28 | EM49: 7909482 | EP49: ФГБОУ ВО Костромская ГСХА, кафедра экономической кибернетики | HT49: 5 | HU49: п/зач | JJ49: =(JL49*3+JM49*4+JN49*5)/50 -> 0.84 | JL49: =COUNTIF(CC49:JG49,3) -> 7 | JM49: =COUNTIF(CC49:JG49,4) -> 4 | JN49: =COUNTIF(CC49:JG49,5) -> 1 | JO49: =COUNTIF(CC49:JG49,6) -> 9 | JP49: =SUM(JL49:JN49) -> 12 | JQ49: =SUMIF(CC49:JG49,">0",$CC$3:$JG$3) -> 3204 | JR49: =INT(JQ49/8+0.5) -> 401
A50: =A49+1 -> 45 | B50: Бархатов | C50: Аркадий | D50: Андреевич | E50: =CONCATENATE(B50," ",LEFT(C50,1),". ",LEFT(D50,1),".") -> Бархатов А. А. | G50: Бархатову | H50: Аркадию | I50: Андреевичу | J50: 1996-06-21 | K50: г.Кострома | L50: РФ | M50: м | N50: МБОУ г.Костромы "Средняя общеобразовательная школа №24" | O50: 2014 | P50: холост | Q50: г.Кострома, ул. Коммунаров,49а | Y50: 160925 | Z50: Экономический | AA50: 38.03.60 | AB50: Экономика | AC50: Финансы и кредит | AD50: 5 лет | AE50: БАКАЛАВР | AF50: 2-524 | AG50: 2014-08-21 | AH50: по договору с полным возмещением затрат | AI50: 000002669 | AJ50: 2014-07-17 | AM50: 2-158 | AN50: 42088 | AO50: за академическую неуспеваемость | AP50: 2-671 | AQ50: 2016-10-18 | CA50: 3 | CB50: 231z | CF50: 6 | CG50: 2018-09-19 | CH50: 41 | CI50: 3 | CJ50: 2017-06-10 | CL50: 6 | CM50: 2017-06-10 | CO50: 3 | CP50: 2017-06-10 | CR50: 3 | CS50: 2017-06-10 | CU50: 3 | CV50: 2018-09-04 | CW50: 1 | CX50: 3 | CY50: 2017-06-10 | DA50: 6 | DB50: 2017-12-23 | DD50: 6 | DE50: 2017-12-23 | DM50: 6 | DN50: 2017-12-23 | DP50: 6 | DQ50: 2018-04-28 | DR50: 7909531 | DS50: 4 | DT50: 2018-04-28 | DU50: 7909498 | EK50: 6 | EL50: 2018-04-28 | EM50: 7909482 | EP50: ФГБОУ ВО Костромская ГСХА, кафедра экономической кибернетики | JJ50: =(JL50*3+JM50*4+JN50*5)/50 -> 0.38 | JL50: =COUNTIF(CC50:JG50,3) -> 5 | JM50: =COUNTIF(CC50:JG50,4) -> 1 | JN50: =COUNTIF(CC50:JG50,5) -> 0 | JO50: =COUNTIF(CC50:JG50,6) -> 7 | JP50: =SUM(JL50:JN50) -> 6 | JQ50: =SUMIF(CC50:JG50,">0",$CC$3:$JG$3) -> 1936 | JR50: =INT(JQ50/8+0.5) -> 242
A51: =A50+1 -> 46 | B51: Бойкова | C51: Светлана | D51: Игоревна | E51: =CONCATENATE(B51," ",LEFT(C51,1),". ",LEFT(D51,1),".") -> Бойкова С. И. | G51: Бойковой | H51: Светлане | I51: Игоревне | J51: 1989-11-17 | K51: п.Дружба Судиславского р-на Костромской обл. | L51: РФ | M51: ж | N51: ГОУ НПО Профессиональное училище №22 | O51: 2008 | P51: замужем | Q51: 157302 Костромская обл., г.Мантурово, ул. Юбилейная, д.23, кв. 16 | Y51: 160629 | Z51: Экономический | AA51: 38.03.63 | AB51: Экономика | AC51: Финансы и кредит | AD51: 5 лет | AE51: БАКАЛАВР | AF51: 2-542 | AG51: 2016-08-19 | AH51: по договору с полным возмещением затрат | AI51: 000004062 | AJ51: 2016-07-26 | AX51: 2-703 | AY51: 2017-09-01 | CA51: 3 | CB51: 231z | CC51: 3 | CD51: 2017-06-10 | CF51: 6 | CG51: 2017-06-10 | CI51: 4 | CJ51: 2017-06-10 | CL51: 6 | CM51: 2017-06-10 | CO51: 3 | CP51: 2017-06-10 | CR51: 4 | CS51: 2017-06-10 | CU51: 4 | CV51: 2017-06-10 | CX51: 4 | CY51: 2017-06-10 | DA51: 6 | DB51: 2017-12-23 | DD51: 6 | DE51: 2017-12-23 | DG51: 4 | DH51: 2017-12-23 | DI51: 7909529 | DJ51: 4 | DK51: 2017-12-23 | DM51: 6 | DN51: 2017-12-23 | DP51: 6 | DQ51: 2018-04-28 | DR51: 7909531 | DS51: 3 | DT51: 2018-04-28 | DU51: 7909498 | DV51: 4 | DW51: 2018-04-28 | DX51: 7909723 | DY51: 4 | DZ51: 2018-04-28 | EA51: 7909533 | EB51: 3 | EC51: 2018-04-28 | ED51: 7909552 | EE51: 6 | EF51: 2018-04-28 | EG51: 7909872 | EH51: 6 | EI51: 2018-04-28 | EJ51: 7909873 | EK51: 6 | EL51: 2018-04-28 | EM51: 7909482 | EN51: 5 | EO51: 2018-06-30 | EP51: ФГБОУ ВО Костромская ГСХА, кафедра экономической кибернетики | JJ51: =(JL51*3+JM51*4+JN51*5)/50 -> 0.98 | JL51: =COUNTIF(CC51:JG51,3) -> 4 | JM51: =COUNTIF(CC51:JG51,4) -> 8 | JN51: =COUNTIF(CC51:JG51,5) -> 1 | JO51: =COUNTIF(CC51:JG51,6) -> 9 | JP51: =SUM(JL51:JN51) -> 13 | JQ51: =SUMIF(CC51:JG51,">0",$CC$3:$JG$3) -> 3276 | JR51: =INT(JQ51/8+0.5) -> 410
A52: =A51+1 -> 47 | B52: Варенцова | C52: Ксения | D52: Павловна | E52: =CONCATENATE(B52," ",LEFT(C52,1),". ",LEFT(D52,1),".") -> Варенцова К. П. | G52: Варенцовой | H52: Ксении | I52: Павловне | J52: 1996-12-10 | K52: г.Нерехта Костромской обл. | L52: РФ | M52: ж | N52: ГПОУ Ярославской области Ярославский торгово-экономический колледж г.Ярославль | O52: 2016 | P52: незамужем | Q52: 156013 г.Кострома, ул. Катушечная, д.82А, кв. 27 | Y52: 160631 | Z52: Экономический | AA52: 38.03.64 | AB52: Экономика | AC52: Финансы и кредит | AD52: 5 лет | AE52: БАКАЛАВР | AF52: 2-542 | AG52: 2016-08-19 | AH52: по договору с полным возмещением затрат | AI52: 000004218 | AJ52: 2016-08-18 | AX52: 2-703 | AY52: 2017-09-01 | CA52: 3 | CB52: 231z | CC52: 5 | CD52: 2017-06-10 | CF52: 6 | CG52: 2017-06-10 | CI52: 4 | CJ52: 2017-06-10 | CL52: 6 | CM52: 2017-06-10 | CO52: 3 | CP52: 2017-06-10 | CR52: 4 | CS52: 2017-06-10 | CU52: 4 | CV52: 2017-06-10 | CX52: 4 | CY52: 2017-06-10 | DA52: 6 | DB52: 2017-12-23 | DD52: 6 | DE52: 2017-12-23 | DG52: 3 | DH52: 2017-12-23 | DI52: 7909529 | DJ52: 4 | DK52: 2017-12-23 | DM52: 6 | DN52: 2017-12-23 | DP52: 6 | DQ52: 2018-04-28 | DR52: 7909531 | DS52: 4 | DT52: 2018-04-28 | DU52: 7909498 | DV52: 4 | DW52: 2018-04-28 | DX52: 7909723 | DY52: 3 | DZ52: 2018-04-28 | EA52: 7909533 | EB52: 4 | EC52: 2018-04-28 | ED52: 7909552 | EE52: 6 | EF52: 2018-04-28 | EG52: 7909872 | EH52: 6 | EI52: 2018-04-28 | EJ52: 7909873 | EK52: 6 | EL52: 2018-04-28 | EM52: 7909482 | EP52: ФГБОУ ВО Костромская ГСХА, кафедра экономической кибернетики | JJ52: =(JL52*3+JM52*4+JN52*5)/50 -> 0.92 | JL52: =COUNTIF(CC52:JG52,3) -> 3 | JM52: =COUNTIF(CC52:JG52,4) -> 8 | JN52: =COUNTIF(CC52:JG52,5) -> 1 | JO52: =COUNTIF(CC52:JG52,6) -> 9 | JP52: =SUM(JL52:JN52) -> 12 | JQ52: =SUMIF(CC52:JG52,">0",$CC$3:$JG$3) -> 3276 | JR52: =INT(JQ52/8+0.5) -> 410
A53: =A52+1 -> 48 | B53: Гладкова | C53: Елизавета | D53: Денисовна | E53: =CONCATENATE(B53," ",LEFT(C53,1),". ",LEFT(D53,1),".") -> Гладкова Е. Д. | G53: Гладковой | H53: Елизавете | I53: Денисовне | J53: 1997-11-26 | K53: г.Кострома | L53: РФ | M53: ж | N53: МБОУ города Костромы Средняя общеобразовательная школа №29 | O53: 2015 | P53: незамужем | Q53: 156010 г.Кострома, мкр Паново, д.16, кв. 18 | Y53: 160632 | Z53: Экономический | AA53: 38.03.65 | AB53: Экономика | AC53: Финансы и кредит | AD53: 5 лет | AE53: БАКАЛАВР | AF53: 2-536 | AG53: 2016-08-15 | AH53: врамках контрольных цифр на основное место | AX53: 2-703 | AY53: 2017-09-01 | CA53: 3 | CB53: 231z | CC53: 4 | CD53: 2017-06-10 | CF53: 6 | CG53: 2017-06-10 | CI53: 3 | CJ53: 2017-06-10 | CL53: 6 | CM53: 2017-06-10 | CO53: 3 | CP53: 2017-06-10 | CR53: 3 | CS53: 2017-06-10 | CU53: 3 | CV53: 2017-06-10 | CX53: 4 | CY53: 2017-06-10 | DA53: 6 | DB53: 2017-12-23 | DD53: 6 | DE53: 2017-12-23 | DG53: 3 | DH53: 2017-12-23 | DI53: 7909529 | DJ53: 3 | DK53: 2017-12-23 | DM53: 6 | DN53: 2017-12-23 | DP53: 6 | DQ53: 2018-04-28 | DR53: 7909531 | DS53: 4 | DT53: 2018-04-28 | DU53: 7909498 | DV53: 3 | DW53: 2018-04-28 | DX53: 7909723 | DY53: 3 | DZ53: 2018-04-28 | EA53: 7909533 | EB53: 3 | EC53: 2018-04-28 | ED53: 7909552 | EE53: 6 | EF53: 2018-04-28 | EG53: 7909872 | EH53: 6 | EI53: 2018-04-28 | EJ53: 7909873 | EK53: 6 | EL53: 2018-04-28 | EM53: 7909482 | EP53: ФГБОУ ВО Костромская ГСХА, кафедра экономической кибернетики | JJ53: =(JL53*3+JM53*4+JN53*5)/50 -> 0.78 | JL53: =COUNTIF(CC53:JG53,3) -> 9 | JM53: =COUNTIF(CC53:JG53,4) -> 3 | JN53: =COUNTIF(CC53:JG53,5) -> 0 | JO53: =COUNTIF(CC53:JG53,6) -> 9 | JP53: =SUM(JL53:JN53) -> 12 | JQ53: =SUMIF(CC53:JG53,">0",$CC$3:$JG$3) -> 3276 | JR53: =INT(JQ53/8+0.5) -> 410
A54: =A53+1 -> 49 | B54: Голубев | C54: Владислав | D54: Олегович | E54: =CONCATENATE(B54," ",LEFT(C54,1),". ",LEFT(D54,1),".") -> Голубев В. О. | G54: Голубеву | H54: Владиславу | I54: Олеговичу | J54: 1994-11-26 | K54: г.Кострома | L54: РФ | M54: м | N54: МБОУ г.Костромы СОШ №3 с углублённым изучением отдельных предметов | O54: 2013 | P54: холост | Q54: 156009 г.Кострома, ул. Усадебная, д.8 | Y54: 160633 | Z54: Экономический | AA54: 38.03.67 | AB54: Экономика | AC54: Финансы и кредит | AD54: 5 лет | AE54: БАКАЛАВР | AF54: 2-542 | AG54: 2016-08-19 | AH54: по договору с полным возмещением затрат | AI54: 000004162 | AJ54: 2016-08-15 | CA54: 3 | CB54: 231z | CF54: 6 | CG54: 2018-09-19 | CH54: 42 | CI54: 3 | CJ54: 2017-06-10 | CL54: 6 | CM54: 2017-06-10 | CO54: 3 | CP54: 2017-06-10 | CR54: 3 | CS54: 2017-06-10 | CU54: 3 | CV54: 2018-09-04 | CW54: 1 | CX54: 3 | CY54: 2017-06-10 | DA54: 6 | DB54: 2017-12-23 | DD54: 6 | DE54: 2017-12-23 | DM54: 6 | DN54: 2017-12-23 | DP54: 6 | DQ54: 2018-04-28 | DR54: 7909531 | DS54: 3 | DT54: 2018-04-28 | DU54: 7909498 | EE54: 6 | EF54: 2018-04-28 | EG54: 7909872 | EK54: 6 | EL54: 2018-04-28 | EM54: 7909482 | EP54: ФГБОУ ВО Костромская ГСХА, кафедра экономической кибернетики | JJ54: =(JL54*3+JM54*4+JN54*5)/50 -> 0.36 | JL54: =COUNTIF(CC54:JG54,3) -> 6 | JM54: =COUNTIF(CC54:JG54,4) -> 0 | JN54: =COUNTIF(CC54:JG54,5) -> 0 | JO54: =COUNTIF(CC54:JG54,6) -> 8 | JP54: =SUM(JL54:JN54) -> 6 | JQ54: =SUMIF(CC54:JG54,">0",$CC$3:$JG$3) -> 2008 | JR54: =INT(JQ54/8+0.5) -> 251
A55: =A54+1 -> 50 | B55: Долматова | C55: Елена | D55: Андреевна | E55: =CONCATENATE(B55," ",LEFT(C55,1),". ",LEFT(D55,1),".") -> Долматова Е. А. | G55: Долматовой | H55: Елене | I55: Андреевне | J55: 1995-03-15 | K55: дер.Лебеди Октябрьского р-на Костромской обл. | L55: РФ | M55: ж | N55: ОГБ ПОУ Костромской торгово-экономический колледж г.Кострома | O55: 2015 | P55: незамужем | Q55: 156026 г.Кострома, ул. Гагарина, д.5, кв. 33 | Y55: 160635 | Z55: Экономический | AA55: 38.03.69 | AB55: Экономика | AC55: Финансы и кредит | AD55: 5 лет | AE55: БАКАЛАВР | AF55: 2-536 | AG55: 2016-08-15 | AH55: врамках контрольных цифр на основное место | AX55: 2-703 | AY55: 2017-09-01 | CA55: 3 | CB55: 231z | CC55: 5 | CD55: 2017-06-10 | CF55: 6 | CG55: 2017-06-10 | CI55: 5 | CJ55: 2017-06-10 | CL55: 6 | CM55: 2017-06-10 | CO55: 3 | CP55: 2017-06-10 | CR55: 4 | CS55: 2017-06-10 | CU55: 4 | CV55: 2017-06-10 | CX55: 4 | CY55: 2017-06-10 | DA55: 6 | DB55: 2017-12-23 | DD55: 6 | DE55: 2017-12-23 | DG55: 4 | DH55: 2017-12-23 | DI55: 7909529 | DJ55: 4 | DK55: 2017-12-23 | DM55: 6 | DN55: 2017-12-23 | DP55: 6 | DQ55: 2018-04-28 | DR55: 7909531 | DS55: 4 | DT55: 2018-04-28 | DU55: 7909498 | DV55: 4 | DW55: 2018-04-28 | DX55: 7909723 | DY55: 4 | DZ55: 2018-04-28 | EA55: 7909533 | EB55: 3 | EC55: 2018-04-28 | ED55: 7909552 | EE55: 6 | EF55: 2018-04-28 | EG55: 7909872 | EH55: 6 | EI55: 2018-04-28 | EJ55: 7909873 | EK55: 6 | EL55: 2018-04-28 | EM55: 7909482 | EN55: 5 | EO55: 2018-06-30 | EP55: ФГБОУ ВО Костромская ГСХА, кафедра экономической кибернетики | JJ55: =(JL55*3+JM55*4+JN55*5)/50 -> 1.06 | JL55: =COUNTIF(CC55:JG55,3) -> 2 | JM55: =COUNTIF(CC55:JG55,4) -> 8 | JN55: =COUNTIF(CC55:JG55,5) -> 3 | JO55: =COUNTIF(CC55:JG55,6) -> 9 | JP55: =SUM(JL55:JN55) -> 13 | JQ55: =SUMIF(CC55:JG55,">0",$CC$3:$JG$3) -> 3276 | JR55: =INT(JQ55/8+0.5) -> 410
A56: =A55+1 -> 51 | B56: Кулешус | C56: Сергей | D56: Витаутасович | E56: =CONCATENATE(B56," ",LEFT(C56,1),". ",LEFT(D56,1),".") -> Кулешус С. В. | G56: Кулешусу | H56: Сергею | I56: Витаутасовичу | J56: 1996-04-15 | K56: г.Галич Костромской обл. | L56: РФ | M56: м | N56: ОГБ ПОУ Галичский индустриальный колледж Костромской области город Галич | O56: 2015 | P56: холост | Q56: 157202 Костромская обл., г.Галич, ул. Фестивальная, д.2, кв. 24 | Y56: 160636 | Z56: Экономический | AA56: 38.03.71 | AB56: Экономика | AC56: Финансы и кредит | AD56: 5 лет | AE56: БАКАЛАВР | AF56: 2-542 | AG56: 2016-08-19 | AH56: по договору с полным возмещением затрат | AI56: 000004161 | AJ56: 2016-08-15 | AX56: 2-703 | AY56: 2017-09-01 | CA56: 3 | CB56: 231z | CC56: 3 | CD56: 2017-06-10 | CF56: 6 | CG56: 2017-06-10 | CI56: 3 | CJ56: 2017-06-10 | CL56: 6 | CM56: 2017-06-10 | CO56: 3 | CP56: 2017-06-10 | CR56: 3 | CS56: 2017-06-10 | CX56: 3 | CY56: 2017-06-10 | DA56: 6 | DB56: 2017-12-23 | DD56: 6 | DE56: 2017-12-23 | DG56: 3 | DH56: 2017-12-23 | DI56: 7909529 | DJ56: 3 | DK56: 2017-12-23 | DM56: 6 | DN56: 2017-12-23 | DP56: 6 | DQ56: 2018-04-28 | DR56: 7909531 | DS56: 4 | DT56: 2018-04-28 | DU56: 7909498 | DV56: 4 | DW56: 2018-04-28 | DX56: 7909723 | DY56: 4 | DZ56: 2018-04-28 | EA56: 7909533 | EB56: 3 | EC56: 2018-04-28 | ED56: 7909552 | EE56: 6 | EF56: 2018-04-28 | EG56: 7909872 | EH56: 6 | EI56: 2018-04-28 | EJ56: 7909873 | EP56: ФГБОУ ВО Костромская ГСХА, кафедра экономической кибернетики | JJ56: =(JL56*3+JM56*4+JN56*5)/50 -> 0.72 | JL56: =COUNTIF(CC56:JG56,3) -> 8 | JM56: =COUNTIF(CC56:JG56,4) -> 3 | JN56: =COUNTIF(CC56:JG56,5) -> 0 | JO56: =COUNTIF(CC56:JG56,6) -> 8 | JP56: =SUM(JL56:JN56) -> 11 | JQ56: =SUMIF(CC56:JG56,">0",$CC$3:$JG$3) -> 2844 | JR56: =INT(JQ56/8+0.5) -> 356
A57: =A56+1 -> 52 | B57: Матвеев | C57: Алексей | D57: Олегович | E57: =CONCATENATE(B57," ",LEFT(C57,1),". ",LEFT(D57,1),".") -> Матвеев А. О. | G57: Матвееву | H57: Алексею | I57: Олеговичу | J57: 1996-01-06 | K57: п.Малинино Антроповского р-на Костромской обл. | L57: РФ | M57: м | N57: МКОУ Палкинская СОШ Антроповского муниципального района Костромской области | O57: 2014 | P57: холост | Q57: Костромская обл., Антроповский р-н, п.Малинино, ул. 1мая, д.9 | Y57: 14558 | Z57: Экономический | AA57: 38.03.72 | AB57: Экономика | AC57: Финансы и кредит | AD57: 5 лет | AE57: БАКАЛАВР | AF57: 2-524 | AG57: 2014-08-21 | AH57: по договору с полным возмещением затрат | AI57: 000002546 | AJ57: 2014-07-01 | AM57: 2-129 | AN57: 42444 | AO57: по собственному желанию | AP57: 2-770 | AQ57: 2017-09-29 | AX57: 2-571 | AY57: 2015-09-01 | CA57: 3 | CB57: 231z | CF57: 6 | CG57: 2018-04-27 | CH57: 722 | CI57: 3 | CJ57: п/зач | CL57: 6 | CM57: п/зач | CO57: 3 | CP57: п/зач | CR57: 3 | CS57: 2018-04-24 | CT57: 750 | CU57: 3 | CV57: 2018-04-27 | CW57: 721 | CX57: 3 | CY57: 2017-12-20 | DA57: 6 | DB57: 2017-12-23 | DD57: 6 | DE57: 2017-12-23 | DG57: 3 | DH57: 2017-12-23 | DI57: 7909529 | DJ57: 3 | DK57: 2017-12-23 | DM57: 6 | DN57: 2017-12-23 | DP57: 6 | DQ57: 2018-04-28 | DR57: 7909531 | DS57: 4 | DT57: 2018-04-28 | DU57: 7909498 | DV57: 4 | DW57: 2018-04-28 | DX57: 7909723 | DY57: 3 | DZ57: 2018-04-28 | EA57: 7909533 | EB57: 3 | EC57: п/зач | EE57: 6 | EF57: 2018-04-28 | EG57: 7909872 | EH57: 6 | EI57: 2018-04-28 | EJ57: 7909873 | EK57: 6 | EL57: 2018-04-28 | EM57: 7909482 | EN57: 3 | EO57: п/атт. | JJ57: =(JL57*3+JM57*4+JN57*5)/50 -> 0.76 | JL57: =COUNTIF(CC57:JG57,3) -> 10 | JM57: =COUNTIF(CC57:JG57,4) -> 2 | JN57: =COUNTIF(CC57:JG57,5) -> 0 | JO57: =COUNTIF(CC57:JG57,6) -> 9 | JP57: =SUM(JL57:JN57) -> 12 | JQ57: =SUMIF(CC57:JG57,">0",$CC$3:$JG$3) -> 3060 | JR57: =INT(JQ57/8+0.5) -> 383
A58: =A57+1 -> 53 | B58: Нечаев | C58: Дмитрий | D58: Сергеевич | E58: =CONCATENATE(B58," ",LEFT(C58,1),". ",LEFT(D58,1),".") -> Нечаев Д. С. | G58: Нечаеву | H58: Дмитрию | I58: Сергеевичу | J58: 1997-04-09 | K58: г.Кострома | L58: РФ | M58: м | N58: МБОУ города Костромы Средняя общеобразовательная школа №1 | O58: 2015 | P58: холост | Q58: 156003 г.Кострома, ул. Боровая д.10, кв.36 | Y58: 160843 | Z58: Экономический | AA58: 38.03.73 | AB58: Экономика | AC58: Финансы и кредит | AD58: 5 лет | AE58: БАКАЛАВР | AF58: 2-542 | AG58: 2016-08-19 | AH58: по договору с полным возмещением затрат | AI58: 000004239 | AJ58: 2016-08-18 | AX58: 2-703 | AY58: 2017-09-01 | CA58: 3 | CB58: 231z | CC58: 3 | CD58: 2017-06-10 | CF58: 6 | CG58: 2017-06-10 | CI58: 3 | CJ58: 2017-06-10 | CL58: 6 | CM58: 2017-06-10 | CO58: 3 | CP58: 2017-06-10 | CR58: 3 | CS58: 2017-06-10 | CX58: 3 | CY58: 2017-06-10 | DA58: 6 | DB58: 2017-12-23 | DD58: 6 | DE58: 2017-12-23 | DM58: 6 | DN58: 2017-12-23 | DP58: 6 | DQ58: 2018-04-28 | DR58: 7909531 | DS58: 4 | DT58: 2018-04-28 | DU58: 7909498 | DY58: 3 | DZ58: 2018-04-28 | EA58: 7909533 | EE58: 6 | EF58: 2018-04-28 | EG58: 7909872 | EH58: 6 | EI58: 2018-04-28 | EJ58: 7909873 | EK58: 6 | EL58: 2018-04-28 | EM58: 7909482 | EP58: ФГБОУ ВО Костромская ГСХА, кафедра экономической кибернетики | JJ58: =(JL58*3+JM58*4+JN58*5)/50 -> 0.44 | JL58: =COUNTIF(CC58:JG58,3) -> 6 | JM58: =COUNTIF(CC58:JG58,4) -> 1 | JN58: =COUNTIF(CC58:JG58,5) -> 0 | JO58: =COUNTIF(CC58:JG58,6) -> 9 | JP58: =SUM(JL58:JN58) -> 7 | JQ58: =SUMIF(CC58:JG58,">0",$CC$3:$JG$3) -> 2044 | JR58: =INT(JQ58/8+0.5) -> 256
A59: =A58+1 -> 54 | B59: Никитина | C59: Елена | D59: Сергеевна | E59: =CONCATENATE(B59," ",LEFT(C59,1),". ",LEFT(D59,1),".") -> Никитина Е. С. | G59: Никитиной | H59: Елене | I59: Сергеевне | J59: 1997-01-09 | K59: п.Сангар Кобяйского р-на Республика Саха | L59: РФ | M59: ж | N59: МКОУ Костромского муниципального р-на, Костромской области Караваевская СОШ | O59: 2015 | P59: незамужем | Q59: 156530 Костромская обл., Костромской р-н, пос.Караваево, ул. Штеймана, д.63, кв. 76 | Y59: 160639 | Z59: Экономический | AA59: 38.03.74 | AB59: Экономика | AC59: Финансы и кредит | AD59: 5 лет | AE59: БАКАЛАВР | AF59: 2-542 | AG59: 2016-08-19 | AH59: по договору с полным возмещением затрат | AI59: 000004184 | AJ59: 2016-08-16 | AX59: 2-703 | AY59: 2017-09-01 | CA59: 3 | CB59: 231z | CC59: 5 | CD59: 2017-06-10 | CF59: 6 | CG59: 2017-06-10 | CI59: 3 | CJ59: 2017-06-10 | CL59: 6 | CM59: 2017-06-10 | CO59: 3 | CP59: 2017-06-10 | CR59: 4 | CS59: 2017-06-10 | CU59: 3 | CV59: 2017-06-10 | CX59: 4 | CY59: 2017-06-10 | DA59: 6 | DB59: 2017-12-23 | DD59: 6 | DE59: 2017-12-23 | DJ59: 3 | DK59: 2017-12-23 | DM59: 6 | DN59: 2017-12-23 | DP59: 6 | DQ59: 2018-04-28 | DR59: 7909531 | DS59: 4 | DT59: 2018-04-28 | DU59: 7909498 | DY59: 4 | DZ59: 2018-04-28 | EA59: 7909533 | EP59: ФГБОУ ВО Костромская ГСХА, кафедра экономической кибернетики | JJ59: =(JL59*3+JM59*4+JN59*5)/50 -> 0.66 | JL59: =COUNTIF(CC59:JG59,3) -> 4 | JM59: =COUNTIF(CC59:JG59,4) -> 4 | JN59: =COUNTIF(CC59:JG59,5) -> 1 | JO59: =COUNTIF(CC59:JG59,6) -> 6 | JP59: =SUM(JL59:JN59) -> 9 | JQ59: =SUMIF(CC59:JG59,">0",$CC$3:$JG$3) -> 2404 | JR59: =INT(JQ59/8+0.5) -> 301
A60: =A59+1 -> 55 | B60: Румянцева | C60: Анастасия | D60: Сергеевна | E60: =CONCATENATE(B60," ",LEFT(C60,1),". ",LEFT(D60,1),".") -> Румянцева А. С. | G60: Румянцевой | H60: Анастасии | I60: Сергеевне | J60: 1995-04-16 | K60: г.Кострома | L60: РФ | M60: ж | N60: МАОУ Лицей №20 г. Костромы | O60: 2013 | P60: незамужем | Q60: г.Кострома, мкр. Давыдовский-2, д.59а, кв. 92 | Y60: 13515 | Z60: Экономический | AA60: 38.03.75 | AB60: Экономика | AC60: Финансы и кредит | AD60: 5 лет | AE60: БАКАЛАВР | AF60: 2-516 | AG60: 2013-08-10 | AH60: по договору с полным возмещением затрат | AI60: 000000564 | AJ60: 2013-06-27 | AM60: 2-571 | AN60: 42248 | AO60: не выполнение учебного плана | AP60: 2-761 | AQ60: 2017-09-27 | CA60: 3 | CB60: 231z | CF60: 6 | CG60: 2017-12-07 | CI60: 4 | CJ60: 2018-04-16 | CK60: 659 | CL60: 6 | CM60: п/зач | CO60: 3 | CP60: 2018-04-19 | CQ60: 707 | CR60: 3 | CS60: 2018-04-19 | CT60: 706 | CU60: 3 | CV60: 2018-07-02 | CW60: 980 | CX60: 4 | CY60: 2017-12-06 | DA60: 6 | DB60: 2017-12-23 | DD60: 6 | DE60: 2017-12-23 | DG60: 4 | DH60: 2017-12-23 | DI60: 7909529 | DJ60: 3 | DK60: 2018-04-24 | DL60: 751 | DM60: 6 | DN60: 2017-12-23 | DP60: 6 | DQ60: 2018-04-28 | DR60: 7909531 | DS60: 4 | DT60: 2018-04-28 | DU60: 7909498 | DV60: 4 | DW60: 2018-04-28 | DX60: 7909723 | DY60: 4 | DZ60: 2018-04-28 | EA60: 7909533 | EB60: 3 | EC60: 2018-04-28 | ED60: 7909552 | EE60: 6 | EF60: 2018-04-28 | EG60: 7909872 | EH60: 6 | EI60: 2018-04-28 | EJ60: 7909873 | EK60: 6 | EL60: 2018-04-28 | EM60: 7909482 | EP60: ФГБОУ ВО Костромская ГСХА, кафедра экономической кибернетики | JJ60: =(JL60*3+JM60*4+JN60*5)/50 -> 0.78 | JL60: =COUNTIF(CC60:JG60,3) -> 5 | JM60: =COUNTIF(CC60:JG60,4) -> 6 | JN60: =COUNTIF(CC60:JG60,5) -> 0 | JO60: =COUNTIF(CC60:JG60,6) -> 9 | JP60: =SUM(JL60:JN60) -> 11 | JQ60: =SUMIF(CC60:JG60,">0",$CC$3:$JG$3) -> 3060 | JR60: =INT(JQ60/8+0.5) -> 383
A61: =A60+1 -> 56 | B61: Хохлова | C61: Анжелика | D61: Олеговна | E61: =CONCATENATE(B61," ",LEFT(C61,1),". ",LEFT(D61,1),".") -> Хохлова А. О. | G61: Хохловой | H61: Анжелике | I61: Олеговне | J61: 1995-06-09 | K61: д.Коленково Заволжского р-на Ивановской обл. | L61: РФ | M61: ж | N61: МОУ Антоновская СОШ Красносельского р-на, Костромской области пос.Гравийный Карьер | O61: 2013 | P61: незамужем | Q61: 157943 Костромская обл., Красносельский р-н, пос. Гравийныйкарьер, ул. Волжская, д.69, кв. 16 | Y61: 160641 | Z61: Экономический | AA61: 38.03.76 | AB61: Экономика | AC61: Финансы и кредит | AD61: 5 лет | AE61: БАКАЛАВР | AF61: 2-536 | AG61: 2016-08-15 | AH61: врамках контрольных цифр на основное место | AS61: 2-391 | AT61: 2018-05-18 | AU61: по семейным обстоятельствам | AV61: 2018-04-18 | AW61: 2019-04-17 | AX61: 2-703 | AY61: 2017-09-01 | CA61: 2 | CB61: АО | CC61: 4 | CD61: 2017-06-10 | CF61: 6 | CG61: 2017-06-10 | CI61: 5 | CJ61: 2017-06-10 | CL61: 6 | CM61: 2017-06-10 | CO61: 4 | CP61: 2017-06-10 | CR61: 5 | CS61: 2017-06-10 | CU61: 5 | CV61: 2017-06-10 | CX61: 4 | CY61: 2017-06-10 | DA61: 6 | DB61: 2017-12-23 | DD61: 6 | DE61: 2017-12-23 | DJ61: 4 | DK61: 2017-12-23 | DM61: 6 | DN61: 2017-12-23 | JJ61: =(JL61*3+JM61*4+JN61*5)/50 -> 0.62 | JL61: =COUNTIF(CC61:JG61,3) -> 0 | JM61: =COUNTIF(CC61:JG61,4) -> 4 | JN61: =COUNTIF(CC61:JG61,5) -> 3 | JO61: =COUNTIF(CC61:JG61,6) -> 5 | JP61: =SUM(JL61:JN61) -> 7 | JQ61: =SUMIF(CC61:JG61,">0",$CC$3:$JG$3) -> 1997 | JR61: =INT(JQ61/8+0.5) -> 250
A62: =A61+1 -> 57 | B62: Бережной | C62: Сергей | D62: Николаевич | E62: =CONCATENATE(B62," ",LEFT(C62,1),". ",LEFT(D62,1),".") -> Бережной С. Н. | G62: Бережному | H62: Сергею | I62: Николаевичу | J62: 1989-07-02 | K62: п.Михайловский Михайловского р-на Алтайского края | L62: РФ | M62: м | N62: Краевое ГОУ НПО Профессиональный лицей №12 | O62: 2008 | P62: холост | Q62: 156016г.Кострома, ул. Профсоюзная, д.18а, кв. 96 | Y62: 160627 | Z62: Экономический | AA62: 38.03.61 | AB62: Экономика | AC62: Финансы и кредит | AD62: 5 лет | AE62: БАКАЛАВР | AF62: 2-542 | AG62: 2016-08-19 | AH62: по договору с полным возмещением затрат | AI62: 000004120 | AJ62: 2016-08-11 | AX62: 2-703 | AY62: 2017-09-01 | CA62: 3 | CB62: 232z | CC62: 3 | CD62: 2018-05-08 | CE62: 783 | CF62: 6 | CG62: 2017-06-10 | CI62: 5 | CJ62: 2017-06-10 | CL62: 6 | CM62: 2017-06-10 | CO62: 4 | CP62: 2017-06-10 | CR62: 5 | CS62: 2017-06-10 | CU62: 4 | CV62: 2017-06-10 | CX62: 4 | CY62: 2017-06-10 | DA62: 6 | DB62: 2017-12-23 | DC62: Z-7849497 | DD62: 6 | DE62: 2017-12-23 | DF62: Z-7849528 | DG62: 4 | DH62: 2017-12-23 | DI62: 7849529 | DJ62: 4 | DK62: 2017-12-23 | DL62: Z-7849496 | DM62: 6 | DN62: 2017-12-23 | DO62: Z-7849722 | DS62: 4 | DT62: 2018-04-28 | DU62: 7849498 | DV62: 4 | DW62: 2018-04-28 | DX62: 7849723 | DY62: 5 | DZ62: 2018-05-18 | EA62: 7849533-1 | EB62: 3 | EC62: 2018-04-28 | ED62: 7849552 | EE62: 6 | EF62: 2018-04-28 | EG62: 7849872 | EH62: 6 | EI62: 2018-04-28 | EJ62: 7849873 | EK62: 6 | EL62: 2018-04-28 | EM62: 7849482 | EP62: ФГБОУ ВО Костромская ГСХА, кафедра экономической кибернетики | JJ62: =(JL62*3+JM62*4+JN62*5)/50 -> 0.98 | JL62: =COUNTIF(CC62:JG62,3) -> 2 | JM62: =COUNTIF(CC62:JG62,4) -> 7 | JN62: =COUNTIF(CC62:JG62,5) -> 3 | JO62: =COUNTIF(CC62:JG62,6) -> 8 | JP62: =SUM(JL62:JN62) -> 12 | JQ62: =SUMIF(CC62:JG62,">0",$CC$3:$JG$3) -> 3168 | JR62: =INT(JQ62/8+0.5) -> 396
A63: =A62+1 -> 58 | B63: Богушева | C63: Ирина | D63: Викторовна | E63: =CONCATENATE(B63," ",LEFT(C63,1),". ",LEFT(D63,1),".") -> Богушева И. В. | G63: Богушевой | H63: Ирине | I63: Викторовне | J63: 1982-10-24 | K63: г.Буй Костромской обл. | L63: РФ | M63: ж | N63: Профессиональный лицей №10 г.Костромы | O63: 2003 | P63: незамужем | Q63: 157008 Костромская обл., г.Буй, ул. Островского, д.9/3, кв. 52 | Y63: 160628 | Z63: Экономический | AA63: 38.03.62 | AB63: Экономика | AC63: Финансы и кредит | AD63: 5 лет | AE63: БАКАЛАВР | AF63: 2-542 | AG63: 2016-08-19 | AH63: по договору с полным возмещением затрат | AI63: 000004105 | AJ63: 2016-08-11 | AX63: 2-339 | AY63: 2018-05-03 | CA63: 3 | CB63: 232z | CC63: 3 | CD63: 2018-05-08 | CE63: 782 | CF63: 6 | CG63: 2017-06-10 | CI63: 5 | CJ63: 2017-06-10 | CL63: 6 | CM63: 2017-06-10 | CO63: 4 | CP63: 2018-04-02 | CQ63: 594 | CR63: 4 | CS63: 2017-06-10 | CU63: 5 | CV63: 2017-10-10 | CX63: 4 | CY63: 2018-04-02 | CZ63: 595 | DA63: 6 | DB63: 2017-12-23 | DC63: Z-7849497 | DD63: 6 | DE63: 2017-12-23 | DF63: Z-7849528 | DG63: 4 | DH63: 2017-12-23 | DI63: 7849529 | DP63: 6 | DQ63: 2018-04-28 | DR63: 7849531 | DS63: 4 | DT63: 2018-04-28 | DU63: 7849498 | EE63: 6 | EF63: 2018-04-28 | EG63: 7849872 | EH63: 6 | EI63: 2018-04-28 | EJ63: 7849873 | EP63: ФГБОУ ВО Костромская ГСХА, кафедра экономической кибернетики | JJ63: =(JL63*3+JM63*4+JN63*5)/50 -> 0.66 | JL63: =COUNTIF(CC63:JG63,3) -> 1 | JM63: =COUNTIF(CC63:JG63,4) -> 5 | JN63: =COUNTIF(CC63:JG63,5) -> 2 | JO63: =COUNTIF(CC63:JG63,6) -> 7 | JP63: =SUM(JL63:JN63) -> 8 | JQ63: =SUMIF(CC63:JG63,">0",$CC$3:$JG$3) -> 2196 | JR63: =INT(JQ63/8+0.5) -> 275
A64: =A63+1 -> 59 | B64: Будкин | C64: Станислав | D64: Павлович | E64: =CONCATENATE(B64," ",LEFT(C64,1),". ",LEFT(D64,1),".") -> Будкин С. П. | G64: Будкину | H64: Станиславу | I64: Павловичу | J64: 1993-05-03 | K64: д.Чебаново Антроповского р-на Костромской обл. | L64: РФ | M64: м | N64: МОУ Антроповскую СОШ Антроповского муниципального р-на | O64: 2011 | P64: холост | Q64: Антроповский р-н, п.Антропово, ул. Правды, д.7, кв. 1 | U64: 3413 | V64: 99327 | W64: 2013-11-07 | X64: ТерриториальнымпунктомУФМСРоссиипоКостромскойобластивп.Антропово | Y64: 180018 | Z64: Экономический | AA64: 38.03.84 | AB64: Экономика | AC64: Финансы и кредит | AD64: 5 лет | AE64: БАКАЛАВР | AF64: 2-174 | AG64: 2018-03-13 | AH64: переводизФГБОУВПО"Костромскойгосударственныйуниверситет"по договору с полным возмещением затрат | AI64: 000004739 | AJ64: 2018-03-06 | CA64: 3 | CB64: 232z | CF64: 6 | CG64: п/атт22.03.2018 | CH64: 531 | CI64: 4 | CJ64: п/атт14.03.2018 | CK64: 533 | CO64: 3 | CP64: п/атт19.03.2018 | CQ64: 534 | CU64: 3 | CV64: п/атт14.03.2018 | CW64: 532 | DA64: 6 | DB64: п/атт14.03.2018 | DC64: 535 | DS64: 4 | DT64: 2018-03-19 | DU64: 552 | EB64: 4 | EC64: 2018-06-13 | ED64: 7849552-2 | EE64: 6 | EF64: п/зач19.03.2018 | EG64: 530 | EH64: 6 | EI64: 2018-04-28 | EJ64: 7849873 | EP64: ФГБОУ ВО Костромская ГСХА, кафедра экономической кибернетики | JJ64: =(JL64*3+JM64*4+JN64*5)/50 -> 0.36 | JL64: =COUNTIF(CC64:JG64,3) -> 2 | JM64: =COUNTIF(CC64:JG64,4) -> 3 | JN64: =COUNTIF(CC64:JG64,5) -> 0 | JO64: =COUNTIF(CC64:JG64,6) -> 4 | JP64: =SUM(JL64:JN64) -> 5 | JQ64: =SUMIF(CC64:JG64,">0",$CC$3:$JG$3) -> 1440 | JR64: =INT(JQ64/8+0.5) -> 180
A65: =A64+1 -> 60 | B65: Данилова | C65: Мария | D65: Александровна | E65: =CONCATENATE(B65," ",LEFT(C65,1),". ",LEFT(D65,1),".") -> Данилова М. А. | G65: Даниловой | H65: Марии | I65: Александровне | J65: 1997-04-14 | K65: п.Караваево | L65: РФ | M65: ж | N65: МКОУ Костромского муниципального района Костромской области "Караваевская средняя общеобразовательная школа" | O65: 2014 | P65: незамужем | Q65: г.Кострома, ул. Димитрова, д.31а, кв. 52 | Y65: 170823 | Z65: Экономический | AA65: 38.03.68 | AB65: Экономика | AC65: Финансы и кредит | AD65: 5 лет | AE65: БАКАЛАВР | AF65: 2-507 | AG65: 2014-07-31 | AH65: врамках контрольных цифр на основное место | AS65: 2-712 | AT65: 2016-11-09 | AU65: по семейным обстоятельствам | AV65: 2016-11-01 | AW65: 2017-10-31 | AX65: 2-571 | AY65: 2015-09-01 | AZ65: 2-561 | BA65: 2016-11-01 | CA65: 3 | CB65: 232z | CC65: 5 | CD65: 2017-11-13 | CI65: 5 | CJ65: п/зач14.10.2017 | CL65: 6 | CM65: 2017-11-07 | CO65: 3 | CP65: п/атт21.10.2017 | CU65: 5 | CV65: п/атт12.10.2017 | DA65: 6 | DB65: п/зач1.10.2017 | DD65: 6 | DE65: 2017-12-23 | DF65: Z-7849528 | DG65: 4 | DH65: 2017-12-23 | DI65: 7849529 | DJ65: 4 | DK65: 2017-12-23 | DL65: Z-7849496 | DM65: 6 | DN65: 2017-12-23 | DO65: Z-7849722 | DP65: 6 | DQ65: 2018-04-28 | DR65: 7849531 | DS65: 5 | DT65: п/зач11.10.2017 | DV65: 4 | DW65: 2018-04-28 | DX65: 7849723 | EB65: 4 | EC65: 2018-04-28 | ED65: 7849552 | EE65: 6 | EF65: п/зач20.11.2017 | EH65: 6 | EI65: 2018-04-28 | EJ65: 7849873 | EK65: 6 | EL65: 2018-04-28 | EM65: 7849482 | EP65: ФГБОУ ВО Костромская ГСХА, кафедра экономической кибернетики | JJ65: =(JL65*3+JM65*4+JN65*5)/50 -> 0.78 | JL65: =COUNTIF(CC65:JG65,3) -> 1 | JM65: =COUNTIF(CC65:JG65,4) -> 4 | JN65: =COUNTIF(CC65:JG65,5) -> 4 | JO65: =COUNTIF(CC65:JG65,6) -> 8 | JP65: =SUM(JL65:JN65) -> 9 | JQ65: =SUMIF(CC65:JG65,">0",$CC$3:$JG$3) -> 2520 | JR65: =INT(JQ65/8+0.5) -> 315
A66: =A65+1 -> 61 | B66: Агамырадов | C66: Бабамырат | E66: =CONCATENATE(B66," ",LEFT(C66,1),". ",LEFT(D66,1),".") -> Агамырадов Б. . | G66: Агамырадову | H66: Бабамыраду | J66: 1995-02-01 | K66: р.Туркменистан | L66: р.Туркменистан | M66: м | N66: СШ №9 п.Гарабекевуль, Гарабевульского р-на Лебапскойобл. | O66: 2012 | P66: женат | Q66: р.Туркменистан, г.Туркменабат, 3-й квартал, д.7 | Y66: 180030 | Z66: Экономический | AA66: 38.03.84 | AB66: Экономика | AC66: Финансы и кредит | AD66: 5 лет | AE66: БАКАЛАВР | AF66: 2-675 | AG66: 2017-08-01 | AH66: по договору с полным возмещением затрат | AI66: 000004735 | AJ66: 2018-02-26 | CA66: 2 | CB66: 221z | CI66: 3 | CJ66: 2018-06-09 | CK66: 7879530 | CU66: 3 | CV66: п/атт06.04.2018 | DA66: 6 | DB66: п/атт18.04.2018 | JJ66: =(JL66*3+JM66*4+JN66*5)/50 -> 0.12 | JL66: =COUNTIF(CC66:JG66,3) -> 2 | JM66: =COUNTIF(CC66:JG66,4) -> 0 | JN66: =COUNTIF(CC66:JG66,5) -> 0 | JO66: =COUNTIF(CC66:JG66,6) -> 1 | JP66: =SUM(JL66:JN66) -> 2 | JQ66: =SUMIF(CC66:JG66,">0",$CC$3:$JG$3) -> 565 | JR66: =INT(JQ66/8+0.5) -> 71
A67: =отчисление!A19+1 -> 63 | B67: Алиева | C67: Сюзанна | D67: Джаванширкызы | E67: =CONCATENATE(B67," ",LEFT(C67,1),". ",LEFT(D67,1),".") -> Алиева С. Д. | G67: Алиевой | H67: Сюзанне | I67: Джаванширкызы | J67: 1997-02-17 | K67: п.Дымница Островского р-на Костромкой обл. | L67: РФ | M67: ж | N67: ОГБ ПОУ Костромской торгово-экономический колледж г.Кострома | O67: 2017 | P67: незамужем | Q67: г. Кострома, мкр. Юбилейный, д.18, кв. 82 | Y67: 170752 | Z67: Экономический | AA67: 38.03.78 | AB67: Экономика | AC67: Финансы и кредит | AD67: 4 года | AE67: БАКАЛАВР | AF67: 2-687 | AG67: 2017-08-19 | AH67: по договору с полным возмещением затрат | AI67: 000004479 | AJ67: 2017-08-11 | CA67: 2 | CB67: 222z | CC67: 4 | CD67: 2018-06-09 | CE67: 78710124 | CF67: 6 | CG67: 2018-06-09 | CH67: 7879710 | CI67: 5 | CJ67: п/атт.14.10.2017 | CL67: 6 | CM67: 2018-06-09 | CN67: 7879527 | CO67: 3 | CP67: 2018-06-09 | CQ67: 7879494 | CR67: 4 | CS67: 2018-06-09 | CT67: 7879495 | CU67: 4 | CV67: 2018-06-09 | CW67: 7879551 | CX67: 4 | CY67: 2018-06-09 | CZ67: 7879724 | DP67: 6 | DQ67: п/атт.31.10.2017 | EE67: 6 | EF67: п/атт.20.10.2017 | EN67: 5 | EO67: п/атт.24.10.2017 | JJ67: =(JL67*3+JM67*4+JN67*5)/50 -> 0.58 | JL67: =COUNTIF(CC67:JG67,3) -> 1 | JM67: =COUNTIF(CC67:JG67,4) -> 4 | JN67: =COUNTIF(CC67:JG67,5) -> 2 | JO67: =COUNTIF(CC67:JG67,6) -> 4 | JP67: =SUM(JL67:JN67) -> 7 | JQ67: =SUMIF(CC67:JG67,">0",$CC$3:$JG$3) -> 1728 | JR67: =INT(JQ67/8+0.5) -> 216
A68: =A67+1 -> 64 | B68: Атакулиев | C68: Какагелди | E68: =CONCATENATE(B68," ",LEFT(C68,1),". ",LEFT(D68,1),".") -> Атакулиев К. . | G68: Атакулиеву | H68: Какагелди | J68: 1995-11-06 | K68: Республика Туркменистан | L68: Туркменистан | M68: м | N68: Средняя школа №1 Сарахского района Ахалской обл. | O68: 2012 | P68: холост | Q68: РеспубликаТуркменистан | Y68: 180003 | Z68: Экономический | AA68: 38.03.84 | AB68: Экономика | AC68: Финансы и кредит | AD68: 5 лет | AE68: БАКАЛАВР | AF68: 2-22 | AG68: 2018-01-17 | AH68: по договору с полным возмещением затрат | AI68: 113 | AJ68: 2008-08-08 | CA68: 2 | CB68: 221z | DA68: 6 | DB68: п/зач | HT68: 3 | HU68: п/зач | JJ68: =(JL68*3+JM68*4+JN68*5)/50 -> 0.06 | JL68: =COUNTIF(CC68:JG68,3) -> 1 | JM68: =COUNTIF(CC68:JG68,4) -> 0 | JN68: =COUNTIF(CC68:JG68,5) -> 0 | JO68: =COUNTIF(CC68:JG68,6) -> 1 | JP68: =SUM(JL68:JN68) -> 1 | JQ68: =SUMIF(CC68:JG68,">0",$CC$3:$JG$3) -> 241 | JR68: =INT(JQ68/8+0.5) -> 30
A69: =A68+1 -> 65 | B69: Белова | C69: Юлия | D69: Олеговна | E69: =CONCATENATE(B69," ",LEFT(C69,1),". ",LEFT(D69,1),".") -> Белова Ю. О. | G69: Беловой | H69: Юлии | I69: Олеговне | J69: 1989-12-04 | K69: г.Душамбе Таджикской ССР | L69: РФ | M69: ж | N69: ФГОУ СПО Костромской торгово-экономический колледж | O69: 2008 | P69: незамужем | Q69: Костромская обл., Костромской р-н, д.Середняя,ул. Кузьмина, д.10, кв. 2 | Y69: 170754 | Z69: Экономический | AA69: 38.03.79 | AB69: Экономика | AC69: Финансы и кредит | AD69: 4 года | AE69: БАКАЛАВР | AF69: 2-687 | AG69: 2017-08-19 | AH69: по договору с полным возмещением затрат | AI69: 000004486 | AJ69: 2017-08-11 | CA69: 2 | CB69: 222z | CC69: 4 | CD69: 2018-06-09 | CE69: 78710124 | CF69: 6 | CG69: 2018-06-09 | CH69: 7879710 | CI69: 4 | CJ69: 2018-06-09 | CK69: 7879530 | CL69: 6 | CM69: 2018-06-09 | CN69: 7879527 | CO69: 3 | CP69: 2018-06-09 | CQ69: 7879494 | CR69: 3 | CS69: 2018-06-09 | CT69: 7879495 | CU69: 5 | CV69: 2018-06-09 | CW69: 7879551 | CX69: 4 | CY69: 2018-06-09 | CZ69: 7879724 | DA69: 6 | DB69: п/атт.11.10.2017 | DD69: 6 | DE69: п/атт.28.10.2017 | DP69: 6 | DQ69: п/атт.31.10.2017 | EE69: 6 | EF69: п/атт.20.10.2017 | JJ69: =(JL69*3+JM69*4+JN69*5)/50 -> 0.46 | JL69: =COUNTIF(CC69:JG69,3) -> 2 | JM69: =COUNTIF(CC69:JG69,4) -> 3 | JN69: =COUNTIF(CC69:JG69,5) -> 1 | JO69: =COUNTIF(CC69:JG69,6) -> 6 | JP69: =SUM(JL69:JN69) -> 6 | JQ69: =SUMIF(CC69:JG69,">0",$CC$3:$JG$3) -> 1897 | JR69: =INT(JQ69/8+0.5) -> 237
A70: =A69+1 -> 66 | B70: Белова | C70: Юлия | D70: Сергеевна | E70: =CONCATENATE(B70," ",LEFT(C70,1),". ",LEFT(D70,1),".") -> Белова Ю. С. | G70: Беловой | H70: Юлии | I70: Сергеевне | J70: 1997-02-25 | K70: Верхнеберезовец Солигаличского р-на Костромской обл. | L70: РФ | M70: ж | N70: ОГБ ПОУ Костромской торгово-экономический колледж г.Кострома | O70: 2008 | P70: замужем | Q70: Костромская обл., г.Солигалич, ул. Комсомольская, д.37,кв1 | Y70: 170755 | Z70: Экономический | AA70: 38.03.80 | AB70: Экономика | AC70: Финансы и кредит | AD70: 4 года | AE70: БАКАЛАВР | AF70: 2-701 | AG70: 2017-08-31 | AH70: по договору с полным возмещением затрат | AI70: 000004612 | AJ70: 2017-08-29 | CA70: 2 | CB70: 222z | CC70: 5 | CD70: 2018-06-09 | CE70: 78710124 | CF70: 6 | CG70: 2018-06-09 | CH70: 7879710 | CI70: 4 | CJ70: п/атт.14.10.2017 | CL70: 6 | CM70: 2018-06-09 | CN70: 7879527 | CO70: 3 | CP70: 2018-06-09 | CQ70: 7879494 | CR70: 4 | CS70: 2018-06-09 | CT70: 7879495 | CU70: 5 | CV70: 2018-06-09 | CW70: 7879551 | CX70: 4 | CY70: 2018-06-09 | CZ70: 7879724 | DP70: 6 | DQ70: п/атт.31.10.2017 | EE70: 6 | EF70: п/атт.20.10.2017 | EN70: 5 | EO70: п/атт.24.10.2017 | GA70: 5 | GB70: п/атт.25.10.2017 | HQ70: 5 | HR70: п/атт.26.10.2017 | JJ70: =(JL70*3+JM70*4+JN70*5)/50 -> 0.8 | JL70: =COUNTIF(CC70:JG70,3) -> 1 | JM70: =COUNTIF(CC70:JG70,4) -> 3 | JN70: =COUNTIF(CC70:JG70,5) -> 5 | JO70: =COUNTIF(CC70:JG70,6) -> 4 | JP70: =SUM(JL70:JN70) -> 9 | JQ70: =SUMIF(CC70:JG70,">0",$CC$3:$JG$3) -> 1728 | JR70: =INT(JQ70/8+0.5) -> 216
A71: =A70+1 -> 67 | B71: Вилкова | C71: Алина | D71: Дмитриевна | E71: =CONCATENATE(B71," ",LEFT(C71,1),". ",LEFT(D71,1),".") -> Вилкова А. Д. | G71: Вилковой | H71: Алине | I71: Дмитриевне | J71: 1998-11-18 | K71: г.Кострома | L71: РФ | M71: ж | N71: ОГБ ПОУ Костромской торгово-экономический колледж г.Кострома | O71: 2017 | P71: незамужем | Q71: г.Кострома, ул. Индустриальная, д.17, кв. 37 | Y71: 170756 | Z71: Экономический | AA71: 38.03.82 | AB71: Экономика | AC71: Финансы и кредит | AD71: 4 года | AE71: БАКАЛАВР | AF71: 2-687 | AG71: 2017-08-19 | AH71: по договору с полным возмещением затрат | AI71: 000004492 | AJ71: 2017-08-11 | CA71: 2 | CB71: 222z | CC71: 4 | CD71: 2018-06-09 | CE71: 78710124 | CF71: 6 | CG71: 2018-06-09 | CH71: 7879710 | CI71: 3 | CJ71: п/атт.14.10.2017 | CL71: 6 | CM71: 2018-06-09 | CN71: 7879527 | CO71: 3 | CP71: 2018-06-09 | CQ71: 7879494 | CR71: 4 | CS71: 2018-06-09 | CT71: 7879495 | CU71: 5 | CV71: 2018-06-09 | CW71: 7879551 | CX71: 4 | CY71: 2018-06-09 | CZ71: 7879724 | DP71: 6 | DQ71: п/атт.31.10.2017 | EE71: 6 | EF71: п/атт.20.10.2017 | EN71: 5 | EO71: п/атт.24.10.2017 | GA71: 5 | GB71: п/атт.25.10.2017 | HQ71: 5 | HR71: п/атт.26.10.2017 | JJ71: =(JL71*3+JM71*4+JN71*5)/50 -> 0.76 | JL71: =COUNTIF(CC71:JG71,3) -> 2 | JM71: =COUNTIF(CC71:JG71,4) -> 3 | JN71: =COUNTIF(CC71:JG71,5) -> 4 | JO71: =COUNTIF(CC71:JG71,6) -> 4 | JP71: =SUM(JL71:JN71) -> 9 | JQ71: =SUMIF(CC71:JG71,">0",$CC$3:$JG$3) -> 1728 | JR71: =INT(JQ71/8+0.5) -> 216
A72: =A71+1 -> 68 | B72: Воронова | C72: Наталья | D72: Сергеевна | E72: =CONCATENATE(B72," ",LEFT(C72,1),". ",LEFT(D72,1),".") -> Воронова Н. С. | G72: Вороновой | H72: Наталье | I72: Сергеевне | J72: 1998-12-10 | K72: с.Хомутово Островского р-на Костромской обл. | L72: РФ | M72: ж | N72: ОГБ ПОУ Костромской торгово-экономический колледж г.Кострома | O72: 2017 | P72: незамужем | Q72: 157904 Костромская обл., Островский р-н, с.Хомутово,ул. Новая, д.8, кв. 2 | Y72: 170757 | Z72: Экономический | AA72: 38.03.83 | AB72: Экономика | AC72: Финансы и кредит | AD72: 4 года | AE72: БАКАЛАВР | AF72: 2-687 | AG72: 2017-08-19 | AH72: по договору с полным возмещением затрат | AI72: 000004476 | AJ72: 2017-08-10 | CA72: 2 | CB72: 222z | CC72: 4 | CD72: 2018-06-09 | CE72: 78710124 | CF72: 6 | CG72: 2018-06-09 | CH72: 7879710 | CI72: 4 | CJ72: п/атт.14.10.2017 | CL72: 6 | CM72: 2018-06-09 | CN72: 7879527 | CO72: 3 | CP72: 2018-06-15 | CQ72: 7879494-2 | CR72: 4 | CS72: 2018-06-09 | CT72: 7879495 | CU72: 4 | CV72: 2018-06-09 | CW72: 7879551 | CX72: 4 | CY72: 2018-06-09 | CZ72: 7879724 | DP72: 6 | DQ72: п/атт.31.10.2017 | EE72: 6 | EF72: п/атт.20.10.2017 | EN72: 5 | EO72: п/атт.24.10.2017 | GA72: 4 | GB72: п/атт.25.10.2017 | HQ72: 4 | HR72: п/атт.26.10.2017 | JJ72: =(JL72*3+JM72*4+JN72*5)/50 -> 0.72 | JL72: =COUNTIF(CC72:JG72,3) -> 1 | JM72: =COUNTIF(CC72:JG72,4) -> 7 | JN72: =COUNTIF(CC72:JG72,5) -> 1 | JO72: =COUNTIF(CC72:JG72,6) -> 4 | JP72: =SUM(JL72:JN72) -> 9 | JQ72: =SUMIF(CC72:JG72,">0",$CC$3:$JG$3) -> 1728 | JR72: =INT(JQ72/8+0.5) -> 216
A73: =A72+1 -> 69 | B73: Дагаева | C73: Ксения | D73: Николаевна | E73: =CONCATENATE(B73," ",LEFT(C73,1),". ",LEFT(D73,1),".") -> Дагаева К. Н. | G73: Дагаевой | H73: Ксении | I73: Николаевне | J73: 1992-07-24 | K73: п.Караваево Костромского р-на Костромской обл. | L73: РФ | M73: ж | N73: ФГБОУ ВО Костромская государственная сельскохозяйственная академия пос.Караваево | O73: 2016 | P73: замужем | Q73: Костромская обл., Костромской р-н, п.Караваево,ул. Механизаторов, д.7 | Y73: 170759 | Z73: Экономический | AA73: 38.03.84 | AB73: Экономика | AC73: Финансы и кредит | AD73: 4 года | AE73: БАКАЛАВР | AF73: 2-701 | AG73: 2017-08-31 | AH73: по договору с полным возмещением затрат | AI73: 000004606 | AJ73: 2017-08-29 | CA73: 2 | CB73: 222z | CC73: 4 | CD73: 2018-06-09 | CE73: 78710124 | CF73: 6 | CG73: 2018-06-09 | CH73: 7879710 | CI73: 3 | CJ73: п/атт.14.10.2017 | CL73: 6 | CM73: п/атт.27.10.2017 | CO73: 3 | CP73: 2018-06-15 | CQ73: 7879494-1 | CR73: 3 | CS73: 2018-06-09 | CT73: 7879495 | CU73: 4 | CV73: 2018-06-09 | CW73: 7879551 | CX73: 4 | CY73: 2018-06-09 | CZ73: 7879724 | DA73: 6 | DB73: п/зач.11.10.2017 | DD73: 6 | DE73: п/зач.28.10.2017 | DG73: 4 | DH73: п/атт.05.11.2017 | DP73: 6 | DQ73: п/зач.31.10.2017 | DS73: 3 | DT73: п/зач.11.10.2017 | EE73: 6 | EF73: п/атт.20.10.2017 | EH73: 6 | EI73: п/атт.20.10.2017 | JJ73: =(JL73*3+JM73*4+JN73*5)/50 -> 0.56 | JL73: =COUNTIF(CC73:JG73,3) -> 4 | JM73: =COUNTIF(CC73:JG73,4) -> 4 | JN73: =COUNTIF(CC73:JG73,5) -> 0 | JO73: =COUNTIF(CC73:JG73,6) -> 7 | JP73: =SUM(JL73:JN73) -> 8 | JQ73: =SUMIF(CC73:JG73,">0",$CC$3:$JG$3) -> 2196 | JR73: =INT(JQ73/8+0.5) -> 275
A74: =A73+1 -> 70 | B74: Зеленская | C74: Мелана | D74: Андреевна | E74: =CONCATENATE(B74," ",LEFT(C74,1),". ",LEFT(D74,1),".") -> Зеленская М. А. | G74: Зеленской | H74: Мелане | I74: Андреевне | J74: 1997-11-18 | K74: г.Кострома | L74: РФ | M74: ж | N74: ОГБ ПОУ Костромской торгово-экономический колледж г.Кострома | O74: 2016 | P74: незамужем | Q74: 156000 г.Кострома, мкр. Давыдовский-3, д.30, кв. 69 | Y74: 170760 | Z74: Экономический | AA74: 38.03.84 | AB74: Экономика | AC74: Финансы и кредит | AD74: 4 года | AE74: БАКАЛАВР | AF74: 2-687 | AG74: 2017-08-19 | AH74: по договору с полным возмещением затрат | AI74: 000004485 | AJ74: 2017-08-11 | CA74: 2 | CB74: 222z | CC74: 3 | CD74: 2018-06-09 | CE74: 78710124 | CF74: 6 | CG74: 2018-06-09 | CH74: 7879710 | CI74: 3 | CJ74: п/атт.14.10.2017 | CL74: 6 | CM74: 2018-06-09 | CN74: 7879527 | CO74: 3 | CP74: 2018-06-09 | CQ74: 7879494 | CU74: 5 | CV74: 2018-06-09 | CW74: 7879551 | CX74: 3 | CY74: 2018-06-09 | CZ74: 7879724 | DP74: 6 | DQ74: п/атт.31.10.2017 | EE74: 6 | EF74: п/атт.20.10.2017 | EN74: 3 | EO74: п/атт.24.10.2017 | GA74: 4 | GB74: п/атт.25.10.2017 | HQ74: 4 | HR74: п/атт.26.10.2017 | JJ74: =(JL74*3+JM74*4+JN74*5)/50 -> 0.56 | JL74: =COUNTIF(CC74:JG74,3) -> 5 | JM74: =COUNTIF(CC74:JG74,4) -> 2 | JN74: =COUNTIF(CC74:JG74,5) -> 1 | JO74: =COUNTIF(CC74:JG74,6) -> 4 | JP74: =SUM(JL74:JN74) -> 8 | JQ74: =SUMIF(CC74:JG74,">0",$CC$3:$JG$3) -> 1476 | JR74: =INT(JQ74/8+0.5) -> 185
A75: =A74+1 -> 71 | B75: Зеленская | C75: Эмилия | D75: Андреевна | E75: =CONCATENATE(B75," ",LEFT(C75,1),". ",LEFT(D75,1),".") -> Зеленская Э. А. | G75: Зеленской | H75: Эмилии | I75: Андреевне | J75: 1996-10-25 | K75: п. Красное-на-Волге Красносельского р-на Костромской обл. | L75: РФ | M75: ж | N75: НОУ СПО Костромской технологический техникум ОАО Костромакоопцентр г.Кострома | O75: 2015 | P75: незамужем | Q75: г.Кострома, мкр.Давыдовский-3, д.30, кв. 69 | Y75: 170761 | Z75: Экономический | AA75: 38.03.84 | AB75: Экономика | AC75: Финансы и кредит | AD75: 4 года | AE75: БАКАЛАВР | AF75: 2-687 | AG75: 2017-08-19 | AH75: по договору с полным возмещением затрат | AI75: 000004525 | AJ75: 2017-08-15 | CA75: 2 | CB75: 222z | CF75: 6 | CG75: 2018-06-09 | CH75: 7879710 | CI75: 4 | CJ75: п/атт.14.10.2017 | CL75: 6 | CM75: 2018-06-09 | CN75: 7879527 | CO75: 3 | CP75: 2018-06-09 | CQ75: 7879494 | CU75: 3 | CV75: 2018-06-09 | CW75: 7879551 | CX75: 3 | CY75: 2018-06-19 | CZ75: 7879724 | DD75: 6 | DE75: п/атт.28.10.2017 | DP75: 6 | DQ75: п/атт.31.10.2017 | EN75: 3 | EO75: п/атт.24.10.2017 | GA75: 3 | GB75: п/атт.25.10.2017 | HQ75: 3 | HR75: п/атт.26.10.2017 | JJ75: =(JL75*3+JM75*4+JN75*5)/50 -> 0.44 | JL75: =COUNTIF(CC75:JG75,3) -> 6 | JM75: =COUNTIF(CC75:JG75,4) -> 1 | JN75: =COUNTIF(CC75:JG75,5) -> 0 | JO75: =COUNTIF(CC75:JG75,6) -> 4 | JP75: =SUM(JL75:JN75) -> 7 | JQ75: =SUMIF(CC75:JG75,">0",$CC$3:$JG$3) -> 1260 | JR75: =INT(JQ75/8+0.5) -> 158
A76: =отчисление!A20+1 -> 73 | B76: Красавина | C76: Екатерина | D76: Сергеевна | E76: =CONCATENATE(B76," ",LEFT(C76,1),". ",LEFT(D76,1),".") -> Красавина Е. С. | G76: Красавиной | H76: Екатерине | I76: Сергеевне | J76: 1998-06-30 | K76: г.Кострома | L76: РФ | M76: ж | N76: ОГБ ПОУ Костромской торгово-экономический колледж г.Кострома | O76: 2017 | P76: незамужем | Q76: г.Кострома, ул. Профсоюзная, д.24, кв. 8 | Y76: 170763 | Z76: Экономический | AA76: 38.03.84 | AB76: Экономика | AC76: Финансы и кредит | AD76: 4 года | AE76: БАКАЛАВР | AF76: 2-687 | AG76: 2017-08-19 | AH76: по договору с полным возмещением затрат | AI76: 000004436 | AJ76: 2017-08-07 | CA76: 2 | CB76: 222z | CC76: 4 | CD76: 2018-06-09 | CE76: 78710124 | CF76: 6 | CG76: 2018-06-09 | CH76: 7879710 | CI76: 3 | CJ76: п/атт.14.10.2017 | CL76: 6 | CM76: 2018-06-09 | CN76: 7879527 | CO76: 3 | CP76: 2018-06-09 | CQ76: 7879494 | CR76: 3 | CS76: 2018-06-09 | CT76: 7879495 | CU76: 4 | CV76: 2018-06-09 | CW76: 7879551 | CX76: 4 | CY76: 2018-06-09 | CZ76: 7879724 | DP76: 6 | DQ76: п/атт.31.10.2017 | EE76: 6 | EF76: п/атт.20.10.2017 | EN76: 5 | EO76: п/атт.24.10.2017 | GA76: 4 | GB76: п/атт.25.10.2017 | HQ76: 4 | HR76: п/атт.26.10.2017 | JJ76: =(JL76*3+JM76*4+JN76*5)/50 -> 0.68 | JL76: =COUNTIF(CC76:JG76,3) -> 3 | JM76: =COUNTIF(CC76:JG76,4) -> 5 | JN76: =COUNTIF(CC76:JG76,5) -> 1 | JO76: =COUNTIF(CC76:JG76,6) -> 4 | JP76: =SUM(JL76:JN76) -> 9 | JQ76: =SUMIF(CC76:JG76,">0",$CC$3:$JG$3) -> 1728 | JR76: =INT(JQ76/8+0.5) -> 216
A77: =A76+1 -> 74 | B77: Кривошеева | C77: Екатерина | D77: Леонидовна | E77: =CONCATENATE(B77," ",LEFT(C77,1),". ",LEFT(D77,1),".") -> Кривошеева Е. Л. | G77: Кривошеевой | H77: Екатерине | I77: Леонидовне | J77: 1998-08-18 | K77: г.Кострома | L77: РФ | M77: ж | N77: ОГБ ПОУ Костромской торгово-экономический колледж г.Кострома | O77: 2017 | P77: незамужем | Q77: г.Кострома, мкр. Давыдовский-3, д.34, кв. 104 | Y77: 170764 | Z77: Экономический | AA77: 38.03.84 | AB77: Экономика | AC77: Финансы и кредит | AD77: 4 года | AE77: БАКАЛАВР | AF77: 2-687 | AG77: 2017-08-19 | AH77: по договору с полным возмещением затрат | AI77: 000004508 | AJ77: 2017-08-14 | CA77: 2 | CB77: 222z | CC77: 3 | CD77: 2018-06-09 | CE77: 78710124 | CF77: 6 | CG77: 2018-06-09 | CH77: 7879710 | CI77: 3 | CJ77: п/атт.14.10.2017 | CL77: 6 | CM77: 2018-06-09 | CN77: 7879527 | CO77: 3 | CP77: 2018-06-09 | CQ77: 7879494 | CR77: 4 | CS77: 2018-06-09 | CT77: 7879495 | CU77: 5 | CV77: 2018-06-09 | CW77: 7879551 | CX77: 4 | CY77: 2018-06-09 | CZ77: 7879724 | DP77: 6 | DQ77: п/атт.31.10.2017 | EE77: 6 | EF77: п/атт.20.10.2017 | EN77: 4 | EO77: п/атт.24.10.2017 | GA77: 5 | GB77: п/атт.25.10.2017 | HQ77: 5 | HR77: п/атт.26.10.2017 | JJ77: =(JL77*3+JM77*4+JN77*5)/50 -> 0.72 | JL77: =COUNTIF(CC77:JG77,3) -> 3 | JM77: =COUNTIF(CC77:JG77,4) -> 3 | JN77: =COUNTIF(CC77:JG77,5) -> 3 | JO77: =COUNTIF(CC77:JG77,6) -> 4 | JP77: =SUM(JL77:JN77) -> 9 | JQ77: =SUMIF(CC77:JG77,">0",$CC$3:$JG$3) -> 1728 | JR77: =INT(JQ77/8+0.5) -> 216
A78: =A77+1 -> 75 | B78: Кузина | C78: Анна | D78: Алексеевна | E78: =CONCATENATE(B78," ",LEFT(C78,1),". ",LEFT(D78,1),".") -> Кузина А. А. | G78: Кузиной | H78: Анне | I78: Алексеевне | J78: 1998-05-26 | K78: д.Ведрово Кадыйского р-на Костромской обл. | L78: РФ | M78: ж | N78: ОГБПОУКостромскойторгово-экономическийколледжг.Кострома | O78: 2017 | P78: незамужем | Q78: 157998 Костромская обл., Кадыйский р-н, д.Ведрово, д.10 | Y78: 170765 | Z78: Экономический | AA78: 38.03.84 | AB78: Экономика | AC78: Финансы и кредит | AD78: 4 года | AE78: БАКАЛАВР | AF78: 2-687 | AG78: 2017-08-19 | AH78: по договору с полным возмещением затрат | AI78: 000004483 | AJ78: 2017-08-11 | CA78: 2 | CB78: 222z | CC78: 4 | CD78: 2018-06-09 | CE78: 78710124 | CF78: 6 | CG78: 2018-06-09 | CH78: 7879710 | CI78: 4 | CJ78: п/атт.14.10.2017 | CL78: 6 | CM78: 2018-06-09 | CN78: 7879527 | CO78: 3 | CP78: 2018-06-09 | CQ78: 7879494 | CR78: 3 | CS78: 2018-06-09 | CT78: 7879495 | CU78: 5 | CV78: 2018-06-09 | CW78: 7879551 | CX78: 4 | CY78: 2018-06-09 | CZ78: 7879724 | DP78: 6 | DQ78: п/атт.31.10.2017 | EE78: 6 | EF78: п/атт.20.10.2017 | EN78: 5 | EO78: п/атт.24.10.2017 | GA78: 3 | GB78: п/атт.25.10.2017 | HQ78: 4 | HR78: п/атт.26.10.2017 | JJ78: =(JL78*3+JM78*4+JN78*5)/50 -> 0.7 | JL78: =COUNTIF(CC78:JG78,3) -> 3 | JM78: =COUNTIF(CC78:JG78,4) -> 4 | JN78: =COUNTIF(CC78:JG78,5) -> 2 | JO78: =COUNTIF(CC78:JG78,6) -> 4 | JP78: =SUM(JL78:JN78) -> 9 | JQ78: =SUMIF(CC78:JG78,">0",$CC$3:$JG$3) -> 1728 | JR78: =INT(JQ78/8+0.5) -> 216
A79: =A78+1 -> 76 | B79: Матвеева | C79: Нина | D79: Владиславовна | E79: =CONCATENATE(B79," ",LEFT(C79,1),". ",LEFT(D79,1),".") -> Матвеева Н. В. | G79: Матвеевой | H79: Нине | I79: Владиславовне | J79: 1997-12-08 | K79: г.Кострома | L79: РФ | M79: ж | N79: ОГБ ПОУ Костромской торгово-экономический колледж г.Кострома | O79: 2017 | P79: незамужем | Q79: г.Кострома, мкр. Якиманиха, д.11, кв. 52 | Y79: 170766 | Z79: Экономический | AA79: 38.03.84 | AB79: Экономика | AC79: Финансы и кредит | AD79: 4 года | AE79: БАКАЛАВР | AF79: 2-687 | AG79: 2017-08-19 | AH79: по договору с полным возмещением затрат | AI79: 000004472 | AJ79: 2017-08-10 | CA79: 2 | CB79: 222z | CC79: 4 | CD79: 2018-06-09 | CE79: 78710124 | CF79: 6 | CG79: 2018-06-09 | CH79: 7879710 | CI79: 4 | CJ79: п/атт.14.10.2017 | CL79: 6 | CM79: 2018-06-09 | CN79: 7879527 | CO79: 3 | CP79: 2018-06-09 | CQ79: 7879494 | CR79: 3 | CS79: 2018-06-09 | CT79: 7879495 | CU79: 5 | CV79: 2018-06-09 | CW79: 7879551 | CX79: 4 | CY79: 2018-06-09 | CZ79: 7879724 | DP79: 6 | DQ79: п/атт.31.10.2017 | EE79: 6 | EF79: п/атт.20.10.2017 | EN79: 5 | EO79: п/атт.24.10.2017 | GA79: 5 | GB79: п/атт.25.10.2017 | HQ79: 5 | HR79: п/атт.26.10.2017 | JJ79: =(JL79*3+JM79*4+JN79*5)/50 -> 0.76 | JL79: =COUNTIF(CC79:JG79,3) -> 2 | JM79: =COUNTIF(CC79:JG79,4) -> 3 | JN79: =COUNTIF(CC79:JG79,5) -> 4 | JO79: =COUNTIF(CC79:JG79,6) -> 4 | JP79: =SUM(JL79:JN79) -> 9 | JQ79: =SUMIF(CC79:JG79,">0",$CC$3:$JG$3) -> 1728 | JR79: =INT(JQ79/8+0.5) -> 216
A80: =A79+1 -> 77 | B80: Митина | C80: Виктория | D80: Алексеевна | E80: =CONCATENATE(B80," ",LEFT(C80,1),". ",LEFT(D80,1),".") -> Митина В. А. | G80: Митиной | H80: Виктории | I80: Алексеевне | J80: 1995-01-29 | K80: г.Ярославль | L80: РФ | M80: ж | N80: ФГБОУ ВПО Ярославский государственный университет им. П.Г.Демидова г.Ярославль | O80: 2015 | P80: замужем | Q80: г.Кострома, ул. Соловьиная, д.4, кв. 34 | Y80: 170767 | Z80: Экономический | AA80: 38.03.84 | AB80: Экономика | AC80: Финансы и кредит | AD80: 4 года | AE80: БАКАЛАВР | AF80: 2-687 | AG80: 2017-08-19 | AH80: по договору с полным возмещением затрат | AI80: 000004550 | AJ80: 2017-08-16 | CA80: 2 | CB80: 222z | CC80: 3 | CD80: 2018-06-09 | CE80: 78710124 | CF80: 6 | CG80: 2018-06-09 | CH80: 7879710 | CI80: 5 | CJ80: п/атт.14.10.2017 | CR80: 3 | CS80: 2018-06-09 | CT80: 7879495 | CU80: 4 | CV80: 2018-06-09 | CW80: 7879551 | DA80: 6 | DB80: п/атт.11.10.2017 | DP80: 6 | DQ80: п/атт.31.10.2017 | DS80: 3 | DT80: п/атт.11.10.2017 | EE80: 6 | EF80: п/атт.20.10.2017 | EN80: 3 | EO80: п/атт.24.10.2017 | GA80: 3 | GB80: п/атт.25.10.2017 | HQ80: 3 | HR80: п/атт.26.10.2017 | HW80: 6 | HX80: п/атт.06.10.2017 | JJ80: =(JL80*3+JM80*4+JN80*5)/50 -> 0.54 | JL80: =COUNTIF(CC80:JG80,3) -> 6 | JM80: =COUNTIF(CC80:JG80,4) -> 1 | JN80: =COUNTIF(CC80:JG80,5) -> 1 | JO80: =COUNTIF(CC80:JG80,6) -> 5 | JP80: =SUM(JL80:JN80) -> 8 | JQ80: =SUMIF(CC80:JG80,">0",$CC$3:$JG$3) -> 1512 | JR80: =INT(JQ80/8+0.5) -> 189
A81: =A80+1 -> 78 | B81: Нагиев | C81: Самид | D81: Зейналоглы | E81: =CONCATENATE(B81," ",LEFT(C81,1),". ",LEFT(D81,1),".") -> Нагиев С. З. | G81: Нагиеву | H81: Самиду | I81: Зейналу | J81: 1996-11-15 | K81: с.Осакуджа Ленкоранского р-на Республики Азербайджан | L81: РФ | M81: м | N81: ФГКВОУ ВО Военная академия радиационной, химической и биологической защиты им. Маршала Советского Союза С.К. Тимошенко (г.Кострома) Министерства обороны Российской Федерации г. Кострома | O81: 2017 | P81: холост | Q81: 157246г.Кострома, ул. Никитская, д.116, кв. 30 | Y81: 170768 | Z81: Экономический | AA81: 38.03.84 | AB81: Экономика | AC81: Финансы и кредит | AD81: 5 лет | AE81: БАКАЛАВР | AF81: 2-687 | AG81: 2017-08-19 | AH81: по договору с полным возмещением затрат | AI81: 000004414 | AJ81: 2017-07-31 | CA81: 2 | CB81: 221z | CI81: 4 | CJ81: 2018-06-09 | CK81: 7879530 | CL81: 6 | CM81: 2018-06-09 | CN81: 7879527 | JJ81: =(JL81*3+JM81*4+JN81*5)/50 -> 0.08 | JL81: =COUNTIF(CC81:JG81,3) -> 0 | JM81: =COUNTIF(CC81:JG81,4) -> 1 | JN81: =COUNTIF(CC81:JG81,5) -> 0 | JO81: =COUNTIF(CC81:JG81,6) -> 1 | JP81: =SUM(JL81:JN81) -> 1 | JQ81: =SUMIF(CC81:JG81,">0",$CC$3:$JG$3) -> 180 | JR81: =INT(JQ81/8+0.5) -> 23
A82: =A81+1 -> 79 | B82: Никитченко | C82: Валентин | D82: Васильевич | E82: =CONCATENATE(B82," ",LEFT(C82,1),". ",LEFT(D82,1),".") -> Никитченко В. В. | G82: Никитченко | H82: Валентину | I82: Васильевичу | J82: 1997-04-27 | K82: с.Новоомское Омского р-на Омской обл. | L82: РФ | M82: м | N82: МКОУ Кадыйская СОШ имени М.А. Четвертного | O82: 2015 | P82: холост | Q82: 157980 Костромская обл., Кадыйскийр-н, д.Жуково, ул. Советская, д.37 | Y82: 170769 | Z82: Экономический | AA82: 38.03.84 | AB82: Экономика | AC82: Финансы и кредит | AD82: 5 лет | AE82: БАКАЛАВР | AF82: 2-687 | AG82: 2017-08-19 | AH82: по договору с полным возмещением затрат | AI82: 000004464 | AJ82: 2017-08-10 | CA82: 2 | CB82: 221z | CC82: 4 | CD82: 2018-06-09 | CE82: 78710124 | CF82: 6 | CG82: 2018-06-09 | CH82: 7879710 | CI82: 4 | CJ82: 2018-06-09 | CK82: 7879530 | CL82: 6 | CM82: 2018-06-09 | CN82: 7879527 | CR82: 4 | CS82: 2018-06-09 | CT82: 7879495 | CU82: 4 | CV82: 2018-06-09 | CW82: 7879551 | CX82: 4 | CY82: 2018-06-09 | CZ82: 7879724 | JJ82: =(JL82*3+JM82*4+JN82*5)/50 -> 0.4 | JL82: =COUNTIF(CC82:JG82,3) -> 0 | JM82: =COUNTIF(CC82:JG82,4) -> 5 | JN82: =COUNTIF(CC82:JG82,5) -> 0 | JO82: =COUNTIF(CC82:JG82,6) -> 2 | JP82: =SUM(JL82:JN82) -> 5 | JQ82: =SUMIF(CC82:JG82,">0",$CC$3:$JG$3) -> 1332 | JR82: =INT(JQ82/8+0.5) -> 167
A83: =A82+1 -> 80 | B83: Новожилов | C83: Валерий | D83: Евгеньевич | E83: =CONCATENATE(B83," ",LEFT(C83,1),". ",LEFT(D83,1),".") -> Новожилов В. Е. | G83: Новожилову | H83: Валерию | I83: Евгеньевичу | J83: 1981-04-30 | K83: г.Кострома | L83: РФ | M83: м | N83: Профессиональный лицей №6 г.Костромы | O83: 2000 | P83: холост | Q83: г.Кострома, мкр. Давыдовский-3, д.10, кв. 40 | Y83: 170770 | Z83: Экономический | AA83: 38.03.84 | AB83: Экономика | AC83: Финансы и кредит | AD83: 5 лет | AE83: БАКАЛАВР | AF83: 2-701 | AG83: 2017-08-31 | AH83: по договору с полным возмещением затрат | AI83: 000004604 | AJ83: 2017-08-29 | CA83: 2 | CB83: 221z | CC83: 3 | CD83: 2018-06-20 | CE83: 78710124-4 | CF83: 6 | CG83: 2018-06-09 | CH83: 7879710 | CI83: 4 | CJ83: 2018-06-09 | CK83: 7879530 | CL83: 6 | CM83: 2018-06-09 | CN83: 7879527 | CO83: 3 | CP83: 2018-06-09 | CQ83: 7879494 | CR83: 3 | CS83: 2018-06-09 | CT83: 7879495 | CU83: 4 | CV83: 2018-06-09 | CW83: 7879551 | CX83: 3 | CY83: 2018-06-09 | CZ83: 7879724 | JJ83: =(JL83*3+JM83*4+JN83*5)/50 -> 0.4 | JL83: =COUNTIF(CC83:JG83,3) -> 4 | JM83: =COUNTIF(CC83:JG83,4) -> 2 | JN83: =COUNTIF(CC83:JG83,5) -> 0 | JO83: =COUNTIF(CC83:JG83,6) -> 2 | JP83: =SUM(JL83:JN83) -> 6 | JQ83: =SUMIF(CC83:JG83,">0",$CC$3:$JG$3) -> 1548 | JR83: =INT(JQ83/8+0.5) -> 194
A84: =A83+1 -> 81 | B84: Орлова | C84: Ольга | D84: Александровна | E84: =CONCATENATE(B84," ",LEFT(C84,1),". ",LEFT(D84,1),".") -> Орлова О. А. | G84: Орловой | H84: Ольге | I84: Александровне | J84: 1998-08-18 | K84: г.Кострома | L84: РФ | M84: ж | N84: ОГБ ПОУ Костромской торгово-экономический колледж г.Кострома | O84: 2017 | P84: незамужем | Q84: г.Кострома, ул. Новосельская, д.15, кв. 162 | Y84: 170771 | Z84: Экономический | AA84: 38.03.84 | AB84: Экономика | AC84: Финансы и кредит | AD84: 4 года | AE84: БАКАЛАВР | AF84: 2-687 | AG84: 2017-08-19 | AH84: по договору с полным возмещением затрат | AI84: 000004440 | AJ84: 2017-08-07 | CA84: 2 | CB84: 222z | CF84: 6 | CG84: 2018-06-09 | CH84: 7879710 | CI84: 5 | CJ84: п/атт.14.10.2017 | CL84: 6 | CM84: 2018-06-09 | CN84: 7879527 | CO84: 3 | CP84: 2018-06-09 | CQ84: 7879494 | CR84: 4 | CS84: 2018-06-09 | CT84: 7879495 | CU84: 4 | CV84: 2018-06-09 | CW84: 7879551 | CX84: 3 | CY84: 2018-06-09 | CZ84: 7879724 | DP84: 6 | DQ84: п/атт.31.10.2017 | EE84: 6 | EF84: п/атт.20.10.2017 | EN84: 5 | EO84: п/атт.24.10.2017 | GA84: 5 | GB84: п/атт.25.10.2017 | HQ84: 5 | HR84: п/атт.26.10.2017 | JJ84: =(JL84*3+JM84*4+JN84*5)/50 -> 0.68 | JL84: =COUNTIF(CC84:JG84,3) -> 2 | JM84: =COUNTIF(CC84:JG84,4) -> 2 | JN84: =COUNTIF(CC84:JG84,5) -> 4 | JO84: =COUNTIF(CC84:JG84,6) -> 4 | JP84: =SUM(JL84:JN84) -> 8 | JQ84: =SUMIF(CC84:JG84,">0",$CC$3:$JG$3) -> 1512 | JR84: =INT(JQ84/8+0.5) -> 189
A85: =A84+1 -> 82 | B85: Пальшина | C85: Надежда | D85: Витальевна | E85: =CONCATENATE(B85," ",LEFT(C85,1),". ",LEFT(D85,1),".") -> Пальшина Н. В. | G85: Пальшиной | H85: Надежде | I85: Витальевне | J85: 1982-08-01 | K85: с.Визинга Сысольского р-на Республика Коми | L85: РФ | M85: ж | N85: ГОУ ВПО Кировская государственная медицинская академия Федерального агентства по здравоохранению и социальному развитию г.Киров | O85: 2005 | P85: незамужем | Q85: г.Кострома, ул. Задорина, д.43 | Y85: 170772 | Z85: Экономический | AA85: 38.03.84 | AB85: Экономика | AC85: Финансы и кредит | AD85: 4 года | AE85: БАКАЛАВР | AF85: 2-687 | AG85: 2017-08-19 | AH85: по договору с полным возмещением затрат | AI85: 000004567 | AJ85: 2017-08-17 | CA85: 2 | CB85: 222z | CC85: 4 | CD85: 2018-06-09 | CE85: 78710124 | CF85: 6 | CG85: 2018-06-09 | CH85: 7879710 | CI85: 4 | CJ85: п/атт.14.10.2017 | CL85: 6 | CM85: п/атт.27.10.2017 | CO85: 4 | CP85: 2018-06-09 | CQ85: 7879494 | CR85: 4 | CS85: 2018-06-09 | CT85: 7879495 | CU85: 4 | CV85: 2018-06-09 | CW85: 7879551 | CX85: 4 | CY85: 2018-06-09 | CZ85: 7879724 | DA85: 6 | DB85: п/зач.11.10.2017 | DD85: 6 | DE85: п/атт.28.10.2017 | DG85: 4 | DH85: п/атт.05.11.2017 | DP85: 6 | DQ85: п/атт.31.10.2017 | DS85: 4 | DT85: п/зач.11.10.2017 | EE85: 6 | EF85: п/атт.20.10.2017 | EH85: 6 | EI85: п/атт.20.10.2017 | JJ85: =(JL85*3+JM85*4+JN85*5)/50 -> 0.64 | JL85: =COUNTIF(CC85:JG85,3) -> 0 | JM85: =COUNTIF(CC85:JG85,4) -> 8 | JN85: =COUNTIF(CC85:JG85,5) -> 0 | JO85: =COUNTIF(CC85:JG85,6) -> 7 | JP85: =SUM(JL85:JN85) -> 8 | JQ85: =SUMIF(CC85:JG85,">0",$CC$3:$JG$3) -> 2196 | JR85: =INT(JQ85/8+0.5) -> 275
A86: =A85+1 -> 83 | B86: Серых | C86: Любовь | D86: Николаевна | E86: =CONCATENATE(B86," ",LEFT(C86,1),". ",LEFT(D86,1),".") -> Серых Л. Н. | G86: Серых | H86: Любови | I86: Николаевне | J86: 1998-10-24 | K86: с.Хомутово Островского р-на Костромской обл. | L86: РФ | M86: ж | N86: ОГБ ПОУ Костромской торгово-экономический колледж г.Кострома | O86: 2017 | P86: незамужем | Q86: 157860Костромская обл., Судиславский р-н, д.Глебово, ул. Фабричная, д.25, кв. 1 | Y86: 170774 | Z86: Экономический | AA86: 38.03.84 | AB86: Экономика | AC86: Финансы и кредит | AD86: 4 года | AE86: БАКАЛАВР | AF86: 2-687 | AG86: 2017-08-19 | AH86: по договору с полным возмещением затрат | AI86: 000004501 | AJ86: 2017-08-14 | CA86: 2 | CB86: 222z | CC86: 4 | CD86: 2018-06-09 | CE86: 78710124 | CF86: 6 | CG86: 2018-06-09 | CH86: 7879710 | CI86: 4 | CJ86: п/атт.14.10.2017 | CL86: 6 | CM86: 2018-06-09 | CN86: 7879527 | CO86: 3 | CP86: 2018-06-09 | CQ86: 7879494 | CR86: 3 | CS86: 2018-06-09 | CT86: 7879495 | CU86: 5 | CV86: 2018-06-09 | CW86: 7879551 | CX86: 4 | CY86: 2018-06-09 | CZ86: 7879724 | DP86: 6 | DQ86: п/атт.31.10.2017 | EE86: 6 | EF86: п/атт.20.10.2017 | EN86: 5 | EO86: п/атт.24.10.2017 | GA86: 5 | GB86: п/атт.25.10.2017 | JJ86: =(JL86*3+JM86*4+JN86*5)/50 -> 0.66 | JL86: =COUNTIF(CC86:JG86,3) -> 2 | JM86: =COUNTIF(CC86:JG86,4) -> 3 | JN86: =COUNTIF(CC86:JG86,5) -> 3 | JO86: =COUNTIF(CC86:JG86,6) -> 4 | JP86: =SUM(JL86:JN86) -> 8 | JQ86: =SUMIF(CC86:JG86,">0",$CC$3:$JG$3) -> 1728 | JR86: =INT(JQ86/8+0.5) -> 216
A87: =A86+1 -> 84 | B87: Смирнова | C87: Виктория | D87: Валентиновна | E87: =CONCATENATE(B87," ",LEFT(C87,1),". ",LEFT(D87,1),".") -> Смирнова В. В. | G87: Смирновой | H87: Виктории | I87: Валентиновне | J87: 1994-12-31 | K87: г.Мантурово Костромской обл. | L87: РФ | M87: ж | N87: ФГБОУ ВО Костромская государственная сельскохозяйственная академия пос.Караваево | O87: 2017 | P87: незамужем | Q87: г.Кострома, мкр. Давыдовский-3, д.28а, кв. 47 | Y87: 170775 | Z87: Экономический | AA87: 38.03.84 | AB87: Экономика | AC87: Финансы и кредит | AD87: 4 года | AE87: БАКАЛАВР | AF87: 2-687 | AG87: 2017-08-19 | AH87: по договору с полным возмещением затрат | AI87: 000004557 | AJ87: 2017-08-17 | CA87: 2 | CB87: 222z | CC87: 4 | CD87: 2018-06-09 | CE87: 78710124 | CF87: 6 | CG87: 2018-06-09 | CH87: 7879710 | CI87: 4 | CJ87: п/атт.14.10.2017 | CL87: 6 | CM87: п/атт.27.10.2017 | CO87: 4 | CP87: п/атт.21.10.2017 | CR87: 4 | CS87: п/атт.21.10.2017 | CU87: 4 | CV87: п/атт.12.10.2017 | CX87: 4 | CY87: 2018-06-09 | CZ87: 7879724 | DA87: 6 | DB87: п/зач.11.10.2017 | DD87: 6 | DE87: п/атт.28.10.2017 | DP87: 6 | DQ87: п/атт.31.10.2017 | DS87: 4 | DT87: п/зач.11.10.2017 | EE87: 6 | EF87: п/зач.20.10.2017 | EH87: 6 | EI87: п/зач.20.10.2017 | ET87: 4 | EU87: п/атт.13.10.2017 | HW87: 6 | HX87: п/зач.06.10.2017 | JJ87: =(JL87*3+JM87*4+JN87*5)/50 -> 0.64 | JL87: =COUNTIF(CC87:JG87,3) -> 0 | JM87: =COUNTIF(CC87:JG87,4) -> 8 | JN87: =COUNTIF(CC87:JG87,5) -> 0 | JO87: =COUNTIF(CC87:JG87,6) -> 8 | JP87: =SUM(JL87:JN87) -> 8 | JQ87: =SUMIF(CC87:JG87,">0",$CC$3:$JG$3) -> 2232 | JR87: =INT(JQ87/8+0.5) -> 279
A88: =A87+1 -> 85 | B88: Смирнова | C88: Виктория | D88: Сергеевна | E88: =CONCATENATE(B88," ",LEFT(C88,1),". ",LEFT(D88,1),".") -> Смирнова В. С. | G88: Смирновой | H88: Виктории | I88: Сергеевне | J88: 1995-01-07 | K88: д.Карьково Макарьевского р-на Костромской обл. | L88: РФ | M88: ж | N88: ОГБОУ СПО Костромской торгово-экономический колледж г.Кострома | O88: 2013 | P88: незамужем | Q88: Костромская обл., Макарьевский р-н, дер.Карьково, д.28 | Y88: 13948 | Z88: Экономический | AA88: 38.03.84 | AB88: Экономика | AC88: Финансы и кредит | AD88: 5 лет | AE88: БАКАЛАВР | AF88: 2-552 | AG88: 2013-08-30 | AH88: по договору с полным возмещением затрат | AI88: 000000929 | AJ88: 2013-08-16 | AM88: 2-449 | AN88: 42542 | AO88: в связи с академической неуспеваемостью | AP88: 2-12 | AQ88: 2018-01-12 | CA88: 2 | CB88: 221z | CI88: 3 | CJ88: 2018-06-09 | CK88: 7879530 | CL88: 6 | CM88: 2018-06-09 | CN88: 7879527 | CU88: 4 | CV88: 2018-06-09 | CW88: 7879551 | JJ88: =(JL88*3+JM88*4+JN88*5)/50 -> 0.14 | JL88: =COUNTIF(CC88:JG88,3) -> 1 | JM88: =COUNTIF(CC88:JG88,4) -> 1 | JN88: =COUNTIF(CC88:JG88,5) -> 0 | JO88: =COUNTIF(CC88:JG88,6) -> 1 | JP88: =SUM(JL88:JN88) -> 2 | JQ88: =SUMIF(CC88:JG88,">0",$CC$3:$JG$3) -> 540 | JR88: =INT(JQ88/8+0.5) -> 68
A89: =A88+1 -> 86 | B89: Сорокина | C89: Анна | D89: Александровна | E89: =CONCATENATE(B89," ",LEFT(C89,1),". ",LEFT(D89,1),".") -> Сорокина А. А. | G89: Сорокиной | H89: Анне | I89: Александровне | J89: 1998-09-20 | K89: п.Александровское Островского р-на Костромской обл. | L89: РФ | M89: ж | N89: ОГБ ПОУ Костромской торгово-экономический колледж г.Кострома | O89: 2017 | P89: незамужем | Q89: г.Кострома, ул. Полянская, д.35, кв. 47 | Y89: 170776 | Z89: Экономический | AA89: 38.03.84 | AB89: Экономика | AC89: Финансы и кредит | AD89: 4 года | AE89: БАКАЛАВР | AF89: 2-687 | AG89: 2017-08-19 | AH89: по договору с полным возмещением затрат | AI89: 000004458 | AJ89: 2017-08-09 | CA89: 2 | CB89: 222z | CC89: 4 | CD89: 2018-06-09 | CE89: 78710124 | CF89: 6 | CG89: 2018-06-09 | CH89: 7879710 | CI89: 3 | CJ89: п/атт.14.10.2017 | CL89: 6 | CM89: 2018-06-09 | CN89: 7879527 | CO89: 3 | CP89: 2018-06-09 | CQ89: 7879494 | CR89: 4 | CS89: 2018-06-09 | CT89: 7879495 | CU89: 5 | CV89: 2018-06-09 | CW89: 7879551 | CX89: 3 | CY89: 2018-06-09 | CZ89: 7879724 | DP89: 6 | DQ89: п/атт.31.10.2017 | EE89: 6 | EF89: п/атт.20.10.2017 | EN89: 5 | EO89: п/атт.24.10.2017 | GA89: 4 | GB89: п/атт.25.10.2017 | HQ89: 4 | HR89: п/атт.26.10.2017 | JJ89: =(JL89*3+JM89*4+JN89*5)/50 -> 0.7 | JL89: =COUNTIF(CC89:JG89,3) -> 3 | JM89: =COUNTIF(CC89:JG89,4) -> 4 | JN89: =COUNTIF(CC89:JG89,5) -> 2 | JO89: =COUNTIF(CC89:JG89,6) -> 4 | JP89: =SUM(JL89:JN89) -> 9 | JQ89: =SUMIF(CC89:JG89,">0",$CC$3:$JG$3) -> 1728 | JR89: =INT(JQ89/8+0.5) -> 216
A90: =A89+1 -> 87 | B90: Фабрина | C90: Вероника | D90: Андреевна | E90: =CONCATENATE(B90," ",LEFT(C90,1),". ",LEFT(D90,1),".") -> Фабрина В. А. | G90: Фабриной | H90: Веронике | I90: Андреевне | J90: 1998-04-07 | K90: г.Кострома | L90: РФ | M90: ж | N90: ОГБ ПОУ Костромской торгово-экономический колледж г.Кострома | O90: 2017 | P90: незамужем | Q90: г.Кострома, Давыдовский4-йпроезд, д.24, кв. 2 | Y90: 170777 | Z90: Экономический | AA90: 38.03.84 | AB90: Экономика | AC90: Финансы и кредит | AD90: 4 года | AE90: БАКАЛАВР | AF90: 2-687 | AG90: 2017-08-19 | AH90: по договору с полным возмещением затрат | AI90: 000004491 | AJ90: 2017-08-11 | CA90: 2 | CB90: 222z | CC90: 3 | CD90: 2018-06-09 | CE90: 78710124 | CF90: 6 | CG90: 2018-06-09 | CH90: 7879710 | CI90: 3 | CJ90: п/атт.14.10.2017 | CL90: 6 | CM90: 2018-06-09 | CN90: 7879527 | CO90: 3 | CP90: 2018-06-09 | CQ90: 7879494 | CR90: 4 | CS90: 2018-06-09 | CT90: 7879495 | CU90: 5 | CV90: 2018-06-09 | CW90: 7879551 | CX90: 4 | CY90: 2018-06-09 | CZ90: 7879724 | DP90: 6 | DQ90: п/атт.31.10.2017 | EE90: 6 | EF90: п/атт.20.10.2017 | EN90: 4 | EO90: п/атт.24.10.2017 | GA90: 4 | GB90: п/атт.25.10.2017 | HQ90: 4 | HR90: п/атт.26.10.2017 | JJ90: =(JL90*3+JM90*4+JN90*5)/50 -> 0.68 | JL90: =COUNTIF(CC90:JG90,3) -> 3 | JM90: =COUNTIF(CC90:JG90,4) -> 5 | JN90: =COUNTIF(CC90:JG90,5) -> 1 | JO90: =COUNTIF(CC90:JG90,6) -> 4 | JP90: =SUM(JL90:JN90) -> 9 | JQ90: =SUMIF(CC90:JG90,">0",$CC$3:$JG$3) -> 1728 | JR90: =INT(JQ90/8+0.5) -> 216
A91: =A90+1 -> 88 | B91: Халилов | C91: Халид | D91: Андреевич | E91: =CONCATENATE(B91," ",LEFT(C91,1),". ",LEFT(D91,1),".") -> Халилов Х. А. | G91: Халилову | H91: Халиду | I91: Андреевичу | J91: 1997-10-02 | K91: с.Головинское Сусанинского р-на Костромской обл. | L91: РФ | M91: м | N91: МБОУ города Костромы СОШ №22 | O91: 2015 | P91: холост | Q91: 156014 г.Кострома, Давыдовский 3-й проезд, д.23, кв. 1 | Y91: 170778 | Z91: Экономический | AA91: 38.03.84 | AB91: Экономика | AC91: Финансы и кредит | AD91: 5 лет | AE91: БАКАЛАВР | AF91: 2-687 | AG91: 2017-08-19 | AH91: по договору с полным возмещением затрат | AI91: 000004442 | AJ91: 2017-08-07 | CA91: 2 | CB91: 221z | CI91: 4 | CJ91: 2018-06-09 | CK91: 7879530 | CL91: 6 | CM91: 2018-06-09 | CN91: 7879527 | CU91: 4 | CV91: 2018-06-09 | CW91: 7879551 | JJ91: =(JL91*3+JM91*4+JN91*5)/50 -> 0.16 | JL91: =COUNTIF(CC91:JG91,3) -> 0 | JM91: =COUNTIF(CC91:JG91,4) -> 2 | JN91: =COUNTIF(CC91:JG91,5) -> 0 | JO91: =COUNTIF(CC91:JG91,6) -> 1 | JP91: =SUM(JL91:JN91) -> 2 | JQ91: =SUMIF(CC91:JG91,">0",$CC$3:$JG$3) -> 540 | JR91: =INT(JQ91/8+0.5) -> 68
A92: =A91+1 -> 89 | B92: Харинов | C92: Илья | D92: Евгеньевич | E92: =CONCATENATE(B92," ",LEFT(C92,1),". ",LEFT(D92,1),".") -> Харинов И. Е. | G92: Харинову | H92: Илье | I92: Евгеньевичу | J92: 1995-03-18 | K92: г.Шарья Костромской обл. | L92: РФ | M92: м | N92: Областное государственное бюджетное профессиональное образовательное учреждение Шарьинский аграрный техникум Костромской области г.Шарья | O92: 2015 | P92: холост | Q92: 157500 Костромская обл., г.Шарья, ул. Юбилейная, д.14А, кв. 29 | Y92: 170779 | Z92: Экономический | AA92: 38.03.84 | AB92: Экономика | AC92: Финансы и кредит | AD92: 5 лет | AE92: БАКАЛАВР | AF92: 2-687 | AG92: 2017-08-19 | AH92: по договору с полным возмещением затрат | AI92: 000004456 | AJ92: 2017-08-08 | CA92: 2 | CB92: 221z | CI92: 4 | CJ92: 2018-06-09 | CK92: 7879530 | CL92: 6 | CM92: 2018-06-09 | CN92: 7879527 | CR92: 4 | CS92: 2018-06-09 | CT92: 7879495 | JJ92: =(JL92*3+JM92*4+JN92*5)/50 -> 0.16 | JL92: =COUNTIF(CC92:JG92,3) -> 0 | JM92: =COUNTIF(CC92:JG92,4) -> 2 | JN92: =COUNTIF(CC92:JG92,5) -> 0 | JO92: =COUNTIF(CC92:JG92,6) -> 1 | JP92: =SUM(JL92:JN92) -> 2 | JQ92: =SUMIF(CC92:JG92,">0",$CC$3:$JG$3) -> 432 | JR92: =INT(JQ92/8+0.5) -> 54
A93: =A92+1 -> 90 | B93: Широва | C93: Майса | E93: =CONCATENATE(B93," ",LEFT(C93,1),". ",LEFT(D93,1),".") -> Широва М. . | CA93: 2 | CB93: 221z | CI93: 3 | CJ93: 2018-06-09 | CK93: 7879530 | CL93: 6 | CM93: п/зач12.04.2018 | CX93: 3 | CY93: п/зач17.04.2018 | DA93: 6 | DB93: п/атт.18.04.2018
A94: =A93+1 -> 91 | B94: Белова | C94: Елена | D94: Владимировна | E94: =CONCATENATE(B94," ",LEFT(C94,1),". ",LEFT(D94,1),".") -> Белова Е. В. | G94: Беловой | H94: Елене | I94: Владимировне | J94: 1993-08-30 | K94: г.Галич Костромскойо бл. | L94: РФ | M94: ж | N94: ОГБОУ СПО Галичский аграрный техникум Костромской области г.Галич Костромская обл. | O94: 2012 | P94: незамужем | Q94: Костромская обл., г.Галич, ул. Кирова, д.6, кв. 4 | Y94: 170753 | Z94: Экономический | AA94: 38.03.81 | AB94: Экономика | AC94: Финансы и кредит | AD94: 4 года | AE94: БАКАЛАВР | AF94: 2-687 | AG94: 2017-08-19 | AH94: по договору с полным возмещением затрат | AI94: 000004461 | AJ94: 2017-08-10 | CA94: 2 | CB94: 224z | CC94: 3 | CD94: 2018-06-09 | CE94: 78810124 | CF94: 6 | CG94: 2018-06-09 | CH94: 7889710 | CI94: 4 | CJ94: 2018-06-09 | CK94: 7889530 | CL94: 6 | CM94: 2018-06-09 | CN94: 7889527 | CO94: 4 | CP94: 2018-06-09 | CQ94: 7889494 | CR94: 3 | CS94: 2018-06-09 | CT94: 7889495 | CU94: 5 | CV94: 2018-06-09 | CW94: 7889551 | CX94: 3 | CY94: 2018-06-09 | CZ94: 7889724 | DA94: 6 | DB94: п/атт.11.10.2017 | DD94: 6 | DE94: п/атт.28.10.2017 | DP94: 6 | DQ94: п/атт.31.10.2017 | EE94: 6 | EF94: п/атт.20.10.2017 | EN94: 5 | EO94: п/атт.24.10.2017 | GA94: 5 | GB94: п/атт.25.10.2017 | HQ94: 4 | HR94: п/атт.26.10.2017 | JJ94: =(JL94*3+JM94*4+JN94*5)/50 -> 0.72 | JL94: =COUNTIF(CC94:JG94,3) -> 3 | JM94: =COUNTIF(CC94:JG94,4) -> 3 | JN94: =COUNTIF(CC94:JG94,5) -> 3 | JO94: =COUNTIF(CC94:JG94,6) -> 6 | JP94: =SUM(JL94:JN94) -> 9 | JQ94: =SUMIF(CC94:JG94,">0",$CC$3:$JG$3) -> 1897 | JR94: =INT(JQ94/8+0.5) -> 237
A95: =A94+1 -> 92 | B95: Горюнов | C95: Сергей | D95: Александрович | E95: =CONCATENATE(B95," ",LEFT(C95,1),". ",LEFT(D95,1),".") -> Горюнов С. А. | G95: Горюнову | H95: Сергею | I95: Александровичу | J95: 1989-01-27 | K95: с.Минское Костромского р-на Костромской обл. | L95: РФ | M95: м | N95: ГОУ НПО Профессиональный лицей №9 г.Костромы | O95: 2007 | P95: холост | Q95: Костромская обл., Костромской р-н, с.Минское, ул. Рабочая, д.11, кв. 1 | Y95: 170758 | Z95: Экономический | AA95: 38.03.84 | AB95: Экономика | AC95: Финансы и кредит | AD95: 5 лет | AE95: БАКАЛАВР | AF95: 2-687 | AG95: 2017-08-19 | AH95: по договору с полным возмещением затрат | AI95: 000004435 | AJ95: 2017-08-07 | CA95: 2 | CB95: 223z | CC95: 3 | CD95: 2018-06-09 | CE95: 78810124 | CF95: 6 | CG95: 2018-06-09 | CH95: 7889710 | CI95: 4 | CJ95: 2018-06-09 | CK95: 7889530 | CL95: 6 | CM95: 2018-06-09 | CN95: 7889527 | JJ95: =(JL95*3+JM95*4+JN95*5)/50 -> 0.14 | JL95: =COUNTIF(CC95:JG95,3) -> 1 | JM95: =COUNTIF(CC95:JG95,4) -> 1 | JN95: =COUNTIF(CC95:JG95,5) -> 0 | JO95: =COUNTIF(CC95:JG95,6) -> 2 | JP95: =SUM(JL95:JN95) -> 2 | JQ95: =SUMIF(CC95:JG95,">0",$CC$3:$JG$3) -> 504 | JR95: =INT(JQ95/8+0.5) -> 63
A96: =A95+1 -> 93 | B96: Старых | C96: Диана | D96: Олеговна | E96: =CONCATENATE(B96," ",LEFT(C96,1),". ",LEFT(D96,1),".") -> Старых Д. О. | G96: Старых | H96: Диане | I96: Олеговне | J96: 1995-11-24 | K96: г.Горловка Донецкой обл. | L96: РФ | M96: ж | N96: Горловский машиностоительный колледж | O96: 2017 | P96: незамужем | Q96: Костромская обл., г.Галич, ул. Гоголя, д.1, кв. 9 | Y96: 170773 | Z96: Экономический | AA96: 38.03.84 | AB96: Экономика | AC96: Финансы и кредит | AD96: 5 лет | AE96: БАКАЛАВР | AF96: 2-687 | AG96: 2017-08-19 | AH96: по договору с полным возмещением затрат | AI96: 000004460 | AJ96: 2017-08-09 | CA96: 2 | CB96: 223z | CC96: 3 | CD96: 2018-06-09 | CE96: 78810124 | CF96: 6 | CG96: 2018-06-09 | CH96: 7889710 | CI96: 4 | CJ96: 2018-06-09 | CK96: 7889530 | CL96: 6 | CM96: 2018-06-09 | CN96: 7889527 | CO96: 4 | CP96: 2018-06-09 | CQ96: 7889494 | CR96: 3 | CS96: 2018-06-09 | CT96: 7889495 | CU96: 5 | CV96: 2018-06-09 | CW96: 7889551 | CX96: 3 | CY96: 2018-06-09 | CZ96: 7889724 | JJ96: =(JL96*3+JM96*4+JN96*5)/50 -> 0.44 | JL96: =COUNTIF(CC96:JG96,3) -> 3 | JM96: =COUNTIF(CC96:JG96,4) -> 2 | JN96: =COUNTIF(CC96:JG96,5) -> 1 | JO96: =COUNTIF(CC96:JG96,6) -> 2 | JP96: =SUM(JL96:JN96) -> 6 | JQ96: =SUMIF(CC96:JG96,">0",$CC$3:$JG$3) -> 1548 | JR96: =INT(JQ96/8+0.5) -> 194
A97: =A96+1 -> 94 | B97: Шарова | C97: Анжелика | D97: Михайловна | E97: =CONCATENATE(B97," ",LEFT(C97,1),". ",LEFT(D97,1),".") -> Шарова А. М. | G97: Шаровой | H97: Анжелике | I97: Михайловне | J97: 1991-09-03 | K97: п.Талица Вохомского р-на Костромской обл. | L97: РФ | M97: ж | N97: ОГБОУ СПО Костромской областной медицинский колледж имени Героя Советского Союза С.А. Богомолова | O97: 2013 | P97: незамужем | Q97: 155043 Ивановскаяобласть, Тейковский р-н, г.Тейково,у л. Советской Армии, д.13, кв. общ.1/3 | Y97: 170780 | Z97: Экономический | AA97: 38.03.84 | AB97: Экономика | AC97: Финансы и кредит | AD97: 5 лет | AE97: БАКАЛАВР | AF97: 2-687 | AG97: 2017-08-19 | AH97: по договору с полным возмещением затрат | AI97: 000004401 | AJ97: 2017-07-20 | CA97: 2 | CB97: 223z | CC97: 3 | CD97: 2018-06-09 | CE97: 78810124 | CF97: 6 | CG97: 2018-06-09 | CH97: 7889710 | CI97: 4 | CJ97: 2018-06-09 | CK97: 7889530 | CL97: 6 | CM97: 2018-06-09 | CN97: 7889527 | CO97: 3 | CP97: 2018-06-09 | CQ97: 7889494 | CR97: 3 | CS97: 2018-06-09 | CT97: 7889495 | CU97: 4 | CV97: 2018-06-09 | CW97: 7889551 | CX97: 3 | CY97: 2018-06-09 | CZ97: 7889724 | DA97: 6 | DB97: 2018-04-18 | DC97: 634 | JJ97: =(JL97*3+JM97*4+JN97*5)/50 -> 0.4 | JL97: =COUNTIF(CC97:JG97,3) -> 4 | JM97: =COUNTIF(CC97:JG97,4) -> 2 | JN97: =COUNTIF(CC97:JG97,5) -> 0 | JO97: =COUNTIF(CC97:JG97,6) -> 3 | JP97: =SUM(JL97:JN97) -> 6 | JQ97: =SUMIF(CC97:JG97,">0",$CC$3:$JG$3) -> 1645 | JR97: =INT(JQ97/8+0.5) -> 206
A98: =A97+1 -> 95 | B98: Антонов | C98: Роман | D98: Вадимович | E98: =CONCATENATE(B98," ",LEFT(C98,1),". ",LEFT(D98,1),".") -> Антонов Р. В. | J98: 1991-06-04 | K98: гор. Кострома | L98: РФ | M98: м | N98: ФГБОУ ВПО "Костромская государственная сельскохозяйственная академия" пос. Караваево, Костромская обл., Костромской р-н | O98: 2013 | Q98: Кострома г. 8 Марта ул. д.53 кв.1 | Z98: Экономический | AA98: 38.03.85 | AB98: Экономика | AC98: Финансы и кредит | AD98: 5 лет | AE98: БАКАЛАВР | AF98: 2-670 | AG98: 2018-08-20 | AH98: по договору с полным возмещением затрат | AI98: 000004768 | AJ98: 2018-07-02 | CA98: 1 | CB98: 211z
A99: =A98+1 -> 96 | B99: Васильева | C99: Кристина | D99: Алексеевна | E99: =CONCATENATE(B99," ",LEFT(C99,1),". ",LEFT(D99,1),".") -> Васильева К. А. | J99: 1999-10-28 | K99: гор. Кострома | L99: РФ | M99: ж | N99: Муниципальное бюджетное общеобразовательное учреждение города Костромы "Средняя общеобразовательная школа №24" | O99: 2018 | Q99: Кострома г. Профсоюзная ул. д.32а кв.33 | Z99: Экономический | AA99: 38.03.86 | AB99: Экономика | AC99: Финансы и кредит | AD99: 5 лет | AE99: БАКАЛАВР | AF99: 2-670 | AG99: 2018-08-20 | AH99: по договору с полным возмещением затрат | AI99: 000005005 | AJ99: 2018-08-16 | CA99: 1 | CB99: 212z
A100: =A99+1 -> 97 | B100: Карпушов | C100: Алексей | D100: Эдуардович | E100: =CONCATENATE(B100," ",LEFT(C100,1),". ",LEFT(D100,1),".") -> Карпушов А. Э. | J100: 1997-02-26 | K100: гор. Кострома | L100: РФ | M100: м | N100: ОГБПОУ "Костромской автотранспортный колледж" г. Кострома | O100: 2016 | Q100: Кострома г. Шагова ул. д.215 кв.57 | Z100: Экономический | AA100: 38.03.87 | AB100: Экономика | AC100: Финансы и кредит | AD100: 5 лет | AE100: БАКАЛАВР | AF100: 2-670 | AG100: 2018-08-20 | AH100: по договору с полным возмещением затрат | AI100: 000005038 | AJ100: 2018-08-17 | CA100: 1 | CB100: 211z
A101: =A100+1 -> 98 | B101: Козлова | C101: Анна | D101: Владимировна | E101: =CONCATENATE(B101," ",LEFT(C101,1),". ",LEFT(D101,1),".") -> Козлова А. В. | J101: 1998-04-28 | K101: пос. Антропово Антроповский р-он Костромская обл. | L101: РФ | M101: ж | N101: ОГБОУ СПО "Костромской торгово-экономический колледж" г.Кострома | O101: 2018 | Q101: Костромская обл., Антроповский р-н, Антропово п. Безымянная ул. д.6 кв.1 | Z101: Экономический | AA101: 38.03.88 | AB101: Экономика | AC101: Финансы и кредит | AD101: 5 лет | AE101: БАКАЛАВР | AF101: 2-670 | AG101: 2018-08-20 | AH101: по договору с полным возмещением затрат | AI101: 000004973 | AJ101: 2018-08-15 | CA101: 1 | CB101: 211z
A102: =A101+1 -> 99 | B102: Колбина | C102: Майя | D102: Сергеевна | E102: =CONCATENATE(B102," ",LEFT(C102,1),". ",LEFT(D102,1),".") -> Колбина М. С. | J102: 1999-07-27 | K102: с. Ильинское Октябрьского района Костромской области | L102: РФ | M102: ж | N102: ОГБОУ СПО "Костромской торгово-экономический колледж" г.Кострома | O102: 2018 | Q102: Костромская обл., Октябрьский р-н, Боговарово с. Победы ул. д.33 кв.8 | Z102: Экономический | AA102: 38.03.89 | AB102: Экономика | AC102: Финансы и кредит | AD102: 5 лет | AE102: БАКАЛАВР | AF102: 2-670 | AG102: 2018-08-20 | AH102: по договору с полным возмещением затрат | AI102: 000004931 | AJ102: 2018-08-13 | CA102: 1 | CB102: 211z
A103: =A102+1 -> 100 | B103: Конаичева | C103: Полина | D103: Максимова | E103: =CONCATENATE(B103," ",LEFT(C103,1),". ",LEFT(D103,1),".") -> Конаичева П. М. | J103: 1999-10-23 | K103: гор. Кострома | L103: РФ | M103: ж | N103: ОГБ ПОУ Костромской колледж отраслевых технологий строительства и лесной промышленности | O103: 2018 | Q103: Кострома г. Венеция мкр. д.58 кв.63 | Z103: Экономический | AA103: 38.03.90 | AB103: Экономика | AC103: Финансы и кредит | AD103: 5 лет | AE103: БАКАЛАВР | AF103: 2-670 | AG103: 2018-08-20 | AH103: по договору с полным возмещением затрат | AI103: 000004983 | AJ103: 2018-08-15 | CA103: 1 | CB103: 211z
A104: =A103+1 -> 101 | B104: Коптелова | C104: Виктория | D104: Денисовна | E104: =CONCATENATE(B104," ",LEFT(C104,1),". ",LEFT(D104,1),".") -> Коптелова В. Д. | J104: 1999-01-30 | K104: гор. Кострома | L104: РФ | M104: ж | N104: ОГБОУ СПО "Костромской торгово-экономический колледж" г.Кострома | O104: 2018 | Q104: Костромская обл., Костромской р-н, Середняя д. Волжская ул. д.24 | Z104: Экономический | AA104: 38.03.91 | AB104: Экономика | AC104: Финансы и кредит | AD104: 5 лет | AE104: БАКАЛАВР | AF104: 2-670 | AG104: 2018-08-20 | AH104: по договору с полным возмещением затрат | AI104: 000004945 | AJ104: 2018-08-14 | CA104: 1 | CB104: 211z
A105: =A104+1 -> 102 | B105: Лебедев | C105: Алексей | D105: Владимирович | E105: =CONCATENATE(B105," ",LEFT(C105,1),". ",LEFT(D105,1),".") -> Лебедев А. В. | J105: 1991-04-30 | K105: гор. Шарья Костромская обл. | L105: РФ | M105: м | N105: НОУ СПО Костромской технологический техникум ОАО "Костромакоопцентр" | O105: 2010 | Q105: Кострома г. Никитская ул. д.72 кв.14 | Z105: Экономический | AA105: 38.03.92 | AB105: Экономика | AC105: Финансы и кредит | AD105: 5 лет | AE105: БАКАЛАВР | AF105: 2-670 | AG105: 2018-08-20 | AH105: по договору с полным возмещением затрат | AI105: 000004991 | AJ105: 2018-08-16 | CA105: 1 | CB105: 211z
A106: =A105+1 -> 103 | B106: Николаева | C106: Галина | D106: Евгеньевна | E106: =CONCATENATE(B106," ",LEFT(C106,1),". ",LEFT(D106,1),".") -> Николаева Г. Е. | J106: 1982-01-24 | K106: г. Галич Костромской обл. | L106: РФ | M106: ж | N106: Галичский аграрный техникум г. Галич Костромская область | O106: 2001 | Q106: Костромская обл., Галич г. Железнодорожная ул. д.17 А кв.12 | Z106: Экономический | AA106: 38.03.93 | AB106: Экономика | AC106: Финансы и кредит | AD106: 5 лет | AE106: БАКАЛАВР | AF106: 2-670 | AG106: 2018-08-20 | AH106: по договору с полным возмещением затрат | AI106: 000004852 | AJ106: 2018-08-06 | CA106: 1 | CB106: 211z
A107: =A106+1 -> 104 | B107: Фокин | C107: Иван | D107: Вадимович | E107: =CONCATENATE(B107," ",LEFT(C107,1),". ",LEFT(D107,1),".") -> Фокин И. В. | J107: 1999-07-22 | K107: гор. Кострома | L107: РФ | M107: м | N107: МБОУ СОШ № 3 городского округа г. Волгореченск Костромской области | O107: 2016 | Q107: Костромская обл., Волгореченск г. им 50-летия Ленинского Комсомола ул. д.57 кв.12 | Z107: Экономический | AA107: 38.03.94 | AB107: Экономика | AC107: Финансы и кредит | AD107: 5 лет | AE107: БАКАЛАВР | AF107: 2-670 | AG107: 2018-08-20 | AH107: по договору с полным возмещением затрат | AI107: 000005057 | AJ107: 2018-08-20 | CA107: 1 | CB107: 211z
A108: =A107+1 -> 105 | B108: Хомутова | C108: Кристина | D108: Андреевна | E108: =CONCATENATE(B108," ",LEFT(C108,1),". ",LEFT(D108,1),".") -> Хомутова К. А. | J108: 1994-11-15 | K108: гор. Галич | L108: РФ | M108: ж | N108: ОГБОУ СПО "Костромской торгово-экономический колледж" г.Кострома | O108: 2013 | Q108: 156014 Кострома г., Дорожная ул., д. 16/10, кв. 20 | Z108: Экономический | AA108: 38.03.95 | AB108: Экономика | AC108: Финансы и кредит | AD108: 5 лет | AE108: БАКАЛАВР | AF108: 2-670 | AG108: 2018-08-20 | AH108: по договору с полным возмещением затрат | AI108: 000004943 | AJ108: 2018-08-14 | CA108: 1 | CB108: 211z
A109: =A108+1 -> 106 | B109: Шаталова | C109: Софья | D109: Алексеевна | E109: =CONCATENATE(B109," ",LEFT(C109,1),". ",LEFT(D109,1),".") -> Шаталова С. А. | J109: 1999-04-18 | K109: гор. Кострома | L109: РФ | M109: ж | N109: ОГБОУ СПО "Костромской торгово-экономический колледж" г.Кострома | O109: 2017 | Q109: Костромская обл., Костромской р-н, Яковлевское с. Новая ул. д.2 А кв.2 | Z109: Экономический | AA109: 38.03.96 | AB109: Экономика | AC109: Финансы и кредит | AD109: 5 лет | AE109: БАКАЛАВР | AF109: 2-670 | AG109: 2018-08-20 | AH109: по договору с полным возмещением затрат | AI109: 000004960 | AJ109: 2018-08-14 | CA109: 1 | CB109: 211z
A110: =A109+1 -> 107 | B110: Сухарева | C110: Ксения | D110: Сергеевна | E110: =CONCATENATE(B110," ",LEFT(C110,1),". ",LEFT(D110,1),".") -> Сухарева К. С. | J110: 1996-12-12 | K110: с. Пыщуг Пущугского р-на Костромской обл. | L110: РФ | M110: ж | N110: ОГБ ПОУ "Костромской областной медицинский колледж им. Героя Советского Союза С.А. Богомолова" | O110: 2018 | Q110: Кострома г. Кинешемское ш д. 6 кв. 27 | Z110: Экономический | AA110: 38.03.96 | AB110: Экономика | AC110: Финансы и кредит | AD110: 5 лет | AE110: БАКАЛАВР | AF110: 2-685 | AG110: 2018-08-31 | AH110: по договору с полным возмещением затрат | AI110: 000005077 | AJ110: 2018-08-27 | CA110: 1 | CB110: 212z
A111: =A110+1 -> 108 | B111: Замир кызы | C111: Сезим | E111: =CONCATENATE(B111," ",LEFT(C111,1),". ",LEFT(D111,1),".") -> Замир кызы С. . | J111: 1999-08-21 | K111: Чуйская обл. Кыргызкой Республики | L111: Кыргыская Республика | M111: ж | N111: Средняя школа имени О. Болобаева Ысык-Атинского района Чуйской области | O111: 2017 | Q111: Кыргыская Республика | Z111: Экономический | AA111: 38.03.96 | AB111: Экономика | AC111: Финансы и кредит | AD111: 5 лет | AE111: БАКАЛАВР | AF111: 2-685 | AG111: 2018-08-31 | AH111: по договору с полным возмещением затрат | AI111: 000005156 | AJ111: 2018-07-23 | CA111: 1 | CB111: 212z
A112: =A111+1 -> 109 | B112: Алымов | C112: Аман | D112: Алымович | E112: =CONCATENATE(B112," ",LEFT(C112,1),". ",LEFT(D112,1),".") -> Алымов А. А. | J112: 2000-10-07 | K112: Таласская обл. Кыргызкой Республики | L112: Кыргыская Республика | M112: м | N112: Общеобразовательная средняя школа им. Айтапаева Кара-Бууринского р-на Таласской обл. | O112: 2018 | Q112: Кыргыская Республика | Z112: Экономический | AA112: 38.03.96 | AB112: Экономика | AC112: Финансы и кредит | AD112: 5 лет | AE112: БАКАЛАВР | AF112: 2-685 | AG112: 2018-08-31 | AH112: по договору с полным возмещением затрат | AI112: 000005153 | AJ112: 2018-07-23 | CA112: 1 | CB112: 212z
A113: =A112+1 -> 110 | B113: Айбек кызы | C113: Гулайым | E113: =CONCATENATE(B113," ",LEFT(C113,1),". ",LEFT(D113,1),".") -> Айбек кызы Г. . | J113: 2001-05-31 | K113: Нарынская обл. Кыргызкой Республики | L113: Кыргыская Республика | M113: ж | N113: Средняя школа имени Кайыпа Темирова | O113: 2018 | Q113: Кыргыская Республика | Z113: Экономический | AA113: 38.03.96 | AB113: Экономика | AC113: Финансы и кредит | AD113: 5 лет | AE113: БАКАЛАВР | AF113: 2-685 | AG113: 2018-08-31 | AH113: по договору с полным возмещением затрат | AI113: 000005152 | AJ113: 2018-07-23 | CA113: 1 | CB113: 212z
A114: =A113+1 -> 111 | B114: Мейманбеков | C114: Рамазан | D114: Мейманбекович | E114: =CONCATENATE(B114," ",LEFT(C114,1),". ",LEFT(D114,1),".") -> Мейманбеков Р. М. | J114: 2000-01-11 | K114: Жалал-Абадская обл. Кыргызской Республики | L114: Кыргыская Республика | M114: м | N114: Общеобразовательная средняя школа №5 Барктабаса Тогуз-Тороуского района Жалал-Абадской области | O114: 2018 | Q114: Кыргыская Республика | Z114: Экономический | AA114: 38.03.96 | AB114: Экономика | AC114: Финансы и кредит | AD114: 5 лет | AE114: БАКАЛАВР | AF114: 2-685 | AG114: 2018-08-31 | AH114: по договору с полным возмещением затрат | AI114: 000005157 | AJ114: 2018-07-23 | CA114: 1 | CB114: 212z
A115: =A114+1 -> 112 | B115: Жеенкулов | C115: Байэл | D115: Ташмырзаевич | E115: =CONCATENATE(B115," ",LEFT(C115,1),". ",LEFT(D115,1),".") -> Жеенкулов Б. Т. | J115: 2000-05-29 | K115: Жалал-Абадская обл. Кыргызской Республики | L115: Кыргыская Республика | M115: м | N115: Общеобразовательная средняя школа №1 имени Т. Балтагулова | O115: 2018 | Q115: Кыргыская Республика | Z115: Экономический | AA115: 38.03.96 | AB115: Экономика | AC115: Финансы и кредит | AD115: 5 лет | AE115: БАКАЛАВР | AF115: 2-685 | AG115: 2018-08-31 | AH115: по договору с полным возмещением затрат | AI115: 000005155 | AJ115: 2018-07-23 | CA115: 1 | CB115: 212z
A116: =A115+1 -> 113 | B116: Торокулов | C116: Айдар | D116: Бакытбекович | E116: =CONCATENATE(B116," ",LEFT(C116,1),". ",LEFT(D116,1),".") -> Торокулов А. Б. | J116: 1998-07-11 | K116: Нарынская обл. Кыргызкой Республики | L116: Кыргыская Республика | M116: м | N116: Профессиональный колледж института современных информационных технологий в образовании г. Бишкек | O116: 2015 | Q116: Кыргыская Республика | Z116: Экономический | AA116: 38.03.96 | AB116: Экономика | AC116: Финансы и кредит | AD116: 5 лет | AE116: БАКАЛАВР | AF116: 2-685 | AG116: 2018-08-31 | AH116: по договору с полным возмещением затрат | AI116: 000005162 | AJ116: 2018-07-23 | CA116: 1 | CB116: 212z
A117: =A116+1 -> 114 | B117: Эмилова | C117: Акара | D117: Эмиловна | E117: =CONCATENATE(B117," ",LEFT(C117,1),". ",LEFT(D117,1),".") -> Эмилова А. Э. | J117: 2001-04-08 | K117: Жалал-Абадская обл. Кыргызской Республики | L117: Кыргыская Республика | M117: ж | N117: Общеобразовательная средняя школа №1 имени С. Токтогула Токтогульского р-на Жалал-Абадской обл | O117: 2018 | Q117: Кыргыская Республика | Z117: Экономический | AA117: 38.03.96 | AB117: Экономика | AC117: Финансы и кредит | AD117: 5 лет | AE117: БАКАЛАВР | AF117: 2-685 | AG117: 2018-08-31 | AH117: по договору с полным возмещением затрат | AI117: 000005161 | AJ117: 2018-07-23 | CA117: 1 | CB117: 212z
A118: =A117+1 -> 115 | B118: Бакытбек уулу | C118: Нуржигит | E118: =CONCATENATE(B118," ",LEFT(C118,1),". ",LEFT(D118,1),".") -> Бакытбек уулу Н. . | J118: 1999-09-14 | K118: Жалал-Абадская обл. Кыргызской Республики | L118: Кыргыская Республика | M118: м | N118: Общеобразовательная средняя школа №36 им. Жоомарта Боконбаева с гимназическими классами Аксыйского р-на Жалал-Абадской обл. | O118: 2017 | Q118: Кыргыская Республика | Z118: Экономический | AA118: 38.03.96 | AB118: Экономика | AC118: Финансы и кредит | AD118: 5 лет | AE118: БАКАЛАВР | AF118: 2-685 | AG118: 2018-08-31 | AH118: по договору с полным возмещением затрат | AI118: 000005154 | AJ118: 2018-07-23 | CA118: 1 | CB118: 212z
A119: =A118+1 -> 116 | B119: Токоев | C119: Закир | D119: Пайзиллаевич | E119: =CONCATENATE(B119," ",LEFT(C119,1),". ",LEFT(D119,1),".") -> Токоев З. П. | J119: 1986-06-12 | K119: Чуйская обл. Кыргызкой Республики | L119: Кыргыская Республика | M119: м | N119: Средняя школа имени Шакирова Камчибека Ысык-Атинского р-на Чуйской обл. | O119: 2003 | Q119: Кыргыская Республика | Z119: Экономический | AA119: 38.03.96 | AB119: Экономика | AC119: Финансы и кредит | AD119: 5 лет | AE119: БАКАЛАВР | AF119: 2-685 | AG119: 2018-08-31 | AH119: по договору с полным возмещением затрат | AI119: 000005160 | AJ119: 2018-07-23 | CA119: 1 | CB119: 212z
A120: =A119+1 -> 117 | B120: Нурбекова | C120: Асель | D120: Нурбековна | E120: =CONCATENATE(B120," ",LEFT(C120,1),". ",LEFT(D120,1),".") -> Нурбекова А. Н. | J120: 1998-12-14 | K120: г. Бишкек Кыргыская Республика | L120: Кыргыская Республика | M120: ж | N120: Средняя общеобразовательная школа №82 г. Бишкек | O120: 2017 | Q120: Кыргыская Республика | Z120: Экономический | AA120: 38.03.96 | AB120: Экономика | AC120: Финансы и кредит | AD120: 5 лет | AE120: БАКАЛАВР | AF120: 2-685 | AG120: 2018-08-31 | AH120: по договору с полным возмещением затрат | AI120: 000005158 | AJ120: 2018-07-23 | CA120: 1 | CB120: 212z
A121: =A120+1 -> 118 | B121: Нуржанов | C121: Айдар | D121: Нуржанович | E121: =CONCATENATE(B121," ",LEFT(C121,1),". ",LEFT(D121,1),".") -> Нуржанов А. Н. | J121: 2000-06-07 | K121: Чуйская обл. Кыргызкой Республики | L121: Кыргыская Республика | M121: м | N121: Профессиональный лицей №23 г. Токмок Чуйской обл. | O121: 2018 | Q121: Кыргыская Республика | Z121: Экономический | AA121: 38.03.96 | AB121: Экономика | AC121: Финансы и кредит | AD121: 5 лет | AE121: БАКАЛАВР | AF121: 2-685 | AG121: 2018-08-31 | AH121: по договору с полным возмещением затрат | AI121: 000005159 | AJ121: 2018-07-23 | CA121: 1 | CB121: 212z

Sheet форма
A1: Федеральное государственное бюджетное образовательное учреждения высшего образования | I1: 26 | P1: января | Z1: Папка | AA1: C:\5\
A2: «Костромская государственная сельскохозяйственная академия» | J2: =IF(J3="Экономический",деканаты!F2,IF(J3="Архитектурно-строительный",деканаты!F3,IF(J3="Агробизнеса",деканаты!F4,IF(J3="Ветеринарной медицины и зоотехнии",деканаты!F5,IF(J3="Инженерно-технологический",деканаты!F6,IF(J3="Электроэнергетический",деканаты!F7,0)))))) -> И.о. декана | P2: февраля | Z2: Имя файла | AA2: =CONCATENATE(R11,"_","УК_",S25) -> 15738з_УК_2015
B3: =J3 -> Экономический | J3: =INDEX(Предметы!$B$6:$JR$147,$I1,25) -> Экономический | N3: Удовлетворительно | O3: Удовлет. | P3: марта | AA3: =NOW() -> 2018-09-26T14:37:14.560
B4: Факультет | N4: Хорошо | O4: Хорошо | P4: апреля | Z4: - сохранить карточку в PDF
B5: =CONCATENATE(J5," ",K5) -> 38.03.40 Экономика | J5: =INDEX(Предметы!$B$6:$JR$147,$I1,26) -> 38.03.40 | K5: =INDEX(Предметы!$B$6:$JR$147,$I1,27) -> Экономика | N5: Отлично | O5: Отлично | P5: мая
B6: Направление | N6: Зачет | O6: Зачет | P6: июня
B7: =J7 -> Финансы и кредит | J7: =INDEX(Предметы!$B$6:$JR$147,$I1,28) -> Финансы и кредит | P7: июля
B8: Профиль | P8: августа
A9: Учебная карточка студента | P9: сентября
G10: Личное дело № | P10: октября
A11: 1 | B11: =CONCATENATE(J11," ",K11," ",L11) -> Дмитриева Дарья Аркадьевна | I11: 1 | J11: =INDEX(Предметы!$B$6:$JR$147,$I1,1) -> Дмитриева | K11: =INDEX(Предметы!$B$6:$JR$147,$I1,2) -> Дарья | L11: =INDEX(Предметы!$B$6:$JR$147,$I1,3) -> Аркадьевна | M11: =INDEX(Предметы!$B$6:$JR$147,$I1,12) -> ж | N11: =IF(M11="м","","а") -> а | P11: ноября | R11: =INDEX(Предметы!$B$6:$JR$147,$I1,24) -> 15738з
B12: Фамилия, имя, отчество | I12: 1 | P12: декабря
A13: =A11+1 -> 2 | B13: =CONCATENATE(L13," ",O13," ",M13) -> 19 декабря 1992 | I13: 1 | J13: =INDEX(Предметы!$B$6:$JR$147,$I1,9) -> 33957 | K13: =TEXT(J13,"ДД ММММ ГГГГ") -> 19 Декабрь 1992 | L13: =TEXT(J13,"ДД") -> 19 | M13: =TEXT(J13,"ГГГГ") -> 1992 | N13: =VALUE(TEXT(J13,"М")) -> 12 | O13: =CHOOSE(N13,$P$1,$P$2,$P$3,$P$4,$P$5,$P$6,P7,P8,P9,P10,P11,P12) -> декабря
B14: Год и месяц рождения | I14: 1
A15: =A13+1 -> 3 | B15: =J15 -> п.Волгореченск Костромской обл. | I15: 1 | J15: =INDEX(Предметы!$B$6:$JR$147,$I1,10) -> п.Волгореченск Костромской обл.
B16: Место рождения | I16: 1
A17: =A15+1 -> 4 | B17: =J17 -> РФ | I17: 1 | J17: =INDEX(Предметы!$B$6:$JR$147,$I1,11) -> РФ
B18: Гражданство | I18: 1
A19: =A17+1 -> 5 | B19: =J19 -> ОГБ ПОУ "Костромской лесомеханический колледж" | G19: год окончания | H19: =K19 -> 2015 | I19: 1 | J19: =INDEX(Предметы!$B$6:$JR$147,$I1,13) -> ОГБ ПОУ "Костромской лесомеханический колледж" | K19: =INDEX(Предметы!$B$6:$JR$147,$I1,14) -> 2015
B20: Что окончил (а) | I20: 1
A21: =A19+1 -> 6 | B21: =J21 -> незамужем | I21: 1 | J21: =INDEX(Предметы!$B$6:$JR$147,$I1,15) -> незамужем
B22: Семейное положение | I22: 1
A23: =A21+1 -> 7 | B23: =J23 -> Костромская обл., г.Волгореченск, ул. им50-летия Ленинского Комсомола, д.36, кв. 27 | J23: =INDEX(Предметы!$B$6:$JR$147,$I1,16) -> Костромская обл., г.Волгореченск, ул. им50-летия Ленинского Комсомола, д.36, кв. 27
B24: Адрес местожительства
A25: =A23+1 -> 8 | B25: =CONCATENATE("Зачислен",N11," в вуз приказ № ",J25," от ",L25,"") -> Зачислена в вуз приказ № 2-557 от 21.08.2015 | I25: 1 | J25: =INDEX(Предметы!$B$6:$JR$147,$I1,31) -> 2-557 | K25: =INDEX(Предметы!$B$6:$JR$147,$I1,32) -> 42237 | L25: =TEXT(K25,"ДД.ММ.ГГГГ") -> 21.08.2015 | S25: =TEXT(K25,"ГГГГ") -> 2015
B26: =CONCATENATE(J26,M26) -> по договору с полным возмещением затрат договор № 000003633 от 12 08 2015 | I26: 1 | J26: =INDEX(Предметы!$B$6:$JR$147,$I1,33) -> по договору с полным возмещением затрат | K26: =INDEX(Предметы!$B$6:$JR$147,$I1,34) -> 000003633 | L26: =INDEX(Предметы!$B$6:$JR$147,$I1,35) -> 42228 | M26: =IF(K26=0,"",CONCATENATE(" договор № ",K26," от ",TEXT(L26,"ДД ММ ГГГГ") )) -> договор № 000003633 от 12 08 2015
A27: =A25+I25 -> 9 | B27: =CONCATENATE("Трудовая книжка ",M27) -> Трудовая книжка | I27: =IF(J27=0,0,1) -> 0 | J27: =INDEX(Предметы!$B$6:$JR$147,$I1,17) -> 0 | M27: =IF(J27=0,"",CONCATENATE(" № ",J27," дата выдачи ",TEXT(K27,"ДД.ММ.ГГГГ")," выдана ",L27)) -> 
I28: =I27 -> 0
A29: =A27+I27 -> 9 | B29: =CONCATENATE("Отчислен",N11," ",M29) -> Отчислена | I29: =IF(J29=0,0,1) -> 0 | J29: =INDEX(Предметы!$B$6:$JR$147,$I1,38) -> 0 | K29: =INDEX(Предметы!$B$6:$JR$147,$I1,39) -> 0 | L29: =INDEX(Предметы!$B$6:$JR$147,$I1,40) -> 0 | M29: =IF(J29=0,"",CONCATENATE(" приказ № ",J29," от ",TEXT(K29,"ДД.ММ.ГГГГ")," ",IF(L29=0,"",L29))) -> 
I30: =I29 -> 0
A31: =A29+I29 -> 9 | B31: =CONCATENATE("Востановлен",N11," ",M31) -> Востановлена | I31: =IF(J31=0,0,1) -> 0 | J31: =INDEX(Предметы!$B$6:$JR$147,$I$1,41) -> 0 | K31: =INDEX(Предметы!$B$6:$JR$147,$I$1,42) -> 0 | L31: =INDEX(Предметы!$B$6:$JR$147,$I$1,43) -> 0 | M31: =IF(J31=0,"",CONCATENATE(" приказ № ",J31," от ",TEXT(K31,"ДД.ММ.ГГГГ")," ",IF(L31=0,"",L31))) -> 
I32: =I31 -> 0
A33: =A31+I31 -> 9 | B33: =CONCATENATE("Предоставлен длительный отпуск",O33) -> Предоставлен длительный отпуск | I33: =IF(J33=0,0,1) -> 0 | J33: =INDEX(Предметы!$B$6:$JR$147,$I1,44) -> 0 | K33: =INDEX(Предметы!$B$6:$JR$147,$I1,45) -> 0 | L33: =INDEX(Предметы!$B$6:$JR$147,$I1,46) -> 0 | M33: =INDEX(Предметы!$B$6:$JR$147,$I1,47) -> 0 | N33: =INDEX(Предметы!$B$6:$JR$147,$I1,48) -> 0 | O33: =IF(J33=0,"",CONCATENATE(" сроком на ",IF(N34=0,"____",N34),O34," приказ № ",J33," от ",J34)) -> 
B34: =L33 -> 0 | D34: =IF(J33=0,"",CONCATENATE("с ",K34," по ",L34)) ->  | I34: =I33 -> 0 | J34: =TEXT(K33,"ДД.ММ.ГГГГ") -> 00.01.1900 | K34: =TEXT(M33,"ДД.ММ.ГГГГ") -> 00.01.1900 | L34: =TEXT(N33,"ДД.ММ.ГГГГ") -> 00.01.1900 | M34: =N33-M33+182 -> 182 | N34: =INT(M34/365+0.1) -> 0 | O34: =IF(N34=1," год"," года") -> года
A35: =A33+I33 -> 9 | B35: =CONCATENATE("Переведен",N11,M35) -> Переведена на 2 курс приказ № 2-561 от 01.09.2016 | I35: 1 | J35: =INDEX(Предметы!$B$6:$JR$147,$I1,49) -> 2-561 | K35: =INDEX(Предметы!$B$6:$JR$147,$I1,50) -> 42614 | L35: =TEXT(K35,"ДД.ММ.ГГГГ") -> 01.09.2016 | M35: =IF(J35=0,"",CONCATENATE(" на 2 курс приказ № ",J35," от ",L35,"")) -> на 2 курс приказ № 2-561 от 01.09.2016
A37: =A35+I35 -> 10 | B37: =CONCATENATE("Переведен",N11,M37) -> Переведена на 3 курс приказ № 2-703 от 01.09.2017 | I37: 1 | J37: =INDEX(Предметы!$B$6:$JR$147,$I1,51) -> 2-703 | K37: =INDEX(Предметы!$B$6:$JR$147,$I1,52) -> 42979 | L37: =TEXT(K37,"ДД.ММ.ГГГГ") -> 01.09.2017 | M37: =IF(J37=0,"",CONCATENATE(" на 3 курс приказ № ",J37," от ",L37,"")) -> на 3 курс приказ № 2-703 от 01.09.2017
A39: =A37+I37 -> 11 | B39: =CONCATENATE("Переведен",N11,M39) -> Переведена | I39: 1 | J39: =INDEX(Предметы!$B$6:$JR$147,$I1,53) -> 0 | K39: =INDEX(Предметы!$B$6:$JR$147,$I1,54) -> 0 | L39: =TEXT(K39,"ДД.ММ.ГГГГ") -> 00.01.1900 | M39: =IF(J39=0,"",CONCATENATE(" на 4 курс приказ № ",J39," от ",L39,"")) -> 
A41: =A39+I39 -> 12 | B41: =CONCATENATE("Переведен",N11,M41) -> Переведена | I41: 1 | J41: =INDEX(Предметы!$B$6:$JR$147,$I1,55) -> 0 | K41: =INDEX(Предметы!$B$6:$JR$147,$I1,56) -> 0 | L41: =TEXT(K41,"ДД.ММ.ГГГГ") -> 00.01.1900 | M41: =IF(J41=0,"",CONCATENATE(" на 5 курс приказ № ",J41," от ",L41,"")) -> 
I42: 1
A43: =A41+I41 -> 13 | B43: =CONCATENATE("Сдано за весь срок обучения ",N43," предметов, средний балл ",O43) -> Сдано за весь срок обучения 23 предметов, средний балл 1,76 | I43: 1 | J43: =INDEX(Предметы!$B$6:$JR$147,$I1,271) -> 6 | K43: =INDEX(Предметы!$B$6:$JR$147,$I1,272) -> 15 | L43: =INDEX(Предметы!$B$6:$JR$147,$I1,273) -> 2 | M43: =INDEX(Предметы!$B$6:$JR$147,$I1,274) -> 10 | N43: =INDEX(Предметы!$B$6:$JR$147,$I1,275) -> 23 | O43: =INDEX(Предметы!$B$6:$JR$147,$I1,269) -> 1.76
B44: =CONCATENATE(" из них: отлично - ",L44,"; хорошо - ",K44,"; удовлетворительно - ",J44) -> из них: отлично - 2; хорошо - 15; удовлетворительно - 6 | I44: 1 | J44: =IF(J43=0,"нет",J43) -> 6 | K44: =IF(K43=0,"нет",K43) -> 15 | L44: =IF(L43=0,"нет",L43) -> 2 | M44: =IF(M43=0,"нет",M43) -> 10
A45: =A43+I43 -> 14 | B45: =CONCATENATE("Допущен",N11," к защите выпускной квалификационной работы ",M45) -> Допущена к защите выпускной квалификационной работы | I45: 1 | J45: =INDEX(Предметы!$B$6:$JR$147,$I1,61) -> 0 | K45: =INDEX(Предметы!$B$6:$JR$147,$I1,62) -> 0 | L45: =TEXT(K45,"ДД.ММ.ГГГГ") -> 00.01.1900 | M45: =IF(J45=0,"",CONCATENATE(" приказ № ",J45," от ",L45)) -> 
I46: 1
A47: =A45+I45 -> 15 | B47: Итоговый экзамен: | I47: 1
A48: № | B48: Название дисциплины | F48: Дата сдачи экзамена | G48: Экзаменационная оценка | I48: 1
A49: =IF(B49=0,"",1) -> 1 | B49: =IF(J49=0,"",J49) ->  | F49: =IF(K49=0,"",TEXT(K49,"ДД.ММ.ГГГГ")) ->  | G49: =IF(L49=0,"",M49) ->  | I49: =IF(J49=0,0,1) -> 0 | J49: =INDEX(Предметы!$B$6:$JR$147,$I1,63) -> 0 | K49: =INDEX(Предметы!$B$6:$JR$147,$I1,64) -> 0 | L49: =INDEX(Предметы!$B$6:$JR$147,$I1,65) -> 0 | M49: =CHOOSE(L49,$N$1,$N$2,$N$3,$N$4,$N$5,$N$6) -> 
A50: =IF(B50=0,"",2) -> 2 | B50: =IF(J50=0,"",J50) ->  | F50: =IF(K50=0,"",TEXT(K50,"ДД.ММ.ГГГГ")) ->  | I50: =IF(J50=0,0,1) -> 0 | J50: =INDEX(Предметы!$B$6:$JR$147,$I1,66) -> 0 | K50: =INDEX(Предметы!$B$6:$JR$147,$I1,67) -> 0 | L50: =INDEX(Предметы!$B$6:$JR$147,$I1,68) -> 0 | M50: =CHOOSE(L50,$N$1,$N$2,$N$3,$N$4,$N$5,$N$6) -> 
I51: 1
A52: =A47+I47 -> 16 | B52: =CONCATENATE("Дипломный проект (работу) выполнил",N11," на тему: """,IF(J52=0,"",J52),"""") -> Дипломный проект (работу) выполнила на тему: "" | I52: 1 | J52: =INDEX(Предметы!$B$6:$JR$147,$I1,69) -> 0
B53: =CONCATENATE("и защитил",N11," ",IF(K54=0,"____________",L54)," с оценкой ",IF(J53=0,"__________",K53)) -> и защитила ____________ с оценкой __________ | I53: 1 | J53: =INDEX(Предметы!$B$6:$JR$147,$I1,70) -> 0 | K53: =CHOOSE(J53,$N$1,$N$2,$N$3,$N$4,$N$5,$N$6) -> 
A54: =A52+I52 -> 17 | B54: =CONCATENATE("Постановлением государственной аттестационной комиссии (протокол № ",IF(J54=0,"____",J54)," от ",IF(J54=0,"____________",L54)," )") -> Постановлением государственной аттестационной комиссии (протокол № ____ от ____________ ) | I54: 1 | J54: =INDEX(Предметы!$B$6:$JR$147,$I1,71) -> 0 | K54: =INDEX(Предметы!$B$6:$JR$147,$I1,72) -> 0 | L54: =TEXT(K54,"ДД.ММ.ГГГГ") -> 00.01.1900 | M54: =INDEX(Предметы!$B$6:$JR$147,$I1,30) -> БАКАЛАВР
B55: =CONCATENATE("присвоена квалификация ",IF(J54=0,"__________",M54)) -> присвоена квалификация __________ | I55: 1
B56: =CONCATENATE("Диплом с отличием, без отличия, за № ",M56," выдан ",L56) -> Диплом с отличием, без отличия, за № 0 выдан 00.01.1900 | I56: =IF(K56=0,0,1) -> 0 | K56: =INDEX(Предметы!$B$6:$JR$147,$I1,77) -> 0 | L56: =TEXT(K56,"ДД.ММ.ГГГГ") -> 00.01.1900 | M56: =INDEX(Предметы!$B$6:$JR$147,$I1,76) -> 0
B57: =CONCATENATE(J2," факультета ______________________",J57) -> И.о. декана факультета ______________________Н.А. Середа | I57: 1 | J57: =IF(J3="Экономический",деканаты!D2,IF(J3="Архитектурно-строительный",деканаты!D3,IF(J3="Агробизнеса",деканаты!D4,IF(J3="Ветеринарной медицины и зоотехнии",деканаты!D5,IF(J3="Инженерно-технологический",деканаты!D6,IF(J3="Электроэнергетический",деканаты!D7,0)))))) -> Н.А. Середа | K57: 3 | L57: 3 | M57: 3 | N57: 3 | O57: 3 | P57: 3 | Q57: 3 | R57: 3 | S57: 3 | T57: 3 | U57: 3 | V57: 3
A58: =A54+I53 -> 18 | B58: Выполнение учебного плана | I58: 1 | K58: 1 | L58: 2 | M58: 3 | N58: 4 | O58: 5 | P58: 6 | Q58: 7 | R58: 8 | S58: 9 | T58: 10 | U58: 11 | V58: 12
A59: Семестры | B59: Название предмета | D59: Число часов по плану/ зачетных единиц | E59: Экзамена- ционная оценка | F59: Отметка о зачете | G59: Дата ведомости | I59: 1 | J59: =I1 -> 26 | K59: =COUNTIF(Предметы!$CC$2:$JG$2,1) -> 0 | L59: =COUNTIF(Предметы!$CC$2:$JG$2,2) -> 8 | M59: =COUNTIF(Предметы!$CC$2:$JG$2,3) -> 5 | N59: =COUNTIF(Предметы!$CC$2:$JG$2,4) -> 9 | O59: =COUNTIF(Предметы!$CC$2:$JG$2,5) -> 5 | P59: =COUNTIF(Предметы!$CC$2:$JG$2,6) -> 8 | Q59: =COUNTIF(Предметы!$CC$2:$JG$2,7) -> 7 | R59: =COUNTIF(Предметы!$CC$2:$JG$2,8) -> 7 | S59: =COUNTIF(Предметы!$CC$2:$JG$2,9) -> 12 | T59: =COUNTIF(Предметы!$CC$2:$JG$2,10) -> 2 | U59: =COUNTIF(Предметы!$CC$2:$JG$2,11) -> 0 | V59: =COUNTIF(Предметы!$CC$2:$JG$2,12) -> 0
A60: =K60 -> 2 | B60: Делопроизводство и документооборот в финансовой сфере | D60: =CONCATENATE(Предметы!CC3," / ",Предметы!CC3/36) -> 216 / 6 | E60: =IF(AND(L60>2, L60<6),P60,"------") -> Хорошо | F60: =IF(M60=0,"------",IF(L60=6,P60,"------")) -> ------ | G60: =CONCATENATE(IF(M60=0,"------",N60)," ",IF(O60=0,"",CONCATENATE("№ ",O60))) -> 05.06.2018 № 77610134 | I60: =IF(M60=0,0,1) -> 1 | J60: 5 | K60: =Предметы!CC2 -> 2 | L60: =INDEX(Предметы!$B$6:$JR$147,$I1,80) -> 4 | M60: =INDEX(Предметы!$B$6:$JR$147,$I1,81) -> 43256 | N60: =TEXT(M60,"ДД.ММ.ГГГГ") -> 05.06.2018 | O60: =INDEX(Предметы!$B$6:$JR$147,$I1,82) -> 77610134 | P60: =CHOOSE(L60,$O$1,$O$2,$O$3,$O$4,$O$5,$O$6) -> Хорошо
A61: =K61 -> 2 | B61: Введение в профессию и основы научных исследований | D61: =CONCATENATE(Предметы!CF3," / ",Предметы!CF3/36) -> 108 / 3 | E61: =IF(AND(L61>2, L61<6),P61,"------") -> ------ | F61: =IF(M61=0,"------",IF(L61=6,P61,"------")) -> Зачет | G61: =CONCATENATE(IF(M61=0,"------",N61)," ",IF(O61=0,"",CONCATENATE("№ ",O61))) -> 05.06.2018 № 77610110 | I61: =IF(M61=0,0,1) -> 1 | J61: =J60+1 -> 6 | K61: =Предметы!CF2 -> 2 | L61: =INDEX(Предметы!$B$6:$JR$147,$I1,83) -> 6 | M61: =INDEX(Предметы!$B$6:$JR$147,$I1,84) -> 43256 | N61: 05.06.2018 | O61: =INDEX(Предметы!$B$6:$JR$147,$I1,85) -> 77610110 | P61: =CHOOSE(L61,$O$1,$O$2,$O$3,$O$4,$O$5,$O$6) -> Зачет
A62: 2 | B62: История | D62: =CONCATENATE(Предметы!CI3," / ",Предметы!CI3/36) -> 108 / 3 | E62: Хорошо | F62: ------ | G62: 11.06.2016 | I62: 1 | J62: =J61+1 -> 7 | K62: =Предметы!CI2 -> 2 | L62: =INDEX(Предметы!$B$6:$JR$147,$I1,86) -> 4 | M62: =INDEX(Предметы!$B$6:$JR$147,$I1,87) -> 42532 | N62: 11.06.2016 | O62: =INDEX(Предметы!$B$6:$JR$147,$I1,88) -> 0 | P62: Хорошо
A63: 2 | B63: Психология | D63: =CONCATENATE(Предметы!CL3," / ",Предметы!CL3/36) -> 72 / 2 | E63: ------ | F63: Зачет | G63: 11.06.2016 | I63: 1 | J63: 8 | K63: =Предметы!CL2 -> 2 | L63: =INDEX(Предметы!$B$6:$JR$147,$I1,89) -> 6 | M63: =INDEX(Предметы!$B$6:$JR$147,$I1,90) -> 42532 | N63: 11.06.2016 | O63: =INDEX(Предметы!$B$6:$JR$147,$I1,91) -> 0 | P63: Зачет
A64: 2 | B64: Математический анализ | D64: =CONCATENATE(Предметы!CO3," / ",Предметы!CO3/36) -> 216 / 6 | E64: Хорошо | F64: ------ | G64: 11.06.2016 | I64: 1 | J64: 9 | K64: =Предметы!CO2 -> 2 | L64: =INDEX(Предметы!$B$6:$JR$147,$I1,92) -> 4 | M64: =INDEX(Предметы!$B$6:$JR$147,$I1,93) -> 42532 | N64: 11.06.2016 | O64: =INDEX(Предметы!$B$6:$JR$147,$I1,94) -> 0 | P64: Хорошо
A65: 2 | B65: Линейная алгебра | D65: =CONCATENATE(Предметы!CR3," / ",Предметы!CR3/36) -> 252 / 7 | E65: Удовлет. | F65: ------ | G65: 11.06.2016 | I65: 1 | J65: 10 | K65: =Предметы!CR2 -> 2 | L65: =INDEX(Предметы!$B$6:$JR$147,$I1,95) -> 3 | M65: =INDEX(Предметы!$B$6:$JR$147,$I1,96) -> 42532 | N65: 11.06.2016 | O65: =INDEX(Предметы!$B$6:$JR$147,$I1,97) -> 0 | P65: Удовлет.
A66: 2 | B66: Информатика и информационное обеспечение финансовой деятельности | D66: =CONCATENATE(Предметы!CU3," / ",Предметы!CU3/36) -> 360 / 10 | E66: Хорошо | F66: ------ | G66: 11.06.2016 | I66: 1 | J66: 11 | K66: =Предметы!CU2 -> 2 | L66: =INDEX(Предметы!$B$6:$JR$147,$I1,98) -> 4 | M66: =INDEX(Предметы!$B$6:$JR$147,$I1,99) -> 42532 | N66: 11.06.2016 | O66: =INDEX(Предметы!$B$6:$JR$147,$I1,100) -> 0 | P66: Хорошо
A67: 2 | B67: Микроэкономика | D67: =CONCATENATE(Предметы!CX3," / ",Предметы!CX3/36) -> 216 / 6 | E67: Удовлет. | F67: ------ | G67: 11.06.2016 | I67: 1 | J67: 12 | K67: =Предметы!CX2 -> 2 | L67: =INDEX(Предметы!$B$6:$JR$147,$I1,101) -> 3 | M67: =INDEX(Предметы!$B$6:$JR$147,$I1,102) -> 42532 | N67: 11.06.2016 | O67: =INDEX(Предметы!$B$6:$JR$147,$I1,103) -> 0 | P67: Удовлет.
A68: 3 | B68: Иностранный язык (З) | D68: =CONCATENATE(Предметы!DA3," / ",Предметы!DA3/36) -> 97 / 2,69444444444444 | E68: ------ | F68: Зачет | G68: 23.12.2016 | I68: 1 | J68: 13 | K68: =Предметы!DA2 -> 3 | L68: =INDEX(Предметы!$B$6:$JR$147,$I1,104) -> 6 | M68: =INDEX(Предметы!$B$6:$JR$147,$I1,105) -> 42727 | N68: 23.12.2016 | O68: =INDEX(Предметы!$B$6:$JR$147,$I1,106) -> 0 | P68: Зачет
A69: 3 | B69: Социология | D69: =CONCATENATE(Предметы!DD3," / ",Предметы!DD3/36) -> 72 / 2 | E69: ------ | F69: Зачет | G69: 23.12.2016 | I69: 1 | J69: 14 | K69: =Предметы!DD2 -> 3 | L69: =INDEX(Предметы!$B$6:$JR$147,$I1,107) -> 6 | M69: =INDEX(Предметы!$B$6:$JR$147,$I1,108) -> 42727 | N69: 23.12.2016 | O69: =INDEX(Предметы!$B$6:$JR$147,$I1,109) -> 0 | P69: Зачет
A70: 3 | B70: Политология | D70: =CONCATENATE(Предметы!DG3," / ",Предметы!DG3/36) -> 180 / 5 | E70: Хорошо | F70: ------ | G70: 23.12.2016 | I70: 1 | J70: 15 | K70: =Предметы!DG2 -> 3 | L70: =INDEX(Предметы!$B$6:$JR$147,$I1,110) -> 4 | M70: =INDEX(Предметы!$B$6:$JR$147,$I1,111) -> 42727 | N70: 23.12.2016 | O70: =INDEX(Предметы!$B$6:$JR$147,$I1,112) -> 0 | P70: Хорошо
A71: 3 | B71: Теория вероятности и математическая статистика | D71: =CONCATENATE(Предметы!DJ3," / ",Предметы!DJ3/36) -> 144 / 4 | E71: Отлично | F71: ------ | G71: 23.12.2016 | I71: 1 | J71: 16 | K71: =Предметы!DJ2 -> 3 | L71: =INDEX(Предметы!$B$6:$JR$147,$I1,113) -> 5 | M71: =INDEX(Предметы!$B$6:$JR$147,$I1,114) -> 42727 | N71: 23.12.2016 | O71: =INDEX(Предметы!$B$6:$JR$147,$I1,115) -> 0 | P71: Отлично
A72: 3 | B72: Макроэкономика (З) | D72: =CONCATENATE(Предметы!DM3," / ",Предметы!DM3/36) -> 136 / 3,77777777777778 | E72: ------ | F72: Зачет | G72: 23.12.2016 | I72: 1 | J72: 17 | K72: =Предметы!DM2 -> 3 | L72: =INDEX(Предметы!$B$6:$JR$147,$I1,116) -> 6 | M72: =INDEX(Предметы!$B$6:$JR$147,$I1,117) -> 42727 | N72: 23.12.2016 | O72: =INDEX(Предметы!$B$6:$JR$147,$I1,118) -> 0 | P72: Зачет
A73: 4 | B73: Философия | D73: =CONCATENATE(Предметы!DP3," / ",Предметы!DP3/36) -> 108 / 3 | E73: ------ | F73: Зачет | G73: 21.04.2017 | I73: 1 | J73: 18 | K73: =Предметы!DP2 -> 4 | L73: =INDEX(Предметы!$B$6:$JR$147,$I1,119) -> 6 | M73: =INDEX(Предметы!$B$6:$JR$147,$I1,120) -> 42846 | N73: 21.04.2017 | O73: =INDEX(Предметы!$B$6:$JR$147,$I1,121) -> 0 | P73: Зачет
A74: 4 | B74: Иностранный язык | D74: =CONCATENATE(Предметы!DS3," / ",Предметы!DS3/36) -> 119 / 3,30555555555556 | E74: Хорошо | F74: ------ | G74: 20.04.2017 | I74: 1 | J74: 19 | K74: =Предметы!DS2 -> 4 | L74: =INDEX(Предметы!$B$6:$JR$147,$I1,122) -> 4 | M74: =INDEX(Предметы!$B$6:$JR$147,$I1,123) -> 42845 | N74: 20.04.2017 | O74: =INDEX(Предметы!$B$6:$JR$147,$I1,124) -> 0 | P74: Хорошо
A75: 4 | B75: Макроэкономика | D75: =CONCATENATE(Предметы!DV3," / ",Предметы!DV3/36) -> 188 / 5,22222222222222 | E75: ------ | F75: ------ | G75: ------ | I75: 0 | J75: 20 | K75: =Предметы!DV2 -> 4 | L75: =INDEX(Предметы!$B$6:$JR$147,$I1,125) -> 0 | M75: =INDEX(Предметы!$B$6:$JR$147,$I1,126) -> 0 | N75: 00.01.1900 | O75: =INDEX(Предметы!$B$6:$JR$147,$I1,127) -> 0
A76: 4 | B76: Эконометрика | D76: =CONCATENATE(Предметы!DY3," / ",Предметы!DY3/36) -> 180 / 5 | E76: Удовлет. | F76: ------ | G76: 22.04.2017 | I76: 1 | J76: 21 | K76: =Предметы!DY2 -> 4 | L76: =INDEX(Предметы!$B$6:$JR$147,$I1,128) -> 3 | M76: =INDEX(Предметы!$B$6:$JR$147,$I1,129) -> 42847 | N76: 22.04.2017 | O76: =INDEX(Предметы!$B$6:$JR$147,$I1,130) -> 0 | P76: Удовлет.
A77: 4 | B77: Статистика | D77: =CONCATENATE(Предметы!EB3," / ",Предметы!EB3/36) -> 360 / 10 | E77: Удовлет. | F77: ------ | G77: 22.04.2017 | I77: 1 | J77: 22 | K77: =Предметы!EB2 -> 4 | L77: =INDEX(Предметы!$B$6:$JR$147,$I1,131) -> 3 | M77: =INDEX(Предметы!$B$6:$JR$147,$I1,132) -> 42847 | N77: 22.04.2017 | O77: =INDEX(Предметы!$B$6:$JR$147,$I1,133) -> 0 | P77: Удовлет.
A78: 4 | B78: Физическая культура и спорт | D78: =CONCATENATE(Предметы!EE3," / ",Предметы!EE3/36) -> 72 / 2 | E78: ------ | F78: Зачет | G78: 22.04.2017 | I78: 1 | J78: 23 | K78: =Предметы!EE2 -> 4 | L78: =INDEX(Предметы!$B$6:$JR$147,$I1,134) -> 6 | M78: =INDEX(Предметы!$B$6:$JR$147,$I1,135) -> 42847 | N78: 22.04.2017 | O78: =INDEX(Предметы!$B$6:$JR$147,$I1,136) -> 0 | P78: Зачет
A79: 4 | B79: Общая физическая подготовка | D79: 328 час. | E79: ------ | F79: Зачет | G79: 22.04.2017 | I79: 1 | J79: 24 | K79: =Предметы!EH2 -> 4 | L79: =INDEX(Предметы!$B$6:$JR$147,$I1,137) -> 6 | M79: =INDEX(Предметы!$B$6:$JR$147,$I1,138) -> 42847 | N79: 22.04.2017 | O79: =INDEX(Предметы!$B$6:$JR$147,$I1,139) -> 0 | P79: Зачет
A80: 4 | B80: Деловые коммуникации | D80: =CONCATENATE(Предметы!EK3," / ",Предметы!EK3/36) -> 72 / 2 | E80: ------ | F80: Зачет | G80: 22.04.2017 | I80: 1 | J80: 25 | K80: =Предметы!EK2 -> 4 | L80: =INDEX(Предметы!$B$6:$JR$147,$I1,140) -> 6 | M80: =INDEX(Предметы!$B$6:$JR$147,$I1,141) -> 42847 | N80: 22.04.2017 | O80: =INDEX(Предметы!$B$6:$JR$147,$I1,142) -> 0 | P80: Зачет
A81: 5 | B81: Методы оптимальных решений | D81: =CONCATENATE(Предметы!EQ3," / ",Предметы!EQ3/36) -> 144 / 4 | E81: Удовлет. | F81: ------ | G81: 02.12.2017 | I81: 1 | J81: 26 | K81: =Предметы!EQ2 -> 5 | L81: =INDEX(Предметы!$B$6:$JR$147,$I1,146) -> 3 | M81: =INDEX(Предметы!$B$6:$JR$147,$I1,147) -> 43071 | N81: 02.12.2017 | O81: =INDEX(Предметы!$B$6:$JR$147,$I1,148) -> 0 | P81: Удовлет.
A82: 5 | B82: Информационные технологии и базы данных в сфере финансов и кредита | D82: =CONCATENATE(Предметы!ET3," / ",Предметы!ET3/36) -> 144 / 4 | E82: Хорошо | F82: ------ | G82: 02.12.2017 | I82: 1 | J82: 27 | K82: =Предметы!ET2 -> 5 | L82: =INDEX(Предметы!$B$6:$JR$147,$I1,149) -> 4 | M82: =INDEX(Предметы!$B$6:$JR$147,$I1,150) -> 43071 | N82: 02.12.2017 | O82: =INDEX(Предметы!$B$6:$JR$147,$I1,151) -> 0 | P82: Хорошо
A83: 5 | B83: Программирование финансовых операций | D83: =CONCATENATE(Предметы!EW3," / ",Предметы!EW3/36) -> 216 / 6 | E83: Хорошо | F83: ------ | G83: 02.12.2017 | I83: 1 | J83: 28 | K83: =Предметы!EW2 -> 5 | L83: =INDEX(Предметы!$B$6:$JR$147,$I1,152) -> 4 | M83: =INDEX(Предметы!$B$6:$JR$147,$I1,153) -> 43071 | N83: 02.12.2017 | O83: =INDEX(Предметы!$B$6:$JR$147,$I1,154) -> 0 | P83: Хорошо
A84: 5 | B84: Бухгалтерский учет и анализ | D84: =CONCATENATE(Предметы!EZ3," / ",Предметы!EZ3/36) -> 216 / 6 | E84: Хорошо | F84: ------ | G84: 02.12.2017 | I84: 1 | J84: 29 | K84: =Предметы!EZ2 -> 5 | L84: =INDEX(Предметы!$B$6:$JR$147,$I1,155) -> 4 | M84: =INDEX(Предметы!$B$6:$JR$147,$I1,156) -> 43071 | N84: 02.12.2017 | O84: =INDEX(Предметы!$B$6:$JR$147,$I1,157) -> 0 | P84: Хорошо
A85: 5 | B85: Мировая экономика и международные экономические отношения | D85: =CONCATENATE(Предметы!FC3," / ",Предметы!FC3/36) -> 144 / 4 | E85: Хорошо | F85: ------ | G85: 02.12.2017 | I85: 1 | J85: 30 | K85: =Предметы!FC2 -> 5 | L85: =INDEX(Предметы!$B$6:$JR$147,$I1,158) -> 4 | M85: =INDEX(Предметы!$B$6:$JR$147,$I1,159) -> 43071 | N85: 02.12.2017 | O85: =INDEX(Предметы!$B$6:$JR$147,$I1,160) -> 0 | P85: Хорошо
A86: 6 | B86: Регионалистика | D86: =CONCATENATE(Предметы!FF3," / ",Предметы!FF3/36) -> 144 / 4 | E86: Хорошо | F86: ------ | G86: 05.06.2018 № 7769492 | I86: 1 | J86: 31 | K86: =Предметы!FF2 -> 6 | L86: =INDEX(Предметы!$B$6:$JR$147,$I1,161) -> 4 | M86: =INDEX(Предметы!$B$6:$JR$147,$I1,162) -> 43256 | N86: 05.06.2018 | O86: =INDEX(Предметы!$B$6:$JR$147,$I1,163) -> 7769492 | P86: Хорошо
A87: 6 | B87: Методы принятия управленческих решений в сфере финансов и кредита | D87: =CONCATENATE(Предметы!FI3," / ",Предметы!FI3/36) -> 72 / 2 | E87: ------ | F87: Зачет | G87: 05.06.2018 № 7769541 | I87: 1 | J87: 32 | K87: =Предметы!FI2 -> 6 | L87: =INDEX(Предметы!$B$6:$JR$147,$I1,164) -> 6 | M87: =INDEX(Предметы!$B$6:$JR$147,$I1,165) -> 43256 | N87: 05.06.2018 | O87: =INDEX(Предметы!$B$6:$JR$147,$I1,166) -> 7769541 | P87: Зачет
A88: 6 | B88: Финансы | D88: =CONCATENATE(Предметы!FL3," / ",Предметы!FL3/36) -> 144 / 4 | E88: Отлично | F88: ------ | G88: 05.06.2018 № 7769554 | I88: 1 | J88: 33 | K88: =Предметы!FL2 -> 6 | L88: =INDEX(Предметы!$B$6:$JR$147,$I1,167) -> 5 | M88: =INDEX(Предметы!$B$6:$JR$147,$I1,168) -> 43256 | N88: 05.06.2018 | O88: =INDEX(Предметы!$B$6:$JR$147,$I1,169) -> 7769554 | P88: Отлично
A89: 6 | B89: Деньги, кредит, банки | D89: =CONCATENATE(Предметы!FR3," / ",Предметы!FR3/36) -> 108 / 3 | E89: Хорошо | F89: ------ | G89: 05.06.2018 № 7769557 | I89: 1 | J89: 34 | K89: =Предметы!FR2 -> 6 | L89: =INDEX(Предметы!$B$6:$JR$147,$I1,173) -> 4 | M89: =INDEX(Предметы!$B$6:$JR$147,$I1,174) -> 43256 | N89: 05.06.2018 | O89: =INDEX(Предметы!$B$6:$JR$147,$I1,175) -> 7769557 | P89: Хорошо
A90: 6 | B90: Моделирование социально-экономических систем | D90: =CONCATENATE(Предметы!FU3," / ",Предметы!FU3/36) -> 180 / 5 | E90: Хорошо | F90: ------ | G90: 05.06.2018 № 7769545 | I90: 1 | J90: 35 | K90: =Предметы!FU2 -> 6 | L90: =INDEX(Предметы!$B$6:$JR$147,$I1,176) -> 4 | M90: =INDEX(Предметы!$B$6:$JR$147,$I1,177) -> 43256 | N90: 05.06.2018 | O90: =INDEX(Предметы!$B$6:$JR$147,$I1,178) -> 7769545 | P90: Хорошо
A91: 7 | B91: Корпоративные финансы | D91: =CONCATENATE(Предметы!GD3," / ",Предметы!GD3/36) -> 144 / 4 | E91: ------ | F91: ------ | G91: ------ | I91: 0 | J91: 36 | K91: =Предметы!GD2 -> 7 | L91: =INDEX(Предметы!$B$6:$JR$147,$I1,185) -> 0 | M91: =INDEX(Предметы!$B$6:$JR$147,$I1,186) -> 0 | N91: 00.01.1900 | O91: =INDEX(Предметы!$B$6:$JR$147,$I1,187) -> 0
A92: 7 | B92: Страхование | D92: =CONCATENATE(Предметы!GJ3," / ",Предметы!GJ3/36) -> 144 / 4 | E92: ------ | F92: ------ | G92: ------ | I92: 0 | J92: 37 | K92: =Предметы!GJ2 -> 7 | L92: =INDEX(Предметы!$B$6:$JR$147,$I1,191) -> 0 | M92: =INDEX(Предметы!$B$6:$JR$147,$I1,192) -> 0 | N92: 00.01.1900 | O92: =INDEX(Предметы!$B$6:$JR$147,$I1,193) -> 0
A93: 7 | B93: Финансовые рынки | D93: =CONCATENATE(Предметы!GM3," / ",Предметы!GM3/36) -> 180 / 5 | E93: ------ | F93: ------ | G93: ------ | I93: 0 | J93: 38 | K93: =Предметы!GM2 -> 7 | L93: =INDEX(Предметы!$B$6:$JR$147,$I1,194) -> 0 | M93: =INDEX(Предметы!$B$6:$JR$147,$I1,195) -> 0 | N93: 00.01.1900 | O93: =INDEX(Предметы!$B$6:$JR$147,$I1,196) -> 0
A94: 7 | B94: Экономика организаций (предприятий) | D94: =CONCATENATE(Предметы!GP3," / ",Предметы!GP3/36) -> 180 / 5 | E94: ------ | F94: ------ | G94: ------ | I94: 0 | J94: 39 | K94: =Предметы!GP2 -> 7 | L94: =INDEX(Предметы!$B$6:$JR$147,$I1,197) -> 0 | M94: =INDEX(Предметы!$B$6:$JR$147,$I1,198) -> 0 | N94: 00.01.1900 | O94: =INDEX(Предметы!$B$6:$JR$147,$I1,199) -> 0
A95: 7 | B95: Планирование на предприятии | D95: =CONCATENATE(Предметы!GV3," / ",Предметы!GV3/36) -> 144 / 4 | E95: ------ | F95: ------ | G95: ------ | I95: 0 | J95: 40 | K95: =Предметы!GV2 -> 7 | L95: =INDEX(Предметы!$B$6:$JR$147,$I1,203) -> 0 | M95: =INDEX(Предметы!$B$6:$JR$147,$I1,204) -> 0 | N95: 00.01.1900 | O95: =INDEX(Предметы!$B$6:$JR$147,$I1,205) -> 0
A96: 8 | B96: Менеджмент | D96: =CONCATENATE(Предметы!GY3," / ",Предметы!GY3/36) -> 144 / 4 | E96: ------ | F96: ------ | G96: ------ | I96: 0 | J96: 41 | K96: =Предметы!GY2 -> 8 | L96: =INDEX(Предметы!$B$6:$JR$147,$I1,206) -> 0 | M96: =INDEX(Предметы!$B$6:$JR$147,$I1,207) -> 0 | N96: 00.01.1900 | O96: =INDEX(Предметы!$B$6:$JR$147,$I1,208) -> 0
A97: 8 | B97: Государственные и муниципальные финансы | D97: =CONCATENATE(Предметы!HB3," / ",Предметы!HB3/36) -> 108 / 3 | E97: ------ | F97: ------ | G97: ------ | I97: 0 | J97: 42 | K97: =Предметы!HB2 -> 8 | L97: =INDEX(Предметы!$B$6:$JR$147,$I1,209) -> 0 | M97: =INDEX(Предметы!$B$6:$JR$147,$I1,210) -> 0 | N97: 00.01.1900 | O97: =INDEX(Предметы!$B$6:$JR$147,$I1,211) -> 0
A98: 8 | B98: Налоги и налоговая система | D98: =CONCATENATE(Предметы!HE3," / ",Предметы!HE3/36) -> 216 / 6 | E98: ------ | F98: ------ | G98: ------ | I98: 0 | J98: 43 | K98: =Предметы!HE2 -> 8 | L98: =INDEX(Предметы!$B$6:$JR$147,$I1,212) -> 0 | M98: =INDEX(Предметы!$B$6:$JR$147,$I1,213) -> 0 | N98: 00.01.1900 | O98: =INDEX(Предметы!$B$6:$JR$147,$I1,214) -> 0
A99: 8 | B99: Международные валютно-кредитные и финансовые отношения | D99: =CONCATENATE(Предметы!HH3," / ",Предметы!HH3/36) -> 180 / 5 | E99: ------ | F99: ------ | G99: ------ | I99: 0 | J99: 44 | K99: =Предметы!HH2 -> 8 | L99: =INDEX(Предметы!$B$6:$JR$147,$I1,215) -> 0 | M99: =INDEX(Предметы!$B$6:$JR$147,$I1,216) -> 0 | N99: 00.01.1900 | O99: =INDEX(Предметы!$B$6:$JR$147,$I1,217) -> 0
A100: 8 | B100: Анализ финансовой отчетности | D100: =CONCATENATE(Предметы!HK3," / ",Предметы!HK3/36) -> 180 / 5 | E100: ------ | F100: ------ | G100: ------ | I100: 0 | J100: 45 | K100: =Предметы!HK2 -> 8 | L100: =INDEX(Предметы!$B$6:$JR$147,$I1,218) -> 0 | M100: =INDEX(Предметы!$B$6:$JR$147,$I1,219) -> 0 | N100: 00.01.1900 | O100: =INDEX(Предметы!$B$6:$JR$147,$I1,220) -> 0
A101: 9 | B101: Право | D101: =CONCATENATE(Предметы!HT3," / ",Предметы!HT3/36) -> 144 / 4 | E101: ------ | F101: ------ | G101: ------ | I101: 0 | J101: 46 | K101: =Предметы!HT2 -> 9 | L101: =INDEX(Предметы!$B$6:$JR$147,$I1,227) -> 0 | M101: =INDEX(Предметы!$B$6:$JR$147,$I1,228) -> 0 | N101: 00.01.1900 | O101: =INDEX(Предметы!$B$6:$JR$147,$I1,229) -> 0
A102: 9 | B102: Безопасность жизнедеятельности | D102: =CONCATENATE(Предметы!HW3," / ",Предметы!HW3/36) -> 72 / 2 | E102: ------ | F102: ------ | G102: ------ | I102: 0 | J102: 47 | K102: =Предметы!HW2 -> 9 | L102: =INDEX(Предметы!$B$6:$JR$147,$I1,230) -> 0 | M102: =INDEX(Предметы!$B$6:$JR$147,$I1,231) -> 0 | N102: 00.01.1900 | O102: =INDEX(Предметы!$B$6:$JR$147,$I1,232) -> 0
A103: 9 | B103: Маркетинг | D103: =CONCATENATE(Предметы!HZ3," / ",Предметы!HZ3/36) -> 108 / 3 | E103: ------ | F103: ------ | G103: ------ | I103: 0 | J103: 48 | K103: =Предметы!HZ2 -> 9 | L103: =INDEX(Предметы!$B$6:$JR$147,$I1,233) -> 0 | M103: =INDEX(Предметы!$B$6:$JR$147,$I1,234) -> 0 | N103: 00.01.1900 | O103: =INDEX(Предметы!$B$6:$JR$147,$I1,235) -> 0
A104: 9 | B104: Макроэкономическое планирование и прогнозирование | D104: =CONCATENATE(Предметы!IC3," / ",Предметы!IC3/36) -> 108 / 3 | E104: ------ | F104: ------ | G104: ------ | I104: 0 | J104: 49 | K104: =Предметы!IC2 -> 9 | L104: =INDEX(Предметы!$B$6:$JR$147,$I1,236) -> 0 | M104: =INDEX(Предметы!$B$6:$JR$147,$I1,237) -> 0 | N104: 00.01.1900 | O104: =INDEX(Предметы!$B$6:$JR$147,$I1,238) -> 0
A105: 9 | B105: Инвестиции | D105: =CONCATENATE(Предметы!IF3," / ",Предметы!IF3/36) -> 144 / 4 | E105: ------ | F105: ------ | G105: ------ | I105: 0 | J105: 50 | K105: =Предметы!IF2 -> 9 | L105: =INDEX(Предметы!$B$6:$JR$147,$I1,239) -> 0 | M105: =INDEX(Предметы!$B$6:$JR$147,$I1,240) -> 0 | N105: 00.01.1900 | O105: =INDEX(Предметы!$B$6:$JR$147,$I1,241) -> 0
A106: 9 | B106: Финансовый менеджмент | D106: =CONCATENATE(Предметы!IL3," / ",Предметы!IL3/36) -> 180 / 5 | E106: ------ | F106: ------ | G106: ------ | I106: 0 | J106: 51 | K106: =Предметы!IL2 -> 9 | L106: =INDEX(Предметы!$B$6:$JR$147,$I1,245) -> 0 | M106: =INDEX(Предметы!$B$6:$JR$147,$I1,246) -> 0 | N106: 00.01.1900 | O106: =INDEX(Предметы!$B$6:$JR$147,$I1,247) -> 0
A107: 9 | B107: Оценка стоимости бизнеса | D107: =CONCATENATE(Предметы!IO3," / ",Предметы!IO3/36) -> 180 / 5 | E107: ------ | F107: ------ | G107: ------ | I107: 0 | J107: 52 | K107: =Предметы!IO2 -> 9 | L107: =INDEX(Предметы!$B$6:$JR$147,$I1,248) -> 0 | M107: =INDEX(Предметы!$B$6:$JR$147,$I1,249) -> 0 | N107: 00.01.1900 | O107: =INDEX(Предметы!$B$6:$JR$147,$I1,250) -> 0
A108: 9 | B108: Финансовая политика | D108: =CONCATENATE(Предметы!IR3," / ",Предметы!IR3/36) -> 180 / 5 | E108: ------ | F108: ------ | G108: ------ | I108: 0 | J108: 53 | K108: =Предметы!IR2 -> 9 | L108: =INDEX(Предметы!$B$6:$JR$147,$I1,251) -> 0 | M108: =INDEX(Предметы!$B$6:$JR$147,$I1,252) -> 0 | N108: 00.01.1900 | O108: =INDEX(Предметы!$B$6:$JR$147,$I1,253) -> 0
A109: 9 | B109: Банковское дело | D109: =CONCATENATE(Предметы!IU3," / ",Предметы!IU3/36) -> 144 / 4 | E109: ------ | F109: ------ | G109: ------ | I109: 0 | J109: 54 | K109: =Предметы!IU2 -> 9 | L109: =INDEX(Предметы!$B$6:$JR$147,$I1,254) -> 0 | M109: =INDEX(Предметы!$B$6:$JR$147,$I1,255) -> 0 | N109: 00.01.1900 | O109: =INDEX(Предметы!$B$6:$JR$147,$I1,256) -> 0
A110: 9 | B110: Организация, нормирование и оплата труда на предприятии | D110: =CONCATENATE(Предметы!IX3," / ",Предметы!IX3/36) -> 108 / 3 | E110: ------ | F110: ------ | G110: ------ | I110: 0 | J110: 55 | K110: =Предметы!IX2 -> 9 | L110: =INDEX(Предметы!$B$6:$JR$147,$I1,257) -> 0 | M110: =INDEX(Предметы!$B$6:$JR$147,$I1,258) -> 0 | N110: 00.01.1900 | O110: =INDEX(Предметы!$B$6:$JR$147,$I1,259) -> 0
A111: 9 | B111: Практикум 1С:Бухгалтерия | D111: =CONCATENATE(Предметы!JA3," / ",Предметы!JA3/36) -> 72 / 2 | E111: ------ | F111: ------ | G111: ------ | I111: 0 | J111: 56 | K111: =Предметы!JA2 -> 9 | L111: =INDEX(Предметы!$B$6:$JR$147,$I1,260) -> 0 | M111: =INDEX(Предметы!$B$6:$JR$147,$I1,261) -> 0 | N111: 00.01.1900 | O111: =INDEX(Предметы!$B$6:$JR$147,$I1,262) -> 0
A112: 0 | E112: ------ | F112: ------ | G112: ------ | I112: =IF(M112=0,0,1) -> 0 | J112: 57 | N112: 00.01.1900
A113: 0 | E113: ------ | F113: ------ | G113: ------ | I113: 0 | J113: 58 | N113: 00.01.1900
A114: 0 | E114: ------ | F114: ------ | G114: ------ | I114: 0 | J114: 59 | N114: 00.01.1900
A115: 0 | E115: ------ | F115: ------ | G115: ------ | I115: 0 | J115: 60 | N115: 00.01.1900
A116: 0 | E116: ------ | F116: ------ | G116: ------ | I116: 0 | J116: 61 | N116: 00.01.1900
A117: 0 | E117: ------ | F117: ------ | G117: ------ | I117: 0 | J117: 62 | N117: 00.01.1900
A118: 0 | E118: ------ | F118: ------ | G118: ------ | I118: 0 | J118: 63 | N118: 00.01.1900
A119: 0 | E119: ------ | F119: ------ | G119: ------ | I119: 0 | J119: 64 | N119: 00.01.1900
A120: 0 | E120: ------ | F120: ------ | G120: ------ | I120: 0 | J120: 65 | N120: 00.01.1900
A121: 0 | E121: ------ | F121: ------ | G121: ------ | I121: 0 | J121: 66 | N121: 00.01.1900
A122: 0 | E122: ------ | F122: ------ | G122: ------ | I122: 0 | J122: 67 | N122: 00.01.1900
A123: 0 | E123: ------ | F123: ------ | G123: ------ | I123: 0 | J123: 68 | N123: 00.01.1900
A124: 0 | E124: ------ | F124: ------ | G124: ------ | I124: 0 | J124: 69 | N124: 00.01.1900
A125: =K125 -> 0 | E125: =IF(AND(L125>2, L125<6),P125,"------") -> ------ | F125: =IF(M125=0,"------",IF(L125=6,P125,"------")) -> ------ | G125: =CONCATENATE(IF(M125=0,"------",N125)," ",IF(O125=0,"",CONCATENATE("№ ",O125))) -> ------ | I125: =IF(M125=0,0,1) -> 0 | J125: 70 | N125: =TEXT(M125,"ДД.ММ.ГГГГ") -> 00.01.1900 | P125: =CHOOSE(L125,$O$1,$O$2,$O$3,$O$4,$O$5,$O$6) -> 
A126: 0 | E126: ------ | F126: ------ | G126: ------ | I126: 0 | J126: =J125+1 -> 71 | N126: 00.01.1900
A127: 0 | E127: ------ | F127: ------ | G127: ------ | I127: 0 | J127: 72 | N127: 00.01.1900
A128: 0 | E128: ------ | F128: ------ | G128: ------ | I128: 0 | J128: 73 | N128: 00.01.1900
A129: 0 | E129: ------ | F129: ------ | G129: ------ | I129: 0 | J129: 74 | N129: 00.01.1900
A130: 0 | E130: ------ | F130: ------ | G130: ------ | I130: 0 | J130: 75 | N130: 00.01.1900
A131: 0 | E131: ------ | F131: ------ | G131: ------ | I131: 0 | J131: 76 | N131: 00.01.1900
A132: 0 | E132: ------ | F132: ------ | G132: ------ | I132: 0 | J132: 77 | N132: 00.01.1900
A133: 0 | E133: ------ | F133: ------ | G133: ------ | I133: 0 | J133: 78 | N133: 00.01.1900
A134: 0 | E134: ------ | F134: ------ | G134: ------ | I134: 0 | J134: 79 | N134: 00.01.1900
A135: 0 | E135: ------ | F135: ------ | G135: ------ | I135: 0 | J135: 80 | N135: 00.01.1900
A136: 0 | E136: ------ | F136: ------ | G136: ------ | I136: 0 | J136: 81 | N136: 00.01.1900
A137: 0 | E137: ------ | F137: ------ | G137: ------ | I137: 0 | J137: 82 | N137: 00.01.1900
A138: 0 | E138: ------ | F138: ------ | G138: ------ | I138: 0 | J138: 83 | N138: 00.01.1900
A139: 0 | E139: ------ | F139: ------ | G139: ------ | I139: 0 | J139: =J138+1 -> 84 | N139: 00.01.1900
A140: 0 | E140: ------ | F140: ------ | G140: ------ | I140: 0 | J140: 85 | N140: 00.01.1900
A141: 0 | E141: ------ | F141: ------ | G141: ------ | I141: 0 | J141: 86 | N141: 00.01.1900
A142: 0 | E142: ------ | F142: ------ | G142: ------ | I142: 0 | J142: 87 | N142: 00.01.1900
A143: 0 | E143: ------ | F143: ------ | G143: ------ | I143: 0 | J143: 88 | N143: 00.01.1900
A144: 0 | E144: ------ | F144: ------ | G144: ------ | I144: 0 | J144: 89 | N144: 00.01.1900
A145: 0 | E145: ------ | F145: ------ | G145: ------ | I145: 0 | J145: 90 | N145: 00.01.1900
A146: 0 | E146: ------ | F146: ------ | G146: ------ | I146: 0 | J146: 91 | N146: 00.01.1900
A147: 0 | E147: ------ | F147: ------ | G147: ------ | I147: 0 | J147: 92 | N147: 00.01.1900
A148: 0 | E148: =IF(AND(L148>2, L148<6),P148,"------") -> ------ | F148: =IF(M148=0,"------",IF(L148=6,P148,"------")) -> ------ | G148: ------ | I148: 0 | J148: 93 | N148: 00.01.1900
A149: 0 | E149: =IF(AND(L149>2, L149<6),P149,"------") -> ------ | F149: =IF(M149=0,"------",IF(L149=6,P149,"------")) -> ------ | G149: ------ | I149: 0 | J149: 94 | N149: 00.01.1900
A150: 0 | E150: ------ | F150: ------ | G150: ------ | I150: 0 | J150: 95 | N150: 00.01.1900
A151: 0 | E151: ------ | F151: ------ | G151: ------ | I151: 0 | J151: 96 | N151: 00.01.1900
A152: 0 | E152: ------ | F152: ------ | G152: ------ | I152: 0 | J152: 97 | N152: 00.01.1900
A153: 0 | E153: ------ | F153: ------ | G153: ------ | I153: 0 | J153: 98 | N153: 00.01.1900
A154: 0 | E154: ------ | F154: ------ | G154: ------ | I154: 0 | J154: 99 | N154: 00.01.1900
A155: 0 | E155: ------ | F155: ------ | G155: ------ | I155: 0 | J155: 100 | N155: 00.01.1900
A156: 0 | E156: ------ | F156: ------ | G156: ------ | I156: 0 | J156: 101 | N156: 00.01.1900
A157: 0 | E157: ------ | F157: ------ | G157: ------ | I157: 0 | J157: 102 | N157: 00.01.1900
A158: 0 | E158: ------ | F158: ------ | G158: ------ | I158: 0 | J158: 103 | N158: 00.01.1900
A159: 0 | E159: ------ | F159: ------ | G159: ------ | I159: 0 | J159: 104 | N159: 00.01.1900
I160: 1
A161: =A58+I58 -> 19 | B161: Курсовые работы | I161: 1
A162: Семестры | B162: Название дисциплины | C162: Тема курсовой работы | F162: Оценка | G162: Дата сдачи | I162: 1
A163: =K163 -> 6 | B163: Финансы | C163: =O163 -> Налоги с населения и их роль в современных условиях | F163: =IF(L163=0,"------",P163) -> Хорошо | G163: =IF(M163=0,"------",N163) -> 05.06.2018 | I163: =IF(M163=0,0,1) -> 1 | J163: 107 | K163: =Предметы!FO2 -> 6 | L163: =INDEX(Предметы!$B$6:$JR$147,$I1,170) -> 4 | M163: =INDEX(Предметы!$B$6:$JR$147,$I1,171) -> 43256 | N163: =TEXT(M163,"ДД.ММ.ГГГГ") -> 05.06.2018 | O163: =INDEX(Предметы!$B$6:$JR$147,$I1,172) -> Налоги с населения и их роль в современных условиях | P163: =CHOOSE(L163,$O$1,$O$2,$O$3,$O$4,$O$5,$O$6) -> Хорошо
A164: =K164 -> 6 | B164: Моделирование социально-экономических систем | C164: =O164 -> Оптимизация сочетания отраслей и специализации предприятия агропромышленногокомплекса | F164: =IF(L164=0,"------",P164) -> Удовлет. | G164: 05.06.2018 | I164: 1 | J164: =J163+1 -> 108 | K164: =Предметы!FX2 -> 6 | L164: =INDEX(Предметы!$B$6:$JR$147,$I1,179) -> 3 | M164: =INDEX(Предметы!$B$6:$JR$147,$I1,180) -> 43256 | N164: 05.06.2018 | O164: =INDEX(Предметы!$B$6:$JR$147,$I1,181) -> Оптимизация сочетания отраслей и специализации предприятия агропромышленногокомплекса | P164: Удовлет.
A165: 7 | B165: Корпоративные финансы | C165: 0 | F165: ------ | G165: ------ | I165: 0 | J165: 109 | K165: =Предметы!GG2 -> 7 | L165: =INDEX(Предметы!$B$6:$JR$147,$I1,188) -> 0 | M165: =INDEX(Предметы!$B$6:$JR$147,$I1,189) -> 0 | N165: 00.01.1900 | O165: =INDEX(Предметы!$B$6:$JR$147,$I1,190) -> 0
A166: 7 | B166: Экономика организаций (предприятий) | C166: 0 | F166: ------ | G166: ------ | I166: 0 | J166: 110 | K166: =Предметы!GS2 -> 7 | L166: =INDEX(Предметы!$B$6:$JR$147,$I1,200) -> 0 | M166: =INDEX(Предметы!$B$6:$JR$147,$I1,201) -> 0 | N166: 00.01.1900 | O166: =INDEX(Предметы!$B$6:$JR$147,$I1,202) -> 0
A167: 8 | B167: Анализ финансовой отчетности | C167: 0 | F167: ------ | G167: ------ | I167: 0 | J167: 111 | K167: =Предметы!HN2 -> 8 | L167: =INDEX(Предметы!$B$6:$JR$147,$I1,221) -> 0 | M167: =INDEX(Предметы!$B$6:$JR$147,$I1,222) -> 0 | N167: 00.01.1900 | O167: =INDEX(Предметы!$B$6:$JR$147,$I1,223) -> 0
A168: 9 | B168: Инвестиции | C168: 0 | F168: ------ | G168: ------ | I168: 0 | J168: 112 | K168: =Предметы!II2 -> 9 | L168: =INDEX(Предметы!$B$6:$JR$147,$I1,242) -> 0 | M168: =INDEX(Предметы!$B$6:$JR$147,$I1,243) -> 0 | N168: 00.01.1900 | O168: =INDEX(Предметы!$B$6:$JR$147,$I1,244) -> 0
A169: 0 | C169: 0 | F169: ------ | G169: ------ | I169: 0 | J169: 113 | N169: 00.01.1900
A170: 0 | C170: 0 | F170: ------ | G170: ------ | I170: 0 | J170: 114 | N170: 00.01.1900
A171: 0 | C171: 0 | F171: ------ | G171: ------ | I171: 0 | J171: 115 | N171: 00.01.1900
A172: 0 | C172: 0 | F172: ------ | G172: ------ | I172: 0 | J172: 116 | N172: 00.01.1900
A173: 0 | C173: 0 | F173: ------ | G173: ------ | I173: 0 | J173: 117 | N173: 00.01.1900
C174: 0 | F174: ------ | G174: ------ | I174: 0 | J174: 118 | N174: 00.01.1900
A175: 13 | C175: 0 | F175: ------ | G175: ------ | I175: 0 | J175: 119 | N175: 00.01.1900
A176: 14 | C176: 0 | F176: ------ | G176: ------ | I176: 0 | J176: 120 | N176: 00.01.1900
A177: 15 | C177: 0 | F177: ------ | G177: ------ | I177: 0 | J177: 121 | N177: 00.01.1900
A178: 16 | C178: 0 | F178: ------ | G178: ------ | I178: 0 | J178: 122 | N178: 00.01.1900
A179: 17 | C179: 0 | F179: ------ | G179: ------ | I179: 0 | J179: 123 | N179: 00.01.1900
A180: 18 | C180: 0 | F180: ------ | G180: ------ | I180: 0 | J180: 124 | N180: 00.01.1900
A181: 19 | C181: 0 | F181: ------ | G181: ------ | I181: 0 | J181: 125 | N181: 00.01.1900
A182: 20 | C182: 0 | F182: ------ | G182: ------ | I182: 0 | J182: 126 | N182: 00.01.1900
I183: 1
A184: =A161+I161 -> 20 | B184: Прохождение практик | I184: 1
A185: Курс | B185: Наименование практики | C185: Место практики | E185: Продолжи- тельность | F185: Оценка | G185: Дата ведомости | I185: 1
A186: =INT(K186/2+0.5) ->  | E186: =IF(Q186=0,"",CONCATENATE(Q186," ",T186)) ->  | F186: =IF(L186=0,"------",P186) -> ------ | G186: =CONCATENATE(IF(M186=0,"------",N186)," ",IF(O186=0,"",CONCATENATE("№ ",O186))) -> ------ | I186: =IF(M186=0,0,1) -> 0 | J186: 129 | L186: =INDIRECT(ADDRESS(J186,$J$59*3+4,,,"Предметы")) -> 0 | M186: =INDIRECT(ADDRESS(J186,$J$59*3+5,,,"Предметы")) -> 0 | N186: =TEXT(M186,"ДД.ММ.ГГГГ") -> 00.01.1900 | O186: =INDIRECT(ADDRESS(J186,$J$59*3+6,,,"Предметы")) -> 0 | P186: =CHOOSE(L186,$O$1,$O$2,$O$3,$O$4,$O$5,$O$6) ->  | R186: 1 | S186: неделя | T186: =CHOOSE(Q186,$S$186,$S$187,$S$188,$S$189,$S$190,$S$191,$S$192,$S$193,$S$194,$S$195) -> 
A187: =INT(K187/2+0.5) -> 2 | B187: Учебная. Практика по получению первичных профессиональных умений и навыков, в том числе первичных умений и навыков научно-исследовательской деятельности | C187: =O187 -> 0 | E187: =IF(Q187=0,"",CONCATENATE(Q187," ",T187)) -> 2 недели | F187: =IF(L187=0,"------",P187) -> ------ | G187: =IF(M187=0,"------",N187) -> ------ | I187: 0 | J187: =J186+1 -> 130 | K187: =Предметы!EN2 -> 4 | L187: =INDEX(Предметы!$B$6:$JR$147,$I1,143) -> 0 | M187: =INDEX(Предметы!$B$6:$JR$147,$I1,144) -> 0 | N187: 00.01.1900 | O187: =INDEX(Предметы!$B$6:$JR$147,$I1,145) -> 0 | P187: =CHOOSE(L187,$O$1,$O$2,$O$3,$O$4,$O$5,$O$6) ->  | Q187: 2 | R187: 2 | S187: недели | T187: =CHOOSE(Q187,$S$186,$S$187,$S$188,$S$189,$S$190,$S$191,$S$192,$S$193,$S$194,$S$195) -> недели
A188: 3 | B188: Производственная. Практика по получению профессиональных умений и опыта профессиональной деятельности | E188: 2 недели | F188: Хорошо | G188: =CONCATENATE(IF(M188=0,"------",N188)," ",IF(O188=0,"",CONCATENATE("№ ",O188))) -> 31.08.2018 № МБДОУ ОВГО г.Волгореченск Костромской области "Детский сад №2" Солнышко" | I188: 1 | J188: =J187+1 -> 131 | K188: =Предметы!GA2 -> 6 | L188: =INDEX(Предметы!$B$6:$JR$147,$I1,182) -> 4 | M188: =INDEX(Предметы!$B$6:$JR$147,$I1,183) -> 43343 | N188: 31.08.2018 | O188: =INDEX(Предметы!$B$6:$JR$147,$I1,184) -> МБДОУ ОВГО г.Волгореченск Костромской области "Детский сад №2" Солнышко" | P188: Хорошо | Q188: 2 | R188: 3 | S188: недели | T188: недели
A189: 4 | B189: Производственная. Технологическая | C189: =O189 -> ФГБОУ ВО Костромская ГСХА | E189: 2 недели | F189: =IF(L189=0,"------",P189) -> ------ | G189: =IF(M189=0,"------",N189) -> ------ | I189: 0 | J189: 132 | K189: =Предметы!HQ2 -> 8 | L189: =INDEX(Предметы!$B$6:$JR$147,$I1,224) -> 0 | M189: =INDEX(Предметы!$B$6:$JR$147,$I1,225) -> 0 | N189: 00.01.1900 | O189: ФГБОУ ВО Костромская ГСХА | P189: =CHOOSE(L189,$O$1,$O$2,$O$3,$O$4,$O$5,$O$6) ->  | Q189: 2 | R189: 4 | S189: недели | T189: недели
A190: 5 | B190: Научно-исследовательская работа | C190: 0 | E190: 2 недели | F190: =IF(L190=0,"------",P190) -> ------ | G190: ------ | I190: 0 | J190: 133 | K190: =Предметы!JD2 -> 10 | L190: =INDEX(Предметы!$B$6:$JR$147,$I1,263) -> 0 | M190: =INDEX(Предметы!$B$6:$JR$147,$I1,264) -> 0 | N190: 00.01.1900 | O190: =INDEX(Предметы!$B$6:$JR$147,$I1,265) -> 0 | Q190: 2 | R190: 5 | S190: недель | T190: недели
A191: 5 | B191: Преддипломная | C191: 0 | E191: 2 недели | F191: ------ | G191: ------ | I191: 0 | J191: 134 | K191: =Предметы!JG2 -> 10 | L191: =INDEX(Предметы!$B$6:$JR$147,$I1,266) -> 0 | M191: =INDEX(Предметы!$B$6:$JR$147,$I1,267) -> 0 | N191: 00.01.1900 | O191: =INDEX(Предметы!$B$6:$JR$147,$I1,268) -> 0 | Q191: 2 | R191: 6 | S191: недель | T191: недели
F192: ------ | G192: ------ | I192: 0 | J192: 135 | L192: =INDIRECT(ADDRESS(J192,$J$59*3+4,,,"Предметы")) -> 0 | M192: =INDIRECT(ADDRESS(J192,$J$59*3+5,,,"Предметы")) -> 0 | N192: 00.01.1900 | O192: =INDIRECT(ADDRESS(J192,$J$59*3+6,,,"Предметы")) -> 0 | R192: 7 | S192: недель
F193: =IF(L193=0,"",P193) ->  | G193: =CONCATENATE(IF(M193=0,"",N193)," ",IF(O193=0,"",CONCATENATE("№ ",O193))) ->  | I193: 0 | J193: 136 | L193: =INDIRECT(ADDRESS(J193,$J$59*3+4,,,"Предметы")) -> 0 | M193: =INDIRECT(ADDRESS(J193,$J$59*3+5,,,"Предметы")) -> 0 | N193: 00.01.1900 | O193: =INDIRECT(ADDRESS(J193,$J$59*3+6,,,"Предметы")) -> 0 | R193: 8 | S193: недель
F194: =IF(L194=0,"",P194) ->  | G194: =CONCATENATE(IF(M194=0,"",N194)," ",IF(O194=0,"",CONCATENATE("№ ",O194))) ->  | I194: 0 | J194: 137 | L194: =INDIRECT(ADDRESS(J194,$J$59*3+4,,,"Предметы")) -> 0 | M194: =INDIRECT(ADDRESS(J194,$J$59*3+5,,,"Предметы")) -> 0 | N194: 00.01.1900 | O194: =INDIRECT(ADDRESS(J194,$J$59*3+6,,,"Предметы")) -> 0 | R194: 9 | S194: недель
F195: =IF(L195=0,"",P195) ->  | G195: =CONCATENATE(IF(M195=0,"",N195)," ",IF(O195=0,"",CONCATENATE("№ ",O195))) ->  | I195: 0 | J195: 138 | L195: =INDIRECT(ADDRESS(J195,$J$59*3+4,,,"Предметы")) -> 0 | M195: =INDIRECT(ADDRESS(J195,$J$59*3+5,,,"Предметы")) -> 0 | N195: 00.01.1900 | O195: =INDIRECT(ADDRESS(J195,$J$59*3+6,,,"Предметы")) -> 0 | R195: 10 | S195: недель
I196: 1
B197: И. о. декана факультета ____________________________ Н. А. Середа | I197: 1
I198: 1
B199: Специалист по УМР ________________________ О. В. Сосова | I199: 1 | T199: =CHOOSE(Q199,$S$186,$S$187,$S$188,$S$189,$S$190,$S$191,$S$192,$S$193,$S$194,$S$195) -> 

Sheet !справочники
A1: Муж | B1: 07.02.01 Архитектура | C1: =RIGHT(LEFT(D1,5),2) -> 02 | D1: =LEFT(B1,8) -> 07.02.01 | E1: =RIGHT(B1,LEN(B1)-9) -> Архитектура | O1: Муж | P1: Жен
A2: Жен | B2: 23.02.03 Техническое обслуживание и ремонт автомобильного транспорта | C2: 02 | D2: 23.02.03 | E2: =RIGHT(B2,LEN(B2)-9) -> Техническое обслуживание и ремонт автомобильного транспорта | O2: холост | P2: не замужем
B3: 35.02.15 Кинология | C3: 02 | D3: 35.02.15 | E3: Кинология | O3: женат | P3: замужем
B4: 38.02.01 Экономика и бухгалтерский учет | C4: 02 | D4: 38.02.01 | E4: Экономика и бухгалтерский учет
A5: БАКАЛАВР | B5: 43.02.05 Флористика | C5: 02 | D5: 43.02.05 | E5: Флористика
A6: МАГИСТР | B6: 07.03.01 Архитектура | C6: 03 | D6: 07.03.01 | E6: Архитектура
A7: ИНЖЕНЕР | B7: 08.03.01 Строительство | C7: 03 | D7: 08.03.01 | E7: Строительство
A8: ВЕТЕРИНАРНЫЙ ВРАЧ | B8: 13.03.02 Электроэнергетика и электротехника | C8: 03 | D8: 13.03.02 | E8: Электроэнергетика и электротехника
A9: АРХИТЕКТОР | B9: 23.03.03 Эксплуатация транспортно-технологических машин и комплексов | C9: 03 | D9: 23.03.03 | E9: Эксплуатация транспортно-технологических машин и комплексов
A10: КИНОЛОГ | B10: 35.03.04 Агрономия | C10: 03 | D10: 35.03.04 | E10: Агрономия
A11: ТЕХНИК | B11: 35.03.06 Агроинженерия | C11: 03 | D11: 35.03.06 | E11: Агроинженерия
B12: 36.03.02 Зоотехния | C12: 03 | D12: 36.03.02 | E12: Зоотехния
B13: 38.03.01 Экономика | C13: 03 | D13: 38.03.01 | E13: Экономика
B14: 38.03.02 Менеджмент | C14: 03 | D14: 38.03.02 | E14: Менеджмент
B15: 08.04.01 Строительство | C15: 04 | D15: 08.04.01 | E15: Строительство
B16: 35.04.04 Агрономия | C16: 04 | D16: 35.04.04 | E16: Агрономия
B17: 35.04.06 Агроинженерия | C17: 04 | D17: 35.04.06 | E17: Агроинженерия
B18: 36.04.02 Зоотехния | C18: 04 | D18: 36.04.02 | E18: Зоотехния
B19: 38.04.01 Экономика | C19: 04 | D19: 38.04.01 | E19: Экономика
B20: 38.04.02 Менеджмент | C20: 04 | D20: 38.04.02 | E20: Менеджмент
B21: 23.05.01 Наземные и транспортно-технологические средства | C21: 05 | D21: 23.05.01 | E21: Наземные и транспортно-технологические средства
B22: 36.05.01 Ветеринария | C22: 05 | D22: 36.05.01 | E22: Ветеринария
B23: 06.06.01 Паразитология | C23: 06 | D23: 06.06.01 | E23: Паразитология
B24: 08.06.01 Строительные материалы и изделия | C24: 06 | D24: 08.06.01 | E24: Строительные материалы и изделия
B25: 13.06.01 Тепловые двигатели | C25: 06 | D25: 13.06.01 | E25: Тепловые двигатели
B26: 35.06.01 Общее земледелие, растениеводство | C26: 06 | D26: 35.06.01 | E26: Общее земледелие, растениеводство
B27: 35.06.04 Технологии и средства механизации сельского хозяйства | C27: 06 | D27: 35.06.04 | E27: Технологии и средства механизации сельского хозяйства
B28: 36.06.01 Диагностика болезней и терапия животных, патология, онкология и морфология животных | C28: 06 | D28: 36.06.01 | E28: Диагностика болезней и терапия животных, патология, онкология и морфология животных
B29: 38.06.01 Экономика и управление народным хозяйством | C29: 06 | D29: 38.06.01 | E29: Экономика и управление народным хозяйством
B30: 46.06.01 Отечественная история | C30: 06 | D30: 46.06.01 | E30: Отечественная история
B31: 47.06.01 Этика | C31: 06 | D31: 47.06.01 | E31: Этика
B50: Техник деканата
B51: Специалист по УМР

Sheet отчисление
A2: 8 | B2: Зубов | C2: Алексей | D2: Владимирович | E2: =CONCATENATE(B2," ",LEFT(C2,1),". ",LEFT(D2,1),".") -> Зубов А. В. | F2: =DativeCase(CONCATENATE(B2," ", C2," ",D2)) ->  | G2: Зубову | H2: Алексею | I2: Владимировичу | J2: 1995-05-26 | K2: г. Галич Костромской обл. | L2: РФ | M2: м | N2: МОУ лицей №3 города Галича Костромской области | O2: 2012 | P2: холост | Q2: Костромская обл., г. Галич, ул. Колхозная, д. 22, кв. 61 | Y2: 160909 | Z2: Экономический | AA2: 38.03.03 | AB2: Экономика | AC2: Финансы и кредит | AD2: 5 лет | AE2: БАКАЛАВР | AF2: 2-553 | AG2: 2012-08-05 | AH2: по договору с полным возмещением затрат | AI2: 526-2012 | AJ2: 2012-07-19 | AS2: 2-788 | AT2: 2015-11-26 | AU2: в связи с призывом в ряды ВС РФ | AV2: 2015-12-10 | AW2: 2015-12-09 | AX2: 2-728 | AY2: 2013-11-25 | AZ2: 2-533 | BA2: 2014-09-01 | BB2: 2-571 | BC2: 2015-09-01 | CA2: 5 | CB2: 253z | CC2: 3 | CD2: 2017-11-01 | CF2: 6 | CG2: 2017-11-01 | CI2: 5 | CJ2: п/зач | CL2: 6 | CM2: п/зач | CO2: 3 | CP2: п/зач | CR2: 3 | CS2: п/зач | CU2: 3 | CV2: п/зач | CX2: 3 | CY2: п/зач | DA2: 6 | DB2: п/зач | DD2: 6 | DE2: п/зач | DG2: 4 | DH2: п/зач | DJ2: 3 | DK2: п/зач | DM2: 6 | DN2: п/зач | DP2: 6 | DQ2: п/зач | DS2: 3 | DT2: п/зач | DV2: 3 | DW2: п/зач | EB2: 3 | EC2: п/зач | EE2: 6 | EF2: п/зач | EH2: 6 | EI2: п/зач | EK2: 0 | EN2: 4 | EO2: п/зач | EQ2: 3 | ER2: п/зач | ET2: 3 | EU2: п/зач | EW2: 3 | EX2: п/зач | EZ2: 3 | FA2: п/зач | FC2: 3 | FD2: п/зач | FF2: 5 | FG2: п/зач | FL2: 3 | FM2: п/зач | FR2: 4 | FS2: п/зач | FU2: 3 | FV2: п/зач | FX2: 3 | FY2: п/зач | GD2: 3 | GE2: 2017-10-18 | GY2: 3 | GZ2: п/зач | HB2: 4 | HC2: 2017-04-08 | HE2: 0 | HH2: 0 | HK2: 0 | HN2: 0 | HP2: 0 | HT2: 3 | HU2: п/зач | HW2: 6 | HX2: п/зач | IC2: 3 | ID2: п/зач | JF2: ФГБОУ ВО Костромская ГСХА, кафедра "Финансы и кредит" | JI2: ФГБОУ ВО Костромская ГСХА, кафедра "Финансы и кредит"
A3: =A2+1 -> 9 | B3: Долинина | C3: Анастасия | D3: Анатольевна | E3: Долинина А. А. | G3: Долининой | H3: Анастасии | I3: Анатольевне | J3: 1993-11-19 | K3: п. Караваево Костромского р-на Костромской обл. | L3: РФ | M3: ж | N3: МБОУ Костромского муниципального района Костромской области "Караваевская средняя общеобразовательная школа" | O3: 2012 | P3: замужем | Q3: Костромская обл., Костромской р-н, пос. Караваево, ул. Учебный городок, д. 3, кв. 2 | Y3: 12445 | Z3: Экономический | AA3: 38.03.06 | AB3: Экономика | AC3: Финансы и кредит | AD3: 5 лет | AE3: БАКАЛАВР | AF3: 2-561 | AG3: 2012-08-16 | AH3: по договору с полным возмещением затрат | AI3: 611-2012 | AJ3: 2012-08-03 | AS3: 2-335 | AT3: 2017-04-26 | AU3: по семейным обстоятельствам | AX3: 2-592 | AY3: 2013-09-16 | AZ3: 2-533 | BA3: 2014-09-01 | BB3: 2-571 | BC3: 2015-09-01 | BD3: 2-561 | BE3: 2016-09-01 | CA3: 5 | CB3: АО | CI3: 5 | CJ3: п/зач | CL3: 6 | CM3: п/зач | CO3: 3 | CP3: п/зач | CR3: 4 | CS3: п/зач | CU3: 4 | CV3: п/зач | CX3: 5 | CY3: п/зач | DA3: 6 | DB3: п/зач | DD3: 6 | DE3: п/зач | DG3: 4 | DH3: п/зач | DJ3: 3 | DK3: п/зач | DM3: 6 | DN3: п/зач | DP3: 6 | DQ3: п/зач | DS3: 5 | DT3: п/зач | DV3: 4 | DW3: п/зач | DY3: 4 | DZ3: п/зач | EB3: 3 | EC3: п/зач | EE3: 6 | EF3: п/зач | EN3: 5 | EO3: п/зач | EQ3: 4 | ER3: 2014-11-28 | ET3: 3 | EU3: п/зач | EW3: 5 | EX3: 2014-12-04 | EZ3: 5 | FA3: 2014-11-20 | FC3: 4 | FD3: 2014-11-25 | FF3: 5 | FG3: 2015-05-18 | FI3: 6 | FJ3: 2015-05-23 | FL3: 3 | FM3: 2015-05-29 | FO3: 3 | FP3: 17.12.2015 | FR3: 4 | FS3: 2015-05-25 | FU3: 4 | FV3: 2015-07-04 | FX3: 4 | FY3: 10.12.2015 | GD3: 4 | GE3: 2015-12-04 | GJ3: 4 | GK3: 2015-12-15 | GM3: 4 | GN3: 2015-12-11 | GP3: 4 | GQ3: 2015-12-16 | GS3: 3 | GT3: 14.12.2015 | GV3: 5 | GW3: 2015-11-26 | GY3: 4 | GZ3: п/зач | HB3: 4 | HC3: 2016-04-07 | HE3: 5 | HF3: 2016-04-08 | HH3: 3 | HI3: 2016-10-06 | HK3: 4 | HL3: 2016-04-14 | HT3: 4 | HU3: 2016-11-02 | HW3: 6 | HX3: п/зач | IU3: 4 | IV3: 2016-11-02 | JJ3: =(JL3*3+JM3*4+JN3*5)/50 -> 2.9 | JL3: =COUNTIF(CC3:JG3,3) -> 8 | JM3: =COUNTIF(CC3:JG3,4) -> 19 | JN3: =COUNTIF(CC3:JG3,5) -> 9 | JO3: =COUNTIF(CC3:JG3,6) -> 8 | JP3: =SUM(JL3:JN3) -> 36 | JQ3: =SUMIF(CC3:JG3,">0",$CC$3:$JG$3) -> 845994 | JR3: =INT(JQ3/8+0.5) -> 105749
A4: 10 | B4: Гнатюк | C4: Михаил | D4: Романович | E4: Гнатюк М. Р. | G4: Гнатюку | H4: Михаилу | I4: Романовичу | J4: 1995-10-10 | K4: г. Кострома | L4: РФ | M4: м | N4: Костромской автотранспортный колледж | O4: 2015 | P4: холост | Q4: г. Кострома, Михалевский б-р, д. 26Б, кв. 7 | Y4: 15734з | Z4: Экономический | AA4: 38.03.66 | AB4: Экономика | AC4: Финансы и кредит | AD4: 5 лет | AE4: БАКАЛАВР | AF4: 2-557 | AG4: 2015-08-21 | AH4: по договору с полным возмещением затрат | AI4: 000003644 | AJ4: 2015-08-12 | CA4: 2 | CB4: 221z | CI4: 4 | CJ4: 2017-06-10 | CL4: 6 | CM4: 2017-06-10 | CO4: 3 | CP4: 2017-06-10 | CX4: 0 | DA4: 0 | DD4: 6 | DE4: 2017-12-23 | DP4: 6 | DQ4: 2018-04-28 | DR4: 7909531 | GI4: 0 | JJ4: 0.14 | JL4: 1 | JM4: 1 | JN4: 0 | JO4: 3 | JP4: 2 | JQ4: 26 | JR4: 3
A5: 11 | B5: Власов | C5: Николай | D5: Олегович | E5: Власов Н. О. | G5: Власову | H5: Николаю | I5: Олеговичу | J5: 1994-08-15 | K5: с. Сартичала Гардабанского р-на респ. Грузия | L5: РФ | M5: м | N5: Лицей №34 г. Кострома | O5: 2012 | P5: холост | Q5: г. Кострома, ул. Проезд Луговой, д. 24 | Y5: 160025 | Z5: Экономический | AA5: 38.03.16 | AB5: Экономика | AC5: Финансы и кредит | AD5: 5 лет | AE5: БАКАЛАВР | AF5: 2-547 | AG5: 2012-07-30 | AH5: в рамках контрольных цифр в пределах целевой квоты | AM5: 2-754 | AN5: 42248 | AO5: как невышедшего из академического отпуска | AP5: 2-165 | AQ5: 42461 | AS5: 2-296 | AT5: 41785 | AU5: 41780 | AV5: 42144 | AX5: 2-592 | AY5: 2013-09-16 | AZ5: 2-672 | BA5: 2017-08-01 | CA5: 4 | CB5: 241z | CF5: 6 | CG5: 2018-04-13 | CH5: 76810137 | CI5: 5 | CJ5: п/зач | CL5: 6 | CM5: 2016-04-26 | CX5: 3 | CY5: 2016-04-25 | DA5: 6 | DB5: п/зач | DD5: 6 | DE5: 2016-04-26 | DG5: 3 | DH5: 2016-04-20 | DM5: 6 | DN5: 2016-04-25 | DP5: 6 | DQ5: 2016-04-27 | DS5: 3 | DT5: п/зач | DV5: 3 | DW5: 2016-04-19 | EB5: 3 | EC5: 2016-04-23 | EH5: 6 | EI5: п/зач | EK5: 0 | EN5: 0 | ET5: 3 | EU5: 2016-12-05 | EV5: Z-6278431 | EW5: 3 | EX5: 2016-12-05 | EY5: Z-6278889 | EZ5: 4 | FA5: 2016-12-05 | FB5: Z-6278442 | FC5: 4 | FD5: 2016-11-24 | FE5: Z-6278577 | FF5: 4 | FG5: 2017-05-30 | FH5: Z-6278581 | GD5: 3 | GE5: 2017-12-06 | GF5: Z-7689567 | GJ5: 3 | GK5: 2017-12-06 | GL5: Z-7689579 | HB5: 3 | HC5: 2018-04-13 | HD5: 7689580 | HE5: 4 | HF5: 2018-04-13 | HG5: 7689577 | HH5: 3 | HI5: 2018-04-13 | HJ5: 7689583 | HK5: 5 | HL5: 2018-04-13 | HM5: 7689559 | JJ5: 1.18 | JL5: 11 | JM5: 4 | JN5: 2 | JO5: 7 | JP5: 17 | JQ5: 422905 | JR5: 52863
A6: 12 | B6: Данилова | C6: Анна | D6: Юрьевна | E6: Данилова А. Ю. | G6: Даниловой | H6: Анне | I6: Юрьевне | J6: 1996-09-16 | K6: п. Росляково Североморского р-на Мурманской обл. | L6: РФ | M6: ж | N6: МОУ Красносельская СОШ | O6: 2014 | P6: замужем | Q6: Костромская обл., Красносельский р-н, пгт Красное-на-Волге, мкр Восточный, д. 17, кв. 3 | Y6: 14569 | Z6: Экономический | AA6: 38.03.17 | AB6: Экономика | AC6: Финансы и кредит | AD6: 5 лет | AE6: БАКАЛАВР | AF6: 2-524 | AG6: 2014-08-21 | AH6: по договору с полным возмещением затрат | AI6: 000002746 | AJ6: 2014-08-05 | AX6: 2-285 | AY6: 2015-05-25 | AZ6: 2-672 | BA6: 2017-08-01 | CA6: 4 | CB6: 241z | CF6: 6 | CG6: 2018-06-01 | CH6: 932 | CI6: 3 | CJ6: п/зач | CL6: 6 | CM6: 2016-09-07 | CN6: 1357 | CO6: 3 | CP6: п/зач | CR6: 3 | CS6: 2016-09-12 | CT6: 1482 | CU6: 4 | CV6: 2017-06-23 | CW6: 1138 | CX6: 3 | CY6: 2017-06-23 | CZ6: 1113 | DA6: 6 | DB6: п/зач | DD6: 6 | DE6: 2017-06-22 | DF6: 1140 | DG6: 3 | DH6: 2017-06-14 | DI6: 1114 | DJ6: 3 | DK6: 2016-02-24 | DM6: 6 | DN6: 2017-06-07 | DO6: 1109 | DP6: 6 | DQ6: 2016-04-27 | DS6: 4 | DT6: 2016-09-13 | DU6: 1483 | DV6: 4 | DW6: 2016-04-19 | FF6: 4 | FG6: 2017-06-26 | FH6: 1147 | FL6: 5 | FM6: 2017-05-30 | FN6: Z-6278436 | FO6: 5 | FP6: 30.05.2017 | FQ6: Фонд социального страхования Российской Федерации и его роль в системе государственного социального страхования | HT6: 4 | HU6: п/зач | JJ6: 0.96 | JL6: 6 | JM6: 5 | JN6: 2 | JO6: 6 | JP6: 13 | JQ6: 84377 | JR6: 10547
A7: 13 | B7: Расулова | C7: Оксана | D7: Расуловна | E7: Расулова О. Р. | G7: Расуловой | H7: Оксане | I7: Расуловне | J7: 1996-07-20 | K7: г. Кострома | L7: РФ | M7: ж | N7: СОШ №13 г. Кострома | O7: 2014 | P7: не замужем | Q7: г. Кострома, ул. Партизанская, д. 141, кв. 1 | Y7: 14449 | Z7: Экономический | AA7: 38.03.28 | AB7: Экономика | AC7: Финансы и кредит | AD7: 5 лет | AE7: БАКАЛАВР | AF7: 2-524 | AG7: 2014-08-21 | AH7: по договору с полным возмещением затрат | AI7: 000002551 | AJ7: 2014-07-02 | AX7: 2-571 | AY7: 2015-09-01 | AZ7: 2-561 | BA7: 2016-09-01 | CA7: 4 | CB7: 241z | CI7: 3 | CJ7: п/зач | CL7: 6 | CM7: п/зач | CO7: 3 | CP7: п/зач | CX7: 3 | CY7: п/зач | DA7: 6 | DB7: п/зач | DD7: 0 | DG7: 3 | DH7: п/зач | DM7: 6 | DN7: п/зач | DP7: 6 | DQ7: 2016-04-27 | DY7: 3 | DZ7: 2016-04-27 | EE7: 0 | EH7: 6 | EI7: п/зач | EK7: 0 | EN7: 4 | EO7: п/зач | EZ7: 3 | FA7: 2016-12-05 | FB7: Z-6278442 | FF7: 5 | FG7: 2017-05-30 | FH7: Z-6278581 | FI7: 6 | FJ7: 2017-05-30 | FK7: Z-6278435 | GD7: 3 | GE7: 2017-12-06 | GF7: Z-7689567 | GM7: 4 | GN7: 2017-12-06 | GO7: Z-7689592 | JJ7: 0.68 | JL7: 7 | JM7: 2 | JN7: 1 | JO7: 6 | JP7: 10 | JQ7: 211017 | JR7: 26377
A8: 14 | B8: Рукавишникова | C8: Юлия | D8: Олеговна | E8: Рукавишникова Ю. О. | G8: Рукавишниковой | H8: Юлии | I8: Олеговне | J8: 1996-12-17 | K8: с. Минское Костромского р-на Костромской обл. | L8: РФ | M8: ж | N8: МКОУ Костромского муниципального -на Костромской обл. | O8: 2014 | P8: не замужем | Q8: Костромская обл., Костромской р-н, п. Минское ул.Куколевского, д. 3, кв. 7 | Y8: 14450 | Z8: Экономический | AA8: 38.03.30 | AB8: Экономика | AC8: Финансы и кредит | AD8: 5 лет | AE8: БАКАЛАВР | AF8: 2-524 | AG8: 2014-08-21 | AH8: по договору с полным возмещением затрат | AI8: 000002540 | AJ8: 2014-07-01 | AX8: 2-571 | AY8: 2015-09-01 | AZ8: 2-561 | BA8: 2016-09-01 | CA8: 4 | CB8: 241z | CI8: 3 | CJ8: п/зач | CL8: 6 | CM8: п/зач | CO8: 3 | CP8: п/зач | CR8: 3 | CS8: п/зач | CX8: 3 | CY8: п/зач | DA8: 6 | DB8: п/зач | DD8: 0 | DG8: 3 | DH8: п/зач | DM8: 6 | DN8: п/зач | DP8: 6 | DQ8: 2016-04-27 | DS8: 3 | DT8: п/зач | DY8: 4 | DZ8: 2016-04-27 | EE8: 0 | EH8: 6 | EI8: п/зач | EK8: 0 | EN8: 4 | EO8: п/зач | EQ8: 0 | ET8: 0 | EW8: 0 | EZ8: 3 | FA8: 2016-12-05 | FB8: Z-6278442 | FC8: 0 | FF8: 5 | FG8: 2017-05-30 | FH8: Z-6278581 | FI8: 6 | FJ8: 2017-05-30 | FK8: Z-6278435 | GD8: 3 | GE8: 2017-12-06 | GF8: Z-7689567 | GM8: 4 | GN8: 2017-12-06 | GO8: Z-7689592 | JJ8: 0.82 | JL8: 8 | JM8: 3 | JN8: 1 | JO8: 6 | JP8: 12 | JQ8: 211026 | JR8: 26378
A9: 15 | B9: Абрамова | C9: Ксения | D9: Олеговна | E9: Абрамова К. О. | G9: Абрамовой | H9: Ксении | I9: Олеговне | J9: 1994-11-12 | K9: г. Удомля Тверской обл. | L9: РФ | M9: ж | N9: МБОУ г. Костромы "Средняя общеобразовательная школа №24" | O9: 2015 | P9: не замужем | Q9: Костромская обл. Красносельский р-н, п. Красное-на-Волге, д.15, кв. 71 | Y9: 15636 | Z9: Экономический | AA9: 38.03.59 | AB9: Экономика | AC9: Финансы и кредит | AD9: 5 лет | AE9: БАКАЛАВР | AF9: 2-555 | AG9: 2015-08-21 | AH9: по договору с полным возмещением затрат | AI9: 000003371 | AJ9: 2015-07-06 | AS9: 2-671 | AT9: 2016-10-18 | AU9: по семейным обстоятельствам | AV9: 2016-10-04 | AW9: 2017-10-04 | AX9: 2-561 | AY9: 2016-09-01 | CA9: 2 | CB9: 221z | CI9: 3 | CJ9: п/зач | CL9: 6 | CM9: п/зач | DA9: 6 | DB9: п/зач | DG9: 4 | DH9: п/зач | DP9: 6 | DQ9: 2018-04-28 | DR9: 7909531 | HT9: 4 | HU9: п/зач | JJ9: 0.22 | JL9: 1 | JM9: 2 | JN9: 0 | JO9: 3 | JP9: 3 | JQ9: 31 | JR9: 4
A10: 16 | B10: Еперина | C10: Ольга | D10: Сергеевна | E10: Еперина О. С. | F10: =DativeCase(CONCATENATE(B10," ", C10," ",D10)) ->  | G10: Епериной | H10: Ольге | I10: Сергеевне | J10: 1996-07-05 | K10: п. Горчуха Макарьевского р-на Костромской обл. | L10: РФ | M10: ж | N10: МК СОШ 1 г. Макарьев, Костромская область | O10: 2013 | P10: не замужем | Q10: Костромская обл., Макарьевский р-н, п. Горчуха, ул. Пролетарская, д. 20, кв. 1 | Y10: 13541 | Z10: Экономический | AA10: 38.03.05 | AB10: Экономика | AC10: Финансы и кредит | AD10: 5 лет | AE10: БАКАЛАВР | AF10: 2-516 | AG10: 2013-08-10 | AH10: по договору с полным возмещением затрат | AI10: 000000739 | AJ10: 2013-07-29 | AM10: 2-448 | AN10: 2018-05-31 | AO10: за невыполнение учебного плана | AX10: 2-553 | AY10: 2014-09-05 | AZ10: 2-571 | BA10: 2015-09-01 | BB10: 2-561 | BC10: 2016-09-01 | BD10: 2-339 | BE10: 2018-05-03 | BR10: Организация кредитования физических лиц в ООО КБ «Аксонбанк» г. Кострома. Развитие системы потребительского кредитования. | CA10: 5 | CB10: 253z | CC10: 4 | CD10: 2017-11-01 | CF10: 6 | CG10: 2017-11-01 | CI10: 3 | CJ10: п/зач | CL10: 6 | CM10: п/зач | CO10: 3 | CP10: п/зач | CR10: 3 | CS10: п/зач | CU10: 3 | CV10: п/зач | CX10: 3 | CY10: п/зач | DA10: 6 | DB10: 2015-11-18 | DD10: 6 | DE10: 2014-12-24 | DG10: 3 | DH10: 2014-12-27 | DJ10: 3 | DK10: 2014-12-27 | DM10: 6 | DN10: п/зач | DP10: 6 | DQ10: 2015-04-16 | DS10: 4 | DT10: 2015-04-24 | DY10: 3 | DZ10: 2015-04-24 | EB10: 3 | EC10: 2015-04-25 | EE10: 6 | EF10: п/зач | ET10: 3 | EU10: 2015-11-27 | EW10: 4 | EX10: 2015-11-30 | EZ10: 5 | FA10: 2015-11-25 | FC10: 4 | FD10: 2015-11-23 | FF10: 5 | FG10: 2016-06-01 | FI10: 6 | FJ10: 2016-06-01 | FL10: 4 | FM10: 2016-06-01 | FO10: 3 | FP10: 04.06.2016 | FQ10: Финансовая политика государства и ее особенности в России | FR10: 3 | FS10: 2016-06-01 | FU10: 3 | FV10: 2016-06-01 | FX10: 3 | FY10: 04.06.2016 | GD10: 3 | GE10: 2016-12-12 | GG10: 5 | GH10: 12.12.2016 | GI10: Особенности организации финансовой работы МУП г. Кострома "Костромагортранс" | GJ10: 3 | GK10: 2016-12-12 | GM10: 3 | GN10: 2016-12-12 | GP10: 4 | GQ10: 2016-12-12 | GS10: 4 | GT10: 18.10.2017 | GU10: Себестоимость и рентабельность производства продукции животноводства | GV10: 3 | GW10: 2016-12-12 | GY10: 3 | GZ10: 2017-12-22 | HA10: 455 | HB10: 3 | HC10: 2017-04-08 | HE10: 3 | HF10: 2017-10-18 | HW10: 6 | HX10: п/зач | HZ10: 3 | IA10: 2018-04-16 | IB10: 656 | IC10: 4 | ID10: 2018-04-17 | IE10: 674 | IO10: 3 | IP10: 2018-05-14 | IQ10: 833 | IU10: 3 | IV10: 2017-11-01 | IW10: Z-7659582 | JF10: ФГБОУ ВО Костромская ГСХА, кафедра "Финансы и кредит" | JI10: ООО КБ "Аксонбанк" г. Кострома | JJ10: 2.38 | JL10: 24 | JM10: 8 | JN10: 3 | JO10: 9 | JP10: 35 | JQ10: 676200 | JR10: 84525
A11: =A10+1 -> 17 | B11: Зорин | C11: Антон | D11: Константинович | E11: Зорин А. К. | G11: Зорину | H11: Антону | I11: Константиновичу | J11: 1992-12-03 | K11: г. Кострома | L11: РФ | M11: м | N11: МОУ средняя общеобразовательная школа 5 города Костромы | O11: 2009 | P11: холост | Q11: г. Кострома, м/р-н. Венеция, д. 12, кв. 50 | Y11: 09480 | Z11: Экономический | AA11: 38.03.04 | AB11: Экономика | AC11: Финансы и кредит | AD11: 5 лет | AE11: БАКАЛАВР | AF11: 2-370 | AG11: 2009-08-13 | AH11: по договору с полным возмещением затрат | AI11: 134 | AJ11: 2009-08-05 | AM11: 2-715 2-379 | AN11: 06.11.2012 16.05.2018 | AO11: по собственному желанию как невышедшего из академического отпуска | AP11: 2-639 | AQ11: 2014-10-08 | AS11: 2-491 | AT11: 2017-06-06 | AU11: по семейным обстоятельствам | AV11: 2017-05-11 | AW11: 2018-05-10 | AX11: 2-405 | AY11: 2010-09-01 | AZ11: 2-382 | BA11: 2011-08-31 | BB11: 2-571 | BC11: 2015-09-01 | BD11: 2-402 | BE11: 2017-05-18 | CA11: 5 | CB11: АО | CI11: 4 | CJ11: п/зач | CL11: 6 | CM11: п/зач | CO11: 3 | CP11: п/зач | CR11: 3 | CS11: п/зач | CU11: 3 | CV11: п/зач | CX11: 4 | CY11: п/зач | DA11: 6 | DB11: п/зач | DD11: 6 | DE11: п/зач | DG11: 3 | DH11: 2016-02-03 | DJ11: 3 | DK11: п/зач | DM11: 6 | DN11: п/зач | DP11: 6 | DQ11: п/зач | DS11: 3 | DT11: п/зач | DV11: 4 | DW11: п/зач | DY11: 3 | DZ11: п/зач | EB11: 3 | EC11: п/зач | EE11: 6 | EF11: п/зач | EN11: 4 | EO11: п/зач | EQ11: 3 | ER11: 2014-11-28 | ET11: 3 | EU11: 2014-12-05 | EW11: 3 | EX11: 2014-12-04 | EZ11: 4 | FA11: 2014-11-20 | FC11: 3 | FD11: п/зач | FF11: 4 | FG11: п/зач | FI11: 6 | FJ11: 2015-05-23 | FL11: 3 | FM11: 2015-05-29 | FR11: 4 | FS11: 2015-05-25 | FU11: 3 | FV11: 2015-05-28 | FX11: 3 | FY11: 29.05.2015 | GJ11: 3 | GK11: 2015-12-15 | GM11: 3 | GN11: 2016-02-10 | GP11: 3 | GQ11: 2015-12-16 | GS11: 3 | GT11: 04.02.2016 | GV11: 3 | GW11: 2015-11-26 | GY11: 5 | GZ11: 2016-04-14 | HB11: 3 | HC11: 2016-11-02 | HE11: 4 | HF11: 2016-04-08 | HH11: 3 | HI11: 2016-04-05 | HK11: 3 | HL11: 2016-10-26 | HN11: 3 | HO11: 26.10.2016 | HT11: 3 | HU11: п/зач | HW11: 6 | HX11: п/зач | HZ11: 3 | IA11: 2016-11-02 | IR11: 4 | IS11: 2016-10-04 | IU11: 4 | IV11: 2016-11-02 | IX11: 6 | IY11: п/зач | JA11: 6 | JB11: 2016-11-02 | JJ11: 2.46 | JL11: 26 | JM11: 10 | JN11: 1 | JO11: 10 | JP11: 37 | JQ11: 676859 | JR11: 84607
A12: =A11+1 -> 18 | B12: Соловьёва | C12: Виктория | D12: Евгеньевна | E12: Соловьёва В. Е. | G12: Соловьёвой | H12: Виктории | I12: Евгеньевне | J12: 1994-11-13 | K12: г. Галич Костромской обл. | L12: РФ | M12: ж | N12: МОУ лицей 3 гор. Галича Костромской области | O12: 2012 | P12: не замужем | Q12: Костромская обл., г. Галич, ул. Солнечная, д. 8 | Y12: 12484 | Z12: Экономический | AA12: 38.03.07 | AB12: Экономика | AC12: Финансы и кредит | AD12: 5 лет | AE12: БАКАЛАВР | AF12: 2-553 | AG12: 2012-08-05 | AH12: по договору с полным возмещением затрат | AI12: 517-2012 | AJ12: 2012-07-13 | AM12: 2-379 | AN12: 2018-05-16 | AO12: как невышедшую из академического отпуска | AS12: 2-491 | AT12: 2017-06-06 | AU12: по семейным обстоятельствам | AV12: 2017-05-11 | AW12: 2018-05-10 | AX12: 2-592 | AY12: 2013-09-16 | AZ12: 2-533 | BA12: 2014-09-01 | BB12: 2-571 | BC12: 2015-09-01 | BD12: 2-561 | BE12: 2016-09-01 | CA12: 5 | CB12: АО | CI12: 3 | CJ12: п/зач | CL12: 6 | CM12: п/зач | CO12: 3 | CP12: п/зач | CR12: 3 | CS12: п/зач | CU12: 3 | CV12: п/зач | CX12: 4 | CY12: п/зач | DA12: 0 | DD12: 6 | DE12: п/зач | DG12: 3 | DH12: п/зач | DJ12: 3 | DK12: п/зач | DM12: 6 | DN12: п/зач | DP12: 6 | DQ12: п/зач | DV12: 3 | DW12: п/зач | DY12: 3 | DZ12: п/зач | EB12: 3 | EC12: п/зач | EE12: 6 | EF12: п/зач | EK12: 0 | EN12: 4 | EQ12: 3 | ER12: 2014-11-28 | ET12: 4 | EU12: 2014-12-05 | EW12: 3 | EX12: п/зач | EZ12: 0 | FC12: 4 | FD12: 2014-11-25 | FF12: 5 | FG12: 2015-05-18 | FI12: 6 | FJ12: 2015-05-23 | FL12: 3 | FM12: 2015-05-29 | FR12: 4 | FS12: 2015-05-25 | FU12: 3 | FV12: 2015-05-28 | FX12: 3 | FY12: 29.05.2015 | GA12: 5 | GB12: п/зач | GD12: 3 | GE12: 2015-12-04 | GJ12: 5 | GK12: 2015-12-15 | GM12: 4 | GN12: 2015-12-11 | GP12: 3 | GQ12: 2015-12-16 | GS12: 3 | GT12: 14.12.2015 | GV12: 4 | GW12: 2015-11-26 | GY12: 3 | GZ12: п/зач | HB12: 3 | HC12: 2016-04-07 | HE12: 3 | HF12: 2016-04-08 | HH12: 4 | HI12: 2016-04-05 | HK12: 5 | HL12: 2016-04-14 | HN12: 4 | HO12: 26.10.2016 | HT12: 4 | HU12: 2016-11-02 | HW12: 6 | HX12: 2016-11-02 | HZ12: 4 | IA12: 2016-11-02 | IC12: 3 | ID12: 2016-11-02 | IL12: 3 | IM12: 2016-11-02 | IO12: 4 | IP12: 2016-11-02 | IR12: 4 | IS12: 2016-11-02 | IU12: 5 | IV12: 2016-11-02 | JA12: 6 | JB12: 2016-11-02 | JJ12: 2.86 | JL12: 22 | JM12: 13 | JN12: 5 | JO12: 8 | JP12: 40 | JQ12: 762035 | JR12: 95254
A13: 19 | B13: Ермаков | C13: Роман | D13: Сергеевич | E13: Ермаков Р. С. | G13: Ермакову | H13: Роману | I13: Сергеевичу | J13: 1983-03-01 | K13: с. Столпино Кадыйского р-на Костромской обл. | L13: РФ | M13: м | N13: Костромской политехнический колледж | O13: 2008 | P13: холост | Q13: г. Кострома, ул. 11-я Рабочая, д. 5, кв. 117 | U13: 3403 | V13: 668162 | W13: 2004-06-18 | X13: Отделом внутренних дел Кадыйского р-на Костромской области | Y13: 180004 | Z13: Экономический | AA13: 38.03.84 | AB13: Экономика | AC13: Финансы и кредит | AD13: 5 лет | AE13: БАКАЛАВР | AF13: 2-377 | AG13: 2008-08-08 | AH13: по договору с полным возмещением затрат | AI13: 000004720 | AJ13: 2018-01-10 | AM13: 2-565 | AN13: 2018-06-25 | AO13: по собственному желанию | AP13: 2-125 | AQ13: 43152 | AX13: 2-399 | AY13: 2009-09-01 | AZ13: 2-400 | BA13: 2010-09-01 | CA13: 3 | CB13: 231z | CI13: 3 | CJ13: п/зач 31.05.2018 | CL13: 6 | CM13: п/атт 30.05.2018 | CO13: 3 | CP13: п/атт 14.02.2018 | CR13: 3 | CS13: п/атт 14.02.2018 | CU13: 3 | CV13: п/атт 14.02.2018 | CX13: 3 | CY13: п/атт 30.05.2018 | DA13: 6 | DB13: п/зач 04.06.2018 | DD13: 6 | DE13: п/зач 31.05.2018 | DG13: 3 | DH13: п/атт. 31.05.2018 | DJ13: 3 | DK13: п/атт 14.02.2018 | DP13: 6 | DQ13: п/зач 31.05.2018 | DY13: 3 | DZ13: п/атт 14.02.2018 | EB13: 3 | EC13: п/атт 14.02.2018 | EP13: ФГБОУ ВО Костромская ГСХА, кафедра экономической кибернетики | EW13: 3 | EX13: п/атт 14.02.2018 | EZ13: 3 | FA13: п/атт 14.02.2018 | FC13: 3 | FD13: п/зач 30.05.2018 | FF13: 3 | FG13: п/зач 30.05.2018 | GP13: 3 | GQ13: п/атт 30.05.2018 | GS13: 3 | GT13: п/атт 30.05.2018 | HT13: 4 | HU13: п/атт 30.05.2018 | HW13: 6 | HX13: п/зач 31.05.2018 | JJ13: 0.98 | JL13: 15 | JM13: 1 | JN13: 0 | JO13: 5 | JP13: 16 | JQ13: 95 | JR13: 12
A14: 20 | B14: Васильев | C14: Андрей | D14: Алексеевич | E14: Васильев А. А. | G14: Васильеву | H14: Андрею | I14: Алексеевичу | J14: 1994-12-21 | K14: г. Кострома | L14: РФ | M14: м | N14: МБОУ г. Костромы СОШ №24 | O14: 2012 | P14: холост | Q14: г. Кострома, ул. Индустриальная, д. 10, кв. 4 | Y14: 12471 | Z14: Экономический | AA14: 38.03.36 | AB14: Экономика | AC14: Финансы и кредит | AD14: 5 лет | AE14: БАКАЛАВР | AF14: 2-553 | AG14: 2012-08-05 | AH14: по договору с полным возмещением затрат | AI14: 563-2012 | AJ14: 2012-07-27 | AM14: 2-449 | AN14: 42542 | AO14: как не вышедший из АО | AP14: 2-773 | AQ14: 42716 | AS14: 2-354 | AT14: 42164 | AU14: в связи с призывом в ряды ВС РФ | AV14: 42152 | AW14: 42518 | AX14: 2-592 | AY14: 2013-09-16 | AZ14: 2-772 | BA14: 2014-12-12 | CA14: 3 | CB14: 231z | CI14: 3 | CJ14: п/зач | CL14: 6 | CM14: п/зач | CO14: 3 | CP14: п/зач | CR14: 3 | CS14: п/зач | CX14: 3 | CY14: п/зач | DA14: 6 | DB14: 2016-12-23 | DD14: 6 | DE14: 2016-12-23 | DG14: 3 | DH14: 2016-12-23 | DJ14: 3 | DK14: 2016-12-23 | DM14: 6 | DN14: 2014-12-18 | EE14: 6 | EF14: п/зач | JJ14: 0.36 | JL14: 6 | JM14: 0 | JN14: 0 | JO14: 5 | JP14: 6 | JQ14: 54 | JR14: 7
A15: 21 | B15: Скобельцина | C15: Светлана | D15: Юрьевна | E15: Скобельцина С. Ю. | G15: Скобельциной | H15: Светлане | I15: Юрьевне | J15: 1986-08-31 | K15: п. Красное-на-Волге Красносельского р-на Костромской обл. | L15: РФ | M15: ж | N15: МБОУ г. Костромы Вечерняя (сменная) ОШ №8 | O15: 2015 | P15: не замужем | Q15: Костромская обл., Красносельский р-н, пгт Красное-на-Волге, ул. Мелиоративная, д. 2, кв. 1 | Y15: 15749з | Z15: Экономический | AA15: 38.03.51 | AB15: Экономика | AC15: Финансы и кредит | AD15: 5 лет | AE15: БАКАЛАВР | AF15: 2-557 | AG15: 2015-08-21 | AH15: по договору с полным возмещением затрат | AI15: 000003700 | AJ15: 2015-08-14 | AX15: 2-561 | AY15: 2016-09-01 | CA15: 3 | CB15: 233z | CF15: 6 | CG15: 2018-06-05 | CH15: 7781010 | CI15: 5 | CJ15: 2016-09-12 | CL15: 6 | CM15: 2016-06-11 | CO15: 5 | CP15: 2017-10-10 | CR15: 5 | CS15: 2016-06-30 | CU15: 4 | CV15: 2016-09-09 | CX15: 3 | CY15: 2016-07-01 | DA15: 6 | DB15: 2017-05-30 | DD15: 6 | DE15: 2017-10-12 | DJ15: 4 | DK15: 2017-12-22 | DL15: 472 | DM15: 6 | DN15: 2018-05-07 | DO15: 780 | DP15: 6 | DQ15: 2017-12-22 | DR15: 469 | DS15: 4 | DT15: 2017-05-30 | DV15: 4 | DW15: 2017-12-08 | DY15: 5 | DZ15: 2018-05-07 | EA15: 778 | EB15: 3 | EC15: 2017-12-26 | EE15: 6 | EF15: 2017-04-22 | EH15: 6 | EI15: 2017-04-22 | EZ15: 5 | FA15: 02.12.2017 7789510 | FQ15: Структура финансовой системы России и перспективы ее развития | JJ15: 0.94 | JL15: 2 | JM15: 4 | JN15: 5 | JO15: 8 | JP15: 11 | JQ15: 81 | JR15: 10
A16: 22 | B16: Капустина (Моисеева) | C16: Ирина | D16: Геннадьевна | E16: Капустина (Моисеева) . Г. | G16: Капустиной | H16: Ирине | I16: Геннадьевне | J16: 1996-07-05 | K16: г. Солигалич Костромской обл | L16: РФ | M16: ж | N16: МБОУ Солигаличская СОШ Костромской обл. | O16: 2014 | P16: замужем | Q16: Костромская обл., г.Солигалич, ул. Набережная реки Костромы, д. 93 | Y16: 14551 | Z16: Экономический | AA16: 38.03.22 | AB16: Экономика | AC16: Финансы и кредит | AD16: 5 лет | AE16: БАКАЛАВР | AF16: 2-524 | AG16: 2014-08-21 | AH16: по договору с полным возмещением затрат | AI16: 000002671 | AJ16: 2014-07-18 | AM16: 2-565 | AN16: 2018-06-25 | AO16: за академическую неуспеваемость | AX16: 2-571 | AY16: 2015-09-01 | AZ16: 2-554 | BA16: 2016-06-16 | CA16: 4 | CB16: 243z | CI16: 4 | CJ16: 2015-06-01 | CL16: 6 | CM16: п/зач | CO16: 3 | CP16: 2016-09-08 | CR16: 3 | CS16: п/зач | CU16: 4 | CV16: 2016-09-09 | CX16: 3 | CY16: 2016-07-01 | DA16: 6 | DB16: п/зач | DD16: 6 | DE16: 2016-09-07 | DG16: 4 | DH16: 2015-12-26 | DJ16: 5 | DK16: 2016-09-08 | DM16: 6 | DN16: 2016-10-03 | DP16: 6 | DQ16: 2016-04-25 | DV16: 3 | DW16: 2016-10-03 | DY16: 3 | DZ16: 2016-05-27 | EB16: 3 | EC16: 2016-09-09 | EH16: 6 | EI16: п/зач | EZ16: 5 | FA16: 2016-12-05 | FB16: Z-6278442 | FC16: 5 | FD16: 2017-10-13 | FE16: 116 | FQ16: Фонд социального страхования Российской Федерации и его роль в системе государственного социального страхования | FR16: 5 | FS16: 2017-05-30 | FT16: Z-62798453 | FZ16: Оптимизация структуры посевных площадей предприятия | GJ16: 4 | GK16: 2017-12-06 | GL16: Z-7709579 | HE16: 3 | HF16: 2018-04-13 | HG16: 7709577 | HS16: ООО "Солигаличский известковый комбинат" Сольгаличского р-на Костромской обл. | HT16: 4 | HU16: п/зач | JJ16: 1.22 | JL16: 7 | JM16: 5 | JN16: 4 | JO16: 6 | JP16: 16 | JQ16: 210996 | JR16: 26375
A17: 23 | B17: Котова | C17: Светлана | D17: Александровна | E17: Котова С. А. | G17: Котовой | H17: Светлане | I17: Александровне | J17: 1972-08-25 | K17: г. Кострома | L17: РФ | M17: ж | N17: СШ №17 г. Кострома | O17: 1989 | P17: не замужем | Q17: г. Кострома, ул. Жужелинская, д. 30, кв. 43 | Y17: 14910 | Z17: Экономический | AA17: 38.03.25 | AB17: Экономика | AC17: Финансы и кредит | AD17: 5 лет | AE17: БАКАЛАВР | AF17: 2-525 | AG17: 2014-08-21 | AH17: по договору с полным возмещением затрат | AI17: 000002839 | AJ17: 2014-08-12 | AM17: 2-565 | AN17: 2018-06-25 | AO17: за академическую неуспеваемость | AX17: 2-571 | AY17: 2015-09-01 | AZ17: 2-561 | BA17: 2016-09-01 | CA17: 4 | CB17: 241z | CI17: 3 | CJ17: 2015-06-01 | CL17: 6 | CM17: 2015-06-02 | CO17: 3 | CP17: 2015-06-02 | CR17: 3 | CS17: 2015-06-06 | CU17: 3 | CV17: 2015-05-30 | CX17: 3 | CY17: 2015-06-05 | DA17: 6 | DB17: 2015-12-22 | DD17: 6 | DE17: 2015-12-22 | DG17: 5 | DH17: 2015-12-26 | DJ17: 3 | DK17: 2015-12-25 | DM17: 6 | DN17: 2015-12-24 | DP17: 6 | DQ17: 2016-04-27 | DS17: 4 | DT17: 2016-06-11 | DV17: 4 | DW17: 2016-04-19 | DY17: 3 | DZ17: 2016-04-27 | EB17: 4 | EC17: 2016-04-23 | EH17: 6 | EI17: 2015-05-22 | EK17: 0 | EN17: 5 | EO17: 2016-07-02 | EP17: Z-6278411 | ET17: 3 | EU17: 2017-09-15 | EV17: 14 | EZ17: 3 | FA17: 2016-12-05 | FB17: Z-6278442 | FC17: 4 | FD17: 2016-11-24 | FE17: Z-6278577 | FQ17: Налоги с населения и их роль в современных условиях | HS17: ФГБОУ ВО Костромская ГСХА Костромского р-на Костромской обл. | JJ17: 1.06 | JL17: 9 | JM17: 4 | JN17: 2 | JO17: 6 | JP17: 15 | JQ17: 84022 | JR17: 10503
A18: 24 | B18: Шарова | C18: Анна | D18: Борисовна | E18: Шарова А. Б. | G18: Шаровой | H18: Анне | I18: Борисовне | J18: 1987-02-11 | K18: г. Ярославль | L18: РФ | M18: ж | N18: МОУ Караваевская СОШ Костромской обл. | O18: 2014 | P18: замужем | Q18: Костромская обл., Костромской р-н, п. Караваево, ул. Учебный городок, д. 16, кв. 33 | Y18: 14914 | Z18: Экономический | AA18: 38.03.35 | AB18: Экономика | AC18: Финансы и кредит | AD18: 5 лет | AE18: БАКАЛАВР | AF18: 2-525 | AG18: 2014-08-21 | AH18: по договору с полным возмещением затрат | AI18: 000002805 | AJ18: 2014-08-08 | AM18: 2-565 | AN18: 2018-06-25 | AO18: за академическую неуспеваемость | AX18: 2-571 | AY18: 2015-09-01 | AZ18: 2-561 | BA18: 2016-09-01 | CA18: 4 | CB18: 243z | CI18: 4 | CJ18: 2015-06-01 | CL18: 6 | CM18: 2015-06-02 | CO18: 3 | CP18: 2015-06-02 | CR18: 4 | CS18: 2015-06-06 | CU18: 4 | CV18: 2015-05-30 | CX18: 4 | CY18: 2015-06-05 | DA18: 6 | DB18: 2015-12-22 | DD18: 6 | DE18: 2015-12-22 | DG18: 5 | DH18: 2015-12-26 | DJ18: 4 | DK18: 2015-12-25 | DM18: 6 | DN18: 2015-12-24 | DP18: 6 | DQ18: 2016-04-27 | DS18: 4 | DT18: 2016-06-11 | DV18: 4 | DW18: 2016-04-19 | EB18: 3 | EC18: 2016-04-23 | EH18: 6 | EI18: 2015-05-22 | EN18: 3 | EO18: 2016-07-02 | EP18: Z-6278411 | ET18: 4 | EU18: 2016-12-05 | EV18: Z-6278431 | EW18: 3 | EX18: 2016-12-05 | EY18: Z-6278889 | EZ18: 3 | FA18: 2016-12-05 | FB18: Z-6278442 | FC18: 3 | FD18: 2016-11-24 | FE18: Z-6278577 | HS18: ФГБОУ ВО Костромская ГСХА Костромского р-на Костромской обл. | JJ18: 1.1 | JL18: 6 | JM18: 8 | JN18: 1 | JO18: 6 | JP18: 15 | JQ18: 126000 | JR18: 15750
A19: =Предметы!A66+1 -> 62 | B19: Алексеев | C19: Евгений | D19: Игоревич | E19: =CONCATENATE(B19," ",LEFT(C19,1),". ",LEFT(D19,1),".") -> Алексеев Е. И. | G19: Алексееву | H19: Евгению | I19: Игоревичу | J19: 1991-03-08 | K19: г.Кострома | L19: РФ | M19: м | N19: ГОУ СПО Костромской автодорожный колледж | O19: 2010 | P19: холост | Q19: г.Кострома, ул. Шагова, д.215, кв. 30 | Y19: 170751 | Z19: Экономический | AA19: 38.03.77 | AB19: Экономика | AC19: Финансы и кредит | AD19: 5 лет | AE19: БАКАЛАВР | AF19: 2-701 | AG19: 2017-08-31 | AH19: по договору с полным возмещением затрат | AI19: 000004589 | AJ19: 2017-08-22 | CA19: 1 | CB19: 211z | CI19: 4 | CJ19: 2018-06-09 | CK19: 7879530 | CU19: 3 | CV19: патт.06.04.2018 | CW19: 601 | JJ19: =(JL19*3+JM19*4+JN19*5)/50 -> 0.14 | JL19: =COUNTIF(CC19:JG19,3) -> 1 | JM19: =COUNTIF(CC19:JG19,4) -> 1 | JN19: =COUNTIF(CC19:JG19,5) -> 0 | JO19: =COUNTIF(CC19:JG19,6) -> 0 | JP19: =SUM(JL19:JN19) -> 2 | JQ19: =SUMIF(CC19:JG19,">0",Предметы!$CC$3:$JG$3) -> 468 | JR19: =INT(JQ19/8+0.5) -> 59
A20: =Предметы!A75+1 -> 72 | B20: Карпов | C20: Сергей | D20: Васильевич | E20: =CONCATENATE(B20," ",LEFT(C20,1),". ",LEFT(D20,1),".") -> Карпов С. В. | G20: Карпову | H20: Сергею | I20: Васильевичу | J20: 1997-12-29 | K20: г.Ясный Оренбургской обл. | L20: РФ | M20: м | N20: МБОУ СОШ р.п.Магнитка Кусинский район Челябинской области | O20: 2016 | P20: холост | Q20: г.Кострома, ул. Никитская, д.47б | Y20: 170762 | Z20: Экономический | AA20: 38.03.84 | AB20: Экономика | AC20: Финансы и кредит | AD20: 5 лет | AE20: БАКАЛАВР | AF20: 2-687 | AG20: 2017-08-19 | AH20: по договору с полным возмещением затрат | AI20: 000004398 | AJ20: 2017-07-17 | CA20: 1 | CB20: 211z | CI20: 4 | CJ20: 2018-06-09 | CK20: 7879530 | CL20: 6 | CM20: 2018-06-09 | CN20: 7879527 | JJ20: =(JL20*3+JM20*4+JN20*5)/50 -> 0.08 | JL20: =COUNTIF(CC20:JG20,3) -> 0 | JM20: =COUNTIF(CC20:JG20,4) -> 1 | JN20: =COUNTIF(CC20:JG20,5) -> 0 | JO20: =COUNTIF(CC20:JG20,6) -> 1 | JP20: =SUM(JL20:JN20) -> 1 | JQ20: =SUMIF(CC20:JG20,">0",Предметы!$CC$3:$JG$3) -> 180 | JR20: =INT(JQ20/8+0.5) -> 23

Sheet Для диплома
A2: № п.п. | B2: Фамилия | C2: Имя | D2: Отчество | E2: Пол | F2: день (цифры) дата рождения | G2: месяц (цифры) дата рождения | H2: год (цифры) дата рождения | I2: Год поступления | J2: Отличие (цифра 5) | K2: гражданство (РФ, ближнее, дальнее, без гражданства) | L2: источник финансирования (платно, бюджет, целевое) | M2: Предыдущий документ, год выдачи, (С УКАЗАНИЕМ СТРАНЫ ВЫДАЧИ КРОМЕ РФ) | N2: Примечание | O2: государственный экзамен | P2: Вид выпускной работы (ДП, ДР, МД) | Q2: Тема диплома | R2: выпускная квалификационная работа | S2: № протокола аттестационной комиссии | T2: день (цифры) дата защиты | U2: месяц (цифры) дата защиты | V2: год (цифры) дата защиты | W2: № приказа об отчислении | X2: день (цифры) дата приказа об отчислении | Y2: месяц (цифры) дата приказа об отчислении | Z2: год (цифры) дата приказа об отчислении | AA2: Серия диплома | AB2: № диплома | AC2: Серия приложения к диплому | AD2: № приложения к диплому | AE2: Регистрационный номер | AG2: Моделирование социально-экономических систем | AI2: Корпоративные финансы | AK2: Экономика организаций (предприятий) | AM2: Финансы | AO2: Анализ финансовой отчетности | AQ2: Инвестиции | AS2: 0 | AU2: 0 | AW2: 0 | AY2: 0 | BA2: 0 | BC2: 0 | BE2: 0 | BG2: 0 | BI2: 0 | BK2: 0 | BM2: 0 | BO2: 0 | BQ2: 0 | BS2: 0 | BV2: Учебная (практика по получению первичных профессиональных умений и навыков, в том | BW2: числе первичных умений и навыков научно-исследовательской деятельности) | BX2: Производственная (научно-исследовательская работа) | BY2: Производственная (практика по получению профессиональных | BZ2: умений и опыта профессиональной деятельности) | CA2: Производственная (технологическая) | CB2: Производственная (преддипломная) | CC2: 0 | CD2: 0 | CE2: 0 | CG2: История | CH2: Философия | CI2: Иностранный язык | CJ2: Право | CK2: Социология | CL2: Психология | CM2: Математический анализ | CN2: Линейная алгебра | CO2: Теория вероятности и математическая статистика | CP2: Методы оптимальных решений | CQ2: Макроэкономика | CR2: Микроэкономика | CS2: Политология | CT2: Статистика | CU2: Безопасность жизнедеятельности | CV2: Финансы | CW2: Бухгалтерский учет и анализ | CX2: Деньги, кредит, банки | CY2: Менеджмент | CZ2: Маркетинг | DA2: Мировая экономика и международные экономические отношения | DB2: Макроэкономическое планирование и прогнозирование | DC2: Корпоративные финансы | DD2: Физическая культура и спорт | DE2: Эконометрика | DF2: Делопроизводство и документооборот в финансовой сфере | DG2: Информатика и информационное обеспечение финансовой деятельности | DH2: Информационные технологии и базы данных в сфере финансов и кредита | DI2: Методы принятия управленческих решений в сфере финансов и кредита | DJ2: Регионалистика | DK2: Инвестиции | DL2: Государственные и муниципальные финансы | DM2: Страхование | DN2: Финансовый менеджмент | DO2: Налоги и налоговая система | DP2: Международные валютно-кредитные и финансовые отношения | DQ2: Оценка стоимости бизнеса | DR2: Финансовая политика | DS2: Финансовые рынки | DT2: Введение в профессию и основы научных исследований | DU2: Программирование финансовых операций | DV2: Экономика организаций (предприятий) | DW2: Банковское дело | DX2: Моделирование социально-экономических систем | DY2: Организация, нормирование и оплата труда на предприятии | DZ2: Планирование на предприятии | EA2: Анализ финансовой отчетности | EB2: Практикум 1С:Бухгалтерия | EC2: Общая физическая подготовка | ED2: 0 | EE2: 0 | EF2: 0 | EG2: 0 | EH2: 0 | EI2: 0 | EJ2: 0 | EK2: 0 | EL2: 0 | EM2: 0 | EN2: 0 | EO2: 0 | EP2: 0 | EQ2: 0 | ER2: 0 | ES2: 0 | ET2: 0 | EU2: 0 | EV2: 0 | EW2: 0 | EX2: 0 | EY2: 0 | EZ2: 0 | FA2: 0 | FB2: 0 | FC2: 0 | FD2: 0 | FE2: 0 | FF2: 0 | FG2: 0 | FH2: 0 | FI2: 0 | FJ2: 0 | FK2: 0 | FL2: 0 | FM2: 0 | FN2: 0 | FO2: 0 | FP2: 0 | FQ2: 0 | FR2: 0 | FS2: 0 | FT2: 0 | FU2: 0 | FV2: 0 | FW2: 0 | FX2: 0 | FY2: 0 | FZ2: 0 | GA2: 0 | GB2: 0 | GC2: факультативные дисциплины | GD2: 0 | GE2: 0 | GF2: 0 | GG2: 0 | GH2: 0 | GI2: 0 | GJ2: 0 | GK2: 0 | GL2: 0 | GM2: 0 | GN2: 0 | GO2: 0 | GP2: 0 | GQ2: 0 | GR2: 0
AG3: 1 | AI3: 2 | AK3: 3 | AM3: 4 | AO3: 5 | AQ3: 6 | AS3: 7 | AU3: 8 | AW3: 9 | AY3: 10 | BA3: 11 | BC3: 12 | BE3: 13 | BG3: 14 | BI3: 15 | BK3: 16 | BM3: 17 | BO3: 18 | BQ3: 19 | BS3: 20 | BW3: 3 з.е. | BX3: 3 з.е. | BZ3: 3 з.е. | CA3: 3 з.е. | CB3: 3 з.е. | CG3: 3 з.е. | CH3: 3 з.е. | CI3: 6 з.е. | CJ3: 4 з.е. | CK3: 2 з.е. | CL3: 2 з.е. | CM3: 6 з.е. | CN3: 7 з.е. | CO3: 4 з.е. | CP3: 4 з.е. | CQ3: 9 з.е. | CR3: 6 з.е. | CS3: 5 з.е. | CT3: 10 з.е. | CU3: 2 з.е. | CV3: 4 з.е. | CW3: 6 з.е. | CX3: 3 з.е. | CY3: 4 з.е. | CZ3: 3 з.е. | DA3: 4 з.е. | DB3: 3 з.е. | DC3: 4 з.е. | DD3: 2 з.е. | DE3: 5 з.е. | DF3: 6 з.е. | DG3: 10 з.е. | DH3: 4 з.е. | DI3: 2 з.е. | DJ3: 4 з.е. | DK3: 4 з.е. | DL3: 3 з.е. | DM3: 4 з.е. | DN3: 5 з.е. | DO3: 6 з.е. | DP3: 5 з.е. | DQ3: 5 з.е. | DR3: 5 з.е. | DS3: 5 з.е. | DT3: 3 з.е. | DU3: 6 з.е. | DV3: 5 з.е. | DW3: 4 з.е. | DX3: 5 з.е. | DY3: 3 з.е. | DZ3: 4 з.е. | EA3: 5 з.е. | EB3: 2 з.е. | EC3: 328 час. | ED3: час. | EE3: час. | EF3: час. | EG3: час. | EH3: час. | EI3: час. | EJ3: час. | EK3: час. | EL3: час. | EM3: час. | EN3: час. | EO3: час. | EP3: час. | EQ3: час. | ER3: час. | ES3: час. | ET3: час. | EU3: час. | EV3: час. | EW3: час. | EX3: час. | EY3: час. | EZ3: час. | FA3: час. | FB3: час. | FC3: час. | FD3: час. | FE3: час. | FF3: час. | FG3: час. | FH3: час. | FI3: час. | FJ3: час. | FK3: час. | FL3: час. | FM3: час. | FN3: час. | FO3: час. | FP3: час. | FQ3: час. | FR3: час. | FS3: час. | FT3: час. | FU3: час. | FV3: час. | FW3: час. | FX3: час. | FY3: час. | FZ3: час. | GA3: час. | GB3: час. | GD3: 0 | GE3: 0 | GF3: 0 | GG3: 0 | GH3: 0 | GI3: 0 | GJ3: 0 | GK3: 0 | GL3: 0 | GM3: 0 | GN3: 0 | GO3: 0 | GP3: 0 | GQ3: 0 | GR3: 0
A4: 14 | B4: =VLOOKUP(A4,Предметы!$A$6:$JJ$97,2,FALSE) -> Рудин | C4: =VLOOKUP(A4,Предметы!$A$6:$JJ$97,3) -> Сергей | D4: =VLOOKUP(A4,Предметы!$A$6:$JJ$97,4) -> Николаевич | E4: =VLOOKUP(A4,Предметы!$A$6:$JJ$97,13) -> м | F4: =DAY(VLOOKUP(A4,Предметы!$A$6:$JJ$97,10)) -> 25 | G4: =MONTH(VLOOKUP(A4,Предметы!$A$6:$JJ$97,10)) -> 7 | H4: =YEAR(VLOOKUP(A4,Предметы!$A$6:$JJ$97,10)) -> 1982 | I4: =YEAR(VLOOKUP(A4,Предметы!$A$6:$JJ$97,33)) -> 1999 | K4: =VLOOKUP(A4,Предметы!$A$6:$JJ$97,12) -> РФ | L4: платно | O4: =VLOOKUP(A4,Предметы!$A$6:$JJ$97,66) -> 0 | Q4: =VLOOKUP(A4,Предметы!$A$6:$JJ$97,70) -> 0 | R4: ВКР | S4: =VLOOKUP(A4,Предметы!$A$6:$JJ$97,72) -> 0 | T4: =DAY(VLOOKUP(A4,Предметы!$A$6:$JJ$97,73)) -> 0 | U4: =MONTH(VLOOKUP(A4,Предметы!$A$6:$JJ$97,73)) -> 1 | V4: =YEAR(VLOOKUP(A4,Предметы!$A$6:$JJ$97,73)) -> 1900 | X4: 29 | Y4: 6 | Z4: 2018 | AA4: 104406 | AB4: 0005647 | AC4: 104406 | AD4: 0012997 | AE4: 35385 | AH4: =VLOOKUP(A4,Предметы!$A$6:$JJ$97,180) -> 3 | AJ4: =VLOOKUP(A4,Предметы!$A$6:$JJ$97,189) -> 0 | AL4: =VLOOKUP(A4,Предметы!$A$6:$JJ$97,201) -> 4 | AN4: =VLOOKUP(A4,Предметы!$A$6:$JJ$97,171) -> 4 | AP4: =VLOOKUP(A4,Предметы!$A$6:$JJ$97,222) -> 4 | AR4: =VLOOKUP(A4,Предметы!$A$6:$JJ$97,243) -> 0 | BW4: =VLOOKUP(A4,Предметы!$A$6:$JJ$97,144) -> 0 | BX4: =VLOOKUP(A4,Предметы!$A$6:$JJ$97,264) -> 0 | BZ4: =VLOOKUP(A4,Предметы!$A$6:$JJ$97,183) -> 0 | CA4: =VLOOKUP(A4,Предметы!$A$6:$JJ$97,225) -> 0 | CB4: =VLOOKUP(A4,Предметы!$A$6:$JJ$97,267) -> 0 | CG4: =VLOOKUP(A4,Предметы!$A$6:$JJ$97,87) -> 4 | CH4: =VLOOKUP(A4,Предметы!$A$6:$JJ$97,120) -> 6 | CI4: =VLOOKUP(A4,Предметы!$A$6:$JJ$97,123) -> 3 | CJ4: =VLOOKUP(A4,Предметы!$A$6:$JJ$97,228) -> 3 | CK4: =VLOOKUP(A4,Предметы!$A$6:$JJ$97,108) -> 6 | CL4: =VLOOKUP(A4,Предметы!$A$6:$JJ$97,90) -> 6 | CM4: =VLOOKUP(A4,Предметы!$A$6:$JJ$97,93) -> 4 | CN4: =VLOOKUP(A4,Предметы!$A$6:$JJ$97,96) -> 4 | CO4: =VLOOKUP(A4,Предметы!$A$6:$JJ$97,114) -> 3 | CP4: =VLOOKUP(A4,Предметы!$A$6:$JJ$97,147) -> 4 | CQ4: =VLOOKUP(A4,Предметы!$A$6:$JJ$97,126) -> 3 | CR4: =VLOOKUP(A4,Предметы!$A$6:$JJ$97,102) -> 3 | CS4: =VLOOKUP(A4,Предметы!$A$6:$JJ$97,111) -> 3 | CT4: =VLOOKUP(A4,Предметы!$A$6:$JJ$97,132) -> 3 | CU4: =VLOOKUP(A4,Предметы!$A$6:$JJ$97,231) -> 6 | CV4: =VLOOKUP(A4,Предметы!$A$6:$JJ$97,168) -> 4 | CW4: =VLOOKUP(A4,Предметы!$A$6:$JJ$97,156) -> 4 | CX4: =VLOOKUP(A4,Предметы!$A$6:$JJ$97,174) -> 4 | CY4: =VLOOKUP(A4,Предметы!$A$6:$JJ$97,207) -> 3 | CZ4: =VLOOKUP(A4,Предметы!$A$6:$JJ$97,234) -> 3 | DA4: =VLOOKUP(A4,Предметы!$A$6:$JJ$97,159) -> 4 | DB4: =VLOOKUP(A4,Предметы!$A$6:$JJ$97,237) -> 0 | DC4: =VLOOKUP(A4,Предметы!$A$6:$JJ$97,186) -> 4 | DD4: 6 | DE4: =VLOOKUP(A4,Предметы!$A$6:$JJ$97,129) -> 3 | DF4: =VLOOKUP(A4,Предметы!$A$6:$JJ$97,81) -> 0 | DG4: =VLOOKUP(A4,Предметы!$A$6:$JJ$97,99) -> 3 | DH4: =VLOOKUP(A4,Предметы!$A$6:$JJ$97,150) -> 3 | DI4: =VLOOKUP(A4,Предметы!$A$6:$JJ$97,165) -> 6 | DJ4: =VLOOKUP(A4,Предметы!$A$6:$JJ$97,162) -> 5 | DK4: =VLOOKUP(A4,Предметы!$A$6:$JJ$97,240) -> 0 | DL4: =VLOOKUP(A4,Предметы!$A$6:$JJ$97,210) -> 5 | DM4: =VLOOKUP(A4,Предметы!$A$6:$JJ$97,192) -> 5 | DN4: =VLOOKUP(A4,Предметы!$A$6:$JJ$97,246) -> 0 | DO4: =VLOOKUP(A4,Предметы!$A$6:$JJ$97,213) -> 4 | DP4: =VLOOKUP(A4,Предметы!$A$6:$JJ$97,216) -> 3 | DQ4: =VLOOKUP(A4,Предметы!$A$6:$JJ$97,249) -> 0 | DR4: =VLOOKUP(A4,Предметы!$A$6:$JJ$97,252) -> 0 | DS4: =VLOOKUP(A4,Предметы!$A$6:$JJ$97,195) -> 4 | DT4: =VLOOKUP(A4,Предметы!$A$6:$JJ$97,84) -> 6 | DU4: =VLOOKUP(A4,Предметы!$A$6:$JJ$97,153) -> 3 | DV4: =VLOOKUP(A4,Предметы!$A$6:$JJ$97,198) -> 3 | DW4: =VLOOKUP(A4,Предметы!$A$6:$JJ$97,255) -> 0 | DX4: =VLOOKUP(A4,Предметы!$A$6:$JJ$97,177) -> 4 | DY4: =VLOOKUP(A4,Предметы!$A$6:$JJ$97,258) -> 0 | DZ4: =VLOOKUP(A4,Предметы!$A$6:$JJ$97,204) -> 3 | EA4: =VLOOKUP(A4,Предметы!$A$6:$JJ$97,219) -> 4 | EB4: =VLOOKUP(A4,Предметы!$A$6:$JJ$97,261) -> 0 | EC4: 6 | GD4: 6
M5: аттестат о среднем (полном) общем образовании, 2012 год

Sheet ВЫПУСКНИКИ
